Workbook

Sheet Lease Input
A1: GASB 87 Lease Calculator | E1: Ver: 3/14/19
A2: Please note that macros must be enabled for the calculated lease information to be displayed.
A3: Note: This lease calculation spreadsheet was created to be able to calculate most leases, but may not be able to accommodate all potential scenarios and lease arrangements. If there are questions or issues with the spreadsheet, please contact your CLA audit team or John-Paul LeChevallier, johnpaul.lechevallier@claconnect.com
A5: General Information
A6: Entity's Financial Statement Year End (GASB 87 Implementation Date): | C6: 2022-06-30
A7: Note: Enter the financial statement year end date (Example: 12/31/2020, 6/30/2020, etc)
A8: Note for Comparative Statements: For comparative statements, enter the year end of the first year to be re-stated. Amounts will be calculated for the end of the restated year, and will need to be rolled forward.
A10: Lease commencement date: | C10: 2017-07-01
A11: Note: Enter the date that the entity obtained the right to control the underlying asset. This may be different than the date the lease agreement was signed.
A12: Guidance: Implementation of GASB 87 is based on the facts as of the beginning of the reporting period. Any changes to the lease agreement prior to the beginning of the reporting period should be included in the initial assessment of the lease for implementation of GASB 87.
A14: Is this lease recorded in a governmental fund or a business-type fund? | C14: Governmental Fund
A16: What is the name of the fund that this lease is being recorded in? | C16: Sample Agency
A18: Title/Name of Lease:
A19: Note: Lease names must be less than 25 characters in length.
A20: 1-2799 1100 S Main Marion
A22: Type of Lease - Capital Asset Category
A23: Note: Use the dropdown list or enter your own capital asset grouping category | C23: Buildings
A24: Exclusions: Leases of the following types of assets are excluded from GASB 87 requirements: Software, intangible assets, inventory, natural resource rights, supply contracts such as power purchase agreements, biological assets including timber, plants, and living animals, licensing contracts for films, video recordings, manuscripts, patents, and copyrights.
A25: Footnote Presentation Note: Lease assets and related accumulated depreciation/amortization should be grouped by major classes of underlying assets, but presented separately from non-leased capital assets.
A27: Is this a lease of a nondepreciable asset? (Example: Land) | C27: No - Depreciable
A29: Estimated Useful Life of the Leased Asset (Enter number in years) | C29: 7
A31: Does that lease contain a purchase option for the underlying asset that has a reasonable certainty of being exercised? | C31: No
A33: Was this lease presented as a capital lease in a previous financial statement period? | C33: No
A35: =IF(C33="Yes","If this lease was previously reported as a capital lease, what was the value of the underlying asset as of the beginning of the financial reporting period?","") -> 
A37: =IF(C33="Yes","If this lease was previously reported as a capital lease, what was accumulated depreciation of the underlying asset as of the beginning of the financial reporting period? (Enter as a positive number)","") -> 
A39: =IF(C33="Yes","If this lease was previously reported as a capital lease, what was the liability (sum of remaining principal payments) for the capital lease as of the beginning of the financial reporting period?","") -> 
A41: General Description of Lease:
A45: Disclosures:
A46: Are there any commitments or collateral as part of the lease arrangement? If so, describe below: Note: Disclosure requirements for collateral excludes the leased asset itself.
A47: =A20 -> 1-2799 1100 S Main Marion
A49: Is this a lease with a blended component unit? | C49: No
A50: =IF(C49="Yes","Guidance: GASB 87 paragraph 88 notes that GASB 87 is not applicable for leases with a blended component unit of the primary government."&"The blended component units assets and liabilities are already reported as assets and liabilities of the primary government.","") -> 
A51: Is this lease with a related party? | C51: No
A53: If the lease is with a related party, is the lease structured in a way that would be reasonable to unrelated entities? | C53: N/A
A54: If the lease terms are clearly reflective of the related nature of the parties, the amounts above should be modified to present substance of transaction over legal form. For example, if related parties have an understanding that would extend the life of the lease, should be based on that mutual understanding rather than the terms listed in the agreement. Describe any modifications or disclosures below:
A58: Lease Terms
A59: What is the term/length of the lease? (Enter number in years) | C59: 7
A60: Include optional terms that are reasonably expected to extend or continue the lease.
A61: Exclude "cancelable lease terms" (when both sides have an option to cancel such as Month-to-month)
A62: Note: If term is one year or less (including optional terms that are not considered cancelable), the lease can be excluded from GASB 87 calculations and does not need to be included on this spreadsheet.
A64: How frequently are lease payments made? | C64: Monthly - (12)
A66: Is the first lease payment made at the start of the lease or at the end of the first payment period? | C66: Start of Payment Period
A67: Note: Select "Start of Payment Period" if the "Lease Commencement Date" entered at the top is the same as the day that the first payment is due. Select "End of Payment Period" if the first payment is made at the end of one period from the "Lease Commencement Date"
A69: Annual Interest Rate
A70: Annual Interest Rate applicable to the lease | C70: 0.0444
A71: Guidance: If an interest rate is included within the lease agreement, that interest rate should be used. If an interest rate is not included in the lease, please enter the estimated borrowing rate (an estimate of the interest rate that would be charged for borrowing the lease payment amounts during the lease term).
A72: Note: Not required to apply the guidance for imputation of interest in GASB 62 Paragraphs 173-187 but this calculation can be done as a means of determining the implicit interest rate in the lease.
A75: Variable Payments
A76: Are there variable payments based on future performance or usage of the asset? (Example: Additional monthly payment based on number of copies used on a copier) | C76: No
A77: If yes, describe the terms of the variable payment below:
A79: Guidance: Payments that vary based on future performance or usage of an asset are excluded from the lease calculations and are recorded as expenditures when paid. However, the variable payments are required to be disclosed in the lease footnote.
A82: Lease Payments
A83: Note: This lease calculator is designed to calculate leases made in equal intervals (such as monthly or annually). Please contact CLA for assistance on calculating leases with payments made in irregular intervals.
A85: Note: In addition to base lease payments, the following payments should also be included in the lease schedule:
A86: ■ Fixed lease incentives should be netted with lease payment amounts in the tables below.
A87: ■ Initial payments and downpayments
A88: ■ Final Payments that are reasonably anticipated to be paid, such as residual value guarantees or purchase price options
A89: ■ Variable payment amounts that are "fixed in substance".
A90: →Example: Copier lease payment where a minimum of 1,000 pages at $0.05 per copy are included in the payment each month would be entered as an additional "fixed in substance" payment of $50 each month.
A91: ■ Variable payments based on an index or rate (such as the Consumer Price Index or a market interest rate)
A92: →Future Lease payments should be increased by the percentage of that index or rate as of the lease commencement date.
A93: ■ Any other payments that are reasonaly certain of being required based on assessment of all relevant factors
A94: ■ For leases involving multiple assets with a single lease payment, each asset should be broken out as a separate lease.
A96: Instructions: Once the lease payment information is entered into the table below, click the button to create a new tab with the lease information and add the lease to the "Lease Summay" tab. Once the new tab with the lease information is added, the tab can be updated or edited to include entity-specific account numbers or other information, or deleted as needed. The Lease Summary is not automatically updated for changes after the new tab is created.
A97: Please note that payment information can be copy/pasted into the table below from a payment schedule, if available.
A99: Payments made to lessor at or before commencement of lease, including downpayments
A100: Initial direct costs that are ancillary charges necessary to place the lease asset into service
A101: Total Additions to Lease Asset | C101: =SUM(C99:C100) -> 0
A103: Total of Lease Payments Entered: | C103: =SUM(C106:C705) -> 491354.76
A105: Lease Payment | C105: Amount
A106: Payment #1 | C106: 5537.81
A107: Payment #2 | C107: 5537.81
A108: Payment #3 | C108: 5537.81
A109: Payment #4 | C109: 5537.81
A110: Payment #5 | C110: 5537.81
A111: Payment #6 | C111: 5537.81
A112: Payment #7 | C112: 5537.81
A113: Payment #8 | C113: 5537.81
A114: Payment #9 | C114: 5537.81
A115: Payment #10 | C115: 5537.81
A116: Payment #11 | C116: 5537.81
A117: Payment #12 | C117: 5537.81
A118: Payment #13 | C118: 5537.81
A119: Payment #14 | C119: 5537.81
A120: Payment #15 | C120: 5537.81
A121: Payment #16 | C121: 5537.81
A122: Payment #17 | C122: 5537.81
A123: Payment #18 | C123: 5537.81
A124: Payment #19 | C124: 5537.81
A125: Payment #20 | C125: 5537.81
A126: Payment #21 | C126: 5537.81
A127: Payment #22 | C127: 5537.81
A128: Payment #23 | C128: 5537.81
A129: Payment #24 | C129: 5537.81
A130: Payment #25 | C130: 5873.43
A131: Payment #26 | C131: 5873.43
A132: Payment #27 | C132: 5873.43
A133: Payment #28 | C133: 5873.43
A134: Payment #29 | C134: 5873.43
A135: Payment #30 | C135: 5873.43
A136: Payment #31 | C136: 5873.43
A137: Payment #32 | C137: 5873.43
A138: Payment #33 | C138: 5873.43
A139: Payment #34 | C139: 5873.43
A140: Payment #35 | C140: 5873.43
A141: Payment #36 | C141: 5873.43
A142: Payment #37 | C142: 5873.43
A143: Payment #38 | C143: 5873.43
A144: Payment #39 | C144: 5873.43
A145: Payment #40 | C145: 5873.43
A146: Payment #41 | C146: 5873.43
A147: Payment #42 | C147: 5873.43
A148: Payment #43 | C148: 5873.43
A149: Payment #44 | C149: 5873.43
A150: Payment #45 | C150: 5873.43
A151: Payment #46 | C151: 5873.43
A152: Payment #47 | C152: 5873.43
A153: Payment #48 | C153: 5873.43
A154: Payment #49 | C154: 6041.25
A155: Payment #50 | C155: 6041.25
A156: Payment #51 | C156: 6041.25
A157: Payment #52 | C157: 6041.25
A158: Payment #53 | C158: 6041.25
A159: Payment #54 | C159: 6041.25
A160: Payment #55 | C160: 6041.25
A161: Payment #56 | C161: 6041.25
A162: Payment #57 | C162: 6041.25
A163: Payment #58 | C163: 6041.25
A164: Payment #59 | C164: 6041.25
A165: Payment #60 | C165: 6041.25
A166: Payment #61 | C166: 6041.25
A167: Payment #62 | C167: 6041.25
A168: Payment #63 | C168: 6041.25
A169: Payment #64 | C169: 6041.25
A170: Payment #65 | C170: 6041.25
A171: Payment #66 | C171: 6041.25
A172: Payment #67 | C172: 6041.25
A173: Payment #68 | C173: 6041.25
A174: Payment #69 | C174: 6041.25
A175: Payment #70 | C175: 6041.25
A176: Payment #71 | C176: 6041.25
A177: Payment #72 | C177: 6041.25
A178: Payment #73 | C178: 6041.25
A179: Payment #74 | C179: 6041.25
A180: Payment #75 | C180: 6041.25
A181: Payment #76 | C181: 6041.25
A182: Payment #77 | C182: 6041.25
A183: Payment #78 | C183: 6041.25
A184: Payment #79 | C184: 6041.25
A185: Payment #80 | C185: 6041.25
A186: Payment #81 | C186: 6041.25
A187: Payment #82 | C187: 6041.25
A188: Payment #83 | C188: 6041.25
A189: Payment #84 | C189: 6041.25
A190: Payment #85
A191: Payment #86
A192: Payment #87
A193: Payment #88
A194: Payment #89
A195: Payment #90
A196: Payment #91
A197: Payment #92
A198: Payment #93
A199: Payment #94
A200: Payment #95
A201: Payment #96
A202: Payment #97
A203: Payment #98
A204: Payment #99
A205: Payment #100
A206: Payment #101
A207: Payment #102
A208: Payment #103
A209: Payment #104
A210: Payment #105
A211: Payment #106
A212: Payment #107
A213: Payment #108
A214: Payment #109
A215: Payment #110
A216: Payment #111
A217: Payment #112
A218: Payment #113
A219: Payment #114
A220: Payment #115
A221: Payment #116
A222: Payment #117
A223: Payment #118
A224: Payment #119
A225: Payment #120
A226: Payment #121
A227: Payment #122
A228: Payment #123
A229: Payment #124
A230: Payment #125
A231: Payment #126
A232: Payment #127
A233: Payment #128
A234: Payment #129
A235: Payment #130
... 470 more rows

Sheet Hidden - Calculator (hidden)
A1: Missing Required Information | B1: =IF(OR(B13=0,B16=0,B24=0,B25=0,B26=0,B27=0,B4=0,B6=0),"Error","") ->  | C1: =IF(ISERROR(DATEDIF(B6,B4,"d")),"Error","") ->  | K1: Lease Asset Amortization | AM1: Interest Amortization Type | AN1: Interest Method
A2: General Information from input | G2: Total Present Value | H2: =SUM(H4:H503) -> 421984.5 | K2: Initial Payments | L2: ='Lease Input'!C101 -> 0 | M2: =L2+H2 -> 421984.5 | P2: Annual payment schedule | V2: Footnote Disclosure | AB2: Date Formulas | AF2: Interest method | AH2: =SUM(AH4:AH603) -> 69370.26 | AI2: =SUM(AI4:AI603) -> 421984.5 | AM2: PRINCIPAL AND INTEREST PAYMENT TABLE
E3: Date | F3: Lease Payments | G3: Amount | H3: Present Value | I3: Interest Expense | K3: Annual Amortization | M3: =ROUND(M2/B17,2) -> 60283.5 | AB3: If 1, 2, 4, 6, 12 | AC3: If 24 or 52 | AD3: Combined | AF3: Date | AG3: Balance | AH3: Interest | AI3: Principal | AJ3: Total | AK3: Helper | AM3: Date | AN3: Principal | AO3: Interest | AP3: Total
A4: Entity's GASB 87 Implementation Date: | B4: ='Lease Input'!C6 -> 2022-06-30 | C4: Required | E4: =AD4 -> 2017-07-01 | F4: 1 | G4: =-'Lease Input'!C106 -> -5537.81 | H4: =IF($C$29=1,ROUND(PV($B$28,F4-1,0,G4,$C$29),2),ROUND(PV($B$28,F4,0,G4,$C$29),2)) -> 5537.81 | I4: =-H4-G4 -> 0 | K4: Monthly Amortization | M4: =ROUND(M3/12,2) -> 5023.63 | P4: FY Ending: | Q4: Principal | R4: Interest Expense | S4: Total | T4: Year | W4: ="Year ended "&TEXT(P5,"mmmm")&" "&DAY(P5)&"," -> Year ended June 30, | X4: Principal | Y4: Interest | Z4: Total | AB4: =IF(C29=1,B6,IF(OR($B$25=1,$B$25=2,$B$25=4,$B$25=6,$B$25=12),IF(DAY(B6+1)=1,EOMONTH(B6,(1/$B$25)*12),IF(AND(MONTH(EDATE(B6,(1/$B$25)*12))=2,OR(DAY(B6)=29,DAY(B6)=30)),DATE(YEAR(EDATE(B6,(1/$B$25)*12)),MONTH(EDATE(B6,(1/$B$25)*12)),28),DATE(YEAR(EDATE(B6,(1/$B$25)*12)),MONTH(EDATE(B6,(1/$B$25)*12)),DAY(B6)))),"Next")) -> 2017-07-01 | AC4: =IF(AB4<>"Next","",IF($B$25=24,IF(DAY(B6)<=15,IF(DAY(B6)+15>DAY(EOMONTH(B6,0)),EOMONTH(B6,0),B6+15),DATE(YEAR(B6),MONTH(B6)+1,DAY(B6)-15)),B6+7)) ->  | AD4: =IF(AB4="Next",AC4,AB4) -> 2017-07-01 | AF4: =E4 -> 2017-07-01 | AG4: =H2 -> 421984.5 | AH4: =IF(C29=1,0,IF(G4=0,0,IF(G4>0,0,IF(SUM(G5:$G$603)=0,ROUND(-G4-AG4,2),ROUND(AG4*$B$28,2))))) -> 0 | AI4: =IF(SUM(G5:$G$603)=0,AG4,-G4-AH4) -> 5537.81 | AJ4: =SUM(AH4:AI4) -> 5537.81 | AM4: =E4 -> 2017-07-01 | AN4: =AI4 -> 5537.81 | AO4: =AH4 -> 0 | AP4: =AJ4 -> 5537.81
A5: Beginning of year of implementation: | B5: =DATE(YEAR('Lease Input'!C6)-1,MONTH('Lease Input'!C6)+1,1) -> 2021-07-01 | E5: =AD5 -> 2017-08-01 | F5: 2 | G5: =-'Lease Input'!C107 -> -5537.81 | H5: =IF($C$29=1,ROUND(PV($B$28,F5-1,0,G5,$C$29),2),ROUND(PV($B$28,F5,0,G5,$C$29),2)) -> 5517.4 | I5: =-H5-G5 -> 20.41 | K5: Year 1 | L5: =IF(DATE(YEAR(B6),MONTH(B4),DAY(B4))>B6,DATE(YEAR(B6),MONTH(B4),DAY(B4)),DATE(YEAR(B6)+1,MONTH(B4),DAY(B4))) -> 2018-06-30 | M5: =IF(YEARFRAC(B6,L5)>1,M3,ROUND(YEARFRAC(B6,L5)*M3,2)) -> 60116.05 | P5: =IF(DATE(YEAR(B6),MONTH(B4),DAY(B4))>B6,DATE(YEAR(B6),MONTH(B4),DAY(B4)),DATE(YEAR(B6)+1,MONTH(B4),DAY(B4))) -> 2018-06-30 | Q5: =SUMIF($AM$4:$AM$603,"<="&P5,$AN$4:$AN$603) -> 50326.81 | R5: =SUMIF($AM$4:$AM$603,"<="&P5,$AO$4:$AO$603) -> 16126.91 | S5: =SUM(Q5:R5) -> 66453.72 | T5: =YEAR(P5) -> 2018 | V5: =YEAR(B4)+1 -> 2023 | W5: =V5 -> 2023 | X5: =IF(SUMIF($T$5:$T$104,V5,$Q$5:$Q$104)=0,"",SUMIF($T$5:$T$104,V5,$Q$5:$Q$104)) -> 67712.79 | Y5: =IF(SUMIF($T$5:$T$104,V5,$R$5:$R$104)=0,"",SUMIF($T$5:$T$104,V5,$R$5:$R$104)) -> 4782.21 | Z5: =IF(Y5="","",X5+Y5) -> 72495 | AB5: =IF(OR($B$25=1,$B$25=2,$B$25=4,$B$25=6,$B$25=12),IF(DAY($AB$4+1)=1,EOMONTH(AB4,(1/$B$25)*12),IF(AND(MONTH(EDATE(AB4,(1/$B$25)*12))=2,OR(DAY(AB4)=29,DAY(AB4)=30)),DATE(YEAR(EDATE(AB4,(1/$B$25)*12)),MONTH(EDATE(AB4,(1/$B$25)*12)),28),DATE(YEAR(EDATE(AB4,(1/$B$25)*12)),MONTH(EDATE(AB4,(1/$B$25)*12)),DAY($AB$4)))),"Next") -> 2017-08-01 | AC5: =IF(AB5<>"Next","",IF($B$25=24,IF(DAY(AC4)<=15,IF(DAY(AC4)+15>DAY(EOMONTH(AC4,0)),EOMONTH(AC4,0),AC4+15),DATE(YEAR(AC4),MONTH(AC4)+1,DAY(AC4)-15)),AC4+7)) ->  | AD5: =IF(AB5="Next",AC5,AB5) -> 2017-08-01 | AF5: 2017-08-01 | AG5: =AG4-AI4 -> 416446.69 | AH5: =IF(G5=0,0,IF(G5>0,0,IF(SUM(G6:$G$603)=0,ROUND(-G5-AG5,2),ROUND(AG5*$B$28,2)))) -> 1540.85 | AI5: =IF(SUM(G6:$G$603)=0,AG5,-G5-AH5) -> 3996.96 | AJ5: =SUM(AH5:AI5) -> 5537.81 | AK5: =IF(AH5=0,IF(AK4="",2,AK4+1),"") ->  | AM5: 2017-08-01 | AN5: =AI5 -> 3996.96 | AO5: =AH5 -> 1540.85 | AP5: =AJ5 -> 5537.81
A6: Lease Commencement Date: | B6: =IF('Lease Input'!C10="","",'Lease Input'!C10) -> 2017-07-01 | C6: Required | E6: 2017-09-01 | F6: 3 | G6: =-'Lease Input'!C108 -> -5537.81 | H6: 5497.06 | I6: 40.75 | K6: Year 2 | L6: =DATE(YEAR(L5)+1,MONTH(L5),DAY(L5)) -> 2019-06-30 | M6: =IF(SUM($M$5:M5)+$M$3>$M$2,ROUND($M$2-SUM($M$5:M5),2),ROUND($M$3,2)) -> 60283.5 | P6: =DATE(YEAR(P5)+1,MONTH(P5),DAY(P5)) -> 2019-06-30 | Q6: =SUMIF($AM$4:$AM$603,"<="&P6,$AN$4:$AN$603)-SUM($Q$5:Q5) -> 50981.3 | R6: =SUMIF($AM$4:$AM$603,"<="&P6,$AO$4:$AO$603)-SUM($R$5:R5) -> 15472.42 | S6: =SUM(Q6:R6) -> 66453.72 | T6: 2019 | V6: =V5+1 -> 2024 | W6: =IF(SUMIF($T$5:$T$104,V6,$Q$5:$Q$104)=0,"",V5+1) -> 2024 | X6: =IF(SUMIF($T$5:$T$104,V6,$Q$5:$Q$104)=0,"",SUMIF($T$5:$T$104,V6,$Q$5:$Q$104)) -> 70781.22 | Y6: =IF(SUMIF($T$5:$T$104,V6,$R$5:$R$104)=0,"",SUMIF($T$5:$T$104,V6,$R$5:$R$104)) -> 1713.78 | Z6: =IF(Y6="","",X6+Y6) -> 72495 | AB6: =IF(OR($B$25=1,$B$25=2,$B$25=4,$B$25=6,$B$25=12),IF(DAY($AB$4+1)=1,EOMONTH(AB5,(1/$B$25)*12),IF(AND(MONTH(EDATE(AB5,(1/$B$25)*12))=2,OR(DAY(AB5)=29,DAY(AB5)=30)),DATE(YEAR(EDATE(AB5,(1/$B$25)*12)),MONTH(EDATE(AB5,(1/$B$25)*12)),28),DATE(YEAR(EDATE(AB5,(1/$B$25)*12)),MONTH(EDATE(AB5,(1/$B$25)*12)),DAY($AB$4)))),"Next") -> 2017-09-01 | AC6: =IF(AB6<>"Next","",IF($B$25=24,IF(DAY(AC5)<=15,IF(DAY(AC5)+15>DAY(EOMONTH(AC5,0)),EOMONTH(AC5,0),AC5+15),DATE(YEAR(AC5),MONTH(AC5)+1,DAY(AC5)-15)),AC5+7)) ->  | AD6: =IF(AB6="Next",AC6,AB6) -> 2017-09-01 | AF6: 2017-09-01 | AG6: 412449.73 | AH6: =IF(G6=0,0,IF(AH5=0,ROUND(AK5*AG6*$B$28,2),IF(G6>0,0,IF(SUM(G7:$G$603)=0,ROUND(-G6-AG6,2),ROUND(AG6*$B$28,2))))) -> 1526.06 | AI6: =IF(SUM(G7:$G$603)=0,AG6,-G6-AH6) -> 4011.75 | AJ6: 5537.81 | AK6: =IF(AH6=0,IF(AK5="",2,AK5+1),"") ->  | AM6: 2017-09-01 | AN6: 4011.75 | AO6: 1526.06 | AP6: 5537.81
A7: Governmental or Business-type | B7: =IF('Lease Input'!C14="","",'Lease Input'!C14) -> Governmental Fund | E7: 2017-10-01 | F7: 4 | G7: =-'Lease Input'!C109 -> -5537.81 | H7: 5476.79 | I7: 61.02 | K7: Year 3 | L7: =DATE(YEAR(L6)+1,MONTH(L6),DAY(L6)) -> 2020-06-30 | M7: =IF(SUM($M$5:M6)+$M$3>$M$2,ROUND($M$2-SUM($M$5:M6),2),ROUND($M$3,2)) -> 60283.5 | P7: =DATE(YEAR(P6)+1,MONTH(P6),DAY(P6)) -> 2020-06-30 | Q7: =SUMIF($AM$4:$AM$603,"<="&P7,$AN$4:$AN$603)-SUM($Q$5:Q6) -> 57401.89 | R7: =SUMIF($AM$4:$AM$603,"<="&P7,$AO$4:$AO$603)-SUM($R$5:R6) -> 13079.27 | S7: 70481.16 | T7: 2020 | V7: =V6+1 -> 2025 | W7: =IF(SUMIF($T$5:$T$104,V7,$Q$5:$Q$104)=0,"",V6+1) ->  | X7: =IF(SUMIF($T$5:$T$104,V7,$Q$5:$Q$104)=0,"",SUMIF($T$5:$T$104,V7,$Q$5:$Q$104)) ->  | Y7: =IF(SUMIF($T$5:$T$104,V7,$R$5:$R$104)=0,"",SUMIF($T$5:$T$104,V7,$R$5:$R$104)) ->  | AB7: 2017-10-01 | AC7: =IF(AB7<>"Next","",IF($B$25=24,IF(DAY(AC6)<=15,IF(DAY(AC6)+15>DAY(EOMONTH(AC6,0)),EOMONTH(AC6,0),AC6+15),IF(AND(MONTH(AC6)=2,DAY(AC6)>15),DATE(YEAR(AC6),MONTH(AC6)+1,DAY(AC4)-15),DATE(YEAR(AC6),MONTH(AC6)+1,DAY(AC6)-15))),AC6+7)) ->  | AD7: 2017-10-01 | AF7: 2017-10-01 | AG7: 408437.98 | AH7: =IF(G7=0,0,IF(AH6=0,ROUND(AK6*AG7*$B$28,2),IF(G7>0,0,IF(SUM(G8:$G$603)=0,ROUND(-G7-AG7,2),ROUND(AG7*$B$28,2))))) -> 1511.22 | AI7: =IF(SUM(G8:$G$603)=0,AG7,-G7-AH7) -> 4026.59 | AJ7: 5537.81 | AM7: 2017-10-01 | AN7: 4026.59 | AO7: 1511.22 | AP7: 5537.81
A8: Fund Name | B8: =IF('Lease Input'!C16="","",'Lease Input'!C16) -> Sample Agency | E8: 2017-11-01 | F8: 5 | G8: =-'Lease Input'!C110 -> -5537.81 | H8: 5456.6 | I8: 81.21 | K8: Year 4 | L8: 2021-06-30 | M8: =IF(SUM($M$5:M7)+$M$3>$M$2,ROUND($M$2-SUM($M$5:M7),2),ROUND($M$3,2)) -> 60283.5 | P8: 2021-06-30 | Q8: =SUMIF($AM$4:$AM$603,"<="&P8,$AN$4:$AN$603)-SUM($Q$5:Q7) -> 60003.07 | R8: =SUMIF($AM$4:$AM$603,"<="&P8,$AO$4:$AO$603)-SUM($R$5:R7) -> 10478.09 | S8: 70481.16 | T8: 2021 | V8: 2026 | W8: =IF(SUMIF($T$5:$T$104,V8,$Q$5:$Q$104)=0,"",V7+1) ->  | X8: =IF(SUMIF($T$5:$T$104,V8,$Q$5:$Q$104)=0,"",SUMIF($T$5:$T$104,V8,$Q$5:$Q$104)) ->  | AB8: 2017-11-01 | AC8: =IF(AB8<>"Next","",IF($B$25=24,IF(DAY(AC7)<=15,IF(DAY(AC7)+15>DAY(EOMONTH(AC7,0)),EOMONTH(AC7,0),AC7+15),IF(AND(MONTH(AC7)=2,DAY(AC7)>15),DATE(YEAR(AC7),MONTH(AC7)+1,DAY(AC5)-15),DATE(YEAR(AC7),MONTH(AC7)+1,DAY(AC7)-15))),AC7+7)) ->  | AD8: 2017-11-01 | AF8: 2017-11-01 | AG8: 404411.39 | AH8: =IF(G8=0,0,IF(AH7=0,ROUND(AK7*AG8*$B$28,2),IF(G8>0,0,IF(SUM(G9:$G$603)=0,ROUND(-G8-AG8,2),ROUND(AG8*$B$28,2))))) -> 1496.32 | AI8: =IF(SUM(G9:$G$603)=0,AG8,-G8-AH8) -> 4041.49 | AJ8: 5537.81 | AM8: 2017-11-01 | AN8: 4041.49 | AO8: 1496.32 | AP8: 5537.81
A9: Restatement Required? | B9: =IF(B6="","",IF(B6<B5,"Restatement","No Restatement")) -> Restatement | E9: 2017-12-01 | F9: 6 | G9: =-'Lease Input'!C111 -> -5537.81 | H9: 5436.49 | I9: 101.32 | K9: Year 5 | L9: 2022-06-30 | M9: =IF(SUM($M$5:M8)+$M$3>$M$2,ROUND($M$2-SUM($M$5:M8),2),ROUND($M$3,2)) -> 60283.5 | P9: 2022-06-30 | Q9: =SUMIF($AM$4:$AM$603,"<="&P9,$AN$4:$AN$603)-SUM($Q$5:Q8) -> 64777.42 | R9: =SUMIF($AM$4:$AM$603,"<="&P9,$AO$4:$AO$603)-SUM($R$5:R8) -> 7717.58 | S9: 72495 | T9: 2022 | V9: 2027 | W9: =IF(SUMIF($T$5:$T$104,V9,$Q$5:$Q$104)=0,"",V8+1) ->  | X9: =IF(SUMIF($T$5:$T$104,V9,$Q$5:$Q$104)=0,"",SUMIF($T$5:$T$104,V9,$Q$5:$Q$104)) ->  | AB9: 2017-12-01 | AD9: 2017-12-01 | AF9: 2017-12-01 | AG9: 400369.9 | AH9: =IF(G9=0,0,IF(AH8=0,ROUND(AK8*AG9*$B$28,2),IF(G9>0,0,IF(SUM(G10:$G$603)=0,ROUND(-G9-AG9,2),ROUND(AG9*$B$28,2))))) -> 1481.37 | AI9: =IF(SUM(G10:$G$603)=0,AG9,-G9-AH9) -> 4056.44 | AJ9: 5537.81 | AM9: 2017-12-01 | AN9: 4056.44 | AO9: 1481.37 | AP9: 5537.81
A10: PV of Payments to be Restated | B10: =SUMIF(E4:E603,"<"&B5,H4:H603) -> 251104.25 | E10: 2018-01-01 | F10: 7 | G10: =-'Lease Input'!C112 -> -5537.81 | H10: 5416.45 | I10: 121.36 | K10: Year 6 | L10: 2023-06-30 | M10: =IF(SUM($M$5:M9)+$M$3>$M$2,ROUND($M$2-SUM($M$5:M9),2),ROUND($M$3,2)) -> 60283.5 | P10: 2023-06-30 | Q10: =SUMIF($AM$4:$AM$603,"<="&P10,$AN$4:$AN$603)-SUM($Q$5:Q9) -> 67712.79 | R10: =SUMIF($AM$4:$AM$603,"<="&P10,$AO$4:$AO$603)-SUM($R$5:R9) -> 4782.21 | S10: 72495 | T10: 2023 | V10: =IF(VALUE(RIGHT(V9,4))=VLOOKUP(0,$Q$5:$T$104,4,FALSE),RIGHT(V9,4),IF(RIGHT(V9,4)+5<VLOOKUP(0,$Q$5:$T$104,4,FALSE),RIGHT(V9,4)+1&" - "&RIGHT(V9,4)+5,IF(RIGHT(V9,4)+1=VLOOKUP(0,$Q$5:$T$104,4,FALSE),RIGHT(V9,4)+1,RIGHT(V9,4)+1&" - "&VLOOKUP(0,$Q$5:$T$104,4,FALSE)-1))) -> 2028 - 2024 | W10: =IF(X10="","",V10) ->  | X10: =IF(SUMIFS($Q$5:$Q$104,$T$5:$T$104,">="&LEFT(V10,4),$T$5:$T$104,"<="&RIGHT(V10,4))=0,"",SUMIFS($Q$5:$Q$104,$T$5:$T$104,">="&LEFT(V10,4),$T$5:$T$104,"<="&RIGHT(V10,4))) ->  | Y10: =IF(SUMIFS($R$5:$R$104,$T$5:$T$104,">="&LEFT(V10,4),$T$5:$T$104,"<="&RIGHT(V10,4))=0,"",SUMIFS($R$5:$R$104,$T$5:$T$104,">="&LEFT(V10,4),$T$5:$T$104,"<="&RIGHT(V10,4))) ->  | AB10: 2018-01-01 | AD10: 2018-01-01 | AF10: 2018-01-01 | AG10: 396313.46 | AH10: =IF(G10=0,0,IF(AH9=0,ROUND(AK9*AG10*$B$28,2),IF(G10>0,0,IF(SUM(G11:$G$603)=0,ROUND(-G10-AG10,2),ROUND(AG10*$B$28,2))))) -> 1466.36 | AI10: =IF(SUM(G11:$G$603)=0,AG10,-G10-AH10) -> 4071.45 | AJ10: 5537.81 | AM10: 2018-01-01 | AN10: 4071.45 | AO10: 1466.36 | AP10: 5537.81
A11: PV of Amortization to be Restated | B11: =IF(B15="Yes",0,SUMIF(L5:L104,"<"&B5,M5:M104)) -> 240966.55 | E11: 2018-02-01 | F11: 8 | G11: =-'Lease Input'!C113 -> -5537.81 | H11: 5396.48 | I11: 141.33 | K11: Year 7 | L11: 2024-06-30 | M11: =IF(SUM($M$5:M10)+$M$3>$M$2,ROUND($M$2-SUM($M$5:M10),2),ROUND($M$3,2)) -> 60283.5 | P11: 2024-06-30 | Q11: =SUMIF($AM$4:$AM$603,"<="&P11,$AN$4:$AN$603)-SUM($Q$5:Q10) -> 70781.22 | R11: =SUMIF($AM$4:$AM$603,"<="&P11,$AO$4:$AO$603)-SUM($R$5:R10) -> 1713.78 | S11: 72495 | T11: 2024 | V11: =IF(VALUE(RIGHT(V10,4))=VLOOKUP(0,$Q$5:$T$104,4,FALSE),RIGHT(V10,4),IF(RIGHT(V10,4)+5<VLOOKUP(0,$Q$5:$T$104,4,FALSE),RIGHT(V10,4)+1&" - "&RIGHT(V10,4)+5,IF(RIGHT(V10,4)+1=VLOOKUP(0,$Q$5:$T$104,4,FALSE),RIGHT(V10,4)+1,RIGHT(V10,4)+1&" - "&VLOOKUP(0,$Q$5:$T$104,4,FALSE)-1))) -> 2025 | W11: =IF(X11="","",V11) ->  | Y11: =IF(SUMIFS($R$5:$R$104,$T$5:$T$104,">="&LEFT(V11,4),$T$5:$T$104,"<="&RIGHT(V11,4))=0,"",SUMIFS($R$5:$R$104,$T$5:$T$104,">="&LEFT(V11,4),$T$5:$T$104,"<="&RIGHT(V11,4))) ->  | AB11: 2018-02-01 | AD11: 2018-02-01 | AF11: 2018-02-01 | AG11: 392242.01 | AH11: =IF(G11=0,0,IF(AH10=0,ROUND(AK10*AG11*$B$28,2),IF(G11>0,0,IF(SUM(G12:$G$603)=0,ROUND(-G11-AG11,2),ROUND(AG11*$B$28,2))))) -> 1451.3 | AI11: =IF(SUM(G12:$G$603)=0,AG11,-G11-AH11) -> 4086.51 | AJ11: 5537.81 | AM11: 2018-02-01 | AN11: 4086.51 | AO11: 1451.3 | AP11: 5537.81
E12: 2018-03-01 | F12: 9 | G12: =-'Lease Input'!C114 -> -5537.81 | H12: 5376.59 | I12: 161.22 | K12: Year 8 | L12: 2025-06-30 | M12: =IF(SUM($M$5:M11)+$M$3>$M$2,ROUND($M$2-SUM($M$5:M11),2),ROUND($M$3,2)) -> 167.45 | P12: 2025-06-30 | Q12: =SUMIF($AM$4:$AM$603,"<="&P12,$AN$4:$AN$603)-SUM($Q$5:Q11) -> 0 | R12: =SUMIF($AM$4:$AM$603,"<="&P12,$AO$4:$AO$603)-SUM($R$5:R11) -> 0 | S12: 0 | T12: 2025 | V12: 2025 | AB12: 2018-03-01 | AD12: 2018-03-01 | AF12: 2018-03-01 | AG12: 388155.5 | AH12: =IF(G12=0,0,IF(AH11=0,ROUND(AK11*AG12*$B$28,2),IF(G12>0,0,IF(SUM(G13:$G$603)=0,ROUND(-G12-AG12,2),ROUND(AG12*$B$28,2))))) -> 1436.18 | AI12: =IF(SUM(G13:$G$603)=0,AG12,-G12-AH12) -> 4101.63 | AJ12: 5537.81 | AM12: 2018-03-01 | AN12: 4101.63 | AO12: 1436.18 | AP12: 5537.81
A13: Name on Lease | B13: ='Lease Input'!A20 -> 1-2799 1100 S Main Marion | C13: Required | E13: 2018-04-01 | F13: 10 | G13: =-'Lease Input'!C115 -> -5537.81 | H13: 5356.77 | I13: 181.04 | K13: Year 9 | L13: 2026-06-30 | M13: =IF(SUM($M$5:M12)+$M$3>$M$2,ROUND($M$2-SUM($M$5:M12),2),ROUND($M$3,2)) -> 0 | P13: 2026-06-30 | Q13: =SUMIF($AM$4:$AM$603,"<="&P13,$AN$4:$AN$603)-SUM($Q$5:Q12) -> 0 | R13: =SUMIF($AM$4:$AM$603,"<="&P13,$AO$4:$AO$603)-SUM($R$5:R12) -> 0 | S13: 0 | T13: 2026 | V13: 2025 | AB13: 2018-04-01 | AD13: 2018-04-01 | AF13: 2018-04-01 | AG13: 384053.87 | AH13: =IF(G13=0,0,IF(AH12=0,ROUND(AK12*AG13*$B$28,2),IF(G13>0,0,IF(SUM(G14:$G$603)=0,ROUND(-G13-AG13,2),ROUND(AG13*$B$28,2))))) -> 1421 | AI13: =IF(SUM(G14:$G$603)=0,AG13,-G13-AH13) -> 4116.81 | AJ13: 5537.81 | AM13: 2018-04-01 | AN13: 4116.81 | AO13: 1421 | AP13: 5537.81
A14: Type of Lease | B14: =IF('Lease Input'!C23="","",'Lease Input'!C23) -> Buildings | E14: 2018-05-01 | F14: 11 | G14: =-'Lease Input'!C116 -> -5537.81 | H14: 5337.02 | I14: 200.79 | K14: Year 10 | L14: 2027-06-30 | M14: =IF(SUM($M$5:M13)+$M$3>$M$2,ROUND($M$2-SUM($M$5:M13),2),ROUND($M$3,2)) -> 0 | P14: 2027-06-30 | Q14: =SUMIF($AM$4:$AM$603,"<="&P14,$AN$4:$AN$603)-SUM($Q$5:Q13) -> 0 | R14: =SUMIF($AM$4:$AM$603,"<="&P14,$AO$4:$AO$603)-SUM($R$5:R13) -> 0 | S14: 0 | T14: 2027 | V14: 2025 | AB14: 2018-05-01 | AD14: 2018-05-01 | AF14: 2018-05-01 | AG14: 379937.06 | AH14: =IF(G14=0,0,IF(AH13=0,ROUND(AK13*AG14*$B$28,2),IF(G14>0,0,IF(SUM(G15:$G$603)=0,ROUND(-G14-AG14,2),ROUND(AG14*$B$28,2))))) -> 1405.77 | AI14: =IF(SUM(G15:$G$603)=0,AG14,-G14-AH14) -> 4132.04 | AJ14: 5537.81 | AM14: 2018-05-01 | AN14: 4132.04 | AO14: 1405.77 | AP14: 5537.81
A15: Nondepreciable asset? | B15: =IF('Lease Input'!C27="","",LEFT('Lease Input'!C27,3)) -> No | C15: =IF(B15="Yes","Nondepreciable","Depreciable") -> Depreciable | E15: 2018-06-01 | F15: 12 | G15: =-'Lease Input'!C117 -> -5537.81 | H15: 5317.35 | I15: 220.46 | K15: Year 11 | L15: 2028-06-30 | M15: =IF(SUM($M$5:M14)+$M$3>$M$2,ROUND($M$2-SUM($M$5:M14),2),ROUND($M$3,2)) -> 0 | P15: =DATE(YEAR(P14)+1,MONTH(P14),DAY(P14)) -> 2028-06-30 | Q15: =SUMIF($AM$4:$AM$603,"<="&P15,$AN$4:$AN$603)-SUM($Q$5:Q14) -> 0 | R15: =SUMIF($AM$4:$AM$603,"<="&P15,$AO$4:$AO$603)-SUM($R$5:R14) -> 0 | S15: 0 | T15: 2028 | V15: 2025 | AB15: 2018-06-01 | AD15: 2018-06-01 | AF15: 2018-06-01 | AG15: 375805.02 | AH15: =IF(G15=0,0,IF(AH14=0,ROUND(AK14*AG15*$B$28,2),IF(G15>0,0,IF(SUM(G16:$G$603)=0,ROUND(-G15-AG15,2),ROUND(AG15*$B$28,2))))) -> 1390.48 | AI15: =IF(SUM(G16:$G$603)=0,AG15,-G15-AH15) -> 4147.33 | AJ15: 5537.81 | AM15: 2018-06-01 | AN15: 4147.33 | AO15: 1390.48 | AP15: 5537.81
A16: Estimated Useful Life | B16: ='Lease Input'!C29 -> 7 | C16: Required | E16: 2018-07-01 | F16: 13 | G16: =-'Lease Input'!C118 -> -5537.81 | H16: 5297.74 | I16: 240.07 | K16: Year 12 | L16: 2029-06-30 | M16: =IF(SUM($M$5:M15)+$M$3>$M$2,ROUND($M$2-SUM($M$5:M15),2),ROUND($M$3,2)) -> 0 | P16: 2029-06-30 | Q16: =SUMIF($AM$4:$AM$603,"<="&P16,$AN$4:$AN$603)-SUM($Q$5:Q15) -> 0 | R16: =SUMIF($AM$4:$AM$603,"<="&P16,$AO$4:$AO$603)-SUM($R$5:R15) -> 0 | S16: 0 | T16: 2029 | V16: 2025 | AB16: 2018-07-01 | AD16: 2018-07-01 | AF16: 2018-07-01 | AG16: =AG15-AI15 -> 371657.69 | AH16: =IF(G16=0,0,IF(AH15=0,ROUND(AK15*AG16*$B$28,2),IF(G16>0,0,IF(SUM(G17:$G$603)=0,ROUND(-G16-AG16,2),ROUND(AG16*$B$28,2))))) -> 1375.13 | AI16: =IF(SUM(G17:$G$603)=0,AG16,-G16-AH16) -> 4162.68 | AJ16: 5537.81 | AM16: 2018-07-01 | AN16: 4162.68 | AO16: 1375.13 | AP16: 5537.81
A17: Lesser of Useful Life and Lease Term | B17: =IF(B23="Yes",B16,IF(B16>B24,B24,B16)) -> 7 | E17: 2018-08-01 | F17: 14 | G17: =-'Lease Input'!C119 -> -5537.81 | H17: 5278.21 | I17: 259.6 | K17: Year 13 | L17: 2030-06-30 | M17: =IF(SUM($M$5:M16)+$M$3>$M$2,ROUND($M$2-SUM($M$5:M16),2),ROUND($M$3,2)) -> 0 | P17: 2030-06-30 | Q17: =SUMIF($AM$4:$AM$603,"<="&P17,$AN$4:$AN$603)-SUM($Q$5:Q16) -> 0 | R17: =SUMIF($AM$4:$AM$603,"<="&P17,$AO$4:$AO$603)-SUM($R$5:R16) -> 0 | S17: 0 | T17: 2030 | V17: 2025 | AB17: 2018-08-01 | AD17: 2018-08-01 | AF17: 2018-08-01 | AG17: 367495.01 | AH17: =IF(G17=0,0,IF(AH16=0,ROUND(AK16*AG17*$B$28,2),IF(G17>0,0,IF(SUM(G18:$G$603)=0,ROUND(-G17-AG17,2),ROUND(AG17*$B$28,2))))) -> 1359.73 | AI17: =IF(SUM(G18:$G$603)=0,AG17,-G17-AH17) -> 4178.08 | AJ17: 5537.81 | AM17: 2018-08-01 | AN17: 4178.08 | AO17: 1359.73 | AP17: 5537.81
A18: General Description | B18: =IF('Lease Input'!A42="","",'Lease Input'!A42) ->  | E18: 2018-09-01 | F18: 15 | G18: =-'Lease Input'!C120 -> -5537.81 | H18: 5258.76 | I18: 279.05 | K18: Year 14 | L18: 2031-06-30 | M18: =IF(SUM($M$5:M17)+$M$3>$M$2,ROUND($M$2-SUM($M$5:M17),2),ROUND($M$3,2)) -> 0 | P18: 2031-06-30 | Q18: =SUMIF($AM$4:$AM$603,"<="&P18,$AN$4:$AN$603)-SUM($Q$5:Q17) -> 0 | R18: =SUMIF($AM$4:$AM$603,"<="&P18,$AO$4:$AO$603)-SUM($R$5:R17) -> 0 | S18: 0 | T18: 2031 | V18: 2025 | AB18: 2018-09-01 | AD18: 2018-09-01 | AF18: 2018-09-01 | AG18: 363316.93 | AH18: =IF(G18=0,0,IF(AH17=0,ROUND(AK17*AG18*$B$28,2),IF(G18>0,0,IF(SUM(G19:$G$603)=0,ROUND(-G18-AG18,2),ROUND(AG18*$B$28,2))))) -> 1344.27 | AI18: =IF(SUM(G19:$G$603)=0,AG18,-G18-AH18) -> 4193.54 | AJ18: 5537.81 | AM18: 2018-09-01 | AN18: 4193.54 | AO18: 1344.27 | AP18: 5537.81
A19: Commitments Disclosures | B19: =IF('Lease Input'!A47="","",'Lease Input'!A47) -> 1-2799 1100 S Main Marion | E19: 2018-10-01 | F19: 16 | G19: =-'Lease Input'!C121 -> -5537.81 | H19: 5239.37 | I19: 298.44 | K19: Year 15 | L19: 2032-06-30 | M19: =IF(SUM($M$5:M18)+$M$3>$M$2,ROUND($M$2-SUM($M$5:M18),2),ROUND($M$3,2)) -> 0 | P19: 2032-06-30 | Q19: =SUMIF($AM$4:$AM$603,"<="&P19,$AN$4:$AN$603)-SUM($Q$5:Q18) -> 0 | R19: =SUMIF($AM$4:$AM$603,"<="&P19,$AO$4:$AO$603)-SUM($R$5:R18) -> 0 | S19: 0 | T19: 2032 | V19: 2025 | AB19: 2018-10-01 | AD19: 2018-10-01 | AF19: 2018-10-01 | AG19: 359123.39 | AH19: =IF(G19=0,0,IF(AH18=0,ROUND(AK18*AG19*$B$28,2),IF(G19>0,0,IF(SUM(G20:$G$603)=0,ROUND(-G19-AG19,2),ROUND(AG19*$B$28,2))))) -> 1328.76 | AI19: =IF(SUM(G20:$G$603)=0,AG19,-G19-AH19) -> 4209.05 | AJ19: 5537.81 | AM19: 2018-10-01 | AN19: 4209.05 | AO19: 1328.76 | AP19: 5537.81
A20: Related party? (Yes/no) | B20: =IF('Lease Input'!C51="","",'Lease Input'!C51) -> No | E20: 2018-11-01 | F20: 17 | G20: =-'Lease Input'!C122 -> -5537.81 | H20: 5220.06 | I20: 317.75 | K20: Year 16 | L20: 2033-06-30 | M20: =IF(SUM($M$5:M19)+$M$3>$M$2,ROUND($M$2-SUM($M$5:M19),2),ROUND($M$3,2)) -> 0 | P20: 2033-06-30 | Q20: =SUMIF($AM$4:$AM$603,"<="&P20,$AN$4:$AN$603)-SUM($Q$5:Q19) -> 0 | R20: =SUMIF($AM$4:$AM$603,"<="&P20,$AO$4:$AO$603)-SUM($R$5:R19) -> 0 | S20: 0 | T20: 2033 | V20: 2025 | AB20: 2018-11-01 | AD20: 2018-11-01 | AF20: 2018-11-01 | AG20: 354914.34 | AH20: =IF(G20=0,0,IF(AH19=0,ROUND(AK19*AG20*$B$28,2),IF(G20>0,0,IF(SUM(G21:$G$603)=0,ROUND(-G20-AG20,2),ROUND(AG20*$B$28,2))))) -> 1313.18 | AI20: =IF(SUM(G21:$G$603)=0,AG20,-G20-AH20) -> 4224.63 | AJ20: 5537.81 | AM20: 2018-11-01 | AN20: 4224.63 | AO20: 1313.18 | AP20: 5537.81
A21: Reasonable structure for related party? (yes/no) | B21: =IF('Lease Input'!C53="","",'Lease Input'!C53) -> N/A | E21: 2018-12-01 | F21: 18 | G21: =-'Lease Input'!C123 -> -5537.81 | H21: 5200.81 | I21: 337 | K21: Year 17 | L21: 2034-06-30 | M21: =IF(SUM($M$5:M20)+$M$3>$M$2,ROUND($M$2-SUM($M$5:M20),2),ROUND($M$3,2)) -> 0 | P21: 2034-06-30 | Q21: =SUMIF($AM$4:$AM$603,"<="&P21,$AN$4:$AN$603)-SUM($Q$5:Q20) -> 0 | R21: =SUMIF($AM$4:$AM$603,"<="&P21,$AO$4:$AO$603)-SUM($R$5:R20) -> 0 | S21: 0 | T21: 2034 | V21: 2025 | AB21: 2018-12-01 | AD21: 2018-12-01 | AF21: 2018-12-01 | AG21: 350689.71 | AH21: =IF(G21=0,0,IF(AH20=0,ROUND(AK20*AG21*$B$28,2),IF(G21>0,0,IF(SUM(G22:$G$603)=0,ROUND(-G21-AG21,2),ROUND(AG21*$B$28,2))))) -> 1297.55 | AI21: =IF(SUM(G22:$G$603)=0,AG21,-G21-AH21) -> 4240.26 | AJ21: 5537.81 | AM21: 2018-12-01 | AN21: 4240.26 | AO21: 1297.55 | AP21: 5537.81
A22: Related party additional disclosures | B22: =IF('Lease Input'!A55="","",'Lease Input'!A55) ->  | E22: 2019-01-01 | F22: 19 | G22: =-'Lease Input'!C124 -> -5537.81 | H22: 5181.64 | I22: 356.17 | K22: Year 18 | L22: 2035-06-30 | M22: =IF(SUM($M$5:M21)+$M$3>$M$2,ROUND($M$2-SUM($M$5:M21),2),ROUND($M$3,2)) -> 0 | P22: 2035-06-30 | Q22: =SUMIF($AM$4:$AM$603,"<="&P22,$AN$4:$AN$603)-SUM($Q$5:Q21) -> 0 | R22: =SUMIF($AM$4:$AM$603,"<="&P22,$AO$4:$AO$603)-SUM($R$5:R21) -> 0 | S22: 0 | T22: 2035 | V22: 2025 | AB22: 2019-01-01 | AD22: 2019-01-01 | AF22: 2019-01-01 | AG22: 346449.45 | AH22: =IF(G22=0,0,IF(AH21=0,ROUND(AK21*AG22*$B$28,2),IF(G22>0,0,IF(SUM(G23:$G$603)=0,ROUND(-G22-AG22,2),ROUND(AG22*$B$28,2))))) -> 1281.86 | AI22: =IF(SUM(G23:$G$603)=0,AG22,-G22-AH22) -> 4255.95 | AJ22: 5537.81 | AM22: 2019-01-01 | AN22: 4255.95 | AO22: 1281.86 | AP22: 5537.81
A23: Purchase Option? | B23: =IF('Lease Input'!C31="","",'Lease Input'!C31) -> No | E23: 2019-02-01 | F23: 20 | G23: =-'Lease Input'!C125 -> -5537.81 | H23: 5162.54 | I23: 375.27 | K23: Year 19 | L23: 2036-06-30 | M23: =IF(SUM($M$5:M22)+$M$3>$M$2,ROUND($M$2-SUM($M$5:M22),2),ROUND($M$3,2)) -> 0 | P23: 2036-06-30 | Q23: =SUMIF($AM$4:$AM$603,"<="&P23,$AN$4:$AN$603)-SUM($Q$5:Q22) -> 0 | R23: =SUMIF($AM$4:$AM$603,"<="&P23,$AO$4:$AO$603)-SUM($R$5:R22) -> 0 | S23: 0 | T23: 2036 | V23: 2025 | AB23: 2019-02-01 | AD23: 2019-02-01 | AF23: 2019-02-01 | AG23: 342193.5 | AH23: =IF(G23=0,0,IF(AH22=0,ROUND(AK22*AG23*$B$28,2),IF(G23>0,0,IF(SUM(G24:$G$603)=0,ROUND(-G23-AG23,2),ROUND(AG23*$B$28,2))))) -> 1266.12 | AI23: =IF(SUM(G24:$G$603)=0,AG23,-G23-AH23) -> 4271.69 | AJ23: 5537.81 | AM23: 2019-02-01 | AN23: 4271.69 | AO23: 1266.12 | AP23: 5537.81
A24: Lease Term in years | B24: ='Lease Input'!C59 -> 7 | C24: Required | E24: 2019-03-01 | F24: 21 | G24: =-'Lease Input'!C126 -> -5537.81 | H24: 5143.51 | I24: 394.3 | K24: Year 20 | L24: 2037-06-30 | M24: =IF(SUM($M$5:M23)+$M$3>$M$2,ROUND($M$2-SUM($M$5:M23),2),ROUND($M$3,2)) -> 0 | P24: 2037-06-30 | Q24: =SUMIF($AM$4:$AM$603,"<="&P24,$AN$4:$AN$603)-SUM($Q$5:Q23) -> 0 | R24: =SUMIF($AM$4:$AM$603,"<="&P24,$AO$4:$AO$603)-SUM($R$5:R23) -> 0 | S24: 0 | T24: 2037 | V24: 2025 | AB24: 2019-03-01 | AD24: 2019-03-01 | AF24: 2019-03-01 | AG24: 337921.81 | AH24: =IF(G24=0,0,IF(AH23=0,ROUND(AK23*AG24*$B$28,2),IF(G24>0,0,IF(SUM(G25:$G$603)=0,ROUND(-G24-AG24,2),ROUND(AG24*$B$28,2))))) -> 1250.31 | AI24: =IF(SUM(G25:$G$603)=0,AG24,-G24-AH24) -> 4287.5 | AJ24: 5537.81 | AM24: 2019-03-01 | AN24: 4287.5 | AO24: 1250.31 | AP24: 5537.81
A25: Frequency of annual payments | B25: =VALUE(-RIGHT(B26,4)) -> 12 | E25: 2019-04-01 | F25: 22 | G25: =-'Lease Input'!C127 -> -5537.81 | H25: 5124.55 | I25: 413.26 | K25: Year 21 | L25: 2038-06-30 | M25: =IF(SUM($M$5:M24)+$M$3>$M$2,ROUND($M$2-SUM($M$5:M24),2),ROUND($M$3,2)) -> 0 | P25: 2038-06-30 | Q25: =SUMIF($AM$4:$AM$603,"<="&P25,$AN$4:$AN$603)-SUM($Q$5:Q24) -> 0 | R25: =SUMIF($AM$4:$AM$603,"<="&P25,$AO$4:$AO$603)-SUM($R$5:R24) -> 0 | S25: 0 | T25: 2038 | V25: 2025 | AB25: 2019-04-01 | AD25: 2019-04-01 | AF25: 2019-04-01 | AG25: 333634.31 | AH25: =IF(G25=0,0,IF(AH24=0,ROUND(AK24*AG25*$B$28,2),IF(G25>0,0,IF(SUM(G26:$G$603)=0,ROUND(-G25-AG25,2),ROUND(AG25*$B$28,2))))) -> 1234.45 | AI25: =IF(SUM(G26:$G$603)=0,AG25,-G25-AH25) -> 4303.36 | AJ25: 5537.81 | AM25: 2019-04-01 | AN25: 4303.36 | AO25: 1234.45 | AP25: 5537.81
A26: Frequency | B26: ='Lease Input'!C64 -> Monthly - (12) | C26: Required | E26: 2019-05-01 | F26: 23 | G26: =-'Lease Input'!C128 -> -5537.81 | H26: 5105.66 | I26: 432.15 | K26: Year 22 | L26: 2039-06-30 | M26: =IF(SUM($M$5:M25)+$M$3>$M$2,ROUND($M$2-SUM($M$5:M25),2),ROUND($M$3,2)) -> 0 | P26: 2039-06-30 | Q26: =SUMIF($AM$4:$AM$603,"<="&P26,$AN$4:$AN$603)-SUM($Q$5:Q25) -> 0 | R26: =SUMIF($AM$4:$AM$603,"<="&P26,$AO$4:$AO$603)-SUM($R$5:R25) -> 0 | S26: 0 | T26: 2039 | V26: 2025 | AB26: 2019-05-01 | AD26: 2019-05-01 | AF26: 2019-05-01 | AG26: 329330.95 | AH26: =IF(G26=0,0,IF(AH25=0,ROUND(AK25*AG26*$B$28,2),IF(G26>0,0,IF(SUM(G27:$G$603)=0,ROUND(-G26-AG26,2),ROUND(AG26*$B$28,2))))) -> 1218.52 | AI26: =IF(SUM(G27:$G$603)=0,AG26,-G26-AH26) -> 4319.29 | AJ26: 5537.81 | AM26: 2019-05-01 | AN26: 4319.29 | AO26: 1218.52 | AP26: 5537.81
A27: Annual interest rate | B27: ='Lease Input'!C70 -> 0.0444 | C27: Required | E27: 2019-06-01 | F27: 24 | G27: =-'Lease Input'!C129 -> -5537.81 | H27: 5086.84 | I27: 450.97 | K27: Year 23 | L27: 2040-06-30 | M27: =IF(SUM($M$5:M26)+$M$3>$M$2,ROUND($M$2-SUM($M$5:M26),2),ROUND($M$3,2)) -> 0 | P27: 2040-06-30 | Q27: =SUMIF($AM$4:$AM$603,"<="&P27,$AN$4:$AN$603)-SUM($Q$5:Q26) -> 0 | R27: =SUMIF($AM$4:$AM$603,"<="&P27,$AO$4:$AO$603)-SUM($R$5:R26) -> 0 | S27: 0 | T27: 2040 | V27: 2025 | AB27: 2019-06-01 | AD27: 2019-06-01 | AF27: 2019-06-01 | AG27: 325011.66 | AH27: =IF(G27=0,0,IF(AH26=0,ROUND(AK26*AG27*$B$28,2),IF(G27>0,0,IF(SUM(G28:$G$603)=0,ROUND(-G27-AG27,2),ROUND(AG27*$B$28,2))))) -> 1202.54 | AI27: =IF(SUM(G28:$G$603)=0,AG27,-G27-AH27) -> 4335.27 | AJ27: 5537.81 | AM27: 2019-06-01 | AN27: 4335.27 | AO27: 1202.54 | AP27: 5537.81
A28: Discount Rate | B28: =(B27/B25) -> 0.0037 | E28: 2019-07-01 | F28: 25 | G28: =-'Lease Input'!C130 -> -5873.43 | H28: 5375.24 | I28: 498.19 | K28: Year 24 | L28: 2041-06-30 | M28: =IF(SUM($M$5:M27)+$M$3>$M$2,ROUND($M$2-SUM($M$5:M27),2),ROUND($M$3,2)) -> 0 | P28: 2041-06-30 | Q28: =SUMIF($AM$4:$AM$603,"<="&P28,$AN$4:$AN$603)-SUM($Q$5:Q27) -> 0 | R28: =SUMIF($AM$4:$AM$603,"<="&P28,$AO$4:$AO$603)-SUM($R$5:R27) -> 0 | S28: 0 | T28: 2041 | V28: 2025 | AB28: 2019-07-01 | AD28: 2019-07-01 | AF28: 2019-07-01 | AG28: 320676.39 | AH28: =IF(G28=0,0,IF(AH27=0,ROUND(AK27*AG28*$B$28,2),IF(G28>0,0,IF(SUM(G29:$G$603)=0,ROUND(-G28-AG28,2),ROUND(AG28*$B$28,2))))) -> 1186.5 | AI28: =IF(SUM(G29:$G$603)=0,AG28,-G28-AH28) -> 4686.93 | AJ28: 5873.43 | AM28: 2019-07-01 | AN28: 4686.93 | AO28: 1186.5 | AP28: 5873.43
A29: Payment made at start or in arrears? | B29: =IF('Lease Input'!C66="","",'Lease Input'!C66) -> Start of Payment Period | C29: =IF(B29="Start of Payment Period",1,0) -> 1 | E29: 2019-08-01 | F29: 26 | G29: =-'Lease Input'!C131 -> -5873.43 | H29: 5355.42 | I29: 518.01 | K29: Year 25 | L29: 2042-06-30 | M29: =IF(SUM($M$5:M28)+$M$3>$M$2,ROUND($M$2-SUM($M$5:M28),2),ROUND($M$3,2)) -> 0 | P29: 2042-06-30 | Q29: =SUMIF($AM$4:$AM$603,"<="&P29,$AN$4:$AN$603)-SUM($Q$5:Q28) -> 0 | R29: =SUMIF($AM$4:$AM$603,"<="&P29,$AO$4:$AO$603)-SUM($R$5:R28) -> 0 | S29: 0 | T29: 2042 | AB29: 2019-08-01 | AD29: 2019-08-01 | AF29: 2019-08-01 | AG29: 315989.46 | AH29: =IF(G29=0,0,IF(AH28=0,ROUND(AK28*AG29*$B$28,2),IF(G29>0,0,IF(SUM(G30:$G$603)=0,ROUND(-G29-AG29,2),ROUND(AG29*$B$28,2))))) -> 1169.16 | AI29: =IF(SUM(G30:$G$603)=0,AG29,-G29-AH29) -> 4704.27 | AJ29: 5873.43 | AM29: 2019-08-01 | AN29: 4704.27 | AO29: 1169.16 | AP29: 5873.43
A30: Variable payments? (Yes/No) | B30: =IF('Lease Input'!C76="","",'Lease Input'!C76) -> No | E30: 2019-09-01 | F30: 27 | G30: =-'Lease Input'!C132 -> -5873.43 | H30: 5335.68 | I30: 537.75 | K30: Year 26 | L30: 2043-06-30 | M30: =IF(SUM($M$5:M29)+$M$3>$M$2,ROUND($M$2-SUM($M$5:M29),2),ROUND($M$3,2)) -> 0 | P30: 2043-06-30 | Q30: =SUMIF($AM$4:$AM$603,"<="&P30,$AN$4:$AN$603)-SUM($Q$5:Q29) -> 0 | R30: =SUMIF($AM$4:$AM$603,"<="&P30,$AO$4:$AO$603)-SUM($R$5:R29) -> 0 | S30: 0 | T30: 2043 | AB30: 2019-09-01 | AD30: 2019-09-01 | AF30: 2019-09-01 | AG30: 311285.19 | AH30: =IF(G30=0,0,IF(AH29=0,ROUND(AK29*AG30*$B$28,2),IF(G30>0,0,IF(SUM(G31:$G$603)=0,ROUND(-G30-AG30,2),ROUND(AG30*$B$28,2))))) -> 1151.76 | AI30: =IF(SUM(G31:$G$603)=0,AG30,-G30-AH30) -> 4721.67 | AJ30: 5873.43 | AM30: 2019-09-01 | AN30: 4721.67 | AO30: 1151.76 | AP30: 5873.43
A31: Disclosures on variable payments | B31: =IF('Lease Input'!A78="","",'Lease Input'!A78) ->  | E31: 2019-10-01 | F31: 28 | G31: =-'Lease Input'!C133 -> -5873.43 | H31: 5316.01 | I31: 557.42 | K31: Year 27 | L31: 2044-06-30 | M31: =IF(SUM($M$5:M30)+$M$3>$M$2,ROUND($M$2-SUM($M$5:M30),2),ROUND($M$3,2)) -> 0 | P31: 2044-06-30 | Q31: =SUMIF($AM$4:$AM$603,"<="&P31,$AN$4:$AN$603)-SUM($Q$5:Q30) -> 0 | R31: =SUMIF($AM$4:$AM$603,"<="&P31,$AO$4:$AO$603)-SUM($R$5:R30) -> 0 | S31: 0 | T31: 2044 | AB31: 2019-10-01 | AD31: 2019-10-01 | AF31: 2019-10-01 | AG31: 306563.52 | AH31: =IF(G31=0,0,IF(AH30=0,ROUND(AK30*AG31*$B$28,2),IF(G31>0,0,IF(SUM(G32:$G$603)=0,ROUND(-G31-AG31,2),ROUND(AG31*$B$28,2))))) -> 1134.29 | AI31: =IF(SUM(G32:$G$603)=0,AG31,-G31-AH31) -> 4739.14 | AJ31: 5873.43 | AM31: 2019-10-01 | AN31: 4739.14 | AO31: 1134.29 | AP31: 5873.43
E32: 2019-11-01 | F32: 29 | G32: =-'Lease Input'!C134 -> -5873.43 | H32: 5296.41 | I32: 577.02 | K32: Year 28 | L32: 2045-06-30 | M32: =IF(SUM($M$5:M31)+$M$3>$M$2,ROUND($M$2-SUM($M$5:M31),2),ROUND($M$3,2)) -> 0 | P32: 2045-06-30 | Q32: =SUMIF($AM$4:$AM$603,"<="&P32,$AN$4:$AN$603)-SUM($Q$5:Q31) -> 0 | R32: =SUMIF($AM$4:$AM$603,"<="&P32,$AO$4:$AO$603)-SUM($R$5:R31) -> 0 | S32: 0 | T32: 2045 | AB32: 2019-11-01 | AD32: 2019-11-01 | AF32: 2019-11-01 | AG32: 301824.38 | AH32: =IF(G32=0,0,IF(AH31=0,ROUND(AK31*AG32*$B$28,2),IF(G32>0,0,IF(SUM(G33:$G$603)=0,ROUND(-G32-AG32,2),ROUND(AG32*$B$28,2))))) -> 1116.75 | AI32: =IF(SUM(G33:$G$603)=0,AG32,-G32-AH32) -> 4756.68 | AJ32: 5873.43 | AM32: 2019-11-01 | AN32: 4756.68 | AO32: 1116.75 | AP32: 5873.43
A33: Total Number of Periods | B33: =B24*B25 -> 84 | E33: 2019-12-01 | F33: 30 | G33: =-'Lease Input'!C135 -> -5873.43 | H33: 5276.89 | I33: 596.54 | K33: Year 29 | L33: 2046-06-30 | M33: =IF(SUM($M$5:M32)+$M$3>$M$2,ROUND($M$2-SUM($M$5:M32),2),ROUND($M$3,2)) -> 0 | P33: 2046-06-30 | Q33: =SUMIF($AM$4:$AM$603,"<="&P33,$AN$4:$AN$603)-SUM($Q$5:Q32) -> 0 | R33: =SUMIF($AM$4:$AM$603,"<="&P33,$AO$4:$AO$603)-SUM($R$5:R32) -> 0 | S33: 0 | T33: 2046 | AB33: 2019-12-01 | AD33: 2019-12-01 | AF33: 2019-12-01 | AG33: 297067.7 | AH33: =IF(G33=0,0,IF(AH32=0,ROUND(AK32*AG33*$B$28,2),IF(G33>0,0,IF(SUM(G34:$G$603)=0,ROUND(-G33-AG33,2),ROUND(AG33*$B$28,2))))) -> 1099.15 | AI33: =IF(SUM(G34:$G$603)=0,AG33,-G33-AH33) -> 4774.28 | AJ33: 5873.43 | AM33: 2019-12-01 | AN33: 4774.28 | AO33: 1099.15 | AP33: 5873.43
A34: Periods Prior to Implementation | B34: =IF(B9<>"Restatement",0,ROUND(YEARFRAC(B6,B5)*B25,0)) -> 48 | E34: 2020-01-01 | F34: 31 | G34: =-'Lease Input'!C136 -> -5873.43 | H34: 5257.44 | I34: 615.99 | K34: Year 30 | L34: 2047-06-30 | M34: =IF(SUM($M$5:M33)+$M$3>$M$2,ROUND($M$2-SUM($M$5:M33),2),ROUND($M$3,2)) -> 0 | P34: 2047-06-30 | Q34: =SUMIF($AM$4:$AM$603,"<="&P34,$AN$4:$AN$603)-SUM($Q$5:Q33) -> 0 | R34: =SUMIF($AM$4:$AM$603,"<="&P34,$AO$4:$AO$603)-SUM($R$5:R33) -> 0 | S34: 0 | T34: 2047 | AB34: 2020-01-01 | AD34: 2020-01-01 | AF34: 2020-01-01 | AG34: 292293.42 | AH34: =IF(G34=0,0,IF(AH33=0,ROUND(AK33*AG34*$B$28,2),IF(G34>0,0,IF(SUM(G35:$G$603)=0,ROUND(-G34-AG34,2),ROUND(AG34*$B$28,2))))) -> 1081.49 | AI34: =IF(SUM(G35:$G$603)=0,AG34,-G34-AH34) -> 4791.94 | AJ34: 5873.43 | AM34: 2020-01-01 | AN34: 4791.94 | AO34: 1081.49 | AP34: 5873.43
A35: Was lease previously a capital lease? | B35: =IF(B9<>"Restatement","No",'Lease Input'!C33) -> No | E35: 2020-02-01 | F35: 32 | G35: =-'Lease Input'!C137 -> -5873.43 | H35: 5238.06 | I35: 635.37 | K35: Year 31 | L35: 2048-06-30 | M35: =IF(SUM($M$5:M34)+$M$3>$M$2,ROUND($M$2-SUM($M$5:M34),2),ROUND($M$3,2)) -> 0 | P35: 2048-06-30 | Q35: =SUMIF($AM$4:$AM$603,"<="&P35,$AN$4:$AN$603)-SUM($Q$5:Q34) -> 0 | R35: =SUMIF($AM$4:$AM$603,"<="&P35,$AO$4:$AO$603)-SUM($R$5:R34) -> 0 | S35: 0 | T35: 2048 | AB35: 2020-02-01 | AD35: 2020-02-01 | AF35: 2020-02-01 | AG35: 287501.48 | AH35: =IF(G35=0,0,IF(AH34=0,ROUND(AK34*AG35*$B$28,2),IF(G35>0,0,IF(SUM(G36:$G$603)=0,ROUND(-G35-AG35,2),ROUND(AG35*$B$28,2))))) -> 1063.76 | AI35: =IF(SUM(G36:$G$603)=0,AG35,-G35-AH35) -> 4809.67 | AJ35: 5873.43 | AM35: 2020-02-01 | AN35: 4809.67 | AO35: 1063.76 | AP35: 5873.43
A36: PY Capital Lease Asset / Accum Deprec | B36: ='Lease Input'!C35 -> 0 | C36: ='Lease Input'!C37 -> 0 | E36: 2020-03-01 | F36: 33 | G36: =-'Lease Input'!C138 -> -5873.43 | H36: 5218.75 | I36: 654.68 | K36: Year 32 | L36: 2049-06-30 | M36: =IF(SUM($M$5:M35)+$M$3>$M$2,ROUND($M$2-SUM($M$5:M35),2),ROUND($M$3,2)) -> 0 | P36: 2049-06-30 | Q36: =SUMIF($AM$4:$AM$603,"<="&P36,$AN$4:$AN$603)-SUM($Q$5:Q35) -> 0 | R36: =SUMIF($AM$4:$AM$603,"<="&P36,$AO$4:$AO$603)-SUM($R$5:R35) -> 0 | S36: 0 | T36: 2049 | AB36: 2020-03-01 | AD36: 2020-03-01 | AF36: 2020-03-01 | AG36: 282691.81 | AH36: =IF(G36=0,0,IF(AH35=0,ROUND(AK35*AG36*$B$28,2),IF(G36>0,0,IF(SUM(G37:$G$603)=0,ROUND(-G36-AG36,2),ROUND(AG36*$B$28,2))))) -> 1045.96 | AI36: =IF(SUM(G37:$G$603)=0,AG36,-G36-AH36) -> 4827.47 | AJ36: 5873.43 | AM36: 2020-03-01 | AN36: 4827.47 | AO36: 1045.96 | AP36: 5873.43
A37: PY Capital Lease Liability | B37: ='Lease Input'!C39 -> 0 | E37: 2020-04-01 | F37: 34 | G37: =-'Lease Input'!C139 -> -5873.43 | H37: 5199.51 | I37: 673.92 | K37: Year 33 | L37: 2050-06-30 | M37: =IF(SUM($M$5:M36)+$M$3>$M$2,ROUND($M$2-SUM($M$5:M36),2),ROUND($M$3,2)) -> 0 | P37: 2050-06-30 | Q37: =SUMIF($AM$4:$AM$603,"<="&P37,$AN$4:$AN$603)-SUM($Q$5:Q36) -> 0 | R37: =SUMIF($AM$4:$AM$603,"<="&P37,$AO$4:$AO$603)-SUM($R$5:R36) -> 0 | S37: =SUM(Q37:R37) -> 0 | T37: =YEAR(P37) -> 2050 | AB37: 2020-04-01 | AD37: 2020-04-01 | AF37: 2020-04-01 | AG37: 277864.34 | AH37: =IF(G37=0,0,IF(AH36=0,ROUND(AK36*AG37*$B$28,2),IF(G37>0,0,IF(SUM(G38:$G$603)=0,ROUND(-G37-AG37,2),ROUND(AG37*$B$28,2))))) -> 1028.1 | AI37: =IF(SUM(G38:$G$603)=0,AG37,-G37-AH37) -> 4845.33 | AJ37: 5873.43 | AM37: 2020-04-01 | AN37: 4845.33 | AO37: 1028.1 | AP37: 5873.43
A38: Full Accrual | E38: 2020-05-01 | F38: 35 | G38: =-'Lease Input'!C140 -> -5873.43 | H38: 5180.34 | I38: 693.09 | K38: Year 34 | L38: 2051-06-30 | M38: =IF(SUM($M$5:M37)+$M$3>$M$2,ROUND($M$2-SUM($M$5:M37),2),ROUND($M$3,2)) -> 0 | P38: 2051-06-30 | Q38: =SUMIF($AM$4:$AM$603,"<="&P38,$AN$4:$AN$603)-SUM($Q$5:Q37) -> 0 | R38: =SUMIF($AM$4:$AM$603,"<="&P38,$AO$4:$AO$603)-SUM($R$5:R37) -> 0 | S38: 0 | T38: 2051 | AB38: 2020-05-01 | AD38: 2020-05-01 | AF38: 2020-05-01 | AG38: 273019.01 | AH38: =IF(G38=0,0,IF(AH37=0,ROUND(AK37*AG38*$B$28,2),IF(G38>0,0,IF(SUM(G39:$G$603)=0,ROUND(-G38-AG38,2),ROUND(AG38*$B$28,2))))) -> 1010.17 | AI38: =IF(SUM(G39:$G$603)=0,AG38,-G38-AH38) -> 4863.26 | AJ38: 5873.43 | AM38: 2020-05-01 | AN38: 4863.26 | AO38: 1010.17 | AP38: 5873.43
A39: Initial Recording of the Lease - No Restatement | E39: 2020-06-01 | F39: 36 | G39: =-'Lease Input'!C141 -> -5873.43 | H39: 5161.24 | I39: 712.19 | K39: Year 35 | L39: 2052-06-30 | M39: =IF(SUM($M$5:M38)+$M$3>$M$2,ROUND($M$2-SUM($M$5:M38),2),ROUND($M$3,2)) -> 0 | P39: 2052-06-30 | Q39: =SUMIF($AM$4:$AM$603,"<="&P39,$AN$4:$AN$603)-SUM($Q$5:Q38) -> 0 | R39: =SUMIF($AM$4:$AM$603,"<="&P39,$AO$4:$AO$603)-SUM($R$5:R38) -> 0 | S39: 0 | T39: 2052 | AB39: 2020-06-01 | AD39: 2020-06-01 | AF39: 2020-06-01 | AG39: 268155.75 | AH39: =IF(G39=0,0,IF(AH38=0,ROUND(AK38*AG39*$B$28,2),IF(G39>0,0,IF(SUM(G40:$G$603)=0,ROUND(-G39-AG39,2),ROUND(AG39*$B$28,2))))) -> 992.18 | AI39: =IF(SUM(G40:$G$603)=0,AG39,-G39-AH39) -> 4881.25 | AJ39: 5873.43 | AM39: 2020-06-01 | AN39: 4881.25 | AO39: 992.18 | AP39: 5873.43
B40: Debit | C40: Credit | E40: 2020-07-01 | F40: 37 | G40: =-'Lease Input'!C142 -> -5873.43 | H40: 5142.22 | I40: 731.21 | K40: Year 36 | L40: 2053-06-30 | M40: =IF(SUM($M$5:M39)+$M$3>$M$2,ROUND($M$2-SUM($M$5:M39),2),ROUND($M$3,2)) -> 0 | P40: 2053-06-30 | Q40: =SUMIF($AM$4:$AM$603,"<="&P40,$AN$4:$AN$603)-SUM($Q$5:Q39) -> 0 | R40: =SUMIF($AM$4:$AM$603,"<="&P40,$AO$4:$AO$603)-SUM($R$5:R39) -> 0 | S40: 0 | T40: 2053 | AB40: 2020-07-01 | AD40: 2020-07-01 | AF40: 2020-07-01 | AG40: 263274.5 | AH40: =IF(G40=0,0,IF(AH39=0,ROUND(AK39*AG40*$B$28,2),IF(G40>0,0,IF(SUM(G41:$G$603)=0,ROUND(-G40-AG40,2),ROUND(AG40*$B$28,2))))) -> 974.12 | AI40: =IF(SUM(G41:$G$603)=0,AG40,-G40-AH40) -> 4899.31 | AJ40: 5873.43 | AM40: 2020-07-01 | AN40: 4899.31 | AO40: 974.12 | AP40: 5873.43
A41: Lease Asset | B41: =ROUND(M2,2) -> 421984.5 | E41: 2020-08-01 | F41: 38 | G41: =-'Lease Input'!C143 -> -5873.43 | H41: 5123.26 | I41: 750.17 | K41: Year 37 | L41: 2054-06-30 | M41: =IF(SUM($M$5:M40)+$M$3>$M$2,ROUND($M$2-SUM($M$5:M40),2),ROUND($M$3,2)) -> 0 | P41: 2054-06-30 | Q41: =SUMIF($AM$4:$AM$603,"<="&P41,$AN$4:$AN$603)-SUM($Q$5:Q40) -> 0 | R41: =SUMIF($AM$4:$AM$603,"<="&P41,$AO$4:$AO$603)-SUM($R$5:R40) -> 0 | S41: 0 | T41: 2054 | AB41: 2020-08-01 | AD41: 2020-08-01 | AF41: 2020-08-01 | AG41: 258375.19 | AH41: =IF(G41=0,0,IF(AH40=0,ROUND(AK40*AG41*$B$28,2),IF(G41>0,0,IF(SUM(G42:$G$603)=0,ROUND(-G41-AG41,2),ROUND(AG41*$B$28,2))))) -> 955.99 | AI41: =IF(SUM(G42:$G$603)=0,AG41,-G41-AH41) -> 4917.44 | AJ41: 5873.43 | AM41: 2020-08-01 | AN41: 4917.44 | AO41: 955.99 | AP41: 5873.43
A42: Lease Liability | C42: =ROUND(H2,2) -> 421984.5 | E42: 2020-09-01 | F42: 39 | G42: =-'Lease Input'!C144 -> -5873.43 | H42: 5104.38 | I42: 769.05 | K42: Year 38 | L42: 2055-06-30 | M42: =IF(SUM($M$5:M41)+$M$3>$M$2,ROUND($M$2-SUM($M$5:M41),2),ROUND($M$3,2)) -> 0 | P42: 2055-06-30 | Q42: =SUMIF($AM$4:$AM$603,"<="&P42,$AN$4:$AN$603)-SUM($Q$5:Q41) -> 0 | R42: =SUMIF($AM$4:$AM$603,"<="&P42,$AO$4:$AO$603)-SUM($R$5:R41) -> 0 | S42: 0 | T42: 2055 | AB42: 2020-09-01 | AD42: 2020-09-01 | AF42: 2020-09-01 | AG42: 253457.75 | AH42: =IF(G42=0,0,IF(AH41=0,ROUND(AK41*AG42*$B$28,2),IF(G42>0,0,IF(SUM(G43:$G$603)=0,ROUND(-G42-AG42,2),ROUND(AG42*$B$28,2))))) -> 937.79 | AI42: =IF(SUM(G43:$G$603)=0,AG42,-G42-AH42) -> 4935.64 | AJ42: 5873.43 | AM42: 2020-09-01 | AN42: 4935.64 | AO42: 937.79 | AP42: 5873.43
A43: Cash (Downpayment and/or set up costs) | C43: =L2 -> 0 | E43: 2020-10-01 | F43: 40 | G43: =-'Lease Input'!C145 -> -5873.43 | H43: 5085.56 | I43: 787.87 | K43: Year 39 | L43: 2056-06-30 | M43: =IF(SUM($M$5:M42)+$M$3>$M$2,ROUND($M$2-SUM($M$5:M42),2),ROUND($M$3,2)) -> 0 | P43: 2056-06-30 | Q43: =SUMIF($AM$4:$AM$603,"<="&P43,$AN$4:$AN$603)-SUM($Q$5:Q42) -> 0 | R43: =SUMIF($AM$4:$AM$603,"<="&P43,$AO$4:$AO$603)-SUM($R$5:R42) -> 0 | S43: 0 | T43: 2056 | AB43: 2020-10-01 | AD43: 2020-10-01 | AF43: 2020-10-01 | AG43: 248522.11 | AH43: =IF(G43=0,0,IF(AH42=0,ROUND(AK42*AG43*$B$28,2),IF(G43>0,0,IF(SUM(G44:$G$603)=0,ROUND(-G43-AG43,2),ROUND(AG43*$B$28,2))))) -> 919.53 | AI43: =IF(SUM(G44:$G$603)=0,AG43,-G43-AH43) -> 4953.9 | AJ43: 5873.43 | AM43: 2020-10-01 | AN43: 4953.9 | AO43: 919.53 | AP43: 5873.43
E44: 2020-11-01 | F44: 41 | G44: =-'Lease Input'!C146 -> -5873.43 | H44: 5066.81 | I44: 806.62 | K44: Year 40 | L44: 2057-06-30 | M44: =IF(SUM($M$5:M43)+$M$3>$M$2,ROUND($M$2-SUM($M$5:M43),2),ROUND($M$3,2)) -> 0 | P44: 2057-06-30 | Q44: =SUMIF($AM$4:$AM$603,"<="&P44,$AN$4:$AN$603)-SUM($Q$5:Q43) -> 0 | R44: =SUMIF($AM$4:$AM$603,"<="&P44,$AO$4:$AO$603)-SUM($R$5:R43) -> 0 | S44: 0 | T44: 2057 | AB44: 2020-11-01 | AD44: 2020-11-01 | AF44: 2020-11-01 | AG44: 243568.21 | AH44: =IF(G44=0,0,IF(AH43=0,ROUND(AK43*AG44*$B$28,2),IF(G44>0,0,IF(SUM(G45:$G$603)=0,ROUND(-G44-AG44,2),ROUND(AG44*$B$28,2))))) -> 901.2 | AI44: =IF(SUM(G45:$G$603)=0,AG44,-G44-AH44) -> 4972.23 | AJ44: 5873.43 | AM44: 2020-11-01 | AN44: 4972.23 | AO44: 901.2 | AP44: 5873.43
A45: Initial Recording of the Lease - Restatement | E45: 2020-12-01 | F45: 42 | G45: =-'Lease Input'!C147 -> -5873.43 | H45: 5048.13 | I45: 825.3 | K45: Year 41 | L45: 2058-06-30 | M45: =IF(SUM($M$5:M44)+$M$3>$M$2,ROUND($M$2-SUM($M$5:M44),2),ROUND($M$3,2)) -> 0 | P45: 2058-06-30 | Q45: =SUMIF($AM$4:$AM$603,"<="&P45,$AN$4:$AN$603)-SUM($Q$5:Q44) -> 0 | R45: =SUMIF($AM$4:$AM$603,"<="&P45,$AO$4:$AO$603)-SUM($R$5:R44) -> 0 | S45: 0 | T45: 2058 | AB45: 2020-12-01 | AD45: 2020-12-01 | AF45: 2020-12-01 | AG45: 238595.98 | AH45: =IF(G45=0,0,IF(AH44=0,ROUND(AK44*AG45*$B$28,2),IF(G45>0,0,IF(SUM(G46:$G$603)=0,ROUND(-G45-AG45,2),ROUND(AG45*$B$28,2))))) -> 882.81 | AI45: =IF(SUM(G46:$G$603)=0,AG45,-G45-AH45) -> 4990.62 | AJ45: 5873.43 | AM45: 2020-12-01 | AN45: 4990.62 | AO45: 882.81 | AP45: 5873.43
E46: 2021-01-01 | F46: 43 | G46: =-'Lease Input'!C148 -> -5873.43 | H46: 5029.53 | I46: 843.9 | K46: Year 42 | L46: 2059-06-30 | M46: =IF(SUM($M$5:M45)+$M$3>$M$2,ROUND($M$2-SUM($M$5:M45),2),ROUND($M$3,2)) -> 0 | P46: 2059-06-30 | Q46: =SUMIF($AM$4:$AM$603,"<="&P46,$AN$4:$AN$603)-SUM($Q$5:Q45) -> 0 | R46: =SUMIF($AM$4:$AM$603,"<="&P46,$AO$4:$AO$603)-SUM($R$5:R45) -> 0 | S46: 0 | T46: 2059 | AB46: 2021-01-01 | AD46: 2021-01-01 | AF46: 2021-01-01 | AG46: 233605.36 | AH46: =IF(G46=0,0,IF(AH45=0,ROUND(AK45*AG46*$B$28,2),IF(G46>0,0,IF(SUM(G47:$G$603)=0,ROUND(-G46-AG46,2),ROUND(AG46*$B$28,2))))) -> 864.34 | AI46: =IF(SUM(G47:$G$603)=0,AG46,-G46-AH46) -> 5009.09 | AJ46: 5873.43 | AM46: 2021-01-01 | AN46: 5009.09 | AO46: 864.34 | AP46: 5873.43
A47: Lease Asset | B47: =ROUND(M2,2) -> 421984.5 | E47: 2021-02-01 | F47: 44 | G47: =-'Lease Input'!C149 -> -5873.43 | H47: 5010.98 | I47: 862.45 | K47: Year 43 | L47: 2060-06-30 | M47: =IF(SUM($M$5:M46)+$M$3>$M$2,ROUND($M$2-SUM($M$5:M46),2),ROUND($M$3,2)) -> 0 | P47: 2060-06-30 | Q47: =SUMIF($AM$4:$AM$603,"<="&P47,$AN$4:$AN$603)-SUM($Q$5:Q46) -> 0 | R47: =SUMIF($AM$4:$AM$603,"<="&P47,$AO$4:$AO$603)-SUM($R$5:R46) -> 0 | S47: 0 | T47: 2060 | AB47: 2021-02-01 | AD47: 2021-02-01 | AF47: 2021-02-01 | AG47: 228596.27 | AH47: =IF(G47=0,0,IF(AH46=0,ROUND(AK46*AG47*$B$28,2),IF(G47>0,0,IF(SUM(G48:$G$603)=0,ROUND(-G47-AG47,2),ROUND(AG47*$B$28,2))))) -> 845.81 | AI47: =IF(SUM(G48:$G$603)=0,AG47,-G47-AH47) -> 5027.62 | AJ47: 5873.43 | AM47: 2021-02-01 | AN47: 5027.62 | AO47: 845.81 | AP47: 5873.43
A48: Accumulated Depreciation - Lease Asset | C48: =ROUND(B11,2) -> 240966.55 | E48: 2021-03-01 | F48: 45 | G48: =-'Lease Input'!C150 -> -5873.43 | H48: 4992.51 | I48: 880.92 | K48: Year 44 | L48: 2061-06-30 | M48: =IF(SUM($M$5:M47)+$M$3>$M$2,ROUND($M$2-SUM($M$5:M47),2),ROUND($M$3,2)) -> 0 | P48: 2061-06-30 | Q48: =SUMIF($AM$4:$AM$603,"<="&P48,$AN$4:$AN$603)-SUM($Q$5:Q47) -> 0 | R48: =SUMIF($AM$4:$AM$603,"<="&P48,$AO$4:$AO$603)-SUM($R$5:R47) -> 0 | S48: 0 | T48: 2061 | AB48: 2021-03-01 | AD48: 2021-03-01 | AF48: 2021-03-01 | AG48: 223568.65 | AH48: =IF(G48=0,0,IF(AH47=0,ROUND(AK47*AG48*$B$28,2),IF(G48>0,0,IF(SUM(G49:$G$603)=0,ROUND(-G48-AG48,2),ROUND(AG48*$B$28,2))))) -> 827.2 | AI48: =IF(SUM(G49:$G$603)=0,AG48,-G48-AH48) -> 5046.23 | AJ48: 5873.43 | AM48: 2021-03-01 | AN48: 5046.23 | AO48: 827.2 | AP48: 5873.43
A49: Lease Liability | C49: =ROUND(H2-B10,2) -> 170880.25 | E49: 2021-04-01 | F49: 46 | G49: =-'Lease Input'!C151 -> -5873.43 | H49: 4974.11 | I49: 899.32 | K49: Year 45 | L49: 2062-06-30 | M49: =IF(SUM($M$5:M48)+$M$3>$M$2,ROUND($M$2-SUM($M$5:M48),2),ROUND($M$3,2)) -> 0 | P49: 2062-06-30 | Q49: =SUMIF($AM$4:$AM$603,"<="&P49,$AN$4:$AN$603)-SUM($Q$5:Q48) -> 0 | R49: =SUMIF($AM$4:$AM$603,"<="&P49,$AO$4:$AO$603)-SUM($R$5:R48) -> 0 | S49: 0 | T49: 2062 | AB49: 2021-04-01 | AD49: 2021-04-01 | AF49: 2021-04-01 | AG49: 218522.42 | AH49: =IF(G49=0,0,IF(AH48=0,ROUND(AK48*AG49*$B$28,2),IF(G49>0,0,IF(SUM(G50:$G$603)=0,ROUND(-G49-AG49,2),ROUND(AG49*$B$28,2))))) -> 808.53 | AI49: =IF(SUM(G50:$G$603)=0,AG49,-G49-AH49) -> 5064.9 | AJ49: 5873.43 | AM49: 2021-04-01 | AN49: 5064.9 | AO49: 808.53 | AP49: 5873.43
A50: Beginning Net Position | B50: =IF(B9="No Restatement","",IF(SUM(B47:B49,B52:B53)>SUM(C48:C49,C51),0,SUM(C48:C49,C51)-SUM(B47:B49,B52:B53))) -> 0 | C50: =IF(B9="No Restatement","",IF(SUM(B47:B49,B52:B53)<=SUM(C48:C49,C51),0,SUM(B47:B49,B52:B53)-SUM(C48:C49,C51))) -> 10137.7 | E50: 2021-05-01 | F50: 47 | G50: =-'Lease Input'!C152 -> -5873.43 | H50: 4955.77 | I50: 917.66 | K50: Year 46 | L50: 2063-06-30 | M50: =IF(SUM($M$5:M49)+$M$3>$M$2,ROUND($M$2-SUM($M$5:M49),2),ROUND($M$3,2)) -> 0 | P50: 2063-06-30 | Q50: =SUMIF($AM$4:$AM$603,"<="&P50,$AN$4:$AN$603)-SUM($Q$5:Q49) -> 0 | R50: =SUMIF($AM$4:$AM$603,"<="&P50,$AO$4:$AO$603)-SUM($R$5:R49) -> 0 | S50: 0 | T50: 2063 | AB50: 2021-05-01 | AD50: 2021-05-01 | AF50: 2021-05-01 | AG50: 213457.52 | AH50: =IF(G50=0,0,IF(AH49=0,ROUND(AK49*AG50*$B$28,2),IF(G50>0,0,IF(SUM(G51:$G$603)=0,ROUND(-G50-AG50,2),ROUND(AG50*$B$28,2))))) -> 789.79 | AI50: =IF(SUM(G51:$G$603)=0,AG50,-G50-AH50) -> 5083.64 | AJ50: 5873.43 | AM50: 2021-05-01 | AN50: 5083.64 | AO50: 789.79 | AP50: 5873.43
A51: Capital Asset | C51: =IF(B35="Yes",B36,0) -> 0 | E51: 2021-06-01 | F51: 48 | G51: =-'Lease Input'!C153 -> -5873.43 | H51: 4937.5 | I51: 935.93 | K51: Year 47 | L51: 2064-06-30 | M51: =IF(SUM($M$5:M50)+$M$3>$M$2,ROUND($M$2-SUM($M$5:M50),2),ROUND($M$3,2)) -> 0 | P51: 2064-06-30 | Q51: =SUMIF($AM$4:$AM$603,"<="&P51,$AN$4:$AN$603)-SUM($Q$5:Q50) -> 0 | R51: =SUMIF($AM$4:$AM$603,"<="&P51,$AO$4:$AO$603)-SUM($R$5:R50) -> 0 | S51: 0 | T51: 2064 | AB51: 2021-06-01 | AD51: 2021-06-01 | AF51: 2021-06-01 | AG51: =AG50-AI50 -> 208373.88 | AH51: =IF(G51=0,0,IF(AH50=0,ROUND(AK50*AG51*$B$28,2),IF(G51>0,0,IF(SUM(G52:$G$603)=0,ROUND(-G51-AG51,2),ROUND(AG51*$B$28,2))))) -> 770.98 | AI51: =IF(SUM(G52:$G$603)=0,AG51,-G51-AH51) -> 5102.45 | AJ51: 5873.43 | AM51: 2021-06-01 | AN51: 5102.45 | AO51: 770.98 | AP51: 5873.43
A52: Accumulated Depreciation - Capital Asset | B52: =IF(B35="Yes",C36,0) -> 0 | E52: 2021-07-01 | F52: 49 | G52: =-'Lease Input'!C154 -> -6041.25 | H52: 5059.86 | I52: 981.39 | K52: Year 48 | L52: 2065-06-30 | M52: =IF(SUM($M$5:M51)+$M$3>$M$2,ROUND($M$2-SUM($M$5:M51),2),ROUND($M$3,2)) -> 0 | P52: 2065-06-30 | Q52: =SUMIF($AM$4:$AM$603,"<="&P52,$AN$4:$AN$603)-SUM($Q$5:Q51) -> 0 | R52: =SUMIF($AM$4:$AM$603,"<="&P52,$AO$4:$AO$603)-SUM($R$5:R51) -> 0 | S52: 0 | T52: 2065 | AB52: 2021-07-01 | AD52: 2021-07-01 | AF52: 2021-07-01 | AG52: =AG51-AI51 -> 203271.43 | AH52: =IF(G52=0,0,IF(AH51=0,ROUND(AK51*AG52*$B$28,2),IF(G52>0,0,IF(SUM(G53:$G$603)=0,ROUND(-G52-AG52,2),ROUND(AG52*$B$28,2))))) -> 752.1 | AI52: =IF(SUM(G53:$G$603)=0,AG52,-G52-AH52) -> 5289.15 | AJ52: 6041.25 | AM52: 2021-07-01 | AN52: 5289.15 | AO52: 752.1 | AP52: 6041.25
A53: Capital Lease Liability | B53: =IF(B35="Yes",B37,0) -> 0 | E53: 2021-08-01 | F53: 50 | G53: =-'Lease Input'!C155 -> -6041.25 | H53: 5041.21 | I53: 1000.04 | K53: Year 49 | L53: 2066-06-30 | M53: =IF(SUM($M$5:M52)+$M$3>$M$2,ROUND($M$2-SUM($M$5:M52),2),ROUND($M$3,2)) -> 0 | P53: 2066-06-30 | Q53: =SUMIF($AM$4:$AM$603,"<="&P53,$AN$4:$AN$603)-SUM($Q$5:Q52) -> 0 | R53: =SUMIF($AM$4:$AM$603,"<="&P53,$AO$4:$AO$603)-SUM($R$5:R52) -> 0 | S53: 0 | T53: 2066 | AB53: 2021-08-01 | AD53: 2021-08-01 | AF53: 2021-08-01 | AG53: 197982.28 | AH53: =IF(G53=0,0,IF(AH52=0,ROUND(AK52*AG53*$B$28,2),IF(G53>0,0,IF(SUM(G54:$G$603)=0,ROUND(-G53-AG53,2),ROUND(AG53*$B$28,2))))) -> 732.53 | AI53: =IF(SUM(G54:$G$603)=0,AG53,-G53-AH53) -> 5308.72 | AJ53: 6041.25 | AM53: 2021-08-01 | AN53: 5308.72 | AO53: 732.53 | AP53: 6041.25
A54: Fiscal year end entries | E54: 2021-09-01 | F54: 51 | G54: =-'Lease Input'!C156 -> -6041.25 | H54: 5022.62 | I54: 1018.63 | K54: Year 50 | L54: 2067-06-30 | M54: =IF(SUM($M$5:M53)+$M$3>$M$2,ROUND($M$2-SUM($M$5:M53),2),ROUND($M$3,2)) -> 0 | P54: 2067-06-30 | Q54: =SUMIF($AM$4:$AM$603,"<="&P54,$AN$4:$AN$603)-SUM($Q$5:Q53) -> 0 | R54: =SUMIF($AM$4:$AM$603,"<="&P54,$AO$4:$AO$603)-SUM($R$5:R53) -> 0 | S54: 0 | T54: 2067 | AB54: 2021-09-01 | AD54: 2021-09-01 | AF54: 2021-09-01 | AG54: 192673.56 | AH54: =IF(G54=0,0,IF(AH53=0,ROUND(AK53*AG54*$B$28,2),IF(G54>0,0,IF(SUM(G55:$G$603)=0,ROUND(-G54-AG54,2),ROUND(AG54*$B$28,2))))) -> 712.89 | AI54: =IF(SUM(G55:$G$603)=0,AG54,-G54-AH54) -> 5328.36 | AJ54: 6041.25 | AM54: 2021-09-01 | AN54: 5328.36 | AO54: 712.89 | AP54: 6041.25
A55: Lease Asset Depreciation Expense | B55: =IF(B15="Yes",0,IF(ISERROR(ROUND(VLOOKUP(B4,L5:M104,2,FALSE),2)),0,ROUND(VLOOKUP(B4,L5:M104,2,FALSE),2))) -> 60283.5 | E55: 2021-10-01 | F55: 52 | G55: =-'Lease Input'!C157 -> -6041.25 | H55: 5004.11 | I55: 1037.14 | K55: Year 51 | L55: 2068-06-30 | M55: =IF(SUM($M$5:M54)+$M$3>$M$2,ROUND($M$2-SUM($M$5:M54),2),ROUND($M$3,2)) -> 0 | P55: 2068-06-30 | Q55: =SUMIF($AM$4:$AM$603,"<="&P55,$AN$4:$AN$603)-SUM($Q$5:Q54) -> 0 | R55: =SUMIF($AM$4:$AM$603,"<="&P55,$AO$4:$AO$603)-SUM($R$5:R54) -> 0 | S55: 0 | T55: 2068 | AB55: 2021-10-01 | AD55: 2021-10-01 | AF55: 2021-10-01 | AG55: 187345.2 | AH55: =IF(G55=0,0,IF(AH54=0,ROUND(AK54*AG55*$B$28,2),IF(G55>0,0,IF(SUM(G56:$G$603)=0,ROUND(-G55-AG55,2),ROUND(AG55*$B$28,2))))) -> 693.18 | AI55: =IF(SUM(G56:$G$603)=0,AG55,-G55-AH55) -> 5348.07 | AJ55: 6041.25 | AM55: 2021-10-01 | AN55: 5348.07 | AO55: 693.18 | AP55: 6041.25
A56: Accumulated Depreciation | C56: =B55 -> 60283.5 | E56: 2021-11-01 | F56: 53 | G56: =-'Lease Input'!C158 -> -6041.25 | H56: 4985.66 | I56: 1055.59 | K56: Year 52 | L56: 2069-06-30 | M56: =IF(SUM($M$5:M55)+$M$3>$M$2,ROUND($M$2-SUM($M$5:M55),2),ROUND($M$3,2)) -> 0 | P56: 2069-06-30 | Q56: =SUMIF($AM$4:$AM$603,"<="&P56,$AN$4:$AN$603)-SUM($Q$5:Q55) -> 0 | R56: =SUMIF($AM$4:$AM$603,"<="&P56,$AO$4:$AO$603)-SUM($R$5:R55) -> 0 | S56: 0 | T56: 2069 | AB56: 2021-11-01 | AD56: 2021-11-01 | AF56: 2021-11-01 | AG56: 181997.13 | AH56: =IF(G56=0,0,IF(AH55=0,ROUND(AK55*AG56*$B$28,2),IF(G56>0,0,IF(SUM(G57:$G$603)=0,ROUND(-G56-AG56,2),ROUND(AG56*$B$28,2))))) -> 673.39 | AI56: =IF(SUM(G57:$G$603)=0,AG56,-G56-AH56) -> 5367.86 | AJ56: 6041.25 | AM56: 2021-11-01 | AN56: 5367.86 | AO56: 673.39 | AP56: 6041.25
A57: Lease Liability | B57: =ROUND(SUMIFS(AN4:AN603,AM4:AM603,">="&B5,AM4:AM603,"<="&B4),2) -> 64777.42 | E57: 2021-12-01 | F57: 54 | G57: =-'Lease Input'!C159 -> -6041.25 | H57: 4967.28 | I57: 1073.97 | K57: Year 53 | L57: 2070-06-30 | M57: =IF(SUM($M$5:M56)+$M$3>$M$2,ROUND($M$2-SUM($M$5:M56),2),ROUND($M$3,2)) -> 0 | P57: 2070-06-30 | Q57: =SUMIF($AM$4:$AM$603,"<="&P57,$AN$4:$AN$603)-SUM($Q$5:Q56) -> 0 | R57: =SUMIF($AM$4:$AM$603,"<="&P57,$AO$4:$AO$603)-SUM($R$5:R56) -> 0 | S57: 0 | T57: 2070 | AB57: 2021-12-01 | AD57: 2021-12-01 | AF57: 2021-12-01 | AG57: 176629.27 | AH57: =IF(G57=0,0,IF(AH56=0,ROUND(AK56*AG57*$B$28,2),IF(G57>0,0,IF(SUM(G58:$G$603)=0,ROUND(-G57-AG57,2),ROUND(AG57*$B$28,2))))) -> 653.53 | AI57: =IF(SUM(G58:$G$603)=0,AG57,-G57-AH57) -> 5387.72 | AJ57: 6041.25 | AM57: 2021-12-01 | AN57: 5387.72 | AO57: 653.53 | AP57: 6041.25
A58: Interest Expense | B58: =ROUND(SUMIFS(AO4:AO603,E4:E603,">="&B5,E4:E603,"<="&B4),2) -> 7717.58 | E58: 2022-01-01 | F58: 55 | G58: =-'Lease Input'!C160 -> -6041.25 | H58: 4948.97 | I58: 1092.28 | K58: Year 54 | L58: 2071-06-30 | M58: =IF(SUM($M$5:M57)+$M$3>$M$2,ROUND($M$2-SUM($M$5:M57),2),ROUND($M$3,2)) -> 0 | P58: 2071-06-30 | Q58: =SUMIF($AM$4:$AM$603,"<="&P58,$AN$4:$AN$603)-SUM($Q$5:Q57) -> 0 | R58: =SUMIF($AM$4:$AM$603,"<="&P58,$AO$4:$AO$603)-SUM($R$5:R57) -> 0 | S58: 0 | T58: 2071 | AB58: 2022-01-01 | AD58: 2022-01-01 | AF58: 2022-01-01 | AG58: 171241.55 | AH58: =IF(G58=0,0,IF(AH57=0,ROUND(AK57*AG58*$B$28,2),IF(G58>0,0,IF(SUM(G59:$G$603)=0,ROUND(-G58-AG58,2),ROUND(AG58*$B$28,2))))) -> 633.59 | AI58: =IF(SUM(G59:$G$603)=0,AG58,-G58-AH58) -> 5407.66 | AJ58: 6041.25 | AM58: 2022-01-01 | AN58: 5407.66 | AO58: 633.59 | AP58: 6041.25
A59: Cash | C59: =SUM(B57:B58) -> 72495 | E59: 2022-02-01 | F59: 56 | G59: =-'Lease Input'!C161 -> -6041.25 | H59: 4930.73 | I59: 1110.52 | K59: Year 55 | L59: 2072-06-30 | M59: =IF(SUM($M$5:M58)+$M$3>$M$2,ROUND($M$2-SUM($M$5:M58),2),ROUND($M$3,2)) -> 0 | P59: 2072-06-30 | Q59: =SUMIF($AM$4:$AM$603,"<="&P59,$AN$4:$AN$603)-SUM($Q$5:Q58) -> 0 | R59: =SUMIF($AM$4:$AM$603,"<="&P59,$AO$4:$AO$603)-SUM($R$5:R58) -> 0 | S59: 0 | T59: 2072 | AB59: 2022-02-01 | AD59: 2022-02-01 | AF59: 2022-02-01 | AG59: 165833.89 | AH59: =IF(G59=0,0,IF(AH58=0,ROUND(AK58*AG59*$B$28,2),IF(G59>0,0,IF(SUM(G60:$G$603)=0,ROUND(-G59-AG59,2),ROUND(AG59*$B$28,2))))) -> 613.59 | AI59: =IF(SUM(G60:$G$603)=0,AG59,-G59-AH59) -> 5427.66 | AJ59: 6041.25 | AM59: 2022-02-01 | AN59: 5427.66 | AO59: 613.59 | AP59: 6041.25
A60: Interest Expense | B60: =IF(ISERROR(DATEDIF(VLOOKUP(INDEX(AM4:AM603,MATCH(B4,AM4:AM603,1)),AM4:AP603,1,FALSE),B4,"d")),0,ROUND((DATEDIF(VLOOKUP(INDEX(AM4:AM603,MATCH(B4,AM4:AM603,1)),AM4:AP603,1,FALSE),B4,"d")/(DATEDIF(VLOOKUP(INDEX(AM4:AM603,MATCH(B4,AM4:AM603,1)),AM4:AP603,1,FALSE),VLOOKUP(INDEX(AM4:AM603,MATCH(B4,AM4:AM603,1)+1),AM4:AP603,1,FALSE),"d")))*VLOOKUP(INDEX(AM4:AM603,MATCH(B4,AM4:AM603,1)+1),AM4:AP603,3,FALSE),2)) -> 495.35 | E60: 2022-03-01 | F60: 57 | G60: =-'Lease Input'!C162 -> -6041.25 | H60: 4912.55 | I60: 1128.7 | K60: Year 56 | L60: 2073-06-30 | M60: =IF(SUM($M$5:M59)+$M$3>$M$2,ROUND($M$2-SUM($M$5:M59),2),ROUND($M$3,2)) -> 0 | P60: 2073-06-30 | Q60: =SUMIF($AM$4:$AM$603,"<="&P60,$AN$4:$AN$603)-SUM($Q$5:Q59) -> 0 | R60: =SUMIF($AM$4:$AM$603,"<="&P60,$AO$4:$AO$603)-SUM($R$5:R59) -> 0 | S60: 0 | T60: 2073 | AB60: 2022-03-01 | AD60: 2022-03-01 | AF60: 2022-03-01 | AG60: 160406.23 | AH60: =IF(G60=0,0,IF(AH59=0,ROUND(AK59*AG60*$B$28,2),IF(G60>0,0,IF(SUM(G61:$G$603)=0,ROUND(-G60-AG60,2),ROUND(AG60*$B$28,2))))) -> 593.5 | AI60: =IF(SUM(G61:$G$603)=0,AG60,-G60-AH60) -> 5447.75 | AJ60: 6041.25 | AM60: 2022-03-01 | AN60: 5447.75 | AO60: 593.5 | AP60: 6041.25
A61: Accrued Interest Payable | C61: =B60 -> 495.35 | E61: 2022-04-01 | F61: 58 | G61: =-'Lease Input'!C163 -> -6041.25 | H61: 4894.44 | I61: 1146.81 | K61: Year 57 | L61: 2074-06-30 | M61: =IF(SUM($M$5:M60)+$M$3>$M$2,ROUND($M$2-SUM($M$5:M60),2),ROUND($M$3,2)) -> 0 | P61: 2074-06-30 | Q61: =SUMIF($AM$4:$AM$603,"<="&P61,$AN$4:$AN$603)-SUM($Q$5:Q60) -> 0 | R61: =SUMIF($AM$4:$AM$603,"<="&P61,$AO$4:$AO$603)-SUM($R$5:R60) -> 0 | S61: 0 | T61: 2074 | AB61: 2022-04-01 | AD61: 2022-04-01 | AF61: 2022-04-01 | AG61: 154958.48 | AH61: =IF(G61=0,0,IF(AH60=0,ROUND(AK60*AG61*$B$28,2),IF(G61>0,0,IF(SUM(G62:$G$603)=0,ROUND(-G61-AG61,2),ROUND(AG61*$B$28,2))))) -> 573.35 | AI61: =IF(SUM(G62:$G$603)=0,AG61,-G61-AH61) -> 5467.9 | AJ61: 6041.25 | AM61: 2022-04-01 | AN61: 5467.9 | AO61: 573.35 | AP61: 6041.25
A62: Government-wide - Next Lease Payment after YE | E62: 2022-05-01 | F62: 59 | G62: =-'Lease Input'!C164 -> -6041.25 | H62: 4876.4 | I62: 1164.85 | K62: Year 58 | L62: 2075-06-30 | M62: =IF(SUM($M$5:M61)+$M$3>$M$2,ROUND($M$2-SUM($M$5:M61),2),ROUND($M$3,2)) -> 0 | P62: 2075-06-30 | Q62: =SUMIF($AM$4:$AM$603,"<="&P62,$AN$4:$AN$603)-SUM($Q$5:Q61) -> 0 | R62: =SUMIF($AM$4:$AM$603,"<="&P62,$AO$4:$AO$603)-SUM($R$5:R61) -> 0 | S62: 0 | T62: 2075 | AB62: 2022-05-01 | AD62: 2022-05-01 | AF62: 2022-05-01 | AG62: 149490.58 | AH62: =IF(G62=0,0,IF(AH61=0,ROUND(AK61*AG62*$B$28,2),IF(G62>0,0,IF(SUM(G63:$G$603)=0,ROUND(-G62-AG62,2),ROUND(AG62*$B$28,2))))) -> 553.12 | AI62: =IF(SUM(G63:$G$603)=0,AG62,-G62-AH62) -> 5488.13 | AJ62: 6041.25 | AM62: 2022-05-01 | AN62: 5488.13 | AO62: 553.12 | AP62: 6041.25
A63: Lease Liability | B63: =IF(ISERROR(ROUND(VLOOKUP(INDEX(AM4:AM603,MATCH(B4,AM4:AM603,1)+1),AM4:AP603,2,FALSE),2)),AN4,ROUND(VLOOKUP(INDEX(AM4:AM603,MATCH(B4,AM4:AM603,1)+1),AM4:AP603,2,FALSE),2)) -> 5528.82 | E63: 2022-06-01 | F63: 60 | G63: =-'Lease Input'!C165 -> -6041.25 | H63: 4858.42 | I63: 1182.83 | K63: Year 59 | L63: 2076-06-30 | M63: =IF(SUM($M$5:M62)+$M$3>$M$2,ROUND($M$2-SUM($M$5:M62),2),ROUND($M$3,2)) -> 0 | P63: 2076-06-30 | Q63: =SUMIF($AM$4:$AM$603,"<="&P63,$AN$4:$AN$603)-SUM($Q$5:Q62) -> 0 | R63: =SUMIF($AM$4:$AM$603,"<="&P63,$AO$4:$AO$603)-SUM($R$5:R62) -> 0 | S63: 0 | T63: 2076 | AB63: 2022-06-01 | AD63: 2022-06-01 | AF63: 2022-06-01 | AG63: 144002.45 | AH63: =IF(G63=0,0,IF(AH62=0,ROUND(AK62*AG63*$B$28,2),IF(G63>0,0,IF(SUM(G64:$G$603)=0,ROUND(-G63-AG63,2),ROUND(AG63*$B$28,2))))) -> 532.81 | AI63: =IF(SUM(G64:$G$603)=0,AG63,-G63-AH63) -> 5508.44 | AJ63: 6041.25 | AM63: 2022-06-01 | AN63: 5508.44 | AO63: 532.81 | AP63: 6041.25
A64: Interest Expense | B64: =IF(ISERROR(ROUND(VLOOKUP(INDEX(AM4:AM603,MATCH(B4,AM4:AM603,1)+1),AM4:AP603,3,FALSE),2)),AO4,ROUND(VLOOKUP(INDEX(AM4:AM603,MATCH(B4,AM4:AM603,1)+1),AM4:AP603,3,FALSE),2)-B66) -> 17.08 | E64: 2022-07-01 | F64: 61 | G64: =-'Lease Input'!C166 -> -6041.25 | H64: 4840.51 | I64: 1200.74 | K64: Year 60 | L64: 2077-06-30 | M64: =IF(SUM($M$5:M63)+$M$3>$M$2,ROUND($M$2-SUM($M$5:M63),2),ROUND($M$3,2)) -> 0 | P64: 2077-06-30 | Q64: =SUMIF($AM$4:$AM$603,"<="&P64,$AN$4:$AN$603)-SUM($Q$5:Q63) -> 0 | R64: =SUMIF($AM$4:$AM$603,"<="&P64,$AO$4:$AO$603)-SUM($R$5:R63) -> 0 | S64: 0 | T64: 2077 | AB64: 2022-07-01 | AD64: 2022-07-01 | AF64: 2022-07-01 | AG64: 138494.01 | AH64: =IF(G64=0,0,IF(AH63=0,ROUND(AK63*AG64*$B$28,2),IF(G64>0,0,IF(SUM(G65:$G$603)=0,ROUND(-G64-AG64,2),ROUND(AG64*$B$28,2))))) -> 512.43 | AI64: =IF(SUM(G65:$G$603)=0,AG64,-G64-AH64) -> 5528.82 | AJ64: 6041.25 | AM64: 2022-07-01 | AN64: 5528.82 | AO64: 512.43 | AP64: 6041.25
A65: Cash | C65: =SUM(B63:B66) -> 6041.25 | E65: 2022-08-01 | F65: 62 | G65: =-'Lease Input'!C167 -> -6041.25 | H65: 4822.67 | I65: 1218.58 | K65: Year 61 | L65: 2078-06-30 | M65: =IF(SUM($M$5:M64)+$M$3>$M$2,ROUND($M$2-SUM($M$5:M64),2),ROUND($M$3,2)) -> 0 | P65: 2078-06-30 | Q65: =SUMIF($AM$4:$AM$603,"<="&P65,$AN$4:$AN$603)-SUM($Q$5:Q64) -> 0 | R65: =SUMIF($AM$4:$AM$603,"<="&P65,$AO$4:$AO$603)-SUM($R$5:R64) -> 0 | S65: 0 | T65: 2078 | AB65: 2022-08-01 | AD65: 2022-08-01 | AF65: 2022-08-01 | AG65: 132965.19 | AH65: =IF(G65=0,0,IF(AH64=0,ROUND(AK64*AG65*$B$28,2),IF(G65>0,0,IF(SUM(G66:$G$603)=0,ROUND(-G65-AG65,2),ROUND(AG65*$B$28,2))))) -> 491.97 | AI65: =IF(SUM(G66:$G$603)=0,AG65,-G65-AH65) -> 5549.28 | AJ65: 6041.25 | AM65: 2022-08-01 | AN65: 5549.28 | AO65: 491.97 | AP65: 6041.25
A66: Accrued Interest Payable | B66: =C61 -> 495.35 | E66: 2022-09-01 | F66: 63 | G66: =-'Lease Input'!C168 -> -6041.25 | H66: 4804.89 | I66: 1236.36 | K66: Year 62 | L66: 2079-06-30 | M66: =IF(SUM($M$5:M65)+$M$3>$M$2,ROUND($M$2-SUM($M$5:M65),2),ROUND($M$3,2)) -> 0 | P66: 2079-06-30 | Q66: =SUMIF($AM$4:$AM$603,"<="&P66,$AN$4:$AN$603)-SUM($Q$5:Q65) -> 0 | R66: =SUMIF($AM$4:$AM$603,"<="&P66,$AO$4:$AO$603)-SUM($R$5:R65) -> 0 | S66: 0 | T66: 2079 | AB66: 2022-09-01 | AD66: 2022-09-01 | AF66: 2022-09-01 | AG66: 127415.91 | AH66: =IF(G66=0,0,IF(AH65=0,ROUND(AK65*AG66*$B$28,2),IF(G66>0,0,IF(SUM(G67:$G$603)=0,ROUND(-G66-AG66,2),ROUND(AG66*$B$28,2))))) -> 471.44 | AI66: =IF(SUM(G67:$G$603)=0,AG66,-G66-AH66) -> 5569.81 | AJ66: 6041.25 | AM66: 2022-09-01 | AN66: 5569.81 | AO66: 471.44 | AP66: 6041.25
A67: Government-wide - Next Year's Lease Asset Amortization | E67: 2022-10-01 | F67: 64 | G67: =-'Lease Input'!C169 -> -6041.25 | H67: 4787.18 | I67: 1254.07 | K67: Year 63 | L67: 2080-06-30 | M67: =IF(SUM($M$5:M66)+$M$3>$M$2,ROUND($M$2-SUM($M$5:M66),2),ROUND($M$3,2)) -> 0 | P67: 2080-06-30 | Q67: =SUMIF($AM$4:$AM$603,"<="&P67,$AN$4:$AN$603)-SUM($Q$5:Q66) -> 0 | R67: =SUMIF($AM$4:$AM$603,"<="&P67,$AO$4:$AO$603)-SUM($R$5:R66) -> 0 | S67: 0 | T67: 2080 | AB67: 2022-10-01 | AD67: 2022-10-01 | AF67: 2022-10-01 | AG67: 121846.1 | AH67: =IF(G67=0,0,IF(AH66=0,ROUND(AK66*AG67*$B$28,2),IF(G67>0,0,IF(SUM(G68:$G$603)=0,ROUND(-G67-AG67,2),ROUND(AG67*$B$28,2))))) -> 450.83 | AI67: =IF(SUM(G68:$G$603)=0,AG67,-G67-AH67) -> 5590.42 | AJ67: 6041.25 | AM67: 2022-10-01 | AN67: 5590.42 | AO67: 450.83 | AP67: 6041.25
A68: Lease Asset Depreciation Expense | B68: =IF(ISERROR(ROUND(VLOOKUP(INDEX(L5:L104,MATCH(B4,L5:L104,1)+1),L5:M104,2,FALSE),2)),M5,ROUND(VLOOKUP(INDEX(L5:L104,MATCH(B4,L5:L104,1)+1),L5:M104,2,FALSE),2)) -> 60283.5 | E68: 2022-11-01 | F68: 65 | G68: =-'Lease Input'!C170 -> -6041.25 | H68: 4769.53 | I68: 1271.72 | K68: Year 64 | L68: 2081-06-30 | M68: =IF(SUM($M$5:M67)+$M$3>$M$2,ROUND($M$2-SUM($M$5:M67),2),ROUND($M$3,2)) -> 0 | P68: 2081-06-30 | Q68: =SUMIF($AM$4:$AM$603,"<="&P68,$AN$4:$AN$603)-SUM($Q$5:Q67) -> 0 | R68: =SUMIF($AM$4:$AM$603,"<="&P68,$AO$4:$AO$603)-SUM($R$5:R67) -> 0 | S68: 0 | T68: 2081 | AB68: 2022-11-01 | AD68: 2022-11-01 | AF68: =E68 -> 2022-11-01 | AG68: 116255.68 | AH68: =IF(G68=0,0,IF(AH67=0,ROUND(AK67*AG68*$B$28,2),IF(G68>0,0,IF(SUM(G69:$G$603)=0,ROUND(-G68-AG68,2),ROUND(AG68*$B$28,2))))) -> 430.15 | AI68: =IF(SUM(G69:$G$603)=0,AG68,-G68-AH68) -> 5611.1 | AJ68: 6041.25 | AM68: =E68 -> 2022-11-01 | AN68: 5611.1 | AO68: 430.15 | AP68: 6041.25
A69: Accumulated Depreciation | C69: =B68 -> 60283.5 | E69: =AD69 -> 2022-12-01 | F69: 66 | G69: =-'Lease Input'!C171 -> -6041.25 | H69: =IF($C$29=1,ROUND(PV($B$28,F69-1,0,G69,$C$29),2),ROUND(PV($B$28,F69,0,G69,$C$29),2)) -> 4751.95 | I69: =-H69-G69 -> 1289.3 | K69: Year 65 | L69: 2082-06-30 | M69: =IF(SUM($M$5:M68)+$M$3>$M$2,ROUND($M$2-SUM($M$5:M68),2),ROUND($M$3,2)) -> 0 | P69: 2082-06-30 | Q69: =SUMIF($AM$4:$AM$603,"<="&P69,$AN$4:$AN$603)-SUM($Q$5:Q68) -> 0 | R69: =SUMIF($AM$4:$AM$603,"<="&P69,$AO$4:$AO$603)-SUM($R$5:R68) -> 0 | S69: =SUM(Q69:R69) -> 0 | T69: =YEAR(P69) -> 2082 | AB69: 2022-12-01 | AD69: 2022-12-01 | AF69: 2022-12-01 | AG69: 110644.58 | AH69: =IF(G69=0,0,IF(AH68=0,ROUND(AK68*AG69*$B$28,2),IF(G69>0,0,IF(SUM(G70:$G$603)=0,ROUND(-G69-AG69,2),ROUND(AG69*$B$28,2))))) -> 409.38 | AI69: =IF(SUM(G70:$G$603)=0,AG69,-G69-AH69) -> 5631.87 | AJ69: =SUM(AH69:AI69) -> 6041.25 | AM69: 2022-12-01 | AN69: =AI69 -> 5631.87 | AO69: =AH69 -> 409.38 | AP69: =AJ69 -> 6041.25
E70: 2023-01-01 | F70: 67 | G70: =-'Lease Input'!C172 -> -6041.25 | H70: 4734.43 | I70: 1306.82 | K70: Year 66 | L70: 2083-06-30 | M70: =IF(SUM($M$5:M69)+$M$3>$M$2,ROUND($M$2-SUM($M$5:M69),2),ROUND($M$3,2)) -> 0 | P70: 2083-06-30 | Q70: =SUMIF($AM$4:$AM$603,"<="&P70,$AN$4:$AN$603)-SUM($Q$5:Q69) -> 0 | R70: =SUMIF($AM$4:$AM$603,"<="&P70,$AO$4:$AO$603)-SUM($R$5:R69) -> 0 | S70: 0 | T70: 2083 | AB70: =IF(OR($B$25=1,$B$25=2,$B$25=4,$B$25=6,$B$25=12),IF(DAY($AB$4+1)=1,EOMONTH(AB69,(1/$B$25)*12),IF(AND(MONTH(EDATE(AB69,(1/$B$25)*12))=2,OR(DAY(AB69)=29,DAY(AB69)=30)),DATE(YEAR(EDATE(AB69,(1/$B$25)*12)),MONTH(EDATE(AB69,(1/$B$25)*12)),28),DATE(YEAR(EDATE(AB69,(1/$B$25)*12)),MONTH(EDATE(AB69,(1/$B$25)*12)),DAY($AB$4)))),"Next") -> 2023-01-01 | AD70: =IF(AB70="Next",AC70,AB70) -> 2023-01-01 | AF70: 2023-01-01 | AG70: 105012.71 | AH70: =IF(G70=0,0,IF(AH69=0,ROUND(AK69*AG70*$B$28,2),IF(G70>0,0,IF(SUM(G71:$G$603)=0,ROUND(-G70-AG70,2),ROUND(AG70*$B$28,2))))) -> 388.55 | AI70: =IF(SUM(G71:$G$603)=0,AG70,-G70-AH70) -> 5652.7 | AJ70: 6041.25 | AK70: =IF(AH70=0,IF(AK69="",2,AK69+1),"") ->  | AM70: 2023-01-01 | AN70: 5652.7 | AO70: 388.55 | AP70: 6041.25
E71: 2023-02-01 | F71: 68 | G71: =-'Lease Input'!C173 -> -6041.25 | H71: 4716.98 | I71: 1324.27 | K71: Year 67 | L71: =DATE(YEAR(L70)+1,MONTH(L70),DAY(L70)) -> 2084-06-30 | M71: =IF(SUM($M$5:M70)+$M$3>$M$2,ROUND($M$2-SUM($M$5:M70),2),ROUND($M$3,2)) -> 0 | P71: 2084-06-30 | Q71: =SUMIF($AM$4:$AM$603,"<="&P71,$AN$4:$AN$603)-SUM($Q$5:Q70) -> 0 | R71: =SUMIF($AM$4:$AM$603,"<="&P71,$AO$4:$AO$603)-SUM($R$5:R70) -> 0 | S71: 0 | T71: 2084 | AB71: 2023-02-01 | AD71: 2023-02-01 | AF71: 2023-02-01 | AG71: =AG70-AI70 -> 99360.01 | AH71: =IF(G71=0,0,IF(AH70=0,ROUND(AK70*AG71*$B$28,2),IF(G71>0,0,IF(SUM(G72:$G$603)=0,ROUND(-G71-AG71,2),ROUND(AG71*$B$28,2))))) -> 367.63 | AI71: =IF(SUM(G72:$G$603)=0,AG71,-G71-AH71) -> 5673.62 | AJ71: 6041.25 | AM71: 2023-02-01 | AN71: 5673.62 | AO71: 367.63 | AP71: 6041.25
A72: Modified Accrual | E72: 2023-03-01 | F72: 69 | G72: =-'Lease Input'!C174 -> -6041.25 | H72: 4699.59 | I72: 1341.66 | K72: Year 68 | L72: 2085-06-30 | M72: =IF(SUM($M$5:M71)+$M$3>$M$2,ROUND($M$2-SUM($M$5:M71),2),ROUND($M$3,2)) -> 0 | P72: 2085-06-30 | Q72: =SUMIF($AM$4:$AM$603,"<="&P72,$AN$4:$AN$603)-SUM($Q$5:Q71) -> 0 | R72: =SUMIF($AM$4:$AM$603,"<="&P72,$AO$4:$AO$603)-SUM($R$5:R71) -> 0 | S72: 0 | T72: 2085 | AB72: 2023-03-01 | AC72: =IF(AB72<>"Next","",IF($B$25=24,IF(DAY(AC71)<=15,IF(DAY(AC71)+15>DAY(EOMONTH(AC71,0)),EOMONTH(AC71,0),AC71+15),IF(AND(MONTH(AC71)=2,DAY(AC71)>15),DATE(YEAR(AC71),MONTH(AC71)+1,DAY(AC69)-15),DATE(YEAR(AC71),MONTH(AC71)+1,DAY(AC71)-15))),AC71+7)) ->  | AD72: 2023-03-01 | AF72: 2023-03-01 | AG72: 93686.39 | AH72: =IF(G72=0,0,IF(AH71=0,ROUND(AK71*AG72*$B$28,2),IF(G72>0,0,IF(SUM(G73:$G$603)=0,ROUND(-G72-AG72,2),ROUND(AG72*$B$28,2))))) -> 346.64 | AI72: =IF(SUM(G73:$G$603)=0,AG72,-G72-AH72) -> 5694.61 | AJ72: 6041.25 | AM72: 2023-03-01 | AN72: 5694.61 | AO72: 346.64 | AP72: 6041.25
A73: Governmental Fund - Initial Recording | E73: 2023-04-01 | F73: 70 | G73: =-'Lease Input'!C175 -> -6041.25 | H73: 4682.27 | I73: 1358.98 | K73: Year 69 | L73: 2086-06-30 | M73: =IF(SUM($M$5:M72)+$M$3>$M$2,ROUND($M$2-SUM($M$5:M72),2),ROUND($M$3,2)) -> 0 | P73: 2086-06-30 | Q73: =SUMIF($AM$4:$AM$603,"<="&P73,$AN$4:$AN$603)-SUM($Q$5:Q72) -> 0 | R73: =SUMIF($AM$4:$AM$603,"<="&P73,$AO$4:$AO$603)-SUM($R$5:R72) -> 0 | S73: 0 | T73: 2086 | AB73: 2023-04-01 | AD73: 2023-04-01 | AF73: 2023-04-01 | AG73: 87991.78 | AH73: =IF(G73=0,0,IF(AH72=0,ROUND(AK72*AG73*$B$28,2),IF(G73>0,0,IF(SUM(G74:$G$603)=0,ROUND(-G73-AG73,2),ROUND(AG73*$B$28,2))))) -> 325.57 | AI73: =IF(SUM(G74:$G$603)=0,AG73,-G73-AH73) -> 5715.68 | AJ73: 6041.25 | AM73: 2023-04-01 | AN73: 5715.68 | AO73: 325.57 | AP73: 6041.25
B74: Debit | C74: Credit | E74: 2023-05-01 | F74: 71 | G74: =-'Lease Input'!C176 -> -6041.25 | H74: 4665.01 | I74: 1376.24 | K74: Year 70 | L74: 2087-06-30 | M74: =IF(SUM($M$5:M73)+$M$3>$M$2,ROUND($M$2-SUM($M$5:M73),2),ROUND($M$3,2)) -> 0 | P74: 2087-06-30 | Q74: =SUMIF($AM$4:$AM$603,"<="&P74,$AN$4:$AN$603)-SUM($Q$5:Q73) -> 0 | R74: =SUMIF($AM$4:$AM$603,"<="&P74,$AO$4:$AO$603)-SUM($R$5:R73) -> 0 | S74: 0 | T74: 2087 | AB74: 2023-05-01 | AD74: 2023-05-01 | AF74: 2023-05-01 | AG74: 82276.1 | AH74: =IF(G74=0,0,IF(AH73=0,ROUND(AK73*AG74*$B$28,2),IF(G74>0,0,IF(SUM(G75:$G$603)=0,ROUND(-G74-AG74,2),ROUND(AG74*$B$28,2))))) -> 304.42 | AI74: =IF(SUM(G75:$G$603)=0,AG74,-G74-AH74) -> 5736.83 | AJ74: 6041.25 | AM74: 2023-05-01 | AN74: 5736.83 | AO74: 304.42 | AP74: 6041.25
A75: =IF(B9="Restatement","No entry for initial recording of lease entered into prior to the beginning of the current fiscal year on a governmental fund basis","Lease Expenditure") -> No entry for initial recording of lease entered into prior to the beginning of the current fiscal year on a governmental fund basis | B75: =IF(B9="Restatement","",H2) ->  | E75: 2023-06-01 | F75: 72 | G75: =-'Lease Input'!C177 -> -6041.25 | H75: 4647.81 | I75: 1393.44 | K75: Year 71 | L75: 2088-06-30 | M75: =IF(SUM($M$5:M74)+$M$3>$M$2,ROUND($M$2-SUM($M$5:M74),2),ROUND($M$3,2)) -> 0 | P75: 2088-06-30 | Q75: =SUMIF($AM$4:$AM$603,"<="&P75,$AN$4:$AN$603)-SUM($Q$5:Q74) -> 0 | R75: =SUMIF($AM$4:$AM$603,"<="&P75,$AO$4:$AO$603)-SUM($R$5:R74) -> 0 | S75: 0 | T75: 2088 | AB75: 2023-06-01 | AD75: 2023-06-01 | AF75: 2023-06-01 | AG75: 76539.27 | AH75: =IF(G75=0,0,IF(AH74=0,ROUND(AK74*AG75*$B$28,2),IF(G75>0,0,IF(SUM(G76:$G$603)=0,ROUND(-G75-AG75,2),ROUND(AG75*$B$28,2))))) -> 283.2 | AI75: =IF(SUM(G76:$G$603)=0,AG75,-G75-AH75) -> 5758.05 | AJ75: 6041.25 | AM75: 2023-06-01 | AN75: 5758.05 | AO75: 283.2 | AP75: 6041.25
A76: =IF(B9="Restatement","","Other Financing Source - Lease") ->  | C76: =IF(B9="Restatement","",H2) ->  | E76: 2023-07-01 | F76: 73 | G76: =-'Lease Input'!C178 -> -6041.25 | H76: 4630.67 | I76: 1410.58 | K76: Year 72 | L76: 2089-06-30 | M76: =IF(SUM($M$5:M75)+$M$3>$M$2,ROUND($M$2-SUM($M$5:M75),2),ROUND($M$3,2)) -> 0 | P76: 2089-06-30 | Q76: =SUMIF($AM$4:$AM$603,"<="&P76,$AN$4:$AN$603)-SUM($Q$5:Q75) -> 0 | R76: =SUMIF($AM$4:$AM$603,"<="&P76,$AO$4:$AO$603)-SUM($R$5:R75) -> 0 | S76: 0 | T76: 2089 | AB76: 2023-07-01 | AD76: 2023-07-01 | AF76: 2023-07-01 | AG76: 70781.22 | AH76: =IF(G76=0,0,IF(AH75=0,ROUND(AK75*AG76*$B$28,2),IF(G76>0,0,IF(SUM(G77:$G$603)=0,ROUND(-G76-AG76,2),ROUND(AG76*$B$28,2))))) -> 261.89 | AI76: =IF(SUM(G77:$G$603)=0,AG76,-G76-AH76) -> 5779.36 | AJ76: 6041.25 | AM76: 2023-07-01 | AN76: 5779.36 | AO76: 261.89 | AP76: 6041.25
A77: =IF(B9="Restatement","","Expenditure - Downpayment and/or set-up costs") ->  | B77: =IF(B9="Restatement","",L2) ->  | E77: 2023-08-01 | F77: 74 | G77: =-'Lease Input'!C179 -> -6041.25 | H77: 4613.6 | I77: 1427.65 | K77: Year 73 | L77: 2090-06-30 | M77: =IF(SUM($M$5:M76)+$M$3>$M$2,ROUND($M$2-SUM($M$5:M76),2),ROUND($M$3,2)) -> 0 | P77: 2090-06-30 | Q77: =SUMIF($AM$4:$AM$603,"<="&P77,$AN$4:$AN$603)-SUM($Q$5:Q76) -> 0 | R77: =SUMIF($AM$4:$AM$603,"<="&P77,$AO$4:$AO$603)-SUM($R$5:R76) -> 0 | S77: 0 | T77: 2090 | AB77: 2023-08-01 | AD77: 2023-08-01 | AF77: 2023-08-01 | AG77: 65001.86 | AH77: =IF(G77=0,0,IF(AH76=0,ROUND(AK76*AG77*$B$28,2),IF(G77>0,0,IF(SUM(G78:$G$603)=0,ROUND(-G77-AG77,2),ROUND(AG77*$B$28,2))))) -> 240.51 | AI77: =IF(SUM(G78:$G$603)=0,AG77,-G77-AH77) -> 5800.74 | AJ77: 6041.25 | AM77: 2023-08-01 | AN77: 5800.74 | AO77: 240.51 | AP77: 6041.25
A78: =IF(B9="Restatement","","Cash") ->  | C78: =IF(B9="Restatement","",L2) ->  | E78: 2023-09-01 | F78: 75 | G78: =-'Lease Input'!C180 -> -6041.25 | H78: 4596.6 | I78: 1444.65 | K78: Year 74 | L78: 2091-06-30 | M78: =IF(SUM($M$5:M77)+$M$3>$M$2,ROUND($M$2-SUM($M$5:M77),2),ROUND($M$3,2)) -> 0 | P78: 2091-06-30 | Q78: =SUMIF($AM$4:$AM$603,"<="&P78,$AN$4:$AN$603)-SUM($Q$5:Q77) -> 0 | R78: =SUMIF($AM$4:$AM$603,"<="&P78,$AO$4:$AO$603)-SUM($R$5:R77) -> 0 | S78: 0 | T78: 2091 | AB78: 2023-09-01 | AD78: 2023-09-01 | AF78: 2023-09-01 | AG78: 59201.12 | AH78: =IF(G78=0,0,IF(AH77=0,ROUND(AK77*AG78*$B$28,2),IF(G78>0,0,IF(SUM(G79:$G$603)=0,ROUND(-G78-AG78,2),ROUND(AG78*$B$28,2))))) -> 219.04 | AI78: =IF(SUM(G79:$G$603)=0,AG78,-G78-AH78) -> 5822.21 | AJ78: 6041.25 | AM78: 2023-09-01 | AN78: 5822.21 | AO78: 219.04 | AP78: 6041.25
E79: 2023-10-01 | F79: 76 | G79: =-'Lease Input'!C181 -> -6041.25 | H79: 4579.65 | I79: 1461.6 | K79: Year 75 | L79: 2092-06-30 | M79: =IF(SUM($M$5:M78)+$M$3>$M$2,ROUND($M$2-SUM($M$5:M78),2),ROUND($M$3,2)) -> 0 | P79: =DATE(YEAR(P78)+1,MONTH(P78),DAY(P78)) -> 2092-06-30 | Q79: =SUMIF($AM$4:$AM$603,"<="&P79,$AN$4:$AN$603)-SUM($Q$5:Q78) -> 0 | R79: =SUMIF($AM$4:$AM$603,"<="&P79,$AO$4:$AO$603)-SUM($R$5:R78) -> 0 | S79: 0 | T79: 2092 | AB79: 2023-10-01 | AD79: 2023-10-01 | AF79: 2023-10-01 | AG79: 53378.91 | AH79: =IF(G79=0,0,IF(AH78=0,ROUND(AK78*AG79*$B$28,2),IF(G79>0,0,IF(SUM(G80:$G$603)=0,ROUND(-G79-AG79,2),ROUND(AG79*$B$28,2))))) -> 197.5 | AI79: =IF(SUM(G80:$G$603)=0,AG79,-G79-AH79) -> 5843.75 | AJ79: 6041.25 | AM79: 2023-10-01 | AN79: 5843.75 | AO79: 197.5 | AP79: 6041.25
A80: End-of-Year Recording during year of implementation | E80: 2023-11-01 | F80: 77 | G80: =-'Lease Input'!C182 -> -6041.25 | H80: 4562.77 | I80: 1478.48 | K80: Year 76 | L80: 2093-06-30 | M80: =IF(SUM($M$5:M79)+$M$3>$M$2,ROUND($M$2-SUM($M$5:M79),2),ROUND($M$3,2)) -> 0 | P80: 2093-06-30 | Q80: =SUMIF($AM$4:$AM$603,"<="&P80,$AN$4:$AN$603)-SUM($Q$5:Q79) -> 0 | R80: =SUMIF($AM$4:$AM$603,"<="&P80,$AO$4:$AO$603)-SUM($R$5:R79) -> 0 | S80: 0 | T80: 2093 | AB80: 2023-11-01 | AD80: 2023-11-01 | AF80: 2023-11-01 | AG80: 47535.16 | AH80: =IF(G80=0,0,IF(AH79=0,ROUND(AK79*AG80*$B$28,2),IF(G80>0,0,IF(SUM(G81:$G$603)=0,ROUND(-G80-AG80,2),ROUND(AG80*$B$28,2))))) -> 175.88 | AI80: =IF(SUM(G81:$G$603)=0,AG80,-G80-AH80) -> 5865.37 | AJ80: 6041.25 | AM80: 2023-11-01 | AN80: 5865.37 | AO80: 175.88 | AP80: 6041.25
A81: Principal - Lease | B81: =ROUND(SUMIFS(AN4:AN603,E4:E603,">="&B5,E4:E603,"<="&B4),2) -> 64777.42 | E81: 2023-12-01 | F81: 78 | G81: =-'Lease Input'!C183 -> -6041.25 | H81: 4545.95 | I81: 1495.3 | K81: Year 77 | L81: 2094-06-30 | M81: =IF(SUM($M$5:M80)+$M$3>$M$2,ROUND($M$2-SUM($M$5:M80),2),ROUND($M$3,2)) -> 0 | P81: 2094-06-30 | Q81: =SUMIF($AM$4:$AM$603,"<="&P81,$AN$4:$AN$603)-SUM($Q$5:Q80) -> 0 | R81: =SUMIF($AM$4:$AM$603,"<="&P81,$AO$4:$AO$603)-SUM($R$5:R80) -> 0 | S81: 0 | T81: 2094 | AB81: 2023-12-01 | AD81: 2023-12-01 | AF81: 2023-12-01 | AG81: 41669.79 | AH81: =IF(G81=0,0,IF(AH80=0,ROUND(AK80*AG81*$B$28,2),IF(G81>0,0,IF(SUM(G82:$G$603)=0,ROUND(-G81-AG81,2),ROUND(AG81*$B$28,2))))) -> 154.18 | AI81: =IF(SUM(G82:$G$603)=0,AG81,-G81-AH81) -> 5887.07 | AJ81: 6041.25 | AM81: 2023-12-01 | AN81: 5887.07 | AO81: 154.18 | AP81: 6041.25
A82: Interest Expense | B82: =ROUND(SUMIFS(AO4:AO603,E4:E603,">="&B5,E4:E603,"<="&B4),2) -> 7717.58 | E82: 2024-01-01 | F82: 79 | G82: =-'Lease Input'!C184 -> -6041.25 | H82: 4529.19 | I82: 1512.06 | K82: Year 78 | L82: 2095-06-30 | M82: =IF(SUM($M$5:M81)+$M$3>$M$2,ROUND($M$2-SUM($M$5:M81),2),ROUND($M$3,2)) -> 0 | P82: 2095-06-30 | Q82: =SUMIF($AM$4:$AM$603,"<="&P82,$AN$4:$AN$603)-SUM($Q$5:Q81) -> 0 | R82: =SUMIF($AM$4:$AM$603,"<="&P82,$AO$4:$AO$603)-SUM($R$5:R81) -> 0 | S82: 0 | T82: 2095 | AB82: 2024-01-01 | AD82: 2024-01-01 | AF82: 2024-01-01 | AG82: 35782.72 | AH82: =IF(G82=0,0,IF(AH81=0,ROUND(AK81*AG82*$B$28,2),IF(G82>0,0,IF(SUM(G83:$G$603)=0,ROUND(-G82-AG82,2),ROUND(AG82*$B$28,2))))) -> 132.4 | AI82: =IF(SUM(G83:$G$603)=0,AG82,-G82-AH82) -> 5908.85 | AJ82: 6041.25 | AM82: 2024-01-01 | AN82: 5908.85 | AO82: 132.4 | AP82: 6041.25
A83: Cash | C83: =SUM(B81:B82) -> 72495 | E83: 2024-02-01 | F83: 80 | G83: =-'Lease Input'!C185 -> -6041.25 | H83: 4512.5 | I83: 1528.75 | K83: Year 79 | L83: 2096-06-30 | M83: =IF(SUM($M$5:M82)+$M$3>$M$2,ROUND($M$2-SUM($M$5:M82),2),ROUND($M$3,2)) -> 0 | P83: 2096-06-30 | Q83: =SUMIF($AM$4:$AM$603,"<="&P83,$AN$4:$AN$603)-SUM($Q$5:Q82) -> 0 | R83: =SUMIF($AM$4:$AM$603,"<="&P83,$AO$4:$AO$603)-SUM($R$5:R82) -> 0 | S83: 0 | T83: 2096 | AB83: 2024-02-01 | AD83: 2024-02-01 | AF83: 2024-02-01 | AG83: 29873.87 | AH83: =IF(G83=0,0,IF(AH82=0,ROUND(AK82*AG83*$B$28,2),IF(G83>0,0,IF(SUM(G84:$G$603)=0,ROUND(-G83-AG83,2),ROUND(AG83*$B$28,2))))) -> 110.53 | AI83: =IF(SUM(G84:$G$603)=0,AG83,-G83-AH83) -> 5930.72 | AJ83: 6041.25 | AM83: 2024-02-01 | AN83: 5930.72 | AO83: 110.53 | AP83: 6041.25
E84: 2024-03-01 | F84: 81 | G84: =-'Lease Input'!C186 -> -6041.25 | H84: 4495.86 | I84: 1545.39 | K84: Year 80 | L84: 2097-06-30 | M84: =IF(SUM($M$5:M83)+$M$3>$M$2,ROUND($M$2-SUM($M$5:M83),2),ROUND($M$3,2)) -> 0 | P84: 2097-06-30 | Q84: =SUMIF($AM$4:$AM$603,"<="&P84,$AN$4:$AN$603)-SUM($Q$5:Q83) -> 0 | R84: =SUMIF($AM$4:$AM$603,"<="&P84,$AO$4:$AO$603)-SUM($R$5:R83) -> 0 | S84: 0 | T84: 2097 | AB84: 2024-03-01 | AD84: 2024-03-01 | AF84: 2024-03-01 | AG84: 23943.15 | AH84: =IF(G84=0,0,IF(AH83=0,ROUND(AK83*AG84*$B$28,2),IF(G84>0,0,IF(SUM(G85:$G$603)=0,ROUND(-G84-AG84,2),ROUND(AG84*$B$28,2))))) -> 88.59 | AI84: =IF(SUM(G85:$G$603)=0,AG84,-G84-AH84) -> 5952.66 | AJ84: 6041.25 | AM84: 2024-03-01 | AN84: 5952.66 | AO84: 88.59 | AP84: 6041.25
A85: Governmental Fund - Next Lease Payment after YE | E85: 2024-04-01 | F85: 82 | G85: =-'Lease Input'!C187 -> -6041.25 | H85: 4479.29 | I85: 1561.96 | K85: Year 81 | L85: 2098-06-30 | M85: =IF(SUM($M$5:M84)+$M$3>$M$2,ROUND($M$2-SUM($M$5:M84),2),ROUND($M$3,2)) -> 0 | P85: 2098-06-30 | Q85: =SUMIF($AM$4:$AM$603,"<="&P85,$AN$4:$AN$603)-SUM($Q$5:Q84) -> 0 | R85: =SUMIF($AM$4:$AM$603,"<="&P85,$AO$4:$AO$603)-SUM($R$5:R84) -> 0 | S85: 0 | T85: 2098 | AB85: 2024-04-01 | AD85: 2024-04-01 | AF85: 2024-04-01 | AG85: 17990.49 | AH85: =IF(G85=0,0,IF(AH84=0,ROUND(AK84*AG85*$B$28,2),IF(G85>0,0,IF(SUM(G86:$G$603)=0,ROUND(-G85-AG85,2),ROUND(AG85*$B$28,2))))) -> 66.56 | AI85: =IF(SUM(G86:$G$603)=0,AG85,-G85-AH85) -> 5974.69 | AJ85: 6041.25 | AM85: 2024-04-01 | AN85: 5974.69 | AO85: 66.56 | AP85: 6041.25
A86: Principal - Lease | B86: =IF(ISERROR(ROUND(VLOOKUP(INDEX(AM4:AM603,MATCH(B4,AM4:AM603,1)+1),AM4:AP603,2,FALSE),2)),AN4,ROUND(VLOOKUP(INDEX(AM4:AM603,MATCH(B4,AM4:AM603,1)+1),AM4:AP603,2,FALSE),2)) -> 5528.82 | E86: 2024-05-01 | F86: 83 | G86: =-'Lease Input'!C188 -> -6041.25 | H86: 4462.78 | I86: 1578.47 | K86: Year 82 | L86: 2099-06-30 | M86: =IF(SUM($M$5:M85)+$M$3>$M$2,ROUND($M$2-SUM($M$5:M85),2),ROUND($M$3,2)) -> 0 | P86: 2099-06-30 | Q86: =SUMIF($AM$4:$AM$603,"<="&P86,$AN$4:$AN$603)-SUM($Q$5:Q85) -> 0 | R86: =SUMIF($AM$4:$AM$603,"<="&P86,$AO$4:$AO$603)-SUM($R$5:R85) -> 0 | S86: 0 | T86: 2099 | AB86: 2024-05-01 | AD86: 2024-05-01 | AF86: 2024-05-01 | AG86: 12015.8 | AH86: =IF(G86=0,0,IF(AH85=0,ROUND(AK85*AG86*$B$28,2),IF(G86>0,0,IF(SUM(G87:$G$603)=0,ROUND(-G86-AG86,2),ROUND(AG86*$B$28,2))))) -> 44.46 | AI86: =IF(SUM(G87:$G$603)=0,AG86,-G86-AH86) -> 5996.79 | AJ86: 6041.25 | AM86: 2024-05-01 | AN86: 5996.79 | AO86: 44.46 | AP86: 6041.25
A87: Interest Expense | B87: =IF(ISERROR(ROUND(VLOOKUP(INDEX(AM4:AM603,MATCH(B4,AM4:AM603,1)+1),AM4:AP603,3,FALSE),2)),AO4,ROUND(VLOOKUP(INDEX(AM4:AM603,MATCH(B4,AM4:AM603,1)+1),AM4:AP603,3,FALSE),2)) -> 512.43 | E87: 2024-06-01 | F87: 84 | G87: =-'Lease Input'!C189 -> -6041.25 | H87: 4446.32 | I87: 1594.93 | K87: Year 83 | L87: 2100-06-30 | M87: =IF(SUM($M$5:M86)+$M$3>$M$2,ROUND($M$2-SUM($M$5:M86),2),ROUND($M$3,2)) -> 0 | P87: 2100-06-30 | Q87: =SUMIF($AM$4:$AM$603,"<="&P87,$AN$4:$AN$603)-SUM($Q$5:Q86) -> 0 | R87: =SUMIF($AM$4:$AM$603,"<="&P87,$AO$4:$AO$603)-SUM($R$5:R86) -> 0 | S87: 0 | T87: 2100 | AB87: 2024-06-01 | AD87: 2024-06-01 | AF87: 2024-06-01 | AG87: 6019.01 | AH87: =IF(G87=0,0,IF(AH86=0,ROUND(AK86*AG87*$B$28,2),IF(G87>0,0,IF(SUM(G88:$G$603)=0,ROUND(-G87-AG87,2),ROUND(AG87*$B$28,2))))) -> 22.24 | AI87: =IF(SUM(G88:$G$603)=0,AG87,-G87-AH87) -> 6019.01 | AJ87: 6041.25 | AM87: 2024-06-01 | AN87: 6019.01 | AO87: 22.24 | AP87: 6041.25
A88: Cash | C88: =SUM(B86:B87) -> 6041.25 | E88: 2024-07-01 | F88: 85 | G88: =-'Lease Input'!C190 -> 0 | H88: 0 | I88: 0 | K88: Year 84 | L88: 2101-06-30 | M88: =IF(SUM($M$5:M87)+$M$3>$M$2,ROUND($M$2-SUM($M$5:M87),2),ROUND($M$3,2)) -> 0 | P88: 2101-06-30 | Q88: =SUMIF($AM$4:$AM$603,"<="&P88,$AN$4:$AN$603)-SUM($Q$5:Q87) -> 0 | R88: =SUMIF($AM$4:$AM$603,"<="&P88,$AO$4:$AO$603)-SUM($R$5:R87) -> 0 | S88: 0 | T88: 2101 | AB88: 2024-07-01 | AD88: 2024-07-01 | AF88: 2024-07-01 | AG88: 0 | AH88: =IF(G88=0,0,IF(AH87=0,ROUND(AK87*AG88*$B$28,2),IF(G88>0,0,IF(SUM(G89:$G$603)=0,ROUND(-G88-AG88,2),ROUND(AG88*$B$28,2))))) -> 0 | AI88: =IF(SUM(G89:$G$603)=0,AG88,-G88-AH88) -> 0 | AJ88: 0 | AK88: 2 | AM88: 2024-07-01 | AN88: 0 | AO88: 0 | AP88: 0
E89: 2024-08-01 | F89: 86 | G89: =-'Lease Input'!C191 -> 0 | H89: 0 | I89: 0 | K89: Year 85 | L89: 2102-06-30 | M89: =IF(SUM($M$5:M88)+$M$3>$M$2,ROUND($M$2-SUM($M$5:M88),2),ROUND($M$3,2)) -> 0 | P89: 2102-06-30 | Q89: =SUMIF($AM$4:$AM$603,"<="&P89,$AN$4:$AN$603)-SUM($Q$5:Q88) -> 0 | R89: =SUMIF($AM$4:$AM$603,"<="&P89,$AO$4:$AO$603)-SUM($R$5:R88) -> 0 | S89: 0 | T89: 2102 | AB89: 2024-08-01 | AD89: 2024-08-01 | AF89: 2024-08-01 | AG89: 0 | AH89: =IF(G89=0,0,IF(AH88=0,ROUND(AK88*AG89*$B$28,2),IF(G89>0,0,IF(SUM(G90:$G$603)=0,ROUND(-G89-AG89,2),ROUND(AG89*$B$28,2))))) -> 0 | AI89: =IF(SUM(G90:$G$603)=0,AG89,-G89-AH89) -> 0 | AJ89: 0 | AK89: 3 | AM89: 2024-08-01 | AN89: 0 | AO89: 0 | AP89: 0
E90: 2024-09-01 | F90: 87 | G90: =-'Lease Input'!C192 -> 0 | H90: 0 | I90: 0 | K90: Year 86 | L90: 2103-06-30 | M90: =IF(SUM($M$5:M89)+$M$3>$M$2,ROUND($M$2-SUM($M$5:M89),2),ROUND($M$3,2)) -> 0 | P90: 2103-06-30 | Q90: =SUMIF($AM$4:$AM$603,"<="&P90,$AN$4:$AN$603)-SUM($Q$5:Q89) -> 0 | R90: =SUMIF($AM$4:$AM$603,"<="&P90,$AO$4:$AO$603)-SUM($R$5:R89) -> 0 | S90: 0 | T90: 2103 | AB90: 2024-09-01 | AD90: 2024-09-01 | AF90: 2024-09-01 | AG90: 0 | AH90: =IF(G90=0,0,IF(AH89=0,ROUND(AK89*AG90*$B$28,2),IF(G90>0,0,IF(SUM(G91:$G$603)=0,ROUND(-G90-AG90,2),ROUND(AG90*$B$28,2))))) -> 0 | AI90: =IF(SUM(G91:$G$603)=0,AG90,-G90-AH90) -> 0 | AJ90: 0 | AK90: 4 | AM90: 2024-09-01 | AN90: 0 | AO90: 0 | AP90: 0
A91: Full Accrual Summary | E91: 2024-10-01 | F91: 88 | G91: =-'Lease Input'!C193 -> 0 | H91: 0 | I91: 0 | K91: Year 87 | L91: 2104-06-30 | M91: =IF(SUM($M$5:M90)+$M$3>$M$2,ROUND($M$2-SUM($M$5:M90),2),ROUND($M$3,2)) -> 0 | P91: 2104-06-30 | Q91: =SUMIF($AM$4:$AM$603,"<="&P91,$AN$4:$AN$603)-SUM($Q$5:Q90) -> 0 | R91: =SUMIF($AM$4:$AM$603,"<="&P91,$AO$4:$AO$603)-SUM($R$5:R90) -> 0 | S91: 0 | T91: 2104 | AB91: 2024-10-01 | AD91: 2024-10-01 | AF91: 2024-10-01 | AG91: 0 | AH91: =IF(G91=0,0,IF(AH90=0,ROUND(AK90*AG91*$B$28,2),IF(G91>0,0,IF(SUM(G92:$G$603)=0,ROUND(-G91-AG91,2),ROUND(AG91*$B$28,2))))) -> 0 | AI91: =IF(SUM(G92:$G$603)=0,AG91,-G91-AH91) -> 0 | AJ91: 0 | AK91: 5 | AM91: 2024-10-01 | AN91: 0 | AO91: 0 | AP91: 0
A92: Lease Asset | B92: =IF(B9="Restatement",B47,B41) -> 421984.5 | E92: 2024-11-01 | F92: 89 | G92: =-'Lease Input'!C194 -> 0 | H92: 0 | I92: 0 | K92: Year 88 | L92: 2105-06-30 | M92: =IF(SUM($M$5:M91)+$M$3>$M$2,ROUND($M$2-SUM($M$5:M91),2),ROUND($M$3,2)) -> 0 | P92: 2105-06-30 | Q92: =SUMIF($AM$4:$AM$603,"<="&P92,$AN$4:$AN$603)-SUM($Q$5:Q91) -> 0 | R92: =SUMIF($AM$4:$AM$603,"<="&P92,$AO$4:$AO$603)-SUM($R$5:R91) -> 0 | S92: 0 | T92: 2105 | AB92: 2024-11-01 | AD92: 2024-11-01 | AF92: 2024-11-01 | AG92: 0 | AH92: =IF(G92=0,0,IF(AH91=0,ROUND(AK91*AG92*$B$28,2),IF(G92>0,0,IF(SUM(G93:$G$603)=0,ROUND(-G92-AG92,2),ROUND(AG92*$B$28,2))))) -> 0 | AI92: =IF(SUM(G93:$G$603)=0,AG92,-G92-AH92) -> 0 | AJ92: 0 | AK92: 6 | AM92: 2024-11-01 | AN92: 0 | AO92: 0 | AP92: 0
A93: Accumulated Depreciation | B93: =IF(B9="Restatement",-C48-C56,-C56) -> -301250.05 | E93: 2024-12-01 | F93: 90 | G93: =-'Lease Input'!C195 -> 0 | H93: 0 | I93: 0 | K93: Year 89 | L93: 2106-06-30 | M93: =IF(SUM($M$5:M92)+$M$3>$M$2,ROUND($M$2-SUM($M$5:M92),2),ROUND($M$3,2)) -> 0 | P93: 2106-06-30 | Q93: =SUMIF($AM$4:$AM$603,"<="&P93,$AN$4:$AN$603)-SUM($Q$5:Q92) -> 0 | R93: =SUMIF($AM$4:$AM$603,"<="&P93,$AO$4:$AO$603)-SUM($R$5:R92) -> 0 | S93: 0 | T93: 2106 | AB93: 2024-12-01 | AD93: 2024-12-01 | AF93: 2024-12-01 | AG93: 0 | AH93: =IF(G93=0,0,IF(AH92=0,ROUND(AK92*AG93*$B$28,2),IF(G93>0,0,IF(SUM(G94:$G$603)=0,ROUND(-G93-AG93,2),ROUND(AG93*$B$28,2))))) -> 0 | AI93: =IF(SUM(G94:$G$603)=0,AG93,-G93-AH93) -> 0 | AJ93: 0 | AK93: 7 | AM93: 2024-12-01 | AN93: 0 | AO93: 0 | AP93: 0
A94: Lease Liability | B94: =IF(B9="Restatement",SUM(-C49,B57),SUM(-C42,B57)) -> -106102.83 | E94: 2025-01-01 | F94: 91 | G94: =-'Lease Input'!C196 -> 0 | H94: 0 | I94: 0 | K94: Year 90 | L94: 2107-06-30 | M94: =IF(SUM($M$5:M93)+$M$3>$M$2,ROUND($M$2-SUM($M$5:M93),2),ROUND($M$3,2)) -> 0 | P94: 2107-06-30 | Q94: =SUMIF($AM$4:$AM$603,"<="&P94,$AN$4:$AN$603)-SUM($Q$5:Q93) -> 0 | R94: =SUMIF($AM$4:$AM$603,"<="&P94,$AO$4:$AO$603)-SUM($R$5:R93) -> 0 | S94: 0 | T94: 2107 | AB94: 2025-01-01 | AD94: 2025-01-01 | AF94: 2025-01-01 | AG94: 0 | AH94: =IF(G94=0,0,IF(AH93=0,ROUND(AK93*AG94*$B$28,2),IF(G94>0,0,IF(SUM(G95:$G$603)=0,ROUND(-G94-AG94,2),ROUND(AG94*$B$28,2))))) -> 0 | AI94: =IF(SUM(G95:$G$603)=0,AG94,-G94-AH94) -> 0 | AJ94: 0 | AK94: 8 | AM94: 2025-01-01 | AN94: 0 | AO94: 0 | AP94: 0
A95: Restatement - Beginning Net Position | B95: =IF(B50=0,-C50,B50) -> -10137.7 | E95: 2025-02-01 | F95: 92 | G95: =-'Lease Input'!C197 -> 0 | H95: 0 | I95: 0 | K95: Year 91 | L95: 2108-06-30 | M95: =IF(SUM($M$5:M94)+$M$3>$M$2,ROUND($M$2-SUM($M$5:M94),2),ROUND($M$3,2)) -> 0 | P95: 2108-06-30 | Q95: =SUMIF($AM$4:$AM$603,"<="&P95,$AN$4:$AN$603)-SUM($Q$5:Q94) -> 0 | R95: =SUMIF($AM$4:$AM$603,"<="&P95,$AO$4:$AO$603)-SUM($R$5:R94) -> 0 | S95: 0 | T95: 2108 | AB95: 2025-02-01 | AD95: 2025-02-01 | AF95: 2025-02-01 | AG95: 0 | AH95: =IF(G95=0,0,IF(AH94=0,ROUND(AK94*AG95*$B$28,2),IF(G95>0,0,IF(SUM(G96:$G$603)=0,ROUND(-G95-AG95,2),ROUND(AG95*$B$28,2))))) -> 0 | AI95: =IF(SUM(G96:$G$603)=0,AG95,-G95-AH95) -> 0 | AJ95: 0 | AK95: 9 | AM95: 2025-02-01 | AN95: 0 | AO95: 0 | AP95: 0
A96: Lease Asset Depreciation Expense | B96: =B55 -> 60283.5 | E96: 2025-03-01 | F96: 93 | G96: =-'Lease Input'!C198 -> 0 | H96: 0 | I96: 0 | K96: Year 92 | L96: 2109-06-30 | M96: =IF(SUM($M$5:M95)+$M$3>$M$2,ROUND($M$2-SUM($M$5:M95),2),ROUND($M$3,2)) -> 0 | P96: 2109-06-30 | Q96: =SUMIF($AM$4:$AM$603,"<="&P96,$AN$4:$AN$603)-SUM($Q$5:Q95) -> 0 | R96: =SUMIF($AM$4:$AM$603,"<="&P96,$AO$4:$AO$603)-SUM($R$5:R95) -> 0 | S96: 0 | T96: 2109 | AB96: 2025-03-01 | AD96: 2025-03-01 | AF96: 2025-03-01 | AG96: 0 | AH96: =IF(G96=0,0,IF(AH95=0,ROUND(AK95*AG96*$B$28,2),IF(G96>0,0,IF(SUM(G97:$G$603)=0,ROUND(-G96-AG96,2),ROUND(AG96*$B$28,2))))) -> 0 | AI96: =IF(SUM(G97:$G$603)=0,AG96,-G96-AH96) -> 0 | AJ96: 0 | AK96: 10 | AM96: 2025-03-01 | AN96: 0 | AO96: 0 | AP96: 0
A97: Interest Expense | B97: =B58+B60 -> 8212.93 | E97: 2025-04-01 | F97: 94 | G97: =-'Lease Input'!C199 -> 0 | H97: 0 | I97: 0 | K97: Year 93 | L97: 2110-06-30 | M97: =IF(SUM($M$5:M96)+$M$3>$M$2,ROUND($M$2-SUM($M$5:M96),2),ROUND($M$3,2)) -> 0 | P97: 2110-06-30 | Q97: =SUMIF($AM$4:$AM$603,"<="&P97,$AN$4:$AN$603)-SUM($Q$5:Q96) -> 0 | R97: =SUMIF($AM$4:$AM$603,"<="&P97,$AO$4:$AO$603)-SUM($R$5:R96) -> 0 | S97: 0 | T97: 2110 | AB97: 2025-04-01 | AD97: 2025-04-01 | AF97: 2025-04-01 | AG97: 0 | AH97: =IF(G97=0,0,IF(AH96=0,ROUND(AK96*AG97*$B$28,2),IF(G97>0,0,IF(SUM(G98:$G$603)=0,ROUND(-G97-AG97,2),ROUND(AG97*$B$28,2))))) -> 0 | AI97: =IF(SUM(G98:$G$603)=0,AG97,-G97-AH97) -> 0 | AJ97: 0 | AK97: 11 | AM97: 2025-04-01 | AN97: 0 | AO97: 0 | AP97: 0
A98: Cash | B98: =IF(B9="Restatement",-C59,-C59-C43) -> -72495 | E98: 2025-05-01 | F98: 95 | G98: =-'Lease Input'!C200 -> 0 | H98: 0 | I98: 0 | K98: Year 94 | L98: 2111-06-30 | M98: =IF(SUM($M$5:M97)+$M$3>$M$2,ROUND($M$2-SUM($M$5:M97),2),ROUND($M$3,2)) -> 0 | P98: 2111-06-30 | Q98: =SUMIF($AM$4:$AM$603,"<="&P98,$AN$4:$AN$603)-SUM($Q$5:Q97) -> 0 | R98: =SUMIF($AM$4:$AM$603,"<="&P98,$AO$4:$AO$603)-SUM($R$5:R97) -> 0 | S98: 0 | T98: 2111 | AB98: 2025-05-01 | AD98: 2025-05-01 | AF98: 2025-05-01 | AG98: 0 | AH98: =IF(G98=0,0,IF(AH97=0,ROUND(AK97*AG98*$B$28,2),IF(G98>0,0,IF(SUM(G99:$G$603)=0,ROUND(-G98-AG98,2),ROUND(AG98*$B$28,2))))) -> 0 | AI98: =IF(SUM(G99:$G$603)=0,AG98,-G98-AH98) -> 0 | AJ98: 0 | AK98: 12 | AM98: 2025-05-01 | AN98: 0 | AO98: 0 | AP98: 0
A99: Accrued Interest Liability | B99: =-C61 -> -495.35 | E99: 2025-06-01 | F99: 96 | G99: =-'Lease Input'!C201 -> 0 | H99: 0 | I99: 0 | K99: Year 95 | L99: 2112-06-30 | M99: =IF(SUM($M$5:M98)+$M$3>$M$2,ROUND($M$2-SUM($M$5:M98),2),ROUND($M$3,2)) -> 0 | P99: 2112-06-30 | Q99: =SUMIF($AM$4:$AM$603,"<="&P99,$AN$4:$AN$603)-SUM($Q$5:Q98) -> 0 | R99: =SUMIF($AM$4:$AM$603,"<="&P99,$AO$4:$AO$603)-SUM($R$5:R98) -> 0 | S99: 0 | T99: 2112 | AB99: 2025-06-01 | AD99: 2025-06-01 | AF99: 2025-06-01 | AG99: 0 | AH99: =IF(G99=0,0,IF(AH98=0,ROUND(AK98*AG99*$B$28,2),IF(G99>0,0,IF(SUM(G100:$G$603)=0,ROUND(-G99-AG99,2),ROUND(AG99*$B$28,2))))) -> 0 | AI99: =IF(SUM(G100:$G$603)=0,AG99,-G99-AH99) -> 0 | AJ99: 0 | AK99: 13 | AM99: 2025-06-01 | AN99: 0 | AO99: 0 | AP99: 0
A100: Capital Asset | B100: =IF(B35="Yes",-C51,"") ->  | E100: 2025-07-01 | F100: 97 | G100: =-'Lease Input'!C202 -> 0 | H100: 0 | I100: 0 | K100: Year 96 | L100: 2113-06-30 | M100: =IF(SUM($M$5:M99)+$M$3>$M$2,ROUND($M$2-SUM($M$5:M99),2),ROUND($M$3,2)) -> 0 | P100: 2113-06-30 | Q100: =SUMIF($AM$4:$AM$603,"<="&P100,$AN$4:$AN$603)-SUM($Q$5:Q99) -> 0 | R100: =SUMIF($AM$4:$AM$603,"<="&P100,$AO$4:$AO$603)-SUM($R$5:R99) -> 0 | S100: 0 | T100: 2113 | AB100: 2025-07-01 | AD100: 2025-07-01 | AF100: 2025-07-01 | AG100: 0 | AH100: =IF(G100=0,0,IF(AH99=0,ROUND(AK99*AG100*$B$28,2),IF(G100>0,0,IF(SUM(G101:$G$603)=0,ROUND(-G100-AG100,2),ROUND(AG100*$B$28,2))))) -> 0 | AI100: =IF(SUM(G101:$G$603)=0,AG100,-G100-AH100) -> 0 | AJ100: 0 | AK100: 14 | AM100: 2025-07-01 | AN100: 0 | AO100: 0 | AP100: 0
A101: Accumulated Depreciation - Capital Asset | B101: =B52 -> 0 | E101: 2025-08-01 | F101: 98 | G101: =-'Lease Input'!C203 -> 0 | H101: 0 | I101: 0 | K101: Year 97 | L101: 2114-06-30 | M101: =IF(SUM($M$5:M100)+$M$3>$M$2,ROUND($M$2-SUM($M$5:M100),2),ROUND($M$3,2)) -> 0 | P101: 2114-06-30 | Q101: =SUMIF($AM$4:$AM$603,"<="&P101,$AN$4:$AN$603)-SUM($Q$5:Q100) -> 0 | R101: =SUMIF($AM$4:$AM$603,"<="&P101,$AO$4:$AO$603)-SUM($R$5:R100) -> 0 | S101: =SUM(Q101:R101) -> 0 | T101: 2114 | AB101: 2025-08-01 | AD101: 2025-08-01 | AF101: 2025-08-01 | AG101: 0 | AH101: =IF(G101=0,0,IF(AH100=0,ROUND(AK100*AG101*$B$28,2),IF(G101>0,0,IF(SUM(G102:$G$603)=0,ROUND(-G101-AG101,2),ROUND(AG101*$B$28,2))))) -> 0 | AI101: =IF(SUM(G102:$G$603)=0,AG101,-G101-AH101) -> 0 | AJ101: 0 | AK101: 15 | AM101: 2025-08-01 | AN101: 0 | AO101: 0 | AP101: 0
A102: Capital Lease Liability | B102: =B53 -> 0 | E102: 2025-09-01 | F102: 99 | G102: =-'Lease Input'!C204 -> 0 | H102: 0 | I102: 0 | K102: Year 98 | L102: 2115-06-30 | M102: =IF(SUM($M$5:M101)+$M$3>$M$2,ROUND($M$2-SUM($M$5:M101),2),ROUND($M$3,2)) -> 0 | P102: 2115-06-30 | Q102: =SUMIF($AM$4:$AM$603,"<="&P102,$AN$4:$AN$603)-SUM($Q$5:Q101) -> 0 | R102: =SUMIF($AM$4:$AM$603,"<="&P102,$AO$4:$AO$603)-SUM($R$5:R101) -> 0 | S102: 0 | T102: 2115 | AB102: 2025-09-01 | AD102: 2025-09-01 | AF102: 2025-09-01 | AG102: 0 | AH102: =IF(G102=0,0,IF(AH101=0,ROUND(AK101*AG102*$B$28,2),IF(G102>0,0,IF(SUM(G103:$G$603)=0,ROUND(-G102-AG102,2),ROUND(AG102*$B$28,2))))) -> 0 | AI102: =IF(SUM(G103:$G$603)=0,AG102,-G102-AH102) -> 0 | AJ102: 0 | AK102: 16 | AM102: 2025-09-01 | AN102: 0 | AO102: 0 | AP102: 0
E103: 2025-10-01 | F103: 100 | G103: =-'Lease Input'!C205 -> 0 | H103: 0 | I103: 0 | K103: Year 99 | L103: 2116-06-30 | M103: =IF(SUM($M$5:M102)+$M$3>$M$2,ROUND($M$2-SUM($M$5:M102),2),ROUND($M$3,2)) -> 0 | P103: 2116-06-30 | Q103: =SUMIF($AM$4:$AM$603,"<="&P103,$AN$4:$AN$603)-SUM($Q$5:Q102) -> 0 | R103: =SUMIF($AM$4:$AM$603,"<="&P103,$AO$4:$AO$603)-SUM($R$5:R102) -> 0 | S103: 0 | T103: 2116 | AB103: 2025-10-01 | AD103: 2025-10-01 | AF103: 2025-10-01 | AG103: 0 | AH103: =IF(G103=0,0,IF(AH102=0,ROUND(AK102*AG103*$B$28,2),IF(G103>0,0,IF(SUM(G104:$G$603)=0,ROUND(-G103-AG103,2),ROUND(AG103*$B$28,2))))) -> 0 | AI103: =IF(SUM(G104:$G$603)=0,AG103,-G103-AH103) -> 0 | AJ103: 0 | AK103: 17 | AM103: 2025-10-01 | AN103: 0 | AO103: 0 | AP103: 0
A104: Modified Accrual Summary | E104: 2025-11-01 | F104: 101 | G104: =-'Lease Input'!C206 -> 0 | H104: 0 | I104: 0 | K104: Year 100 | L104: 2117-06-30 | M104: =IF(SUM($M$5:M103)+$M$3>$M$2,ROUND($M$2-SUM($M$5:M103),2),ROUND($M$3,2)) -> 0 | P104: 2117-06-30 | Q104: =SUMIF($AM$4:$AM$603,"<="&P104,$AN$4:$AN$603)-SUM($Q$5:Q103) -> 0 | R104: =SUMIF($AM$4:$AM$603,"<="&P104,$AO$4:$AO$603)-SUM($R$5:R103) -> 0 | S104: 0 | T104: 2117 | AB104: 2025-11-01 | AD104: 2025-11-01 | AF104: 2025-11-01 | AG104: 0 | AH104: =IF(G104=0,0,IF(AH103=0,ROUND(AK103*AG104*$B$28,2),IF(G104>0,0,IF(SUM(G105:$G$603)=0,ROUND(-G104-AG104,2),ROUND(AG104*$B$28,2))))) -> 0 | AI104: =IF(SUM(G105:$G$603)=0,AG104,-G104-AH104) -> 0 | AJ104: 0 | AK104: 18 | AM104: 2025-11-01 | AN104: 0 | AO104: 0 | AP104: 0
A105: Lease Expenditure | B105: =IF(B7="Business-Type Fund",0,IF(B9="Restatement","",B75)) ->  | E105: 2025-12-01 | F105: 102 | G105: =-'Lease Input'!C207 -> 0 | H105: 0 | I105: 0 | AB105: 2025-12-01 | AD105: 2025-12-01 | AF105: 2025-12-01 | AG105: 0 | AH105: =IF(G105=0,0,IF(AH104=0,ROUND(AK104*AG105*$B$28,2),IF(G105>0,0,IF(SUM(G106:$G$603)=0,ROUND(-G105-AG105,2),ROUND(AG105*$B$28,2))))) -> 0 | AI105: =IF(SUM(G106:$G$603)=0,AG105,-G105-AH105) -> 0 | AJ105: 0 | AK105: 19 | AM105: 2025-12-01 | AN105: 0 | AO105: 0 | AP105: 0
A106: Other Financing Source - Lease | B106: =IF(B7="Business-Type Fund",0,IF(B9="Restatement","",-C76)) ->  | E106: 2026-01-01 | F106: 103 | G106: =-'Lease Input'!C208 -> 0 | H106: 0 | I106: 0 | AB106: 2026-01-01 | AD106: 2026-01-01 | AF106: 2026-01-01 | AG106: 0 | AH106: =IF(G106=0,0,IF(AH105=0,ROUND(AK105*AG106*$B$28,2),IF(G106>0,0,IF(SUM(G107:$G$603)=0,ROUND(-G106-AG106,2),ROUND(AG106*$B$28,2))))) -> 0 | AI106: =IF(SUM(G107:$G$603)=0,AG106,-G106-AH106) -> 0 | AJ106: 0 | AK106: 20 | AM106: 2026-01-01 | AN106: 0 | AO106: 0 | AP106: 0
A107: Principal Payment - Lease | B107: =IF(B7="Business-Type Fund",0,B81) -> 64777.42 | E107: 2026-02-01 | F107: 104 | G107: =-'Lease Input'!C209 -> 0 | H107: 0 | I107: 0 | AB107: 2026-02-01 | AD107: 2026-02-01 | AF107: 2026-02-01 | AG107: 0 | AH107: =IF(G107=0,0,IF(AH106=0,ROUND(AK106*AG107*$B$28,2),IF(G107>0,0,IF(SUM(G108:$G$603)=0,ROUND(-G107-AG107,2),ROUND(AG107*$B$28,2))))) -> 0 | AI107: =IF(SUM(G108:$G$603)=0,AG107,-G107-AH107) -> 0 | AJ107: 0 | AK107: 21 | AM107: 2026-02-01 | AN107: 0 | AO107: 0 | AP107: 0
A108: Interest Expense | B108: =IF(B7="Business-Type Fund",0,B82) -> 7717.58 | E108: 2026-03-01 | F108: 105 | G108: =-'Lease Input'!C210 -> 0 | H108: 0 | I108: 0 | AB108: 2026-03-01 | AD108: 2026-03-01 | AF108: 2026-03-01 | AG108: 0 | AH108: =IF(G108=0,0,IF(AH107=0,ROUND(AK107*AG108*$B$28,2),IF(G108>0,0,IF(SUM(G109:$G$603)=0,ROUND(-G108-AG108,2),ROUND(AG108*$B$28,2))))) -> 0 | AI108: =IF(SUM(G109:$G$603)=0,AG108,-G108-AH108) -> 0 | AJ108: 0 | AK108: 22 | AM108: 2026-03-01 | AN108: 0 | AO108: 0 | AP108: 0
A109: Cash | B109: =IF(B7="Business-Type Fund",0,IF(C78="",-C83,-C83-C78)) -> -72495 | E109: 2026-04-01 | F109: 106 | G109: =-'Lease Input'!C211 -> 0 | H109: 0 | I109: 0 | AB109: 2026-04-01 | AD109: 2026-04-01 | AF109: 2026-04-01 | AG109: 0 | AH109: =IF(G109=0,0,IF(AH108=0,ROUND(AK108*AG109*$B$28,2),IF(G109>0,0,IF(SUM(G110:$G$603)=0,ROUND(-G109-AG109,2),ROUND(AG109*$B$28,2))))) -> 0 | AI109: =IF(SUM(G110:$G$603)=0,AG109,-G109-AH109) -> 0 | AJ109: 0 | AK109: 23 | AM109: 2026-04-01 | AN109: 0 | AO109: 0 | AP109: 0
A110: Expenditure - Downpayment and/or set up costs | B110: =IF(B7="Business-Type Fund",0,IF(B9="Restatement","",B77)) ->  | E110: 2026-05-01 | F110: 107 | G110: =-'Lease Input'!C212 -> 0 | H110: 0 | I110: 0 | AB110: 2026-05-01 | AD110: 2026-05-01 | AF110: 2026-05-01 | AG110: 0 | AH110: =IF(G110=0,0,IF(AH109=0,ROUND(AK109*AG110*$B$28,2),IF(G110>0,0,IF(SUM(G111:$G$603)=0,ROUND(-G110-AG110,2),ROUND(AG110*$B$28,2))))) -> 0 | AI110: =IF(SUM(G111:$G$603)=0,AG110,-G110-AH110) -> 0 | AJ110: 0 | AK110: 24 | AM110: 2026-05-01 | AN110: 0 | AO110: 0 | AP110: 0
E111: 2026-06-01 | F111: 108 | G111: =-'Lease Input'!C213 -> 0 | H111: 0 | I111: 0 | AB111: 2026-06-01 | AD111: 2026-06-01 | AF111: 2026-06-01 | AG111: 0 | AH111: =IF(G111=0,0,IF(AH110=0,ROUND(AK110*AG111*$B$28,2),IF(G111>0,0,IF(SUM(G112:$G$603)=0,ROUND(-G111-AG111,2),ROUND(AG111*$B$28,2))))) -> 0 | AI111: =IF(SUM(G112:$G$603)=0,AG111,-G111-AH111) -> 0 | AJ111: 0 | AK111: 25 | AM111: 2026-06-01 | AN111: 0 | AO111: 0 | AP111: 0
E112: 2026-07-01 | F112: 109 | G112: =-'Lease Input'!C214 -> 0 | H112: 0 | I112: 0 | AB112: 2026-07-01 | AD112: 2026-07-01 | AF112: 2026-07-01 | AG112: 0 | AH112: =IF(G112=0,0,IF(AH111=0,ROUND(AK111*AG112*$B$28,2),IF(G112>0,0,IF(SUM(G113:$G$603)=0,ROUND(-G112-AG112,2),ROUND(AG112*$B$28,2))))) -> 0 | AI112: =IF(SUM(G113:$G$603)=0,AG112,-G112-AH112) -> 0 | AJ112: 0 | AK112: 26 | AM112: 2026-07-01 | AN112: 0 | AO112: 0 | AP112: 0
E113: 2026-08-01 | F113: 110 | G113: =-'Lease Input'!C215 -> 0 | H113: 0 | I113: 0 | AB113: 2026-08-01 | AD113: 2026-08-01 | AF113: 2026-08-01 | AG113: 0 | AH113: =IF(G113=0,0,IF(AH112=0,ROUND(AK112*AG113*$B$28,2),IF(G113>0,0,IF(SUM(G114:$G$603)=0,ROUND(-G113-AG113,2),ROUND(AG113*$B$28,2))))) -> 0 | AI113: =IF(SUM(G114:$G$603)=0,AG113,-G113-AH113) -> 0 | AJ113: 0 | AK113: 27 | AM113: 2026-08-01 | AN113: 0 | AO113: 0 | AP113: 0
E114: 2026-09-01 | F114: 111 | G114: =-'Lease Input'!C216 -> 0 | H114: 0 | I114: 0 | AB114: 2026-09-01 | AD114: 2026-09-01 | AF114: 2026-09-01 | AG114: 0 | AH114: =IF(G114=0,0,IF(AH113=0,ROUND(AK113*AG114*$B$28,2),IF(G114>0,0,IF(SUM(G115:$G$603)=0,ROUND(-G114-AG114,2),ROUND(AG114*$B$28,2))))) -> 0 | AI114: =IF(SUM(G115:$G$603)=0,AG114,-G114-AH114) -> 0 | AJ114: 0 | AK114: 28 | AM114: 2026-09-01 | AN114: 0 | AO114: 0 | AP114: 0
E115: 2026-10-01 | F115: 112 | G115: =-'Lease Input'!C217 -> 0 | H115: 0 | I115: 0 | AB115: 2026-10-01 | AD115: 2026-10-01 | AF115: 2026-10-01 | AG115: 0 | AH115: =IF(G115=0,0,IF(AH114=0,ROUND(AK114*AG115*$B$28,2),IF(G115>0,0,IF(SUM(G116:$G$603)=0,ROUND(-G115-AG115,2),ROUND(AG115*$B$28,2))))) -> 0 | AI115: =IF(SUM(G116:$G$603)=0,AG115,-G115-AH115) -> 0 | AJ115: 0 | AK115: 29 | AM115: 2026-10-01 | AN115: 0 | AO115: 0 | AP115: 0
E116: 2026-11-01 | F116: 113 | G116: =-'Lease Input'!C218 -> 0 | H116: 0 | I116: 0 | AB116: 2026-11-01 | AD116: 2026-11-01 | AF116: 2026-11-01 | AG116: 0 | AH116: =IF(G116=0,0,IF(AH115=0,ROUND(AK115*AG116*$B$28,2),IF(G116>0,0,IF(SUM(G117:$G$603)=0,ROUND(-G116-AG116,2),ROUND(AG116*$B$28,2))))) -> 0 | AI116: =IF(SUM(G117:$G$603)=0,AG116,-G116-AH116) -> 0 | AJ116: 0 | AK116: 30 | AM116: 2026-11-01 | AN116: 0 | AO116: 0 | AP116: 0
E117: 2026-12-01 | F117: 114 | G117: =-'Lease Input'!C219 -> 0 | H117: 0 | I117: 0 | AB117: 2026-12-01 | AD117: 2026-12-01 | AF117: 2026-12-01 | AG117: 0 | AH117: =IF(G117=0,0,IF(AH116=0,ROUND(AK116*AG117*$B$28,2),IF(G117>0,0,IF(SUM(G118:$G$603)=0,ROUND(-G117-AG117,2),ROUND(AG117*$B$28,2))))) -> 0 | AI117: =IF(SUM(G118:$G$603)=0,AG117,-G117-AH117) -> 0 | AJ117: 0 | AK117: 31 | AM117: 2026-12-01 | AN117: 0 | AO117: 0 | AP117: 0
E118: 2027-01-01 | F118: 115 | G118: =-'Lease Input'!C220 -> 0 | H118: 0 | I118: 0 | AB118: 2027-01-01 | AD118: 2027-01-01 | AF118: 2027-01-01 | AG118: 0 | AH118: =IF(G118=0,0,IF(AH117=0,ROUND(AK117*AG118*$B$28,2),IF(G118>0,0,IF(SUM(G119:$G$603)=0,ROUND(-G118-AG118,2),ROUND(AG118*$B$28,2))))) -> 0 | AI118: =IF(SUM(G119:$G$603)=0,AG118,-G118-AH118) -> 0 | AJ118: 0 | AK118: 32 | AM118: 2027-01-01 | AN118: 0 | AO118: 0 | AP118: 0
E119: 2027-02-01 | F119: 116 | G119: =-'Lease Input'!C221 -> 0 | H119: 0 | I119: 0 | AB119: 2027-02-01 | AD119: 2027-02-01 | AF119: 2027-02-01 | AG119: 0 | AH119: =IF(G119=0,0,IF(AH118=0,ROUND(AK118*AG119*$B$28,2),IF(G119>0,0,IF(SUM(G120:$G$603)=0,ROUND(-G119-AG119,2),ROUND(AG119*$B$28,2))))) -> 0 | AI119: =IF(SUM(G120:$G$603)=0,AG119,-G119-AH119) -> 0 | AJ119: 0 | AK119: 33 | AM119: 2027-02-01 | AN119: 0 | AO119: 0 | AP119: 0
E120: 2027-03-01 | F120: 117 | G120: =-'Lease Input'!C222 -> 0 | H120: 0 | I120: 0 | AB120: 2027-03-01 | AD120: 2027-03-01 | AF120: 2027-03-01 | AG120: 0 | AH120: =IF(G120=0,0,IF(AH119=0,ROUND(AK119*AG120*$B$28,2),IF(G120>0,0,IF(SUM(G121:$G$603)=0,ROUND(-G120-AG120,2),ROUND(AG120*$B$28,2))))) -> 0 | AI120: =IF(SUM(G121:$G$603)=0,AG120,-G120-AH120) -> 0 | AJ120: 0 | AK120: 34 | AM120: 2027-03-01 | AN120: 0 | AO120: 0 | AP120: 0
E121: 2027-04-01 | F121: 118 | G121: =-'Lease Input'!C223 -> 0 | H121: 0 | I121: 0 | AB121: 2027-04-01 | AD121: 2027-04-01 | AF121: 2027-04-01 | AG121: 0 | AH121: =IF(G121=0,0,IF(AH120=0,ROUND(AK120*AG121*$B$28,2),IF(G121>0,0,IF(SUM(G122:$G$603)=0,ROUND(-G121-AG121,2),ROUND(AG121*$B$28,2))))) -> 0 | AI121: =IF(SUM(G122:$G$603)=0,AG121,-G121-AH121) -> 0 | AJ121: 0 | AK121: 35 | AM121: 2027-04-01 | AN121: 0 | AO121: 0 | AP121: 0
E122: 2027-05-01 | F122: 119 | G122: =-'Lease Input'!C224 -> 0 | H122: 0 | I122: 0 | AB122: 2027-05-01 | AD122: 2027-05-01 | AF122: 2027-05-01 | AG122: 0 | AH122: =IF(G122=0,0,IF(AH121=0,ROUND(AK121*AG122*$B$28,2),IF(G122>0,0,IF(SUM(G123:$G$603)=0,ROUND(-G122-AG122,2),ROUND(AG122*$B$28,2))))) -> 0 | AI122: =IF(SUM(G123:$G$603)=0,AG122,-G122-AH122) -> 0 | AJ122: 0 | AK122: 36 | AM122: 2027-05-01 | AN122: 0 | AO122: 0 | AP122: 0
E123: 2027-06-01 | F123: 120 | G123: =-'Lease Input'!C225 -> 0 | H123: 0 | I123: 0 | AB123: 2027-06-01 | AD123: 2027-06-01 | AF123: 2027-06-01 | AG123: 0 | AH123: =IF(G123=0,0,IF(AH122=0,ROUND(AK122*AG123*$B$28,2),IF(G123>0,0,IF(SUM(G124:$G$603)=0,ROUND(-G123-AG123,2),ROUND(AG123*$B$28,2))))) -> 0 | AI123: =IF(SUM(G124:$G$603)=0,AG123,-G123-AH123) -> 0 | AJ123: 0 | AK123: 37 | AM123: 2027-06-01 | AN123: 0 | AO123: 0 | AP123: 0
E124: 2027-07-01 | F124: 121 | G124: =-'Lease Input'!C226 -> 0 | H124: 0 | I124: 0 | AB124: 2027-07-01 | AD124: 2027-07-01 | AF124: 2027-07-01 | AG124: 0 | AH124: =IF(G124=0,0,IF(AH123=0,ROUND(AK123*AG124*$B$28,2),IF(G124>0,0,IF(SUM(G125:$G$603)=0,ROUND(-G124-AG124,2),ROUND(AG124*$B$28,2))))) -> 0 | AI124: =IF(SUM(G125:$G$603)=0,AG124,-G124-AH124) -> 0 | AJ124: 0 | AK124: 38 | AM124: 2027-07-01 | AN124: 0 | AO124: 0 | AP124: 0
E125: 2027-08-01 | F125: 122 | G125: =-'Lease Input'!C227 -> 0 | H125: 0 | I125: 0 | AB125: 2027-08-01 | AD125: 2027-08-01 | AF125: 2027-08-01 | AG125: 0 | AH125: =IF(G125=0,0,IF(AH124=0,ROUND(AK124*AG125*$B$28,2),IF(G125>0,0,IF(SUM(G126:$G$603)=0,ROUND(-G125-AG125,2),ROUND(AG125*$B$28,2))))) -> 0 | AI125: =IF(SUM(G126:$G$603)=0,AG125,-G125-AH125) -> 0 | AJ125: 0 | AK125: 39 | AM125: 2027-08-01 | AN125: 0 | AO125: 0 | AP125: 0
E126: 2027-09-01 | F126: 123 | G126: =-'Lease Input'!C228 -> 0 | H126: 0 | I126: 0 | AB126: 2027-09-01 | AD126: 2027-09-01 | AF126: 2027-09-01 | AG126: 0 | AH126: =IF(G126=0,0,IF(AH125=0,ROUND(AK125*AG126*$B$28,2),IF(G126>0,0,IF(SUM(G127:$G$603)=0,ROUND(-G126-AG126,2),ROUND(AG126*$B$28,2))))) -> 0 | AI126: =IF(SUM(G127:$G$603)=0,AG126,-G126-AH126) -> 0 | AJ126: 0 | AK126: 40 | AM126: 2027-09-01 | AN126: 0 | AO126: 0 | AP126: 0
E127: 2027-10-01 | F127: 124 | G127: =-'Lease Input'!C229 -> 0 | H127: 0 | I127: 0 | AB127: 2027-10-01 | AD127: 2027-10-01 | AF127: 2027-10-01 | AG127: 0 | AH127: =IF(G127=0,0,IF(AH126=0,ROUND(AK126*AG127*$B$28,2),IF(G127>0,0,IF(SUM(G128:$G$603)=0,ROUND(-G127-AG127,2),ROUND(AG127*$B$28,2))))) -> 0 | AI127: =IF(SUM(G128:$G$603)=0,AG127,-G127-AH127) -> 0 | AJ127: 0 | AK127: 41 | AM127: 2027-10-01 | AN127: 0 | AO127: 0 | AP127: 0
E128: 2027-11-01 | F128: 125 | G128: =-'Lease Input'!C230 -> 0 | H128: 0 | I128: 0 | AB128: 2027-11-01 | AD128: 2027-11-01 | AF128: 2027-11-01 | AG128: 0 | AH128: =IF(G128=0,0,IF(AH127=0,ROUND(AK127*AG128*$B$28,2),IF(G128>0,0,IF(SUM(G129:$G$603)=0,ROUND(-G128-AG128,2),ROUND(AG128*$B$28,2))))) -> 0 | AI128: =IF(SUM(G129:$G$603)=0,AG128,-G128-AH128) -> 0 | AJ128: 0 | AK128: 42 | AM128: 2027-11-01 | AN128: 0 | AO128: 0 | AP128: 0
E129: 2027-12-01 | F129: 126 | G129: =-'Lease Input'!C231 -> 0 | H129: 0 | I129: 0 | AB129: 2027-12-01 | AD129: 2027-12-01 | AF129: 2027-12-01 | AG129: 0 | AH129: =IF(G129=0,0,IF(AH128=0,ROUND(AK128*AG129*$B$28,2),IF(G129>0,0,IF(SUM(G130:$G$603)=0,ROUND(-G129-AG129,2),ROUND(AG129*$B$28,2))))) -> 0 | AI129: =IF(SUM(G130:$G$603)=0,AG129,-G129-AH129) -> 0 | AJ129: 0 | AK129: 43 | AM129: 2027-12-01 | AN129: 0 | AO129: 0 | AP129: 0
E130: 2028-01-01 | F130: 127 | G130: =-'Lease Input'!C232 -> 0 | H130: 0 | I130: 0 | AB130: 2028-01-01 | AD130: 2028-01-01 | AF130: 2028-01-01 | AG130: 0 | AH130: =IF(G130=0,0,IF(AH129=0,ROUND(AK129*AG130*$B$28,2),IF(G130>0,0,IF(SUM(G131:$G$603)=0,ROUND(-G130-AG130,2),ROUND(AG130*$B$28,2))))) -> 0 | AI130: =IF(SUM(G131:$G$603)=0,AG130,-G130-AH130) -> 0 | AJ130: 0 | AK130: 44 | AM130: 2028-01-01 | AN130: 0 | AO130: 0 | AP130: 0
E131: 2028-02-01 | F131: 128 | G131: =-'Lease Input'!C233 -> 0 | H131: 0 | I131: 0 | AB131: 2028-02-01 | AD131: 2028-02-01 | AF131: 2028-02-01 | AG131: 0 | AH131: =IF(G131=0,0,IF(AH130=0,ROUND(AK130*AG131*$B$28,2),IF(G131>0,0,IF(SUM(G132:$G$603)=0,ROUND(-G131-AG131,2),ROUND(AG131*$B$28,2))))) -> 0 | AI131: =IF(SUM(G132:$G$603)=0,AG131,-G131-AH131) -> 0 | AJ131: 0 | AK131: 45 | AM131: 2028-02-01 | AN131: 0 | AO131: 0 | AP131: 0
E132: 2028-03-01 | F132: 129 | G132: =-'Lease Input'!C234 -> 0 | H132: 0 | I132: 0 | AB132: 2028-03-01 | AD132: 2028-03-01 | AF132: =E132 -> 2028-03-01 | AG132: 0 | AH132: =IF(G132=0,0,IF(AH131=0,ROUND(AK131*AG132*$B$28,2),IF(G132>0,0,IF(SUM(G133:$G$603)=0,ROUND(-G132-AG132,2),ROUND(AG132*$B$28,2))))) -> 0 | AI132: =IF(SUM(G133:$G$603)=0,AG132,-G132-AH132) -> 0 | AJ132: 0 | AK132: 46 | AM132: =E132 -> 2028-03-01 | AN132: 0 | AO132: 0 | AP132: 0
E133: =AD133 -> 2028-04-01 | F133: 130 | G133: =-'Lease Input'!C235 -> 0 | H133: =IF($C$29=1,ROUND(PV($B$28,F133-1,0,G133,$C$29),2),ROUND(PV($B$28,F133,0,G133,$C$29),2)) -> 0 | I133: =-H133-G133 -> 0 | AB133: 2028-04-01 | AD133: 2028-04-01 | AF133: 2028-04-01 | AG133: 0 | AH133: =IF(G133=0,0,IF(AH132=0,ROUND(AK132*AG133*$B$28,2),IF(G133>0,0,IF(SUM(G134:$G$603)=0,ROUND(-G133-AG133,2),ROUND(AG133*$B$28,2))))) -> 0 | AI133: =IF(SUM(G134:$G$603)=0,AG133,-G133-AH133) -> 0 | AJ133: =SUM(AH133:AI133) -> 0 | AK133: 47 | AM133: 2028-04-01 | AN133: =AI133 -> 0 | AO133: =AH133 -> 0 | AP133: =AJ133 -> 0
E134: 2028-05-01 | F134: 131 | G134: =-'Lease Input'!C236 -> 0 | H134: 0 | I134: 0 | AB134: =IF(OR($B$25=1,$B$25=2,$B$25=4,$B$25=6,$B$25=12),IF(DAY($AB$4+1)=1,EOMONTH(AB133,(1/$B$25)*12),IF(AND(MONTH(EDATE(AB133,(1/$B$25)*12))=2,OR(DAY(AB133)=29,DAY(AB133)=30)),DATE(YEAR(EDATE(AB133,(1/$B$25)*12)),MONTH(EDATE(AB133,(1/$B$25)*12)),28),DATE(YEAR(EDATE(AB133,(1/$B$25)*12)),MONTH(EDATE(AB133,(1/$B$25)*12)),DAY($AB$4)))),"Next") -> 2028-05-01 | AD134: =IF(AB134="Next",AC134,AB134) -> 2028-05-01 | AF134: 2028-05-01 | AG134: 0 | AH134: =IF(G134=0,0,IF(AH133=0,ROUND(AK133*AG134*$B$28,2),IF(G134>0,0,IF(SUM(G135:$G$603)=0,ROUND(-G134-AG134,2),ROUND(AG134*$B$28,2))))) -> 0 | AI134: =IF(SUM(G135:$G$603)=0,AG134,-G134-AH134) -> 0 | AJ134: 0 | AK134: =IF(AH134=0,IF(AK133="",2,AK133+1),"") -> 48 | AM134: 2028-05-01 | AN134: 0 | AO134: 0 | AP134: 0
E135: 2028-06-01 | F135: 132 | G135: =-'Lease Input'!C237 -> 0 | H135: 0 | I135: 0 | AB135: 2028-06-01 | AD135: 2028-06-01 | AF135: 2028-06-01 | AG135: =AG134-AI134 -> 0 | AH135: =IF(G135=0,0,IF(AH134=0,ROUND(AK134*AG135*$B$28,2),IF(G135>0,0,IF(SUM(G136:$G$603)=0,ROUND(-G135-AG135,2),ROUND(AG135*$B$28,2))))) -> 0 | AI135: =IF(SUM(G136:$G$603)=0,AG135,-G135-AH135) -> 0 | AJ135: 0 | AK135: 49 | AM135: 2028-06-01 | AN135: 0 | AO135: 0 | AP135: 0
E136: 2028-07-01 | F136: 133 | G136: =-'Lease Input'!C238 -> 0 | H136: 0 | I136: 0 | AB136: 2028-07-01 | AC136: =IF(AB136<>"Next","",IF($B$25=24,IF(DAY(AC135)<=15,IF(DAY(AC135)+15>DAY(EOMONTH(AC135,0)),EOMONTH(AC135,0),AC135+15),IF(AND(MONTH(AC135)=2,DAY(AC135)>15),DATE(YEAR(AC135),MONTH(AC135)+1,DAY(AC133)-15),DATE(YEAR(AC135),MONTH(AC135)+1,DAY(AC135)-15))),AC135+7)) ->  | AD136: 2028-07-01 | AF136: 2028-07-01 | AG136: 0 | AH136: =IF(G136=0,0,IF(AH135=0,ROUND(AK135*AG136*$B$28,2),IF(G136>0,0,IF(SUM(G137:$G$603)=0,ROUND(-G136-AG136,2),ROUND(AG136*$B$28,2))))) -> 0 | AI136: =IF(SUM(G137:$G$603)=0,AG136,-G136-AH136) -> 0 | AJ136: 0 | AK136: 50 | AM136: 2028-07-01 | AN136: 0 | AO136: 0 | AP136: 0
E137: 2028-08-01 | F137: 134 | G137: =-'Lease Input'!C239 -> 0 | H137: 0 | I137: 0 | AB137: 2028-08-01 | AD137: 2028-08-01 | AF137: 2028-08-01 | AG137: 0 | AH137: =IF(G137=0,0,IF(AH136=0,ROUND(AK136*AG137*$B$28,2),IF(G137>0,0,IF(SUM(G138:$G$603)=0,ROUND(-G137-AG137,2),ROUND(AG137*$B$28,2))))) -> 0 | AI137: =IF(SUM(G138:$G$603)=0,AG137,-G137-AH137) -> 0 | AJ137: 0 | AK137: 51 | AM137: 2028-08-01 | AN137: 0 | AO137: 0 | AP137: 0
E138: 2028-09-01 | F138: 135 | G138: =-'Lease Input'!C240 -> 0 | H138: 0 | I138: 0 | AB138: 2028-09-01 | AD138: 2028-09-01 | AF138: 2028-09-01 | AG138: 0 | AH138: =IF(G138=0,0,IF(AH137=0,ROUND(AK137*AG138*$B$28,2),IF(G138>0,0,IF(SUM(G139:$G$603)=0,ROUND(-G138-AG138,2),ROUND(AG138*$B$28,2))))) -> 0 | AI138: =IF(SUM(G139:$G$603)=0,AG138,-G138-AH138) -> 0 | AJ138: 0 | AK138: 52 | AM138: 2028-09-01 | AN138: 0 | AO138: 0 | AP138: 0
E139: 2028-10-01 | F139: 136 | G139: =-'Lease Input'!C241 -> 0 | H139: 0 | I139: 0 | AB139: 2028-10-01 | AD139: 2028-10-01 | AF139: 2028-10-01 | AG139: 0 | AH139: =IF(G139=0,0,IF(AH138=0,ROUND(AK138*AG139*$B$28,2),IF(G139>0,0,IF(SUM(G140:$G$603)=0,ROUND(-G139-AG139,2),ROUND(AG139*$B$28,2))))) -> 0 | AI139: =IF(SUM(G140:$G$603)=0,AG139,-G139-AH139) -> 0 | AJ139: 0 | AK139: 53 | AM139: 2028-10-01 | AN139: 0 | AO139: 0 | AP139: 0
E140: 2028-11-01 | F140: 137 | G140: =-'Lease Input'!C242 -> 0 | H140: 0 | I140: 0 | AB140: 2028-11-01 | AD140: 2028-11-01 | AF140: 2028-11-01 | AG140: 0 | AH140: =IF(G140=0,0,IF(AH139=0,ROUND(AK139*AG140*$B$28,2),IF(G140>0,0,IF(SUM(G141:$G$603)=0,ROUND(-G140-AG140,2),ROUND(AG140*$B$28,2))))) -> 0 | AI140: =IF(SUM(G141:$G$603)=0,AG140,-G140-AH140) -> 0 | AJ140: 0 | AK140: 54 | AM140: 2028-11-01 | AN140: 0 | AO140: 0 | AP140: 0
E141: 2028-12-01 | F141: 138 | G141: =-'Lease Input'!C243 -> 0 | H141: 0 | I141: 0 | AB141: 2028-12-01 | AD141: 2028-12-01 | AF141: 2028-12-01 | AG141: 0 | AH141: =IF(G141=0,0,IF(AH140=0,ROUND(AK140*AG141*$B$28,2),IF(G141>0,0,IF(SUM(G142:$G$603)=0,ROUND(-G141-AG141,2),ROUND(AG141*$B$28,2))))) -> 0 | AI141: =IF(SUM(G142:$G$603)=0,AG141,-G141-AH141) -> 0 | AJ141: 0 | AK141: 55 | AM141: 2028-12-01 | AN141: 0 | AO141: 0 | AP141: 0
E142: 2029-01-01 | F142: 139 | G142: =-'Lease Input'!C244 -> 0 | H142: 0 | I142: 0 | AB142: 2029-01-01 | AD142: 2029-01-01 | AF142: 2029-01-01 | AG142: 0 | AH142: =IF(G142=0,0,IF(AH141=0,ROUND(AK141*AG142*$B$28,2),IF(G142>0,0,IF(SUM(G143:$G$603)=0,ROUND(-G142-AG142,2),ROUND(AG142*$B$28,2))))) -> 0 | AI142: =IF(SUM(G143:$G$603)=0,AG142,-G142-AH142) -> 0 | AJ142: 0 | AK142: 56 | AM142: 2029-01-01 | AN142: 0 | AO142: 0 | AP142: 0
E143: 2029-02-01 | F143: 140 | G143: =-'Lease Input'!C245 -> 0 | H143: 0 | I143: 0 | AB143: 2029-02-01 | AD143: 2029-02-01 | AF143: 2029-02-01 | AG143: 0 | AH143: =IF(G143=0,0,IF(AH142=0,ROUND(AK142*AG143*$B$28,2),IF(G143>0,0,IF(SUM(G144:$G$603)=0,ROUND(-G143-AG143,2),ROUND(AG143*$B$28,2))))) -> 0 | AI143: =IF(SUM(G144:$G$603)=0,AG143,-G143-AH143) -> 0 | AJ143: 0 | AK143: 57 | AM143: 2029-02-01 | AN143: 0 | AO143: 0 | AP143: 0
E144: 2029-03-01 | F144: 141 | G144: =-'Lease Input'!C246 -> 0 | H144: 0 | I144: 0 | AB144: 2029-03-01 | AD144: 2029-03-01 | AF144: 2029-03-01 | AG144: 0 | AH144: =IF(G144=0,0,IF(AH143=0,ROUND(AK143*AG144*$B$28,2),IF(G144>0,0,IF(SUM(G145:$G$603)=0,ROUND(-G144-AG144,2),ROUND(AG144*$B$28,2))))) -> 0 | AI144: =IF(SUM(G145:$G$603)=0,AG144,-G144-AH144) -> 0 | AJ144: 0 | AK144: 58 | AM144: 2029-03-01 | AN144: 0 | AO144: 0 | AP144: 0
E145: 2029-04-01 | F145: 142 | G145: =-'Lease Input'!C247 -> 0 | H145: 0 | I145: 0 | AB145: 2029-04-01 | AD145: 2029-04-01 | AF145: 2029-04-01 | AG145: 0 | AH145: =IF(G145=0,0,IF(AH144=0,ROUND(AK144*AG145*$B$28,2),IF(G145>0,0,IF(SUM(G146:$G$603)=0,ROUND(-G145-AG145,2),ROUND(AG145*$B$28,2))))) -> 0 | AI145: =IF(SUM(G146:$G$603)=0,AG145,-G145-AH145) -> 0 | AJ145: 0 | AK145: 59 | AM145: 2029-04-01 | AN145: 0 | AO145: 0 | AP145: 0
E146: 2029-05-01 | F146: 143 | G146: =-'Lease Input'!C248 -> 0 | H146: 0 | I146: 0 | AB146: 2029-05-01 | AD146: 2029-05-01 | AF146: 2029-05-01 | AG146: 0 | AH146: =IF(G146=0,0,IF(AH145=0,ROUND(AK145*AG146*$B$28,2),IF(G146>0,0,IF(SUM(G147:$G$603)=0,ROUND(-G146-AG146,2),ROUND(AG146*$B$28,2))))) -> 0 | AI146: =IF(SUM(G147:$G$603)=0,AG146,-G146-AH146) -> 0 | AJ146: 0 | AK146: 60 | AM146: 2029-05-01 | AN146: 0 | AO146: 0 | AP146: 0
E147: 2029-06-01 | F147: 144 | G147: =-'Lease Input'!C249 -> 0 | H147: 0 | I147: 0 | AB147: 2029-06-01 | AD147: 2029-06-01 | AF147: 2029-06-01 | AG147: 0 | AH147: =IF(G147=0,0,IF(AH146=0,ROUND(AK146*AG147*$B$28,2),IF(G147>0,0,IF(SUM(G148:$G$603)=0,ROUND(-G147-AG147,2),ROUND(AG147*$B$28,2))))) -> 0 | AI147: =IF(SUM(G148:$G$603)=0,AG147,-G147-AH147) -> 0 | AJ147: 0 | AK147: 61 | AM147: 2029-06-01 | AN147: 0 | AO147: 0 | AP147: 0
E148: 2029-07-01 | F148: 145 | G148: =-'Lease Input'!C250 -> 0 | H148: 0 | I148: 0 | AB148: 2029-07-01 | AD148: 2029-07-01 | AF148: 2029-07-01 | AG148: 0 | AH148: =IF(G148=0,0,IF(AH147=0,ROUND(AK147*AG148*$B$28,2),IF(G148>0,0,IF(SUM(G149:$G$603)=0,ROUND(-G148-AG148,2),ROUND(AG148*$B$28,2))))) -> 0 | AI148: =IF(SUM(G149:$G$603)=0,AG148,-G148-AH148) -> 0 | AJ148: 0 | AK148: 62 | AM148: 2029-07-01 | AN148: 0 | AO148: 0 | AP148: 0
E149: 2029-08-01 | F149: 146 | G149: =-'Lease Input'!C251 -> 0 | H149: 0 | I149: 0 | AB149: 2029-08-01 | AD149: 2029-08-01 | AF149: 2029-08-01 | AG149: 0 | AH149: =IF(G149=0,0,IF(AH148=0,ROUND(AK148*AG149*$B$28,2),IF(G149>0,0,IF(SUM(G150:$G$603)=0,ROUND(-G149-AG149,2),ROUND(AG149*$B$28,2))))) -> 0 | AI149: =IF(SUM(G150:$G$603)=0,AG149,-G149-AH149) -> 0 | AJ149: 0 | AK149: 63 | AM149: 2029-08-01 | AN149: 0 | AO149: 0 | AP149: 0
E150: 2029-09-01 | F150: 147 | G150: =-'Lease Input'!C252 -> 0 | H150: 0 | I150: 0 | AB150: 2029-09-01 | AD150: 2029-09-01 | AF150: 2029-09-01 | AG150: 0 | AH150: =IF(G150=0,0,IF(AH149=0,ROUND(AK149*AG150*$B$28,2),IF(G150>0,0,IF(SUM(G151:$G$603)=0,ROUND(-G150-AG150,2),ROUND(AG150*$B$28,2))))) -> 0 | AI150: =IF(SUM(G151:$G$603)=0,AG150,-G150-AH150) -> 0 | AJ150: 0 | AK150: 64 | AM150: 2029-09-01 | AN150: 0 | AO150: 0 | AP150: 0
E151: 2029-10-01 | F151: 148 | G151: =-'Lease Input'!C253 -> 0 | H151: 0 | I151: 0 | AB151: 2029-10-01 | AD151: 2029-10-01 | AF151: 2029-10-01 | AG151: 0 | AH151: =IF(G151=0,0,IF(AH150=0,ROUND(AK150*AG151*$B$28,2),IF(G151>0,0,IF(SUM(G152:$G$603)=0,ROUND(-G151-AG151,2),ROUND(AG151*$B$28,2))))) -> 0 | AI151: =IF(SUM(G152:$G$603)=0,AG151,-G151-AH151) -> 0 | AJ151: 0 | AK151: 65 | AM151: 2029-10-01 | AN151: 0 | AO151: 0 | AP151: 0
E152: 2029-11-01 | F152: 149 | G152: =-'Lease Input'!C254 -> 0 | H152: 0 | I152: 0 | AB152: 2029-11-01 | AD152: 2029-11-01 | AF152: 2029-11-01 | AG152: 0 | AH152: =IF(G152=0,0,IF(AH151=0,ROUND(AK151*AG152*$B$28,2),IF(G152>0,0,IF(SUM(G153:$G$603)=0,ROUND(-G152-AG152,2),ROUND(AG152*$B$28,2))))) -> 0 | AI152: =IF(SUM(G153:$G$603)=0,AG152,-G152-AH152) -> 0 | AJ152: 0 | AK152: 66 | AM152: 2029-11-01 | AN152: 0 | AO152: 0 | AP152: 0
E153: 2029-12-01 | F153: 150 | G153: =-'Lease Input'!C255 -> 0 | H153: 0 | I153: 0 | AB153: 2029-12-01 | AD153: 2029-12-01 | AF153: 2029-12-01 | AG153: 0 | AH153: =IF(G153=0,0,IF(AH152=0,ROUND(AK152*AG153*$B$28,2),IF(G153>0,0,IF(SUM(G154:$G$603)=0,ROUND(-G153-AG153,2),ROUND(AG153*$B$28,2))))) -> 0 | AI153: =IF(SUM(G154:$G$603)=0,AG153,-G153-AH153) -> 0 | AJ153: 0 | AK153: 67 | AM153: 2029-12-01 | AN153: 0 | AO153: 0 | AP153: 0
E154: 2030-01-01 | F154: 151 | G154: =-'Lease Input'!C256 -> 0 | H154: 0 | I154: 0 | AB154: 2030-01-01 | AD154: 2030-01-01 | AF154: 2030-01-01 | AG154: 0 | AH154: =IF(G154=0,0,IF(AH153=0,ROUND(AK153*AG154*$B$28,2),IF(G154>0,0,IF(SUM(G155:$G$603)=0,ROUND(-G154-AG154,2),ROUND(AG154*$B$28,2))))) -> 0 | AI154: =IF(SUM(G155:$G$603)=0,AG154,-G154-AH154) -> 0 | AJ154: 0 | AK154: 68 | AM154: 2030-01-01 | AN154: 0 | AO154: 0 | AP154: 0
E155: 2030-02-01 | F155: 152 | G155: =-'Lease Input'!C257 -> 0 | H155: 0 | I155: 0 | AB155: 2030-02-01 | AD155: 2030-02-01 | AF155: 2030-02-01 | AG155: 0 | AH155: =IF(G155=0,0,IF(AH154=0,ROUND(AK154*AG155*$B$28,2),IF(G155>0,0,IF(SUM(G156:$G$603)=0,ROUND(-G155-AG155,2),ROUND(AG155*$B$28,2))))) -> 0 | AI155: =IF(SUM(G156:$G$603)=0,AG155,-G155-AH155) -> 0 | AJ155: 0 | AK155: 69 | AM155: 2030-02-01 | AN155: 0 | AO155: 0 | AP155: 0
E156: 2030-03-01 | F156: 153 | G156: =-'Lease Input'!C258 -> 0 | H156: 0 | I156: 0 | AB156: 2030-03-01 | AD156: 2030-03-01 | AF156: 2030-03-01 | AG156: 0 | AH156: =IF(G156=0,0,IF(AH155=0,ROUND(AK155*AG156*$B$28,2),IF(G156>0,0,IF(SUM(G157:$G$603)=0,ROUND(-G156-AG156,2),ROUND(AG156*$B$28,2))))) -> 0 | AI156: =IF(SUM(G157:$G$603)=0,AG156,-G156-AH156) -> 0 | AJ156: 0 | AK156: 70 | AM156: 2030-03-01 | AN156: 0 | AO156: 0 | AP156: 0
E157: 2030-04-01 | F157: 154 | G157: =-'Lease Input'!C259 -> 0 | H157: 0 | I157: 0 | AB157: 2030-04-01 | AD157: 2030-04-01 | AF157: 2030-04-01 | AG157: 0 | AH157: =IF(G157=0,0,IF(AH156=0,ROUND(AK156*AG157*$B$28,2),IF(G157>0,0,IF(SUM(G158:$G$603)=0,ROUND(-G157-AG157,2),ROUND(AG157*$B$28,2))))) -> 0 | AI157: =IF(SUM(G158:$G$603)=0,AG157,-G157-AH157) -> 0 | AJ157: 0 | AK157: 71 | AM157: 2030-04-01 | AN157: 0 | AO157: 0 | AP157: 0
E158: 2030-05-01 | F158: 155 | G158: =-'Lease Input'!C260 -> 0 | H158: 0 | I158: 0 | AB158: 2030-05-01 | AD158: 2030-05-01 | AF158: 2030-05-01 | AG158: 0 | AH158: =IF(G158=0,0,IF(AH157=0,ROUND(AK157*AG158*$B$28,2),IF(G158>0,0,IF(SUM(G159:$G$603)=0,ROUND(-G158-AG158,2),ROUND(AG158*$B$28,2))))) -> 0 | AI158: =IF(SUM(G159:$G$603)=0,AG158,-G158-AH158) -> 0 | AJ158: 0 | AK158: 72 | AM158: 2030-05-01 | AN158: 0 | AO158: 0 | AP158: 0
E159: 2030-06-01 | F159: 156 | G159: =-'Lease Input'!C261 -> 0 | H159: 0 | I159: 0 | AB159: 2030-06-01 | AD159: 2030-06-01 | AF159: 2030-06-01 | AG159: 0 | AH159: =IF(G159=0,0,IF(AH158=0,ROUND(AK158*AG159*$B$28,2),IF(G159>0,0,IF(SUM(G160:$G$603)=0,ROUND(-G159-AG159,2),ROUND(AG159*$B$28,2))))) -> 0 | AI159: =IF(SUM(G160:$G$603)=0,AG159,-G159-AH159) -> 0 | AJ159: 0 | AK159: 73 | AM159: 2030-06-01 | AN159: 0 | AO159: 0 | AP159: 0
E160: 2030-07-01 | F160: 157 | G160: =-'Lease Input'!C262 -> 0 | H160: 0 | I160: 0 | AB160: 2030-07-01 | AD160: 2030-07-01 | AF160: 2030-07-01 | AG160: 0 | AH160: =IF(G160=0,0,IF(AH159=0,ROUND(AK159*AG160*$B$28,2),IF(G160>0,0,IF(SUM(G161:$G$603)=0,ROUND(-G160-AG160,2),ROUND(AG160*$B$28,2))))) -> 0 | AI160: =IF(SUM(G161:$G$603)=0,AG160,-G160-AH160) -> 0 | AJ160: 0 | AK160: 74 | AM160: 2030-07-01 | AN160: 0 | AO160: 0 | AP160: 0
E161: 2030-08-01 | F161: 158 | G161: =-'Lease Input'!C263 -> 0 | H161: 0 | I161: 0 | AB161: 2030-08-01 | AD161: 2030-08-01 | AF161: 2030-08-01 | AG161: 0 | AH161: =IF(G161=0,0,IF(AH160=0,ROUND(AK160*AG161*$B$28,2),IF(G161>0,0,IF(SUM(G162:$G$603)=0,ROUND(-G161-AG161,2),ROUND(AG161*$B$28,2))))) -> 0 | AI161: =IF(SUM(G162:$G$603)=0,AG161,-G161-AH161) -> 0 | AJ161: 0 | AK161: 75 | AM161: 2030-08-01 | AN161: 0 | AO161: 0 | AP161: 0
E162: 2030-09-01 | F162: 159 | G162: =-'Lease Input'!C264 -> 0 | H162: 0 | I162: 0 | AB162: 2030-09-01 | AD162: 2030-09-01 | AF162: 2030-09-01 | AG162: 0 | AH162: =IF(G162=0,0,IF(AH161=0,ROUND(AK161*AG162*$B$28,2),IF(G162>0,0,IF(SUM(G163:$G$603)=0,ROUND(-G162-AG162,2),ROUND(AG162*$B$28,2))))) -> 0 | AI162: =IF(SUM(G163:$G$603)=0,AG162,-G162-AH162) -> 0 | AJ162: 0 | AK162: 76 | AM162: 2030-09-01 | AN162: 0 | AO162: 0 | AP162: 0
E163: 2030-10-01 | F163: 160 | G163: =-'Lease Input'!C265 -> 0 | H163: 0 | I163: 0 | AB163: 2030-10-01 | AD163: 2030-10-01 | AF163: 2030-10-01 | AG163: 0 | AH163: =IF(G163=0,0,IF(AH162=0,ROUND(AK162*AG163*$B$28,2),IF(G163>0,0,IF(SUM(G164:$G$603)=0,ROUND(-G163-AG163,2),ROUND(AG163*$B$28,2))))) -> 0 | AI163: =IF(SUM(G164:$G$603)=0,AG163,-G163-AH163) -> 0 | AJ163: 0 | AK163: 77 | AM163: 2030-10-01 | AN163: 0 | AO163: 0 | AP163: 0
E164: 2030-11-01 | F164: 161 | G164: =-'Lease Input'!C266 -> 0 | H164: 0 | I164: 0 | AB164: 2030-11-01 | AD164: 2030-11-01 | AF164: 2030-11-01 | AG164: 0 | AH164: =IF(G164=0,0,IF(AH163=0,ROUND(AK163*AG164*$B$28,2),IF(G164>0,0,IF(SUM(G165:$G$603)=0,ROUND(-G164-AG164,2),ROUND(AG164*$B$28,2))))) -> 0 | AI164: =IF(SUM(G165:$G$603)=0,AG164,-G164-AH164) -> 0 | AJ164: 0 | AK164: 78 | AM164: 2030-11-01 | AN164: 0 | AO164: 0 | AP164: 0
E165: 2030-12-01 | F165: 162 | G165: =-'Lease Input'!C267 -> 0 | H165: 0 | I165: 0 | AB165: 2030-12-01 | AD165: 2030-12-01 | AF165: 2030-12-01 | AG165: 0 | AH165: =IF(G165=0,0,IF(AH164=0,ROUND(AK164*AG165*$B$28,2),IF(G165>0,0,IF(SUM(G166:$G$603)=0,ROUND(-G165-AG165,2),ROUND(AG165*$B$28,2))))) -> 0 | AI165: =IF(SUM(G166:$G$603)=0,AG165,-G165-AH165) -> 0 | AJ165: 0 | AK165: 79 | AM165: 2030-12-01 | AN165: 0 | AO165: 0 | AP165: 0
E166: 2031-01-01 | F166: 163 | G166: =-'Lease Input'!C268 -> 0 | H166: 0 | I166: 0 | AB166: 2031-01-01 | AD166: 2031-01-01 | AF166: 2031-01-01 | AG166: 0 | AH166: =IF(G166=0,0,IF(AH165=0,ROUND(AK165*AG166*$B$28,2),IF(G166>0,0,IF(SUM(G167:$G$603)=0,ROUND(-G166-AG166,2),ROUND(AG166*$B$28,2))))) -> 0 | AI166: =IF(SUM(G167:$G$603)=0,AG166,-G166-AH166) -> 0 | AJ166: 0 | AK166: 80 | AM166: 2031-01-01 | AN166: 0 | AO166: 0 | AP166: 0
E167: 2031-02-01 | F167: 164 | G167: =-'Lease Input'!C269 -> 0 | H167: 0 | I167: 0 | AB167: 2031-02-01 | AD167: 2031-02-01 | AF167: 2031-02-01 | AG167: 0 | AH167: =IF(G167=0,0,IF(AH166=0,ROUND(AK166*AG167*$B$28,2),IF(G167>0,0,IF(SUM(G168:$G$603)=0,ROUND(-G167-AG167,2),ROUND(AG167*$B$28,2))))) -> 0 | AI167: =IF(SUM(G168:$G$603)=0,AG167,-G167-AH167) -> 0 | AJ167: 0 | AK167: 81 | AM167: 2031-02-01 | AN167: 0 | AO167: 0 | AP167: 0
E168: 2031-03-01 | F168: 165 | G168: =-'Lease Input'!C270 -> 0 | H168: 0 | I168: 0 | AB168: 2031-03-01 | AD168: 2031-03-01 | AF168: 2031-03-01 | AG168: 0 | AH168: =IF(G168=0,0,IF(AH167=0,ROUND(AK167*AG168*$B$28,2),IF(G168>0,0,IF(SUM(G169:$G$603)=0,ROUND(-G168-AG168,2),ROUND(AG168*$B$28,2))))) -> 0 | AI168: =IF(SUM(G169:$G$603)=0,AG168,-G168-AH168) -> 0 | AJ168: 0 | AK168: 82 | AM168: 2031-03-01 | AN168: 0 | AO168: 0 | AP168: 0
E169: 2031-04-01 | F169: 166 | G169: =-'Lease Input'!C271 -> 0 | H169: 0 | I169: 0 | AB169: 2031-04-01 | AD169: 2031-04-01 | AF169: 2031-04-01 | AG169: 0 | AH169: =IF(G169=0,0,IF(AH168=0,ROUND(AK168*AG169*$B$28,2),IF(G169>0,0,IF(SUM(G170:$G$603)=0,ROUND(-G169-AG169,2),ROUND(AG169*$B$28,2))))) -> 0 | AI169: =IF(SUM(G170:$G$603)=0,AG169,-G169-AH169) -> 0 | AJ169: 0 | AK169: 83 | AM169: 2031-04-01 | AN169: 0 | AO169: 0 | AP169: 0
E170: 2031-05-01 | F170: 167 | G170: =-'Lease Input'!C272 -> 0 | H170: 0 | I170: 0 | AB170: 2031-05-01 | AD170: 2031-05-01 | AF170: 2031-05-01 | AG170: 0 | AH170: =IF(G170=0,0,IF(AH169=0,ROUND(AK169*AG170*$B$28,2),IF(G170>0,0,IF(SUM(G171:$G$603)=0,ROUND(-G170-AG170,2),ROUND(AG170*$B$28,2))))) -> 0 | AI170: =IF(SUM(G171:$G$603)=0,AG170,-G170-AH170) -> 0 | AJ170: 0 | AK170: 84 | AM170: 2031-05-01 | AN170: 0 | AO170: 0 | AP170: 0
E171: 2031-06-01 | F171: 168 | G171: =-'Lease Input'!C273 -> 0 | H171: 0 | I171: 0 | AB171: 2031-06-01 | AD171: 2031-06-01 | AF171: 2031-06-01 | AG171: 0 | AH171: =IF(G171=0,0,IF(AH170=0,ROUND(AK170*AG171*$B$28,2),IF(G171>0,0,IF(SUM(G172:$G$603)=0,ROUND(-G171-AG171,2),ROUND(AG171*$B$28,2))))) -> 0 | AI171: =IF(SUM(G172:$G$603)=0,AG171,-G171-AH171) -> 0 | AJ171: 0 | AK171: 85 | AM171: 2031-06-01 | AN171: 0 | AO171: 0 | AP171: 0
E172: 2031-07-01 | F172: 169 | G172: =-'Lease Input'!C274 -> 0 | H172: 0 | I172: 0 | AB172: 2031-07-01 | AD172: 2031-07-01 | AF172: 2031-07-01 | AG172: 0 | AH172: =IF(G172=0,0,IF(AH171=0,ROUND(AK171*AG172*$B$28,2),IF(G172>0,0,IF(SUM(G173:$G$603)=0,ROUND(-G172-AG172,2),ROUND(AG172*$B$28,2))))) -> 0 | AI172: =IF(SUM(G173:$G$603)=0,AG172,-G172-AH172) -> 0 | AJ172: 0 | AK172: 86 | AM172: 2031-07-01 | AN172: 0 | AO172: 0 | AP172: 0
E173: 2031-08-01 | F173: 170 | G173: =-'Lease Input'!C275 -> 0 | H173: 0 | I173: 0 | AB173: 2031-08-01 | AD173: 2031-08-01 | AF173: 2031-08-01 | AG173: 0 | AH173: =IF(G173=0,0,IF(AH172=0,ROUND(AK172*AG173*$B$28,2),IF(G173>0,0,IF(SUM(G174:$G$603)=0,ROUND(-G173-AG173,2),ROUND(AG173*$B$28,2))))) -> 0 | AI173: =IF(SUM(G174:$G$603)=0,AG173,-G173-AH173) -> 0 | AJ173: 0 | AK173: 87 | AM173: 2031-08-01 | AN173: 0 | AO173: 0 | AP173: 0
E174: 2031-09-01 | F174: 171 | G174: =-'Lease Input'!C276 -> 0 | H174: 0 | I174: 0 | AB174: 2031-09-01 | AD174: 2031-09-01 | AF174: 2031-09-01 | AG174: 0 | AH174: =IF(G174=0,0,IF(AH173=0,ROUND(AK173*AG174*$B$28,2),IF(G174>0,0,IF(SUM(G175:$G$603)=0,ROUND(-G174-AG174,2),ROUND(AG174*$B$28,2))))) -> 0 | AI174: =IF(SUM(G175:$G$603)=0,AG174,-G174-AH174) -> 0 | AJ174: 0 | AK174: 88 | AM174: 2031-09-01 | AN174: 0 | AO174: 0 | AP174: 0
E175: 2031-10-01 | F175: 172 | G175: =-'Lease Input'!C277 -> 0 | H175: 0 | I175: 0 | AB175: 2031-10-01 | AD175: 2031-10-01 | AF175: 2031-10-01 | AG175: 0 | AH175: =IF(G175=0,0,IF(AH174=0,ROUND(AK174*AG175*$B$28,2),IF(G175>0,0,IF(SUM(G176:$G$603)=0,ROUND(-G175-AG175,2),ROUND(AG175*$B$28,2))))) -> 0 | AI175: =IF(SUM(G176:$G$603)=0,AG175,-G175-AH175) -> 0 | AJ175: 0 | AK175: 89 | AM175: 2031-10-01 | AN175: 0 | AO175: 0 | AP175: 0
E176: 2031-11-01 | F176: 173 | G176: =-'Lease Input'!C278 -> 0 | H176: 0 | I176: 0 | AB176: 2031-11-01 | AD176: 2031-11-01 | AF176: 2031-11-01 | AG176: 0 | AH176: =IF(G176=0,0,IF(AH175=0,ROUND(AK175*AG176*$B$28,2),IF(G176>0,0,IF(SUM(G177:$G$603)=0,ROUND(-G176-AG176,2),ROUND(AG176*$B$28,2))))) -> 0 | AI176: =IF(SUM(G177:$G$603)=0,AG176,-G176-AH176) -> 0 | AJ176: 0 | AK176: 90 | AM176: 2031-11-01 | AN176: 0 | AO176: 0 | AP176: 0
E177: 2031-12-01 | F177: 174 | G177: =-'Lease Input'!C279 -> 0 | H177: 0 | I177: 0 | AB177: 2031-12-01 | AD177: 2031-12-01 | AF177: 2031-12-01 | AG177: 0 | AH177: =IF(G177=0,0,IF(AH176=0,ROUND(AK176*AG177*$B$28,2),IF(G177>0,0,IF(SUM(G178:$G$603)=0,ROUND(-G177-AG177,2),ROUND(AG177*$B$28,2))))) -> 0 | AI177: =IF(SUM(G178:$G$603)=0,AG177,-G177-AH177) -> 0 | AJ177: 0 | AK177: 91 | AM177: 2031-12-01 | AN177: 0 | AO177: 0 | AP177: 0
E178: 2032-01-01 | F178: 175 | G178: =-'Lease Input'!C280 -> 0 | H178: 0 | I178: 0 | AB178: 2032-01-01 | AD178: 2032-01-01 | AF178: 2032-01-01 | AG178: 0 | AH178: =IF(G178=0,0,IF(AH177=0,ROUND(AK177*AG178*$B$28,2),IF(G178>0,0,IF(SUM(G179:$G$603)=0,ROUND(-G178-AG178,2),ROUND(AG178*$B$28,2))))) -> 0 | AI178: =IF(SUM(G179:$G$603)=0,AG178,-G178-AH178) -> 0 | AJ178: 0 | AK178: 92 | AM178: 2032-01-01 | AN178: 0 | AO178: 0 | AP178: 0
E179: 2032-02-01 | F179: 176 | G179: =-'Lease Input'!C281 -> 0 | H179: 0 | I179: 0 | AB179: 2032-02-01 | AD179: 2032-02-01 | AF179: 2032-02-01 | AG179: 0 | AH179: =IF(G179=0,0,IF(AH178=0,ROUND(AK178*AG179*$B$28,2),IF(G179>0,0,IF(SUM(G180:$G$603)=0,ROUND(-G179-AG179,2),ROUND(AG179*$B$28,2))))) -> 0 | AI179: =IF(SUM(G180:$G$603)=0,AG179,-G179-AH179) -> 0 | AJ179: 0 | AK179: 93 | AM179: 2032-02-01 | AN179: 0 | AO179: 0 | AP179: 0
E180: 2032-03-01 | F180: 177 | G180: =-'Lease Input'!C282 -> 0 | H180: 0 | I180: 0 | AB180: 2032-03-01 | AD180: 2032-03-01 | AF180: 2032-03-01 | AG180: 0 | AH180: =IF(G180=0,0,IF(AH179=0,ROUND(AK179*AG180*$B$28,2),IF(G180>0,0,IF(SUM(G181:$G$603)=0,ROUND(-G180-AG180,2),ROUND(AG180*$B$28,2))))) -> 0 | AI180: =IF(SUM(G181:$G$603)=0,AG180,-G180-AH180) -> 0 | AJ180: 0 | AK180: 94 | AM180: 2032-03-01 | AN180: 0 | AO180: 0 | AP180: 0
E181: 2032-04-01 | F181: 178 | G181: =-'Lease Input'!C283 -> 0 | H181: 0 | I181: 0 | AB181: 2032-04-01 | AD181: 2032-04-01 | AF181: 2032-04-01 | AG181: 0 | AH181: =IF(G181=0,0,IF(AH180=0,ROUND(AK180*AG181*$B$28,2),IF(G181>0,0,IF(SUM(G182:$G$603)=0,ROUND(-G181-AG181,2),ROUND(AG181*$B$28,2))))) -> 0 | AI181: =IF(SUM(G182:$G$603)=0,AG181,-G181-AH181) -> 0 | AJ181: 0 | AK181: 95 | AM181: 2032-04-01 | AN181: 0 | AO181: 0 | AP181: 0
E182: 2032-05-01 | F182: 179 | G182: =-'Lease Input'!C284 -> 0 | H182: 0 | I182: 0 | AB182: 2032-05-01 | AD182: 2032-05-01 | AF182: 2032-05-01 | AG182: 0 | AH182: =IF(G182=0,0,IF(AH181=0,ROUND(AK181*AG182*$B$28,2),IF(G182>0,0,IF(SUM(G183:$G$603)=0,ROUND(-G182-AG182,2),ROUND(AG182*$B$28,2))))) -> 0 | AI182: =IF(SUM(G183:$G$603)=0,AG182,-G182-AH182) -> 0 | AJ182: 0 | AK182: 96 | AM182: 2032-05-01 | AN182: 0 | AO182: 0 | AP182: 0
E183: 2032-06-01 | F183: 180 | G183: =-'Lease Input'!C285 -> 0 | H183: 0 | I183: 0 | AB183: 2032-06-01 | AD183: 2032-06-01 | AF183: 2032-06-01 | AG183: 0 | AH183: =IF(G183=0,0,IF(AH182=0,ROUND(AK182*AG183*$B$28,2),IF(G183>0,0,IF(SUM(G184:$G$603)=0,ROUND(-G183-AG183,2),ROUND(AG183*$B$28,2))))) -> 0 | AI183: =IF(SUM(G184:$G$603)=0,AG183,-G183-AH183) -> 0 | AJ183: 0 | AK183: 97 | AM183: 2032-06-01 | AN183: 0 | AO183: 0 | AP183: 0
E184: 2032-07-01 | F184: 181 | G184: =-'Lease Input'!C286 -> 0 | H184: 0 | I184: 0 | AB184: 2032-07-01 | AD184: 2032-07-01 | AF184: 2032-07-01 | AG184: 0 | AH184: =IF(G184=0,0,IF(AH183=0,ROUND(AK183*AG184*$B$28,2),IF(G184>0,0,IF(SUM(G185:$G$603)=0,ROUND(-G184-AG184,2),ROUND(AG184*$B$28,2))))) -> 0 | AI184: =IF(SUM(G185:$G$603)=0,AG184,-G184-AH184) -> 0 | AJ184: 0 | AK184: 98 | AM184: 2032-07-01 | AN184: 0 | AO184: 0 | AP184: 0
E185: 2032-08-01 | F185: 182 | G185: =-'Lease Input'!C287 -> 0 | H185: 0 | I185: 0 | AB185: 2032-08-01 | AD185: 2032-08-01 | AF185: 2032-08-01 | AG185: 0 | AH185: =IF(G185=0,0,IF(AH184=0,ROUND(AK184*AG185*$B$28,2),IF(G185>0,0,IF(SUM(G186:$G$603)=0,ROUND(-G185-AG185,2),ROUND(AG185*$B$28,2))))) -> 0 | AI185: =IF(SUM(G186:$G$603)=0,AG185,-G185-AH185) -> 0 | AJ185: 0 | AK185: 99 | AM185: 2032-08-01 | AN185: 0 | AO185: 0 | AP185: 0
E186: 2032-09-01 | F186: 183 | G186: =-'Lease Input'!C288 -> 0 | H186: 0 | I186: 0 | AB186: 2032-09-01 | AD186: 2032-09-01 | AF186: 2032-09-01 | AG186: 0 | AH186: =IF(G186=0,0,IF(AH185=0,ROUND(AK185*AG186*$B$28,2),IF(G186>0,0,IF(SUM(G187:$G$603)=0,ROUND(-G186-AG186,2),ROUND(AG186*$B$28,2))))) -> 0 | AI186: =IF(SUM(G187:$G$603)=0,AG186,-G186-AH186) -> 0 | AJ186: 0 | AK186: 100 | AM186: 2032-09-01 | AN186: 0 | AO186: 0 | AP186: 0
E187: 2032-10-01 | F187: 184 | G187: =-'Lease Input'!C289 -> 0 | H187: 0 | I187: 0 | AB187: 2032-10-01 | AD187: 2032-10-01 | AF187: 2032-10-01 | AG187: 0 | AH187: =IF(G187=0,0,IF(AH186=0,ROUND(AK186*AG187*$B$28,2),IF(G187>0,0,IF(SUM(G188:$G$603)=0,ROUND(-G187-AG187,2),ROUND(AG187*$B$28,2))))) -> 0 | AI187: =IF(SUM(G188:$G$603)=0,AG187,-G187-AH187) -> 0 | AJ187: 0 | AK187: 101 | AM187: 2032-10-01 | AN187: 0 | AO187: 0 | AP187: 0
E188: 2032-11-01 | F188: 185 | G188: =-'Lease Input'!C290 -> 0 | H188: 0 | I188: 0 | AB188: 2032-11-01 | AD188: 2032-11-01 | AF188: 2032-11-01 | AG188: 0 | AH188: =IF(G188=0,0,IF(AH187=0,ROUND(AK187*AG188*$B$28,2),IF(G188>0,0,IF(SUM(G189:$G$603)=0,ROUND(-G188-AG188,2),ROUND(AG188*$B$28,2))))) -> 0 | AI188: =IF(SUM(G189:$G$603)=0,AG188,-G188-AH188) -> 0 | AJ188: 0 | AK188: 102 | AM188: 2032-11-01 | AN188: 0 | AO188: 0 | AP188: 0
E189: 2032-12-01 | F189: 186 | G189: =-'Lease Input'!C291 -> 0 | H189: 0 | I189: 0 | AB189: 2032-12-01 | AD189: 2032-12-01 | AF189: 2032-12-01 | AG189: 0 | AH189: =IF(G189=0,0,IF(AH188=0,ROUND(AK188*AG189*$B$28,2),IF(G189>0,0,IF(SUM(G190:$G$603)=0,ROUND(-G189-AG189,2),ROUND(AG189*$B$28,2))))) -> 0 | AI189: =IF(SUM(G190:$G$603)=0,AG189,-G189-AH189) -> 0 | AJ189: 0 | AK189: 103 | AM189: 2032-12-01 | AN189: 0 | AO189: 0 | AP189: 0
E190: 2033-01-01 | F190: 187 | G190: =-'Lease Input'!C292 -> 0 | H190: 0 | I190: 0 | AB190: 2033-01-01 | AD190: 2033-01-01 | AF190: 2033-01-01 | AG190: 0 | AH190: =IF(G190=0,0,IF(AH189=0,ROUND(AK189*AG190*$B$28,2),IF(G190>0,0,IF(SUM(G191:$G$603)=0,ROUND(-G190-AG190,2),ROUND(AG190*$B$28,2))))) -> 0 | AI190: =IF(SUM(G191:$G$603)=0,AG190,-G190-AH190) -> 0 | AJ190: 0 | AK190: 104 | AM190: 2033-01-01 | AN190: 0 | AO190: 0 | AP190: 0
E191: 2033-02-01 | F191: 188 | G191: =-'Lease Input'!C293 -> 0 | H191: 0 | I191: 0 | AB191: 2033-02-01 | AD191: 2033-02-01 | AF191: 2033-02-01 | AG191: 0 | AH191: =IF(G191=0,0,IF(AH190=0,ROUND(AK190*AG191*$B$28,2),IF(G191>0,0,IF(SUM(G192:$G$603)=0,ROUND(-G191-AG191,2),ROUND(AG191*$B$28,2))))) -> 0 | AI191: =IF(SUM(G192:$G$603)=0,AG191,-G191-AH191) -> 0 | AJ191: 0 | AK191: 105 | AM191: 2033-02-01 | AN191: 0 | AO191: 0 | AP191: 0
E192: 2033-03-01 | F192: 189 | G192: =-'Lease Input'!C294 -> 0 | H192: 0 | I192: 0 | AB192: 2033-03-01 | AD192: 2033-03-01 | AF192: 2033-03-01 | AG192: 0 | AH192: =IF(G192=0,0,IF(AH191=0,ROUND(AK191*AG192*$B$28,2),IF(G192>0,0,IF(SUM(G193:$G$603)=0,ROUND(-G192-AG192,2),ROUND(AG192*$B$28,2))))) -> 0 | AI192: =IF(SUM(G193:$G$603)=0,AG192,-G192-AH192) -> 0 | AJ192: 0 | AK192: 106 | AM192: 2033-03-01 | AN192: 0 | AO192: 0 | AP192: 0
E193: 2033-04-01 | F193: 190 | G193: =-'Lease Input'!C295 -> 0 | H193: 0 | I193: 0 | AB193: 2033-04-01 | AD193: 2033-04-01 | AF193: 2033-04-01 | AG193: 0 | AH193: =IF(G193=0,0,IF(AH192=0,ROUND(AK192*AG193*$B$28,2),IF(G193>0,0,IF(SUM(G194:$G$603)=0,ROUND(-G193-AG193,2),ROUND(AG193*$B$28,2))))) -> 0 | AI193: =IF(SUM(G194:$G$603)=0,AG193,-G193-AH193) -> 0 | AJ193: 0 | AK193: 107 | AM193: 2033-04-01 | AN193: 0 | AO193: 0 | AP193: 0
E194: 2033-05-01 | F194: 191 | G194: =-'Lease Input'!C296 -> 0 | H194: 0 | I194: 0 | AB194: 2033-05-01 | AD194: 2033-05-01 | AF194: 2033-05-01 | AG194: 0 | AH194: =IF(G194=0,0,IF(AH193=0,ROUND(AK193*AG194*$B$28,2),IF(G194>0,0,IF(SUM(G195:$G$603)=0,ROUND(-G194-AG194,2),ROUND(AG194*$B$28,2))))) -> 0 | AI194: =IF(SUM(G195:$G$603)=0,AG194,-G194-AH194) -> 0 | AJ194: 0 | AK194: 108 | AM194: 2033-05-01 | AN194: 0 | AO194: 0 | AP194: 0
E195: 2033-06-01 | F195: 192 | G195: =-'Lease Input'!C297 -> 0 | H195: 0 | I195: 0 | AB195: 2033-06-01 | AD195: 2033-06-01 | AF195: 2033-06-01 | AG195: 0 | AH195: =IF(G195=0,0,IF(AH194=0,ROUND(AK194*AG195*$B$28,2),IF(G195>0,0,IF(SUM(G196:$G$603)=0,ROUND(-G195-AG195,2),ROUND(AG195*$B$28,2))))) -> 0 | AI195: =IF(SUM(G196:$G$603)=0,AG195,-G195-AH195) -> 0 | AJ195: 0 | AK195: 109 | AM195: 2033-06-01 | AN195: 0 | AO195: 0 | AP195: 0
E196: 2033-07-01 | F196: 193 | G196: =-'Lease Input'!C298 -> 0 | H196: 0 | I196: 0 | AB196: 2033-07-01 | AD196: 2033-07-01 | AF196: =E196 -> 2033-07-01 | AG196: 0 | AH196: =IF(G196=0,0,IF(AH195=0,ROUND(AK195*AG196*$B$28,2),IF(G196>0,0,IF(SUM(G197:$G$603)=0,ROUND(-G196-AG196,2),ROUND(AG196*$B$28,2))))) -> 0 | AI196: =IF(SUM(G197:$G$603)=0,AG196,-G196-AH196) -> 0 | AJ196: 0 | AK196: 110 | AM196: =E196 -> 2033-07-01 | AN196: 0 | AO196: 0 | AP196: 0
E197: =AD197 -> 2033-08-01 | F197: 194 | G197: =-'Lease Input'!C299 -> 0 | H197: =IF($C$29=1,ROUND(PV($B$28,F197-1,0,G197,$C$29),2),ROUND(PV($B$28,F197,0,G197,$C$29),2)) -> 0 | I197: =-H197-G197 -> 0 | AB197: 2033-08-01 | AD197: 2033-08-01 | AF197: 2033-08-01 | AG197: 0 | AH197: =IF(G197=0,0,IF(AH196=0,ROUND(AK196*AG197*$B$28,2),IF(G197>0,0,IF(SUM(G198:$G$603)=0,ROUND(-G197-AG197,2),ROUND(AG197*$B$28,2))))) -> 0 | AI197: =IF(SUM(G198:$G$603)=0,AG197,-G197-AH197) -> 0 | AJ197: =SUM(AH197:AI197) -> 0 | AK197: 111 | AM197: 2033-08-01 | AN197: =AI197 -> 0 | AO197: =AH197 -> 0 | AP197: =AJ197 -> 0
E198: 2033-09-01 | F198: 195 | G198: =-'Lease Input'!C300 -> 0 | H198: 0 | I198: 0 | AB198: =IF(OR($B$25=1,$B$25=2,$B$25=4,$B$25=6,$B$25=12),IF(DAY($AB$4+1)=1,EOMONTH(AB197,(1/$B$25)*12),IF(AND(MONTH(EDATE(AB197,(1/$B$25)*12))=2,OR(DAY(AB197)=29,DAY(AB197)=30)),DATE(YEAR(EDATE(AB197,(1/$B$25)*12)),MONTH(EDATE(AB197,(1/$B$25)*12)),28),DATE(YEAR(EDATE(AB197,(1/$B$25)*12)),MONTH(EDATE(AB197,(1/$B$25)*12)),DAY($AB$4)))),"Next") -> 2033-09-01 | AD198: =IF(AB198="Next",AC198,AB198) -> 2033-09-01 | AF198: 2033-09-01 | AG198: 0 | AH198: =IF(G198=0,0,IF(AH197=0,ROUND(AK197*AG198*$B$28,2),IF(G198>0,0,IF(SUM(G199:$G$603)=0,ROUND(-G198-AG198,2),ROUND(AG198*$B$28,2))))) -> 0 | AI198: =IF(SUM(G199:$G$603)=0,AG198,-G198-AH198) -> 0 | AJ198: 0 | AK198: =IF(AH198=0,IF(AK197="",2,AK197+1),"") -> 112 | AM198: 2033-09-01 | AN198: 0 | AO198: 0 | AP198: 0
E199: 2033-10-01 | F199: 196 | G199: =-'Lease Input'!C301 -> 0 | H199: 0 | I199: 0 | AB199: 2033-10-01 | AD199: 2033-10-01 | AF199: 2033-10-01 | AG199: =AG198-AI198 -> 0 | AH199: =IF(G199=0,0,IF(AH198=0,ROUND(AK198*AG199*$B$28,2),IF(G199>0,0,IF(SUM(G200:$G$603)=0,ROUND(-G199-AG199,2),ROUND(AG199*$B$28,2))))) -> 0 | AI199: =IF(SUM(G200:$G$603)=0,AG199,-G199-AH199) -> 0 | AJ199: 0 | AK199: 113 | AM199: 2033-10-01 | AN199: 0 | AO199: 0 | AP199: 0
E200: 2033-11-01 | F200: 197 | G200: =-'Lease Input'!C302 -> 0 | H200: 0 | I200: 0 | AB200: 2033-11-01 | AC200: =IF(AB200<>"Next","",IF($B$25=24,IF(DAY(AC199)<=15,IF(DAY(AC199)+15>DAY(EOMONTH(AC199,0)),EOMONTH(AC199,0),AC199+15),IF(AND(MONTH(AC199)=2,DAY(AC199)>15),DATE(YEAR(AC199),MONTH(AC199)+1,DAY(AC197)-15),DATE(YEAR(AC199),MONTH(AC199)+1,DAY(AC199)-15))),AC199+7)) ->  | AD200: 2033-11-01 | AF200: 2033-11-01 | AG200: 0 | AH200: =IF(G200=0,0,IF(AH199=0,ROUND(AK199*AG200*$B$28,2),IF(G200>0,0,IF(SUM(G201:$G$603)=0,ROUND(-G200-AG200,2),ROUND(AG200*$B$28,2))))) -> 0 | AI200: =IF(SUM(G201:$G$603)=0,AG200,-G200-AH200) -> 0 | AJ200: 0 | AK200: 114 | AM200: 2033-11-01 | AN200: 0 | AO200: 0 | AP200: 0
... 404 more rows

Sheet Hidden - Lease Sheet (hidden)
A1: General Information | D1: Lease Payment Schedule | J1: Lease Payment Schedule - Annual Summary | O1: Lease Payment Schedule - Footnote Disclosure | T1: ="Full Accrual Summary of Lease Entries as of "&TEXT('Hidden - Calculator'!B4,"mmmm")&" "&DAY('Hidden - Calculator'!B4)&", "&YEAR('Hidden - Calculator'!B4) -> Full Accrual Summary of Lease Entries as of June 30, 2022 | X1: ="Modified Accrual Summary of Lease Entries as of "&TEXT('Hidden - Calculator'!B4,"mmmm")&" "&DAY('Hidden - Calculator'!B4)&", "&YEAR('Hidden - Calculator'!B4) -> Modified Accrual Summary of Lease Entries as of June 30, 2022 | AB1: Lease Asset Depreciation
D2: Payment # | E2: Date | F2: Principal | G2: Interest | H2: Total Payment | J2: FY Ending: | K2: Principal | L2: Interest | M2: Total Payment | T2: =IF('Hidden - Calculator'!B9="Restatement",'Hidden - Calculator'!A95,"") -> Restatement - Beginning Net Position | U2: =IF('Hidden - Calculator'!B9="Restatement",'Hidden - Calculator'!B95,"") -> -10137.7 | X2: =IF('Hidden - Calculator'!$B$9="Restatement","",'Hidden - Calculator'!A105) ->  | Y2: =IF('Hidden - Calculator'!$B$9="Restatement","",'Hidden - Calculator'!B105) ->  | AC2: Lease Asset Value | AD2: ='Hidden - Calculator'!M2 -> 421984.5
A3: Lease Name | B3: ='Hidden - Calculator'!B13 -> 1-2799 1100 S Main Marion | D3: =IF(H3="","",'Hidden - Calculator'!F4) -> 1 | E3: =IF(H3="","",'Hidden - Calculator'!E4) -> 2017-07-01 | F3: =IF(H3="","",ROUND('Hidden - Calculator'!AN4,2)) -> 5537.81 | G3: =IF(H3="","",ROUND('Hidden - Calculator'!AO4,2)) -> 0 | H3: =IF('Hidden - Calculator'!AP4=0,"",'Hidden - Calculator'!AP4) -> 5537.81 | J3: =IF(M3="","",'Hidden - Calculator'!P5) -> 2018-06-30 | K3: =IF(M3="","",ROUND('Hidden - Calculator'!Q5,2)) -> 50326.81 | L3: =IF(M3="","",ROUND('Hidden - Calculator'!R5,2)) -> 16126.91 | M3: =IF('Hidden - Calculator'!S5=0,"",'Hidden - Calculator'!S5) -> 66453.72 | O3: ='Hidden - Calculator'!W4 -> Year ended June 30, | P3: Principal | Q3: Interest | R3: Total Payment | T3: Lease Asset | U3: ='Hidden - Calculator'!B92 -> 421984.5 | X3: =IF('Hidden - Calculator'!$B$9="Restatement","",'Hidden - Calculator'!A106) ->  | Y3: =IF('Hidden - Calculator'!$B$9="Restatement","",'Hidden - Calculator'!B106) ->  | AC3: Is Asset Nondepreciable? | AD3: ='Hidden - Calculator'!B15&" - "&'Hidden - Calculator'!C15 -> No - Depreciable
D4: =IF(H4="","",'Hidden - Calculator'!F5) -> 2 | E4: =IF(H4="","",'Hidden - Calculator'!E5) -> 2017-08-01 | F4: =IF(H4="","",ROUND('Hidden - Calculator'!AN5,2)) -> 3996.96 | G4: =IF(H4="","",ROUND('Hidden - Calculator'!AO5,2)) -> 1540.85 | H4: =IF('Hidden - Calculator'!AP5=0,"",'Hidden - Calculator'!AP5) -> 5537.81 | J4: =IF(M4="","",'Hidden - Calculator'!P6) -> 2019-06-30 | K4: =IF(M4="","",ROUND('Hidden - Calculator'!Q6,2)) -> 50981.3 | L4: =IF(M4="","",ROUND('Hidden - Calculator'!R6,2)) -> 15472.42 | M4: =IF('Hidden - Calculator'!S6=0,"",'Hidden - Calculator'!S6) -> 66453.72 | O4: =IF('Hidden - Calculator'!W5="","",'Hidden - Calculator'!W5) -> 2023 | P4: =IF('Hidden - Calculator'!X5="","",ROUND('Hidden - Calculator'!X5,0)) -> 67713 | Q4: =IF('Hidden - Calculator'!Y5="","",ROUND('Hidden - Calculator'!Y5,0)) -> 4782 | R4: =IF('Hidden - Calculator'!Z5="","",ROUND('Hidden - Calculator'!Z5,0)) -> 72495 | T4: Lease Liability | U4: ='Hidden - Calculator'!B94 -> -106102.83 | X4: Principal Payment - Lease | Y4: ='Hidden - Calculator'!B107 -> 64777.42 | AC4: Depreciable Life | AD4: =IF('Hidden - Calculator'!B15="Yes","N/A",'Hidden - Calculator'!B17&" years") -> 7 years
A5: Type of Lease | B5: =IF('Hidden - Calculator'!B14=0,"",'Hidden - Calculator'!B14) -> Buildings | D5: =IF(H5="","",'Hidden - Calculator'!F6) -> 3 | E5: =IF(H5="","",'Hidden - Calculator'!E6) -> 2017-09-01 | F5: =IF(H5="","",ROUND('Hidden - Calculator'!AN6,2)) -> 4011.75 | G5: =IF(H5="","",ROUND('Hidden - Calculator'!AO6,2)) -> 1526.06 | H5: =IF('Hidden - Calculator'!AP6=0,"",'Hidden - Calculator'!AP6) -> 5537.81 | J5: =IF(M5="","",'Hidden - Calculator'!P7) -> 2020-06-30 | K5: =IF(M5="","",ROUND('Hidden - Calculator'!Q7,2)) -> 57401.89 | L5: =IF(M5="","",ROUND('Hidden - Calculator'!R7,2)) -> 13079.27 | M5: =IF('Hidden - Calculator'!S7=0,"",'Hidden - Calculator'!S7) -> 70481.16 | O5: =IF('Hidden - Calculator'!W6="","",'Hidden - Calculator'!W6) -> 2024 | P5: =IF('Hidden - Calculator'!X6="","",ROUND('Hidden - Calculator'!X6,0)) -> 70781 | Q5: =IF('Hidden - Calculator'!Y6="","",ROUND('Hidden - Calculator'!Y6,0)) -> 1714 | R5: =IF('Hidden - Calculator'!Z6="","",ROUND('Hidden - Calculator'!Z6,0)) -> 72495 | T5: Interest Expense | U5: ='Hidden - Calculator'!B97 -> 8212.93 | X5: Interest Expense | Y5: ='Hidden - Calculator'!B108 -> 7717.58 | AC5: ="Accumulated Depreciation as of "&TEXT('Hidden - Calculator'!B4,"mmmm")&" "&DAY('Hidden - Calculator'!B4)&", "&YEAR('Hidden - Calculator'!B4) -> Accumulated Depreciation as of June 30, 2022 | AD5: =IF('Hidden - Calculator'!B15="Yes",0,ROUND(-'Hidden - Calculator'!B93,2)) -> 301250.05
D6: =IF(H6="","",'Hidden - Calculator'!F7) -> 4 | E6: =IF(H6="","",'Hidden - Calculator'!E7) -> 2017-10-01 | F6: =IF(H6="","",ROUND('Hidden - Calculator'!AN7,2)) -> 4026.59 | G6: =IF(H6="","",ROUND('Hidden - Calculator'!AO7,2)) -> 1511.22 | H6: =IF('Hidden - Calculator'!AP7=0,"",'Hidden - Calculator'!AP7) -> 5537.81 | J6: =IF(M6="","",'Hidden - Calculator'!P8) -> 2021-06-30 | K6: =IF(M6="","",ROUND('Hidden - Calculator'!Q8,2)) -> 60003.07 | L6: =IF(M6="","",ROUND('Hidden - Calculator'!R8,2)) -> 10478.09 | M6: =IF('Hidden - Calculator'!S8=0,"",'Hidden - Calculator'!S8) -> 70481.16 | O6: =IF('Hidden - Calculator'!W7="","",'Hidden - Calculator'!W7) ->  | P6: =IF('Hidden - Calculator'!X7="","",ROUND('Hidden - Calculator'!X7,0)) ->  | Q6: =IF('Hidden - Calculator'!Y7="","",ROUND('Hidden - Calculator'!Y7,0)) ->  | R6: =IF('Hidden - Calculator'!Z7="","",ROUND('Hidden - Calculator'!Z7,0)) ->  | T6: Cash | U6: ='Hidden - Calculator'!B98 -> -72495 | X6: Cash | Y6: ='Hidden - Calculator'!B109 -> -72495 | AC6: Monthly Depreciation Amount | AD6: =IF('Hidden - Calculator'!B15="Yes",0,ROUND('Hidden - Calculator'!M4,2)) -> 5023.63
A7: General Description of Lease | B7: =IF('Hidden - Calculator'!B18=0,"",'Hidden - Calculator'!B18) ->  | D7: =IF(H7="","",'Hidden - Calculator'!F8) -> 5 | E7: =IF(H7="","",'Hidden - Calculator'!E8) -> 2017-11-01 | F7: =IF(H7="","",ROUND('Hidden - Calculator'!AN8,2)) -> 4041.49 | G7: =IF(H7="","",ROUND('Hidden - Calculator'!AO8,2)) -> 1496.32 | H7: =IF('Hidden - Calculator'!AP8=0,"",'Hidden - Calculator'!AP8) -> 5537.81 | J7: =IF(M7="","",'Hidden - Calculator'!P9) -> 2022-06-30 | K7: =IF(M7="","",ROUND('Hidden - Calculator'!Q9,2)) -> 64777.42 | L7: =IF(M7="","",ROUND('Hidden - Calculator'!R9,2)) -> 7717.58 | M7: =IF('Hidden - Calculator'!S9=0,"",'Hidden - Calculator'!S9) -> 72495 | O7: =IF('Hidden - Calculator'!W8="","",'Hidden - Calculator'!W8) ->  | P7: =IF('Hidden - Calculator'!X8="","",ROUND('Hidden - Calculator'!X8,0)) ->  | Q7: =IF('Hidden - Calculator'!Y8="","",ROUND('Hidden - Calculator'!Y8,0)) ->  | R7: =IF('Hidden - Calculator'!Z8="","",ROUND('Hidden - Calculator'!Z8,0)) ->  | T7: =IF('Hidden - Calculator'!B15="Yes","","Accumulated Depreciation") -> Accumulated Depreciation | U7: =IF('Hidden - Calculator'!B15="Yes","",'Hidden - Calculator'!B93) -> -301250.05 | X7: =IF('Hidden - Calculator'!$B$9="Restatement","",IF('Hidden - Calculator'!B77=0,"",'Hidden - Calculator'!A110)) ->  | Y7: =IF('Hidden - Calculator'!$B$9="Restatement","",IF('Hidden - Calculator'!B77=0,"",'Hidden - Calculator'!B110)) ->  | AC7: Annual Depreciation Amount | AD7: =IF('Hidden - Calculator'!B15="Yes",0,ROUND('Hidden - Calculator'!M3,2)) -> 60283.5
D8: =IF(H8="","",'Hidden - Calculator'!F9) -> 6 | E8: =IF(H8="","",'Hidden - Calculator'!E9) -> 2017-12-01 | F8: =IF(H8="","",ROUND('Hidden - Calculator'!AN9,2)) -> 4056.44 | G8: =IF(H8="","",ROUND('Hidden - Calculator'!AO9,2)) -> 1481.37 | H8: =IF('Hidden - Calculator'!AP9=0,"",'Hidden - Calculator'!AP9) -> 5537.81 | J8: =IF(M8="","",'Hidden - Calculator'!P10) -> 2023-06-30 | K8: =IF(M8="","",ROUND('Hidden - Calculator'!Q10,2)) -> 67712.79 | L8: =IF(M8="","",ROUND('Hidden - Calculator'!R10,2)) -> 4782.21 | M8: =IF('Hidden - Calculator'!S10=0,"",'Hidden - Calculator'!S10) -> 72495 | O8: =IF('Hidden - Calculator'!W9="","",'Hidden - Calculator'!W9) ->  | P8: =IF('Hidden - Calculator'!X9="","",ROUND('Hidden - Calculator'!X9,0)) ->  | Q8: =IF('Hidden - Calculator'!Y9="","",ROUND('Hidden - Calculator'!Y9,0)) ->  | R8: =IF('Hidden - Calculator'!Z9="","",ROUND('Hidden - Calculator'!Z9,0)) ->  | T8: =IF('Hidden - Calculator'!B15="Yes","","Lease Asset Depreciation Expense") -> Lease Asset Depreciation Expense | U8: =IF('Hidden - Calculator'!B15="Yes","",'Hidden - Calculator'!B96) -> 60283.5
D9: =IF(H9="","",'Hidden - Calculator'!F10) -> 7 | E9: =IF(H9="","",'Hidden - Calculator'!E10) -> 2018-01-01 | F9: =IF(H9="","",ROUND('Hidden - Calculator'!AN10,2)) -> 4071.45 | G9: =IF(H9="","",ROUND('Hidden - Calculator'!AO10,2)) -> 1466.36 | H9: =IF('Hidden - Calculator'!AP10=0,"",'Hidden - Calculator'!AP10) -> 5537.81 | J9: =IF(M9="","",'Hidden - Calculator'!P11) -> 2024-06-30 | K9: =IF(M9="","",ROUND('Hidden - Calculator'!Q11,2)) -> 70781.22 | L9: =IF(M9="","",ROUND('Hidden - Calculator'!R11,2)) -> 1713.78 | M9: =IF('Hidden - Calculator'!S11=0,"",'Hidden - Calculator'!S11) -> 72495 | O9: =IF('Hidden - Calculator'!W10="","",'Hidden - Calculator'!W10) ->  | P9: =IF('Hidden - Calculator'!X10="","",ROUND('Hidden - Calculator'!X10,0)) ->  | Q9: =IF('Hidden - Calculator'!Y10="","",ROUND('Hidden - Calculator'!Y10,0)) ->  | R9: =IF('Hidden - Calculator'!Z10="","",ROUND('Hidden - Calculator'!Z10,0)) ->  | T9: =IF('Hidden - Calculator'!B99=0,"",'Hidden - Calculator'!A99) -> Accrued Interest Liability | U9: =IF('Hidden - Calculator'!B99=0,"",'Hidden - Calculator'!B99) -> -495.35 | AB9: Year # | AC9: FY Ending: | AD9: Depreciation Amount
D10: =IF(H10="","",'Hidden - Calculator'!F11) -> 8 | E10: =IF(H10="","",'Hidden - Calculator'!E11) -> 2018-02-01 | F10: =IF(H10="","",ROUND('Hidden - Calculator'!AN11,2)) -> 4086.51 | G10: =IF(H10="","",ROUND('Hidden - Calculator'!AO11,2)) -> 1451.3 | H10: =IF('Hidden - Calculator'!AP11=0,"",'Hidden - Calculator'!AP11) -> 5537.81 | J10: =IF(M10="","",'Hidden - Calculator'!P12) ->  | K10: =IF(M10="","",ROUND('Hidden - Calculator'!Q12,2)) ->  | L10: =IF(M10="","",ROUND('Hidden - Calculator'!R12,2)) ->  | M10: =IF('Hidden - Calculator'!S12=0,"",'Hidden - Calculator'!S12) ->  | O10: =IF('Hidden - Calculator'!W11="","",'Hidden - Calculator'!W11) ->  | P10: =IF('Hidden - Calculator'!X11="","",ROUND('Hidden - Calculator'!X11,0)) ->  | Q10: =IF('Hidden - Calculator'!Y11="","",ROUND('Hidden - Calculator'!Y11,0)) ->  | R10: =IF('Hidden - Calculator'!Z11="","",ROUND('Hidden - Calculator'!Z11,0)) ->  | T10: =IF('Hidden - Calculator'!B35="Yes",'Hidden - Calculator'!A51,"") ->  | U10: =IF('Hidden - Calculator'!B35="Yes",'Hidden - Calculator'!B100,"") ->  | AB10: =IF(AD10="","",1) -> 1 | AC10: =IF('Hidden - Calculator'!B15="Yes","Nondepreciable - No depreciation expense is recorded.",IF(AD10="","",'Hidden - Calculator'!L5)) -> 2018-06-30 | AD10: =IF('Hidden - Calculator'!$B$15="Yes","",IF('Hidden - Calculator'!M5=0,"",ROUND('Hidden - Calculator'!M5,2))) -> 60116.05
A11: Lease Commencement Date | B11: =IF('Hidden - Calculator'!B6=0,"",'Hidden - Calculator'!B6) -> 2017-07-01 | D11: =IF(H11="","",'Hidden - Calculator'!F12) -> 9 | E11: =IF(H11="","",'Hidden - Calculator'!E12) -> 2018-03-01 | F11: =IF(H11="","",ROUND('Hidden - Calculator'!AN12,2)) -> 4101.63 | G11: =IF(H11="","",ROUND('Hidden - Calculator'!AO12,2)) -> 1436.18 | H11: =IF('Hidden - Calculator'!AP12=0,"",'Hidden - Calculator'!AP12) -> 5537.81 | J11: =IF(M11="","",'Hidden - Calculator'!P13) ->  | K11: =IF(M11="","",ROUND('Hidden - Calculator'!Q13,2)) ->  | L11: =IF(M11="","",ROUND('Hidden - Calculator'!R13,2)) ->  | M11: =IF('Hidden - Calculator'!S13=0,"",'Hidden - Calculator'!S13) ->  | O11: =IF('Hidden - Calculator'!W12="","",'Hidden - Calculator'!W12) ->  | P11: =IF('Hidden - Calculator'!X12="","",ROUND('Hidden - Calculator'!X12,0)) ->  | Q11: =IF('Hidden - Calculator'!Y12="","",ROUND('Hidden - Calculator'!Y12,0)) ->  | R11: =IF('Hidden - Calculator'!Z12="","",ROUND('Hidden - Calculator'!Z12,0)) ->  | T11: =IF('Hidden - Calculator'!B35="Yes",IF('Hidden - Calculator'!B15="Yes","",'Hidden - Calculator'!A52),"") ->  | U11: =IF('Hidden - Calculator'!B35="Yes",IF('Hidden - Calculator'!B15="Yes","",'Hidden - Calculator'!B101),"") ->  | AB11: =IF(AD11="","",AB10+1) -> 2 | AC11: =IF(AD11="","",'Hidden - Calculator'!L6) -> 2019-06-30 | AD11: =IF('Hidden - Calculator'!$B$15="Yes","",IF('Hidden - Calculator'!M6=0,"",ROUND('Hidden - Calculator'!M6,2))) -> 60283.5
D12: =IF(H12="","",'Hidden - Calculator'!F13) -> 10 | E12: =IF(H12="","",'Hidden - Calculator'!E13) -> 2018-04-01 | F12: =IF(H12="","",ROUND('Hidden - Calculator'!AN13,2)) -> 4116.81 | G12: =IF(H12="","",ROUND('Hidden - Calculator'!AO13,2)) -> 1421 | H12: =IF('Hidden - Calculator'!AP13=0,"",'Hidden - Calculator'!AP13) -> 5537.81 | J12: =IF(M12="","",'Hidden - Calculator'!P14) ->  | K12: =IF(M12="","",ROUND('Hidden - Calculator'!Q14,2)) ->  | L12: =IF(M12="","",ROUND('Hidden - Calculator'!R14,2)) ->  | M12: =IF('Hidden - Calculator'!S14=0,"",'Hidden - Calculator'!S14) ->  | O12: =IF('Hidden - Calculator'!W13="","",'Hidden - Calculator'!W13) ->  | P12: =IF('Hidden - Calculator'!X13="","",ROUND('Hidden - Calculator'!X13,0)) ->  | Q12: =IF('Hidden - Calculator'!Y13="","",ROUND('Hidden - Calculator'!Y13,0)) ->  | R12: =IF('Hidden - Calculator'!Z13="","",ROUND('Hidden - Calculator'!Z13,0)) ->  | T12: =IF('Hidden - Calculator'!B35="Yes",'Hidden - Calculator'!A53,"") ->  | U12: =IF('Hidden - Calculator'!B35="Yes",'Hidden - Calculator'!B102,"") ->  | AB12: =IF(AD12="","",AB11+1) -> 3 | AC12: =IF(AD12="","",'Hidden - Calculator'!L7) -> 2020-06-30 | AD12: =IF('Hidden - Calculator'!$B$15="Yes","",IF('Hidden - Calculator'!M7=0,"",ROUND('Hidden - Calculator'!M7,2))) -> 60283.5
A13: Fiscal Year Ending | B13: ='Hidden - Calculator'!B4 -> 2022-06-30 | D13: =IF(H13="","",'Hidden - Calculator'!F14) -> 11 | E13: =IF(H13="","",'Hidden - Calculator'!E14) -> 2018-05-01 | F13: =IF(H13="","",ROUND('Hidden - Calculator'!AN14,2)) -> 4132.04 | G13: =IF(H13="","",ROUND('Hidden - Calculator'!AO14,2)) -> 1405.77 | H13: =IF('Hidden - Calculator'!AP14=0,"",'Hidden - Calculator'!AP14) -> 5537.81 | J13: =IF(M13="","",'Hidden - Calculator'!P15) ->  | K13: =IF(M13="","",ROUND('Hidden - Calculator'!Q15,2)) ->  | L13: =IF(M13="","",ROUND('Hidden - Calculator'!R15,2)) ->  | M13: =IF('Hidden - Calculator'!S15=0,"",'Hidden - Calculator'!S15) ->  | O13: =IF('Hidden - Calculator'!W14="","",'Hidden - Calculator'!W14) ->  | P13: =IF('Hidden - Calculator'!X14="","",ROUND('Hidden - Calculator'!X14,0)) ->  | Q13: =IF('Hidden - Calculator'!Y14="","",ROUND('Hidden - Calculator'!Y14,0)) ->  | R13: =IF('Hidden - Calculator'!Z14="","",ROUND('Hidden - Calculator'!Z14,0)) ->  | AB13: 4 | AC13: =IF(AD13="","",'Hidden - Calculator'!L8) -> 2021-06-30 | AD13: =IF('Hidden - Calculator'!$B$15="Yes","",IF('Hidden - Calculator'!M8=0,"",ROUND('Hidden - Calculator'!M8,2))) -> 60283.5
D14: =IF(H14="","",'Hidden - Calculator'!F15) -> 12 | E14: =IF(H14="","",'Hidden - Calculator'!E15) -> 2018-06-01 | F14: =IF(H14="","",ROUND('Hidden - Calculator'!AN15,2)) -> 4147.33 | G14: =IF(H14="","",ROUND('Hidden - Calculator'!AO15,2)) -> 1390.48 | H14: =IF('Hidden - Calculator'!AP15=0,"",'Hidden - Calculator'!AP15) -> 5537.81 | J14: =IF(M14="","",'Hidden - Calculator'!P16) ->  | K14: =IF(M14="","",ROUND('Hidden - Calculator'!Q16,2)) ->  | L14: =IF(M14="","",ROUND('Hidden - Calculator'!R16,2)) ->  | M14: =IF('Hidden - Calculator'!S16=0,"",'Hidden - Calculator'!S16) ->  | O14: =IF('Hidden - Calculator'!W15="","",'Hidden - Calculator'!W15) ->  | P14: =IF('Hidden - Calculator'!X15="","",ROUND('Hidden - Calculator'!X15,0)) ->  | Q14: =IF('Hidden - Calculator'!Y15="","",ROUND('Hidden - Calculator'!Y15,0)) ->  | R14: =IF('Hidden - Calculator'!Z15="","",ROUND('Hidden - Calculator'!Z15,0)) ->  | T14: ="Full Accrual Journal Entries for the Year Ended "&TEXT('Hidden - Calculator'!B4,"mmmm")&" "&DAY('Hidden - Calculator'!B4)&", "&YEAR('Hidden - Calculator'!B4) -> Full Accrual Journal Entries for the Year Ended June 30, 2022 | X14: ="Modified Accrual Journal Entries for the Year Ended "&TEXT('Hidden - Calculator'!B4,"mmmm")&" "&DAY('Hidden - Calculator'!B4)&", "&YEAR('Hidden - Calculator'!B4) -> Modified Accrual Journal Entries for the Year Ended June 30, 2022 | AB14: 5 | AC14: =IF(AD14="","",'Hidden - Calculator'!L9) -> 2022-06-30 | AD14: =IF('Hidden - Calculator'!$B$15="Yes","",IF('Hidden - Calculator'!M9=0,"",ROUND('Hidden - Calculator'!M9,2))) -> 60283.5
A15: Name of Fund | B15: ='Hidden - Calculator'!B8 -> Sample Agency | D15: =IF(H15="","",'Hidden - Calculator'!F16) -> 13 | E15: =IF(H15="","",'Hidden - Calculator'!E16) -> 2018-07-01 | F15: =IF(H15="","",ROUND('Hidden - Calculator'!AN16,2)) -> 4162.68 | G15: =IF(H15="","",ROUND('Hidden - Calculator'!AO16,2)) -> 1375.13 | H15: =IF('Hidden - Calculator'!AP16=0,"",'Hidden - Calculator'!AP16) -> 5537.81 | J15: =IF(M15="","",'Hidden - Calculator'!P17) ->  | K15: =IF(M15="","",ROUND('Hidden - Calculator'!Q17,2)) ->  | L15: =IF(M15="","",ROUND('Hidden - Calculator'!R17,2)) ->  | M15: =IF('Hidden - Calculator'!S17=0,"",'Hidden - Calculator'!S17) ->  | O15: =IF('Hidden - Calculator'!W16="","",'Hidden - Calculator'!W16) ->  | P15: =IF('Hidden - Calculator'!X16="","",ROUND('Hidden - Calculator'!X16,0)) ->  | Q15: =IF('Hidden - Calculator'!Y16="","",ROUND('Hidden - Calculator'!Y16,0)) ->  | R15: =IF('Hidden - Calculator'!Z16="","",ROUND('Hidden - Calculator'!Z16,0)) ->  | T15: =IF('Hidden - Calculator'!B9="Restatement",'Hidden - Calculator'!A45,'Hidden - Calculator'!A39) -> Initial Recording of the Lease - Restatement | X15: Governmental Fund - Initial Recording | AB15: 6 | AC15: =IF(AD15="","",'Hidden - Calculator'!L10) -> 2023-06-30 | AD15: =IF('Hidden - Calculator'!$B$15="Yes","",IF('Hidden - Calculator'!M10=0,"",ROUND('Hidden - Calculator'!M10,2))) -> 60283.5
D16: =IF(H16="","",'Hidden - Calculator'!F17) -> 14 | E16: =IF(H16="","",'Hidden - Calculator'!E17) -> 2018-08-01 | F16: =IF(H16="","",ROUND('Hidden - Calculator'!AN17,2)) -> 4178.08 | G16: =IF(H16="","",ROUND('Hidden - Calculator'!AO17,2)) -> 1359.73 | H16: =IF('Hidden - Calculator'!AP17=0,"",'Hidden - Calculator'!AP17) -> 5537.81 | J16: =IF(M16="","",'Hidden - Calculator'!P18) ->  | K16: =IF(M16="","",ROUND('Hidden - Calculator'!Q18,2)) ->  | L16: =IF(M16="","",ROUND('Hidden - Calculator'!R18,2)) ->  | M16: =IF('Hidden - Calculator'!S18=0,"",'Hidden - Calculator'!S18) ->  | O16: =IF('Hidden - Calculator'!W17="","",'Hidden - Calculator'!W17) ->  | P16: =IF('Hidden - Calculator'!X17="","",ROUND('Hidden - Calculator'!X17,0)) ->  | Q16: =IF('Hidden - Calculator'!Y17="","",ROUND('Hidden - Calculator'!Y17,0)) ->  | R16: =IF('Hidden - Calculator'!Z17="","",ROUND('Hidden - Calculator'!Z17,0)) ->  | T16: Account | U16: Debit | V16: Credit | X16: Account | Y16: Debit | Z16: Credit | AB16: 7 | AC16: =IF(AD16="","",'Hidden - Calculator'!L11) -> 2024-06-30 | AD16: =IF('Hidden - Calculator'!$B$15="Yes","",IF('Hidden - Calculator'!M11=0,"",ROUND('Hidden - Calculator'!M11,2))) -> 60283.5
A17: Type of Fund | B17: ='Hidden - Calculator'!B7 -> Governmental Fund | D17: =IF(H17="","",'Hidden - Calculator'!F18) -> 15 | E17: =IF(H17="","",'Hidden - Calculator'!E18) -> 2018-09-01 | F17: =IF(H17="","",ROUND('Hidden - Calculator'!AN18,2)) -> 4193.54 | G17: =IF(H17="","",ROUND('Hidden - Calculator'!AO18,2)) -> 1344.27 | H17: =IF('Hidden - Calculator'!AP18=0,"",'Hidden - Calculator'!AP18) -> 5537.81 | J17: =IF(M17="","",'Hidden - Calculator'!P19) ->  | K17: =IF(M17="","",ROUND('Hidden - Calculator'!Q19,2)) ->  | L17: =IF(M17="","",ROUND('Hidden - Calculator'!R19,2)) ->  | M17: =IF('Hidden - Calculator'!S19=0,"",'Hidden - Calculator'!S19) ->  | O17: =IF('Hidden - Calculator'!W18="","",'Hidden - Calculator'!W18) ->  | P17: =IF('Hidden - Calculator'!X18="","",ROUND('Hidden - Calculator'!X18,0)) ->  | Q17: =IF('Hidden - Calculator'!Y18="","",ROUND('Hidden - Calculator'!Y18,0)) ->  | R17: =IF('Hidden - Calculator'!Z18="","",ROUND('Hidden - Calculator'!Z18,0)) ->  | T17: Lease Asset | U17: ='Hidden - Calculator'!B47 -> 421984.5 | X17: =IF('Hidden - Calculator'!$B$9="Restatement","No entry for initial recording of lease prior to",'Hidden - Calculator'!A75) -> No entry for initial recording of lease prior to | Y17: =IF('Hidden - Calculator'!$B$9="Restatement","",'Hidden - Calculator'!B75) ->  | AB17: 8 | AC17: =IF(AD17="","",'Hidden - Calculator'!L12) -> 2025-06-30 | AD17: =IF('Hidden - Calculator'!$B$15="Yes","",IF('Hidden - Calculator'!M12=0,"",ROUND('Hidden - Calculator'!M12,2))) -> 167.45
D18: =IF(H18="","",'Hidden - Calculator'!F19) -> 16 | E18: =IF(H18="","",'Hidden - Calculator'!E19) -> 2018-10-01 | F18: =IF(H18="","",ROUND('Hidden - Calculator'!AN19,2)) -> 4209.05 | G18: =IF(H18="","",ROUND('Hidden - Calculator'!AO19,2)) -> 1328.76 | H18: =IF('Hidden - Calculator'!AP19=0,"",'Hidden - Calculator'!AP19) -> 5537.81 | J18: =IF(M18="","",'Hidden - Calculator'!P20) ->  | K18: =IF(M18="","",ROUND('Hidden - Calculator'!Q20,2)) ->  | L18: =IF(M18="","",ROUND('Hidden - Calculator'!R20,2)) ->  | M18: =IF('Hidden - Calculator'!S20=0,"",'Hidden - Calculator'!S20) ->  | O18: =IF('Hidden - Calculator'!W19="","",'Hidden - Calculator'!W19) ->  | P18: =IF('Hidden - Calculator'!X19="","",ROUND('Hidden - Calculator'!X19,0)) ->  | Q18: =IF('Hidden - Calculator'!Y19="","",ROUND('Hidden - Calculator'!Y19,0)) ->  | R18: =IF('Hidden - Calculator'!Z19="","",ROUND('Hidden - Calculator'!Z19,0)) ->  | T18: Lease Liability | U18: =IF('Hidden - Calculator'!B49=0,"",'Hidden - Calculator'!B49) ->  | V18: =IF('Hidden - Calculator'!C49=0,IF(U18="",0,""),'Hidden - Calculator'!C49) -> 170880.25 | X18: =IF('Hidden - Calculator'!$B$9="Restatement","beginning of the current fiscal year in a",'Hidden - Calculator'!A76) -> beginning of the current fiscal year in a | Z18: =IF('Hidden - Calculator'!$B$9="Restatement","",'Hidden - Calculator'!C76) ->  | AC18: =IF(AD18="","",'Hidden - Calculator'!L13) ->  | AD18: =IF('Hidden - Calculator'!$B$15="Yes","",IF('Hidden - Calculator'!M13=0,"",ROUND('Hidden - Calculator'!M13,2))) -> 
A19: Was Lease Previously Capital Lease? | B19: =IF('Hidden - Calculator'!B35="Yes",'Hidden - Calculator'!B35,"No") -> No | D19: =IF(H19="","",'Hidden - Calculator'!F20) -> 17 | E19: =IF(H19="","",'Hidden - Calculator'!E20) -> 2018-11-01 | F19: =IF(H19="","",ROUND('Hidden - Calculator'!AN20,2)) -> 4224.63 | G19: =IF(H19="","",ROUND('Hidden - Calculator'!AO20,2)) -> 1313.18 | H19: =IF('Hidden - Calculator'!AP20=0,"",'Hidden - Calculator'!AP20) -> 5537.81 | J19: =IF(M19="","",'Hidden - Calculator'!P21) ->  | K19: =IF(M19="","",ROUND('Hidden - Calculator'!Q21,2)) ->  | L19: =IF(M19="","",ROUND('Hidden - Calculator'!R21,2)) ->  | M19: =IF('Hidden - Calculator'!S21=0,"",'Hidden - Calculator'!S21) ->  | O19: =IF('Hidden - Calculator'!W20="","",'Hidden - Calculator'!W20) ->  | P19: =IF('Hidden - Calculator'!X20="","",ROUND('Hidden - Calculator'!X20,0)) ->  | Q19: =IF('Hidden - Calculator'!Y20="","",ROUND('Hidden - Calculator'!Y20,0)) ->  | R19: =IF('Hidden - Calculator'!Z20="","",ROUND('Hidden - Calculator'!Z20,0)) ->  | T19: =IF('Hidden - Calculator'!B9="Restatement",'Hidden - Calculator'!A48,IF('Hidden - Calculator'!C43=0,"",'Hidden - Calculator'!A43)) -> Accumulated Depreciation - Lease Asset | V19: =IF('Hidden - Calculator'!B9="Restatement",'Hidden - Calculator'!C48,IF('Hidden - Calculator'!C43=0,"",'Hidden - Calculator'!C43)) -> 240966.55 | X19: =IF('Hidden - Calculator'!$B$9="Restatement","governmental fund.",IF('Hidden - Calculator'!B77=0,"",'Hidden - Calculator'!A77)) -> governmental fund. | Y19: =IF('Hidden - Calculator'!$B$9="Restatement","",IF('Hidden - Calculator'!B77=0,"",'Hidden - Calculator'!B77)) ->  | AC19: =IF(AD19="","",'Hidden - Calculator'!L14) ->  | AD19: =IF('Hidden - Calculator'!$B$15="Yes","",IF('Hidden - Calculator'!M14=0,"",ROUND('Hidden - Calculator'!M14,2))) -> 
A20: Prior Capital Lease Asset Value | B20: =IF('Hidden - Calculator'!B35="Yes",'Hidden - Calculator'!B36,"N/A") -> N/A | D20: =IF(H20="","",'Hidden - Calculator'!F21) -> 18 | E20: =IF(H20="","",'Hidden - Calculator'!E21) -> 2018-12-01 | F20: =IF(H20="","",ROUND('Hidden - Calculator'!AN21,2)) -> 4240.26 | G20: =IF(H20="","",ROUND('Hidden - Calculator'!AO21,2)) -> 1297.55 | H20: =IF('Hidden - Calculator'!AP21=0,"",'Hidden - Calculator'!AP21) -> 5537.81 | J20: =IF(M20="","",'Hidden - Calculator'!P22) ->  | K20: =IF(M20="","",ROUND('Hidden - Calculator'!Q22,2)) ->  | L20: =IF(M20="","",ROUND('Hidden - Calculator'!R22,2)) ->  | M20: =IF('Hidden - Calculator'!S22=0,"",'Hidden - Calculator'!S22) ->  | O20: =IF('Hidden - Calculator'!W21="","",'Hidden - Calculator'!W21) ->  | P20: =IF('Hidden - Calculator'!X21="","",ROUND('Hidden - Calculator'!X21,0)) ->  | Q20: =IF('Hidden - Calculator'!Y21="","",ROUND('Hidden - Calculator'!Y21,0)) ->  | R20: =IF('Hidden - Calculator'!Z21="","",ROUND('Hidden - Calculator'!Z21,0)) ->  | T20: =IF('Hidden - Calculator'!B9="Restatement",'Hidden - Calculator'!A50,"") -> Beginning Net Position | U20: =IF('Hidden - Calculator'!B9="No Restatement","",IF(OR('Hidden - Calculator'!B50=0,'Hidden - Calculator'!B50=""),"",'Hidden - Calculator'!B50)) ->  | V20: =IF('Hidden - Calculator'!B9="No Restatement","",IF('Hidden - Calculator'!C50=0,IF(U20="",0,""),'Hidden - Calculator'!C50)) -> 10137.7 | X20: =IF('Hidden - Calculator'!$B$9="Restatement","",IF('Hidden - Calculator'!B77=0,"",'Hidden - Calculator'!A78)) ->  | Z20: =IF('Hidden - Calculator'!$B$9="Restatement","",IF('Hidden - Calculator'!B77=0,"",'Hidden - Calculator'!C78)) ->  | AC20: =IF(AD20="","",'Hidden - Calculator'!L15) ->  | AD20: =IF('Hidden - Calculator'!$B$15="Yes","",IF('Hidden - Calculator'!M15=0,"",ROUND('Hidden - Calculator'!M15,2))) -> 
A21: Prior Capital Lease Accumulated Depreciation | B21: =IF('Hidden - Calculator'!B35="Yes",'Hidden - Calculator'!C36,"N/A") -> N/A | D21: =IF(H21="","",'Hidden - Calculator'!F22) -> 19 | E21: =IF(H21="","",'Hidden - Calculator'!E22) -> 2019-01-01 | F21: =IF(H21="","",ROUND('Hidden - Calculator'!AN22,2)) -> 4255.95 | G21: =IF(H21="","",ROUND('Hidden - Calculator'!AO22,2)) -> 1281.86 | H21: =IF('Hidden - Calculator'!AP22=0,"",'Hidden - Calculator'!AP22) -> 5537.81 | J21: =IF(M21="","",'Hidden - Calculator'!P23) ->  | K21: =IF(M21="","",ROUND('Hidden - Calculator'!Q23,2)) ->  | L21: =IF(M21="","",ROUND('Hidden - Calculator'!R23,2)) ->  | M21: =IF('Hidden - Calculator'!S23=0,"",'Hidden - Calculator'!S23) ->  | O21: =IF('Hidden - Calculator'!W22="","",'Hidden - Calculator'!W22) ->  | P21: =IF('Hidden - Calculator'!X22="","",ROUND('Hidden - Calculator'!X22,0)) ->  | Q21: =IF('Hidden - Calculator'!Y22="","",ROUND('Hidden - Calculator'!Y22,0)) ->  | R21: =IF('Hidden - Calculator'!Z22="","",ROUND('Hidden - Calculator'!Z22,0)) ->  | T21: =IF('Hidden - Calculator'!B35="Yes",'Hidden - Calculator'!A51,"") ->  | V21: =IF('Hidden - Calculator'!B35="Yes",'Hidden - Calculator'!C51,"") ->  | AC21: =IF(AD21="","",'Hidden - Calculator'!L16) ->  | AD21: =IF('Hidden - Calculator'!$B$15="Yes","",IF('Hidden - Calculator'!M16=0,"",ROUND('Hidden - Calculator'!M16,2))) -> 
A22: Prior Capital Lease Liability | B22: =IF('Hidden - Calculator'!B35="Yes",'Hidden - Calculator'!B37,"N/A") -> N/A | D22: =IF(H22="","",'Hidden - Calculator'!F23) -> 20 | E22: =IF(H22="","",'Hidden - Calculator'!E23) -> 2019-02-01 | F22: =IF(H22="","",ROUND('Hidden - Calculator'!AN23,2)) -> 4271.69 | G22: =IF(H22="","",ROUND('Hidden - Calculator'!AO23,2)) -> 1266.12 | H22: =IF('Hidden - Calculator'!AP23=0,"",'Hidden - Calculator'!AP23) -> 5537.81 | J22: =IF(M22="","",'Hidden - Calculator'!P24) ->  | K22: =IF(M22="","",ROUND('Hidden - Calculator'!Q24,2)) ->  | L22: =IF(M22="","",ROUND('Hidden - Calculator'!R24,2)) ->  | M22: =IF('Hidden - Calculator'!S24=0,"",'Hidden - Calculator'!S24) ->  | O22: =IF('Hidden - Calculator'!W23="","",'Hidden - Calculator'!W23) ->  | P22: =IF('Hidden - Calculator'!X23="","",ROUND('Hidden - Calculator'!X23,0)) ->  | Q22: =IF('Hidden - Calculator'!Y23="","",ROUND('Hidden - Calculator'!Y23,0)) ->  | R22: =IF('Hidden - Calculator'!Z23="","",ROUND('Hidden - Calculator'!Z23,0)) ->  | T22: =IF('Hidden - Calculator'!B35="Yes",'Hidden - Calculator'!A52,"") ->  | U22: =IF('Hidden - Calculator'!B35="Yes",'Hidden - Calculator'!B52,"") ->  | AC22: =IF(AD22="","",'Hidden - Calculator'!L17) ->  | AD22: =IF('Hidden - Calculator'!$B$15="Yes","",IF('Hidden - Calculator'!M17=0,"",ROUND('Hidden - Calculator'!M17,2))) -> 
D23: =IF(H23="","",'Hidden - Calculator'!F24) -> 21 | E23: =IF(H23="","",'Hidden - Calculator'!E24) -> 2019-03-01 | F23: =IF(H23="","",ROUND('Hidden - Calculator'!AN24,2)) -> 4287.5 | G23: =IF(H23="","",ROUND('Hidden - Calculator'!AO24,2)) -> 1250.31 | H23: =IF('Hidden - Calculator'!AP24=0,"",'Hidden - Calculator'!AP24) -> 5537.81 | J23: =IF(M23="","",'Hidden - Calculator'!P25) ->  | K23: =IF(M23="","",ROUND('Hidden - Calculator'!Q25,2)) ->  | L23: =IF(M23="","",ROUND('Hidden - Calculator'!R25,2)) ->  | M23: =IF('Hidden - Calculator'!S25=0,"",'Hidden - Calculator'!S25) ->  | O23: =IF('Hidden - Calculator'!W24="","",'Hidden - Calculator'!W24) ->  | P23: =IF('Hidden - Calculator'!X24="","",ROUND('Hidden - Calculator'!X24,0)) ->  | Q23: =IF('Hidden - Calculator'!Y24="","",ROUND('Hidden - Calculator'!Y24,0)) ->  | R23: =IF('Hidden - Calculator'!Z24="","",ROUND('Hidden - Calculator'!Z24,0)) ->  | T23: =IF('Hidden - Calculator'!B35="Yes",'Hidden - Calculator'!A53,"") ->  | U23: =IF('Hidden - Calculator'!B35="Yes",'Hidden - Calculator'!B53,"") ->  | AC23: =IF(AD23="","",'Hidden - Calculator'!L18) ->  | AD23: =IF('Hidden - Calculator'!$B$15="Yes","",IF('Hidden - Calculator'!M18=0,"",ROUND('Hidden - Calculator'!M18,2))) -> 
D24: =IF(H24="","",'Hidden - Calculator'!F25) -> 22 | E24: =IF(H24="","",'Hidden - Calculator'!E25) -> 2019-04-01 | F24: =IF(H24="","",ROUND('Hidden - Calculator'!AN25,2)) -> 4303.36 | G24: =IF(H24="","",ROUND('Hidden - Calculator'!AO25,2)) -> 1234.45 | H24: =IF('Hidden - Calculator'!AP25=0,"",'Hidden - Calculator'!AP25) -> 5537.81 | J24: =IF(M24="","",'Hidden - Calculator'!P26) ->  | K24: =IF(M24="","",ROUND('Hidden - Calculator'!Q26,2)) ->  | L24: =IF(M24="","",ROUND('Hidden - Calculator'!R26,2)) ->  | M24: =IF('Hidden - Calculator'!S26=0,"",'Hidden - Calculator'!S26) ->  | O24: =IF('Hidden - Calculator'!W25="","",'Hidden - Calculator'!W25) ->  | P24: =IF('Hidden - Calculator'!X25="","",ROUND('Hidden - Calculator'!X25,0)) ->  | Q24: =IF('Hidden - Calculator'!Y25="","",ROUND('Hidden - Calculator'!Y25,0)) ->  | R24: =IF('Hidden - Calculator'!Z25="","",ROUND('Hidden - Calculator'!Z25,0)) ->  | AC24: =IF(AD24="","",'Hidden - Calculator'!L19) ->  | AD24: =IF('Hidden - Calculator'!$B$15="Yes","",IF('Hidden - Calculator'!M19=0,"",ROUND('Hidden - Calculator'!M19,2))) -> 
A25: Terms of the Lease | D25: =IF(H25="","",'Hidden - Calculator'!F26) -> 23 | E25: =IF(H25="","",'Hidden - Calculator'!E26) -> 2019-05-01 | F25: =IF(H25="","",ROUND('Hidden - Calculator'!AN26,2)) -> 4319.29 | G25: =IF(H25="","",ROUND('Hidden - Calculator'!AO26,2)) -> 1218.52 | H25: =IF('Hidden - Calculator'!AP26=0,"",'Hidden - Calculator'!AP26) -> 5537.81 | J25: =IF(M25="","",'Hidden - Calculator'!P27) ->  | K25: =IF(M25="","",ROUND('Hidden - Calculator'!Q27,2)) ->  | L25: =IF(M25="","",ROUND('Hidden - Calculator'!R27,2)) ->  | M25: =IF('Hidden - Calculator'!S27=0,"",'Hidden - Calculator'!S27) ->  | O25: =IF('Hidden - Calculator'!W26="","",'Hidden - Calculator'!W26) ->  | P25: =IF('Hidden - Calculator'!X26="","",ROUND('Hidden - Calculator'!X26,0)) ->  | Q25: =IF('Hidden - Calculator'!Y26="","",ROUND('Hidden - Calculator'!Y26,0)) ->  | R25: =IF('Hidden - Calculator'!Z26="","",ROUND('Hidden - Calculator'!Z26,0)) ->  | T25: ="Recording All Lease Payments for FY"&YEAR('Hidden - Calculator'!B4) -> Recording All Lease Payments for FY2022 | X25: ="Recording All Lease Payments for FY"&YEAR('Hidden - Calculator'!B4) -> Recording All Lease Payments for FY2022 | AC25: =IF(AD25="","",'Hidden - Calculator'!L20) ->  | AD25: =IF('Hidden - Calculator'!$B$15="Yes","",IF('Hidden - Calculator'!M20=0,"",ROUND('Hidden - Calculator'!M20,2))) -> 
D26: =IF(H26="","",'Hidden - Calculator'!F27) -> 24 | E26: =IF(H26="","",'Hidden - Calculator'!E27) -> 2019-06-01 | F26: =IF(H26="","",ROUND('Hidden - Calculator'!AN27,2)) -> 4335.27 | G26: =IF(H26="","",ROUND('Hidden - Calculator'!AO27,2)) -> 1202.54 | H26: =IF('Hidden - Calculator'!AP27=0,"",'Hidden - Calculator'!AP27) -> 5537.81 | J26: =IF(M26="","",'Hidden - Calculator'!P28) ->  | K26: =IF(M26="","",ROUND('Hidden - Calculator'!Q28,2)) ->  | L26: =IF(M26="","",ROUND('Hidden - Calculator'!R28,2)) ->  | M26: =IF('Hidden - Calculator'!S28=0,"",'Hidden - Calculator'!S28) ->  | O26: =IF('Hidden - Calculator'!W27="","",'Hidden - Calculator'!W27) ->  | P26: =IF('Hidden - Calculator'!X27="","",ROUND('Hidden - Calculator'!X27,0)) ->  | Q26: =IF('Hidden - Calculator'!Y27="","",ROUND('Hidden - Calculator'!Y27,0)) ->  | R26: =IF('Hidden - Calculator'!Z27="","",ROUND('Hidden - Calculator'!Z27,0)) ->  | T26: Account | U26: Debit | V26: Credit | X26: Account | Y26: Debit | Z26: Credit | AC26: =IF(AD26="","",'Hidden - Calculator'!L21) ->  | AD26: =IF('Hidden - Calculator'!$B$15="Yes","",IF('Hidden - Calculator'!M21=0,"",ROUND('Hidden - Calculator'!M21,2))) -> 
A27: Length of Lease | B27: ='Hidden - Calculator'!B24&" years" -> 7 years | D27: =IF(H27="","",'Hidden - Calculator'!F28) -> 25 | E27: =IF(H27="","",'Hidden - Calculator'!E28) -> 2019-07-01 | F27: =IF(H27="","",ROUND('Hidden - Calculator'!AN28,2)) -> 4686.93 | G27: =IF(H27="","",ROUND('Hidden - Calculator'!AO28,2)) -> 1186.5 | H27: =IF('Hidden - Calculator'!AP28=0,"",'Hidden - Calculator'!AP28) -> 5873.43 | J27: =IF(M27="","",'Hidden - Calculator'!P29) ->  | K27: =IF(M27="","",ROUND('Hidden - Calculator'!Q29,2)) ->  | L27: =IF(M27="","",ROUND('Hidden - Calculator'!R29,2)) ->  | M27: =IF('Hidden - Calculator'!S29=0,"",'Hidden - Calculator'!S29) ->  | O27: =IF('Hidden - Calculator'!W28="","",'Hidden - Calculator'!W28) ->  | P27: =IF('Hidden - Calculator'!X28="","",ROUND('Hidden - Calculator'!X28,0)) ->  | Q27: =IF('Hidden - Calculator'!Y28="","",ROUND('Hidden - Calculator'!Y28,0)) ->  | R27: =IF('Hidden - Calculator'!Z28="","",ROUND('Hidden - Calculator'!Z28,0)) ->  | T27: Lease Liability | U27: ='Hidden - Calculator'!B57 -> 64777.42 | X27: Principal - Lease | Y27: ='Hidden - Calculator'!B81 -> 64777.42 | AC27: =IF(AD27="","",'Hidden - Calculator'!L22) ->  | AD27: =IF('Hidden - Calculator'!$B$15="Yes","",IF('Hidden - Calculator'!M22=0,"",ROUND('Hidden - Calculator'!M22,2))) -> 
A28: Frequency of Lease Payments | B28: ='Hidden - Calculator'!B26 -> Monthly - (12) | D28: =IF(H28="","",'Hidden - Calculator'!F29) -> 26 | E28: =IF(H28="","",'Hidden - Calculator'!E29) -> 2019-08-01 | F28: =IF(H28="","",ROUND('Hidden - Calculator'!AN29,2)) -> 4704.27 | G28: =IF(H28="","",ROUND('Hidden - Calculator'!AO29,2)) -> 1169.16 | H28: =IF('Hidden - Calculator'!AP29=0,"",'Hidden - Calculator'!AP29) -> 5873.43 | J28: =IF(M28="","",'Hidden - Calculator'!P30) ->  | K28: =IF(M28="","",ROUND('Hidden - Calculator'!Q30,2)) ->  | L28: =IF(M28="","",ROUND('Hidden - Calculator'!R30,2)) ->  | M28: =IF('Hidden - Calculator'!S30=0,"",'Hidden - Calculator'!S30) ->  | T28: Interest Expense | U28: ='Hidden - Calculator'!B58 -> 7717.58 | X28: Interest Expense | Y28: ='Hidden - Calculator'!B82 -> 7717.58 | AC28: =IF(AD28="","",'Hidden - Calculator'!L23) ->  | AD28: =IF('Hidden - Calculator'!$B$15="Yes","",IF('Hidden - Calculator'!M23=0,"",ROUND('Hidden - Calculator'!M23,2))) -> 
A29: Annualized Interest Rate | B29: ='Hidden - Calculator'!B27 -> 0.0444 | D29: =IF(H29="","",'Hidden - Calculator'!F30) -> 27 | E29: =IF(H29="","",'Hidden - Calculator'!E30) -> 2019-09-01 | F29: =IF(H29="","",ROUND('Hidden - Calculator'!AN30,2)) -> 4721.67 | G29: =IF(H29="","",ROUND('Hidden - Calculator'!AO30,2)) -> 1151.76 | H29: =IF('Hidden - Calculator'!AP30=0,"",'Hidden - Calculator'!AP30) -> 5873.43 | J29: =IF(M29="","",'Hidden - Calculator'!P31) ->  | K29: =IF(M29="","",ROUND('Hidden - Calculator'!Q31,2)) ->  | L29: =IF(M29="","",ROUND('Hidden - Calculator'!R31,2)) ->  | M29: =IF('Hidden - Calculator'!S31=0,"",'Hidden - Calculator'!S31) ->  | T29: Cash | V29: ='Hidden - Calculator'!C59 -> 72495 | X29: Cash | Z29: ='Hidden - Calculator'!C83 -> 72495 | AC29: =IF(AD29="","",'Hidden - Calculator'!L24) ->  | AD29: =IF('Hidden - Calculator'!$B$15="Yes","",IF('Hidden - Calculator'!M24=0,"",ROUND('Hidden - Calculator'!M24,2))) -> 
A30: Total Present Value of Lease | B30: ='Hidden - Calculator'!H2 -> 421984.5 | D30: =IF(H30="","",'Hidden - Calculator'!F31) -> 28 | E30: =IF(H30="","",'Hidden - Calculator'!E31) -> 2019-10-01 | F30: =IF(H30="","",ROUND('Hidden - Calculator'!AN31,2)) -> 4739.14 | G30: =IF(H30="","",ROUND('Hidden - Calculator'!AO31,2)) -> 1134.29 | H30: =IF('Hidden - Calculator'!AP31=0,"",'Hidden - Calculator'!AP31) -> 5873.43 | J30: =IF(M30="","",'Hidden - Calculator'!P32) ->  | K30: =IF(M30="","",ROUND('Hidden - Calculator'!Q32,2)) ->  | L30: =IF(M30="","",ROUND('Hidden - Calculator'!R32,2)) ->  | M30: =IF('Hidden - Calculator'!S32=0,"",'Hidden - Calculator'!S32) ->  | AC30: =IF(AD30="","",'Hidden - Calculator'!L25) ->  | AD30: =IF('Hidden - Calculator'!$B$15="Yes","",IF('Hidden - Calculator'!M25=0,"",ROUND('Hidden - Calculator'!M25,2))) -> 
D31: =IF(H31="","",'Hidden - Calculator'!F32) -> 29 | E31: =IF(H31="","",'Hidden - Calculator'!E32) -> 2019-11-01 | F31: =IF(H31="","",ROUND('Hidden - Calculator'!AN32,2)) -> 4756.68 | G31: =IF(H31="","",ROUND('Hidden - Calculator'!AO32,2)) -> 1116.75 | H31: =IF('Hidden - Calculator'!AP32=0,"",'Hidden - Calculator'!AP32) -> 5873.43 | J31: =IF(M31="","",'Hidden - Calculator'!P33) ->  | K31: =IF(M31="","",ROUND('Hidden - Calculator'!Q33,2)) ->  | L31: =IF(M31="","",ROUND('Hidden - Calculator'!R33,2)) ->  | M31: =IF('Hidden - Calculator'!S33=0,"",'Hidden - Calculator'!S33) ->  | T31: ="Recording Depreciation for FY"&YEAR('Hidden - Calculator'!$B$4) -> Recording Depreciation for FY2022 | AC31: =IF(AD31="","",'Hidden - Calculator'!L26) ->  | AD31: =IF('Hidden - Calculator'!$B$15="Yes","",IF('Hidden - Calculator'!M26=0,"",ROUND('Hidden - Calculator'!M26,2))) -> 
D32: =IF(H32="","",'Hidden - Calculator'!F33) -> 30 | E32: =IF(H32="","",'Hidden - Calculator'!E33) -> 2019-12-01 | F32: =IF(H32="","",ROUND('Hidden - Calculator'!AN33,2)) -> 4774.28 | G32: =IF(H32="","",ROUND('Hidden - Calculator'!AO33,2)) -> 1099.15 | H32: =IF('Hidden - Calculator'!AP33=0,"",'Hidden - Calculator'!AP33) -> 5873.43 | J32: =IF(M32="","",'Hidden - Calculator'!P34) ->  | K32: =IF(M32="","",ROUND('Hidden - Calculator'!Q34,2)) ->  | L32: =IF(M32="","",ROUND('Hidden - Calculator'!R34,2)) ->  | M32: =IF('Hidden - Calculator'!S34=0,"",'Hidden - Calculator'!S34) ->  | T32: Account | U32: Debit | V32: Credit | AC32: =IF(AD32="","",'Hidden - Calculator'!L27) ->  | AD32: =IF('Hidden - Calculator'!$B$15="Yes","",IF('Hidden - Calculator'!M27=0,"",ROUND('Hidden - Calculator'!M27,2))) -> 
A33: Disclosures | D33: =IF(H33="","",'Hidden - Calculator'!F34) -> 31 | E33: =IF(H33="","",'Hidden - Calculator'!E34) -> 2020-01-01 | F33: =IF(H33="","",ROUND('Hidden - Calculator'!AN34,2)) -> 4791.94 | G33: =IF(H33="","",ROUND('Hidden - Calculator'!AO34,2)) -> 1081.49 | H33: =IF('Hidden - Calculator'!AP34=0,"",'Hidden - Calculator'!AP34) -> 5873.43 | J33: =IF(M33="","",'Hidden - Calculator'!P35) ->  | K33: =IF(M33="","",ROUND('Hidden - Calculator'!Q35,2)) ->  | L33: =IF(M33="","",ROUND('Hidden - Calculator'!R35,2)) ->  | M33: =IF('Hidden - Calculator'!S35=0,"",'Hidden - Calculator'!S35) ->  | T33: =IF('Hidden - Calculator'!$B$15="Yes","N/A - Asset is nondepreciable","Lease Asset Depreciation Expense") -> Lease Asset Depreciation Expense | U33: =IF('Hidden - Calculator'!$B$15="Yes","",'Hidden - Calculator'!B55) -> 60283.5 | AC33: =IF(AD33="","",'Hidden - Calculator'!L28) ->  | AD33: =IF('Hidden - Calculator'!$B$15="Yes","",IF('Hidden - Calculator'!M28=0,"",ROUND('Hidden - Calculator'!M28,2))) -> 
D34: =IF(H34="","",'Hidden - Calculator'!F35) -> 32 | E34: =IF(H34="","",'Hidden - Calculator'!E35) -> 2020-02-01 | F34: =IF(H34="","",ROUND('Hidden - Calculator'!AN35,2)) -> 4809.67 | G34: =IF(H34="","",ROUND('Hidden - Calculator'!AO35,2)) -> 1063.76 | H34: =IF('Hidden - Calculator'!AP35=0,"",'Hidden - Calculator'!AP35) -> 5873.43 | J34: =IF(M34="","",'Hidden - Calculator'!P36) ->  | K34: =IF(M34="","",ROUND('Hidden - Calculator'!Q36,2)) ->  | L34: =IF(M34="","",ROUND('Hidden - Calculator'!R36,2)) ->  | M34: =IF('Hidden - Calculator'!S36=0,"",'Hidden - Calculator'!S36) ->  | T34: =IF('Hidden - Calculator'!$B$15="Yes","","Accumulated Depreciation") -> Accumulated Depreciation | V34: =IF('Hidden - Calculator'!$B$15="Yes","",'Hidden - Calculator'!C56) -> 60283.5 | AC34: =IF(AD34="","",'Hidden - Calculator'!L29) ->  | AD34: =IF('Hidden - Calculator'!$B$15="Yes","",IF('Hidden - Calculator'!M29=0,"",ROUND('Hidden - Calculator'!M29,2))) -> 
A35: Commitments and Collateral | B35: =IF('Hidden - Calculator'!B19=0,"",'Hidden - Calculator'!B19) -> 1-2799 1100 S Main Marion | D35: =IF(H35="","",'Hidden - Calculator'!F36) -> 33 | E35: =IF(H35="","",'Hidden - Calculator'!E36) -> 2020-03-01 | F35: =IF(H35="","",ROUND('Hidden - Calculator'!AN36,2)) -> 4827.47 | G35: =IF(H35="","",ROUND('Hidden - Calculator'!AO36,2)) -> 1045.96 | H35: =IF('Hidden - Calculator'!AP36=0,"",'Hidden - Calculator'!AP36) -> 5873.43 | J35: =IF(M35="","",'Hidden - Calculator'!P37) ->  | K35: =IF(M35="","",ROUND('Hidden - Calculator'!Q37,2)) ->  | L35: =IF(M35="","",ROUND('Hidden - Calculator'!R37,2)) ->  | M35: =IF('Hidden - Calculator'!S37=0,"",'Hidden - Calculator'!S37) ->  | AC35: =IF(AD35="","",'Hidden - Calculator'!L30) ->  | AD35: =IF('Hidden - Calculator'!$B$15="Yes","",IF('Hidden - Calculator'!M30=0,"",ROUND('Hidden - Calculator'!M30,2))) -> 
D36: =IF(H36="","",'Hidden - Calculator'!F37) -> 34 | E36: =IF(H36="","",'Hidden - Calculator'!E37) -> 2020-04-01 | F36: =IF(H36="","",ROUND('Hidden - Calculator'!AN37,2)) -> 4845.33 | G36: =IF(H36="","",ROUND('Hidden - Calculator'!AO37,2)) -> 1028.1 | H36: =IF('Hidden - Calculator'!AP37=0,"",'Hidden - Calculator'!AP37) -> 5873.43 | J36: =IF(M36="","",'Hidden - Calculator'!P38) ->  | K36: =IF(M36="","",ROUND('Hidden - Calculator'!Q38,2)) ->  | L36: =IF(M36="","",ROUND('Hidden - Calculator'!R38,2)) ->  | M36: =IF('Hidden - Calculator'!S38=0,"",'Hidden - Calculator'!S38) ->  | T36: ="Recording Accrued Interest Payable for FY"&YEAR('Hidden - Calculator'!$B$4) -> Recording Accrued Interest Payable for FY2022 | AC36: =IF(AD36="","",'Hidden - Calculator'!L31) ->  | AD36: =IF('Hidden - Calculator'!$B$15="Yes","",IF('Hidden - Calculator'!M31=0,"",ROUND('Hidden - Calculator'!M31,2))) -> 
D37: =IF(H37="","",'Hidden - Calculator'!F38) -> 35 | E37: =IF(H37="","",'Hidden - Calculator'!E38) -> 2020-05-01 | F37: =IF(H37="","",ROUND('Hidden - Calculator'!AN38,2)) -> 4863.26 | G37: =IF(H37="","",ROUND('Hidden - Calculator'!AO38,2)) -> 1010.17 | H37: =IF('Hidden - Calculator'!AP38=0,"",'Hidden - Calculator'!AP38) -> 5873.43 | J37: =IF(M37="","",'Hidden - Calculator'!P39) ->  | K37: =IF(M37="","",ROUND('Hidden - Calculator'!Q39,2)) ->  | L37: =IF(M37="","",ROUND('Hidden - Calculator'!R39,2)) ->  | M37: =IF('Hidden - Calculator'!S39=0,"",'Hidden - Calculator'!S39) ->  | T37: Account | U37: Debit | V37: Credit | AC37: =IF(AD37="","",'Hidden - Calculator'!L32) ->  | AD37: =IF('Hidden - Calculator'!$B$15="Yes","",IF('Hidden - Calculator'!M32=0,"",ROUND('Hidden - Calculator'!M32,2))) -> 
D38: =IF(H38="","",'Hidden - Calculator'!F39) -> 36 | E38: =IF(H38="","",'Hidden - Calculator'!E39) -> 2020-06-01 | F38: =IF(H38="","",ROUND('Hidden - Calculator'!AN39,2)) -> 4881.25 | G38: =IF(H38="","",ROUND('Hidden - Calculator'!AO39,2)) -> 992.18 | H38: =IF('Hidden - Calculator'!AP39=0,"",'Hidden - Calculator'!AP39) -> 5873.43 | J38: =IF(M38="","",'Hidden - Calculator'!P40) ->  | K38: =IF(M38="","",ROUND('Hidden - Calculator'!Q40,2)) ->  | L38: =IF(M38="","",ROUND('Hidden - Calculator'!R40,2)) ->  | M38: =IF('Hidden - Calculator'!S40=0,"",'Hidden - Calculator'!S40) ->  | T38: =IF('Hidden - Calculator'!B99=0,"No accrued interest payable based on",'Hidden - Calculator'!A60) -> Interest Expense | U38: =IF('Hidden - Calculator'!B60=0,"",'Hidden - Calculator'!B60) -> 495.35 | AC38: =IF(AD38="","",'Hidden - Calculator'!L33) ->  | AD38: =IF('Hidden - Calculator'!$B$15="Yes","",IF('Hidden - Calculator'!M33=0,"",ROUND('Hidden - Calculator'!M33,2))) -> 
A39: Related Party Lease? | B39: =IF('Hidden - Calculator'!B20=0,"",'Hidden - Calculator'!B20) -> No | D39: =IF(H39="","",'Hidden - Calculator'!F40) -> 37 | E39: =IF(H39="","",'Hidden - Calculator'!E40) -> 2020-07-01 | F39: =IF(H39="","",ROUND('Hidden - Calculator'!AN40,2)) -> 4899.31 | G39: =IF(H39="","",ROUND('Hidden - Calculator'!AO40,2)) -> 974.12 | H39: =IF('Hidden - Calculator'!AP40=0,"",'Hidden - Calculator'!AP40) -> 5873.43 | J39: =IF(M39="","",'Hidden - Calculator'!P41) ->  | K39: =IF(M39="","",ROUND('Hidden - Calculator'!Q41,2)) ->  | L39: =IF(M39="","",ROUND('Hidden - Calculator'!R41,2)) ->  | M39: =IF('Hidden - Calculator'!S41=0,"",'Hidden - Calculator'!S41) ->  | T39: =IF('Hidden - Calculator'!B99=0,"timing of lease payments.",'Hidden - Calculator'!A61) -> Accrued Interest Payable | V39: =IF('Hidden - Calculator'!C61=0,"",'Hidden - Calculator'!C61) -> 495.35 | AC39: =IF(AD39="","",'Hidden - Calculator'!L34) ->  | AD39: =IF('Hidden - Calculator'!$B$15="Yes","",IF('Hidden - Calculator'!M34=0,"",ROUND('Hidden - Calculator'!M34,2))) -> 
A40: Structured as if unrelated? | B40: =IF('Hidden - Calculator'!B21=0,"",'Hidden - Calculator'!B21) -> N/A | D40: =IF(H40="","",'Hidden - Calculator'!F41) -> 38 | E40: =IF(H40="","",'Hidden - Calculator'!E41) -> 2020-08-01 | F40: =IF(H40="","",ROUND('Hidden - Calculator'!AN41,2)) -> 4917.44 | G40: =IF(H40="","",ROUND('Hidden - Calculator'!AO41,2)) -> 955.99 | H40: =IF('Hidden - Calculator'!AP41=0,"",'Hidden - Calculator'!AP41) -> 5873.43 | J40: =IF(M40="","",'Hidden - Calculator'!P42) ->  | K40: =IF(M40="","",ROUND('Hidden - Calculator'!Q42,2)) ->  | L40: =IF(M40="","",ROUND('Hidden - Calculator'!R42,2)) ->  | M40: =IF('Hidden - Calculator'!S42=0,"",'Hidden - Calculator'!S42) ->  | AC40: =IF(AD40="","",'Hidden - Calculator'!L35) ->  | AD40: =IF('Hidden - Calculator'!$B$15="Yes","",IF('Hidden - Calculator'!M35=0,"",ROUND('Hidden - Calculator'!M35,2))) -> 
D41: =IF(H41="","",'Hidden - Calculator'!F42) -> 39 | E41: =IF(H41="","",'Hidden - Calculator'!E42) -> 2020-09-01 | F41: =IF(H41="","",ROUND('Hidden - Calculator'!AN42,2)) -> 4935.64 | G41: =IF(H41="","",ROUND('Hidden - Calculator'!AO42,2)) -> 937.79 | H41: =IF('Hidden - Calculator'!AP42=0,"",'Hidden - Calculator'!AP42) -> 5873.43 | J41: =IF(M41="","",'Hidden - Calculator'!P43) ->  | K41: =IF(M41="","",ROUND('Hidden - Calculator'!Q43,2)) ->  | L41: =IF(M41="","",ROUND('Hidden - Calculator'!R43,2)) ->  | M41: =IF('Hidden - Calculator'!S43=0,"",'Hidden - Calculator'!S43) ->  | AC41: =IF(AD41="","",'Hidden - Calculator'!L36) ->  | AD41: =IF('Hidden - Calculator'!$B$15="Yes","",IF('Hidden - Calculator'!M36=0,"",ROUND('Hidden - Calculator'!M36,2))) -> 
A42: Related Party Additional Information | B42: =IF('Hidden - Calculator'!B22=0,"",'Hidden - Calculator'!B22) ->  | D42: =IF(H42="","",'Hidden - Calculator'!F43) -> 40 | E42: =IF(H42="","",'Hidden - Calculator'!E43) -> 2020-10-01 | F42: =IF(H42="","",ROUND('Hidden - Calculator'!AN43,2)) -> 4953.9 | G42: =IF(H42="","",ROUND('Hidden - Calculator'!AO43,2)) -> 919.53 | H42: =IF('Hidden - Calculator'!AP43=0,"",'Hidden - Calculator'!AP43) -> 5873.43 | J42: =IF(M42="","",'Hidden - Calculator'!P44) ->  | K42: =IF(M42="","",ROUND('Hidden - Calculator'!Q44,2)) ->  | L42: =IF(M42="","",ROUND('Hidden - Calculator'!R44,2)) ->  | M42: =IF('Hidden - Calculator'!S44=0,"",'Hidden - Calculator'!S44) ->  | T42: Example Full Accrual Journal Entries for the Next Fiscal Year | X42: Example Modified Accrual Journal Entries for the Next Fiscal Year | AC42: =IF(AD42="","",'Hidden - Calculator'!L37) ->  | AD42: =IF('Hidden - Calculator'!$B$15="Yes","",IF('Hidden - Calculator'!M37=0,"",ROUND('Hidden - Calculator'!M37,2))) -> 
D43: =IF(H43="","",'Hidden - Calculator'!F44) -> 41 | E43: =IF(H43="","",'Hidden - Calculator'!E44) -> 2020-11-01 | F43: =IF(H43="","",ROUND('Hidden - Calculator'!AN44,2)) -> 4972.23 | G43: =IF(H43="","",ROUND('Hidden - Calculator'!AO44,2)) -> 901.2 | H43: =IF('Hidden - Calculator'!AP44=0,"",'Hidden - Calculator'!AP44) -> 5873.43 | J43: =IF(M43="","",'Hidden - Calculator'!P45) ->  | K43: =IF(M43="","",ROUND('Hidden - Calculator'!Q45,2)) ->  | L43: =IF(M43="","",ROUND('Hidden - Calculator'!R45,2)) ->  | M43: =IF('Hidden - Calculator'!S45=0,"",'Hidden - Calculator'!S45) ->  | T43: ="Recording First Lease Payment in FY"&YEAR('Hidden - Calculator'!B4)+1 -> Recording First Lease Payment in FY2023 | X43: ="Recording First Lease Payment in FY"&YEAR('Hidden - Calculator'!B4)+1 -> Recording First Lease Payment in FY2023 | AC43: =IF(AD43="","",'Hidden - Calculator'!L38) ->  | AD43: =IF('Hidden - Calculator'!$B$15="Yes","",IF('Hidden - Calculator'!M38=0,"",ROUND('Hidden - Calculator'!M38,2))) -> 
D44: =IF(H44="","",'Hidden - Calculator'!F45) -> 42 | E44: =IF(H44="","",'Hidden - Calculator'!E45) -> 2020-12-01 | F44: =IF(H44="","",ROUND('Hidden - Calculator'!AN45,2)) -> 4990.62 | G44: =IF(H44="","",ROUND('Hidden - Calculator'!AO45,2)) -> 882.81 | H44: =IF('Hidden - Calculator'!AP45=0,"",'Hidden - Calculator'!AP45) -> 5873.43 | J44: =IF(M44="","",'Hidden - Calculator'!P46) ->  | K44: =IF(M44="","",ROUND('Hidden - Calculator'!Q46,2)) ->  | L44: =IF(M44="","",ROUND('Hidden - Calculator'!R46,2)) ->  | M44: =IF('Hidden - Calculator'!S46=0,"",'Hidden - Calculator'!S46) ->  | T44: Account | U44: Debit | V44: Credit | X44: Account | Y44: Debit | Z44: Credit | AC44: =IF(AD44="","",'Hidden - Calculator'!L39) ->  | AD44: =IF('Hidden - Calculator'!$B$15="Yes","",IF('Hidden - Calculator'!M39=0,"",ROUND('Hidden - Calculator'!M39,2))) -> 
D45: =IF(H45="","",'Hidden - Calculator'!F46) -> 43 | E45: =IF(H45="","",'Hidden - Calculator'!E46) -> 2021-01-01 | F45: =IF(H45="","",ROUND('Hidden - Calculator'!AN46,2)) -> 5009.09 | G45: =IF(H45="","",ROUND('Hidden - Calculator'!AO46,2)) -> 864.34 | H45: =IF('Hidden - Calculator'!AP46=0,"",'Hidden - Calculator'!AP46) -> 5873.43 | J45: =IF(M45="","",'Hidden - Calculator'!P47) ->  | K45: =IF(M45="","",ROUND('Hidden - Calculator'!Q47,2)) ->  | L45: =IF(M45="","",ROUND('Hidden - Calculator'!R47,2)) ->  | M45: =IF('Hidden - Calculator'!S47=0,"",'Hidden - Calculator'!S47) ->  | T45: Lease Liability | U45: ='Hidden - Calculator'!B63 -> 5528.82 | X45: Principal - Lease | Y45: ='Hidden - Calculator'!B86 -> 5528.82 | AB45: =IF(AD45="","",AB44+1) ->  | AC45: =IF(AD45="","",'Hidden - Calculator'!L40) ->  | AD45: =IF('Hidden - Calculator'!$B$15="Yes","",IF('Hidden - Calculator'!M40=0,"",ROUND('Hidden - Calculator'!M40,2))) -> 
A46: Variable Payments Based on Performance or Usage? | D46: =IF(H46="","",'Hidden - Calculator'!F47) -> 44 | E46: =IF(H46="","",'Hidden - Calculator'!E47) -> 2021-02-01 | F46: =IF(H46="","",ROUND('Hidden - Calculator'!AN47,2)) -> 5027.62 | G46: =IF(H46="","",ROUND('Hidden - Calculator'!AO47,2)) -> 845.81 | H46: =IF('Hidden - Calculator'!AP47=0,"",'Hidden - Calculator'!AP47) -> 5873.43 | J46: =IF(M46="","",'Hidden - Calculator'!P48) ->  | K46: =IF(M46="","",ROUND('Hidden - Calculator'!Q48,2)) ->  | L46: =IF(M46="","",ROUND('Hidden - Calculator'!R48,2)) ->  | M46: =IF('Hidden - Calculator'!S48=0,"",'Hidden - Calculator'!S48) ->  | T46: Interest Expense | U46: ='Hidden - Calculator'!B64 -> 17.08 | X46: Interest Expense | Y46: ='Hidden - Calculator'!B87 -> 512.43 | AC46: =IF(AD46="","",'Hidden - Calculator'!L41) ->  | AD46: =IF('Hidden - Calculator'!$B$15="Yes","",IF('Hidden - Calculator'!M41=0,"",ROUND('Hidden - Calculator'!M41,2))) -> 
B47: =IF('Hidden - Calculator'!B30=0,"",'Hidden - Calculator'!B30) -> No | D47: =IF(H47="","",'Hidden - Calculator'!F48) -> 45 | E47: =IF(H47="","",'Hidden - Calculator'!E48) -> 2021-03-01 | F47: =IF(H47="","",ROUND('Hidden - Calculator'!AN48,2)) -> 5046.23 | G47: =IF(H47="","",ROUND('Hidden - Calculator'!AO48,2)) -> 827.2 | H47: =IF('Hidden - Calculator'!AP48=0,"",'Hidden - Calculator'!AP48) -> 5873.43 | J47: =IF(M47="","",'Hidden - Calculator'!P49) ->  | K47: =IF(M47="","",ROUND('Hidden - Calculator'!Q49,2)) ->  | L47: =IF(M47="","",ROUND('Hidden - Calculator'!R49,2)) ->  | M47: =IF('Hidden - Calculator'!S49=0,"",'Hidden - Calculator'!S49) ->  | T47: Cash | V47: ='Hidden - Calculator'!C65 -> 6041.25 | X47: Cash | Z47: ='Hidden - Calculator'!C88 -> 6041.25 | AC47: =IF(AD47="","",'Hidden - Calculator'!L42) ->  | AD47: =IF('Hidden - Calculator'!$B$15="Yes","",IF('Hidden - Calculator'!M42=0,"",ROUND('Hidden - Calculator'!M42,2))) -> 
D48: =IF(H48="","",'Hidden - Calculator'!F49) -> 46 | E48: =IF(H48="","",'Hidden - Calculator'!E49) -> 2021-04-01 | F48: =IF(H48="","",ROUND('Hidden - Calculator'!AN49,2)) -> 5064.9 | G48: =IF(H48="","",ROUND('Hidden - Calculator'!AO49,2)) -> 808.53 | H48: =IF('Hidden - Calculator'!AP49=0,"",'Hidden - Calculator'!AP49) -> 5873.43 | J48: =IF(M48="","",'Hidden - Calculator'!P50) ->  | K48: =IF(M48="","",ROUND('Hidden - Calculator'!Q50,2)) ->  | L48: =IF(M48="","",ROUND('Hidden - Calculator'!R50,2)) ->  | M48: =IF('Hidden - Calculator'!S50=0,"",'Hidden - Calculator'!S50) ->  | T48: =IF('Hidden - Calculator'!B66=0,"",'Hidden - Calculator'!A66) -> Accrued Interest Payable | U48: =IF('Hidden - Calculator'!B66=0,"",'Hidden - Calculator'!B66) -> 495.35 | AC48: =IF(AD48="","",'Hidden - Calculator'!L43) ->  | AD48: =IF('Hidden - Calculator'!$B$15="Yes","",IF('Hidden - Calculator'!M43=0,"",ROUND('Hidden - Calculator'!M43,2))) -> 
A49: Description of Variable Payment | B49: =IF('Hidden - Calculator'!B31=0,"",'Hidden - Calculator'!B31) ->  | D49: =IF(H49="","",'Hidden - Calculator'!F50) -> 47 | E49: =IF(H49="","",'Hidden - Calculator'!E50) -> 2021-05-01 | F49: =IF(H49="","",ROUND('Hidden - Calculator'!AN50,2)) -> 5083.64 | G49: =IF(H49="","",ROUND('Hidden - Calculator'!AO50,2)) -> 789.79 | H49: =IF('Hidden - Calculator'!AP50=0,"",'Hidden - Calculator'!AP50) -> 5873.43 | J49: =IF(M49="","",'Hidden - Calculator'!P51) ->  | K49: =IF(M49="","",ROUND('Hidden - Calculator'!Q51,2)) ->  | L49: =IF(M49="","",ROUND('Hidden - Calculator'!R51,2)) ->  | M49: =IF('Hidden - Calculator'!S51=0,"",'Hidden - Calculator'!S51) ->  | AC49: =IF(AD49="","",'Hidden - Calculator'!L44) ->  | AD49: =IF('Hidden - Calculator'!$B$15="Yes","",IF('Hidden - Calculator'!M44=0,"",ROUND('Hidden - Calculator'!M44,2))) -> 
D50: =IF(H50="","",'Hidden - Calculator'!F51) -> 48 | E50: =IF(H50="","",'Hidden - Calculator'!E51) -> 2021-06-01 | F50: =IF(H50="","",ROUND('Hidden - Calculator'!AN51,2)) -> 5102.45 | G50: =IF(H50="","",ROUND('Hidden - Calculator'!AO51,2)) -> 770.98 | H50: =IF('Hidden - Calculator'!AP51=0,"",'Hidden - Calculator'!AP51) -> 5873.43 | J50: =IF(M50="","",'Hidden - Calculator'!P52) ->  | K50: =IF(M50="","",ROUND('Hidden - Calculator'!Q52,2)) ->  | L50: =IF(M50="","",ROUND('Hidden - Calculator'!R52,2)) ->  | M50: =IF('Hidden - Calculator'!S52=0,"",'Hidden - Calculator'!S52) ->  | T50: ="Recording Depreciation for FY"&YEAR('Hidden - Calculator'!$B$4)+1 -> Recording Depreciation for FY2023 | AC50: =IF(AD50="","",'Hidden - Calculator'!L45) ->  | AD50: =IF('Hidden - Calculator'!$B$15="Yes","",IF('Hidden - Calculator'!M45=0,"",ROUND('Hidden - Calculator'!M45,2))) -> 
D51: =IF(H51="","",'Hidden - Calculator'!F52) -> 49 | E51: =IF(H51="","",'Hidden - Calculator'!E52) -> 2021-07-01 | F51: =IF(H51="","",ROUND('Hidden - Calculator'!AN52,2)) -> 5289.15 | G51: =IF(H51="","",ROUND('Hidden - Calculator'!AO52,2)) -> 752.1 | H51: =IF('Hidden - Calculator'!AP52=0,"",'Hidden - Calculator'!AP52) -> 6041.25 | J51: =IF(M51="","",'Hidden - Calculator'!P53) ->  | K51: =IF(M51="","",ROUND('Hidden - Calculator'!Q53,2)) ->  | L51: =IF(M51="","",ROUND('Hidden - Calculator'!R53,2)) ->  | M51: =IF('Hidden - Calculator'!S53=0,"",'Hidden - Calculator'!S53) ->  | T51: Account | U51: Debit | V51: Credit | AC51: =IF(AD51="","",'Hidden - Calculator'!L46) ->  | AD51: =IF('Hidden - Calculator'!$B$15="Yes","",IF('Hidden - Calculator'!M46=0,"",ROUND('Hidden - Calculator'!M46,2))) -> 
D52: =IF(H52="","",'Hidden - Calculator'!F53) -> 50 | E52: =IF(H52="","",'Hidden - Calculator'!E53) -> 2021-08-01 | F52: =IF(H52="","",ROUND('Hidden - Calculator'!AN53,2)) -> 5308.72 | G52: =IF(H52="","",ROUND('Hidden - Calculator'!AO53,2)) -> 732.53 | H52: =IF('Hidden - Calculator'!AP53=0,"",'Hidden - Calculator'!AP53) -> 6041.25 | J52: =IF(M52="","",'Hidden - Calculator'!P54) ->  | K52: =IF(M52="","",ROUND('Hidden - Calculator'!Q54,2)) ->  | L52: =IF(M52="","",ROUND('Hidden - Calculator'!R54,2)) ->  | M52: =IF('Hidden - Calculator'!S54=0,"",'Hidden - Calculator'!S54) ->  | T52: =IF('Hidden - Calculator'!$B$15="Yes","N/A - Asset is nondepreciable","Lease Asset Depreciation Expense") -> Lease Asset Depreciation Expense | U52: =IF('Hidden - Calculator'!$B$15="Yes","",'Hidden - Calculator'!B68) -> 60283.5 | AC52: =IF(AD52="","",'Hidden - Calculator'!L47) ->  | AD52: =IF('Hidden - Calculator'!$B$15="Yes","",IF('Hidden - Calculator'!M47=0,"",ROUND('Hidden - Calculator'!M47,2))) -> 
D53: =IF(H53="","",'Hidden - Calculator'!F54) -> 51 | E53: =IF(H53="","",'Hidden - Calculator'!E54) -> 2021-09-01 | F53: =IF(H53="","",ROUND('Hidden - Calculator'!AN54,2)) -> 5328.36 | G53: =IF(H53="","",ROUND('Hidden - Calculator'!AO54,2)) -> 712.89 | H53: =IF('Hidden - Calculator'!AP54=0,"",'Hidden - Calculator'!AP54) -> 6041.25 | J53: =IF(M53="","",'Hidden - Calculator'!P55) ->  | K53: =IF(M53="","",ROUND('Hidden - Calculator'!Q55,2)) ->  | L53: =IF(M53="","",ROUND('Hidden - Calculator'!R55,2)) ->  | M53: =IF('Hidden - Calculator'!S55=0,"",'Hidden - Calculator'!S55) ->  | T53: =IF('Hidden - Calculator'!$B$15="Yes","","Accumulated Depreciation") -> Accumulated Depreciation | V53: =IF('Hidden - Calculator'!$B$15="Yes","",'Hidden - Calculator'!C69) -> 60283.5 | AC53: =IF(AD53="","",'Hidden - Calculator'!L48) ->  | AD53: =IF('Hidden - Calculator'!$B$15="Yes","",IF('Hidden - Calculator'!M48=0,"",ROUND('Hidden - Calculator'!M48,2))) -> 
D54: =IF(H54="","",'Hidden - Calculator'!F55) -> 52 | E54: =IF(H54="","",'Hidden - Calculator'!E55) -> 2021-10-01 | F54: =IF(H54="","",ROUND('Hidden - Calculator'!AN55,2)) -> 5348.07 | G54: =IF(H54="","",ROUND('Hidden - Calculator'!AO55,2)) -> 693.18 | H54: =IF('Hidden - Calculator'!AP55=0,"",'Hidden - Calculator'!AP55) -> 6041.25 | J54: =IF(M54="","",'Hidden - Calculator'!P56) ->  | K54: =IF(M54="","",ROUND('Hidden - Calculator'!Q56,2)) ->  | L54: =IF(M54="","",ROUND('Hidden - Calculator'!R56,2)) ->  | M54: =IF('Hidden - Calculator'!S56=0,"",'Hidden - Calculator'!S56) ->  | AC54: =IF(AD54="","",'Hidden - Calculator'!L49) ->  | AD54: =IF('Hidden - Calculator'!$B$15="Yes","",IF('Hidden - Calculator'!M49=0,"",ROUND('Hidden - Calculator'!M49,2))) -> 
D55: =IF(H55="","",'Hidden - Calculator'!F56) -> 53 | E55: =IF(H55="","",'Hidden - Calculator'!E56) -> 2021-11-01 | F55: =IF(H55="","",ROUND('Hidden - Calculator'!AN56,2)) -> 5367.86 | G55: =IF(H55="","",ROUND('Hidden - Calculator'!AO56,2)) -> 673.39 | H55: =IF('Hidden - Calculator'!AP56=0,"",'Hidden - Calculator'!AP56) -> 6041.25 | J55: =IF(M55="","",'Hidden - Calculator'!P57) ->  | K55: =IF(M55="","",ROUND('Hidden - Calculator'!Q57,2)) ->  | L55: =IF(M55="","",ROUND('Hidden - Calculator'!R57,2)) ->  | M55: =IF('Hidden - Calculator'!S57=0,"",'Hidden - Calculator'!S57) ->  | AC55: =IF(AD55="","",'Hidden - Calculator'!L50) ->  | AD55: =IF('Hidden - Calculator'!$B$15="Yes","",IF('Hidden - Calculator'!M50=0,"",ROUND('Hidden - Calculator'!M50,2))) -> 
D56: =IF(H56="","",'Hidden - Calculator'!F57) -> 54 | E56: =IF(H56="","",'Hidden - Calculator'!E57) -> 2021-12-01 | F56: =IF(H56="","",ROUND('Hidden - Calculator'!AN57,2)) -> 5387.72 | G56: =IF(H56="","",ROUND('Hidden - Calculator'!AO57,2)) -> 653.53 | H56: =IF('Hidden - Calculator'!AP57=0,"",'Hidden - Calculator'!AP57) -> 6041.25 | J56: =IF(M56="","",'Hidden - Calculator'!P58) ->  | K56: =IF(M56="","",ROUND('Hidden - Calculator'!Q58,2)) ->  | L56: =IF(M56="","",ROUND('Hidden - Calculator'!R58,2)) ->  | M56: =IF('Hidden - Calculator'!S58=0,"",'Hidden - Calculator'!S58) ->  | AC56: =IF(AD56="","",'Hidden - Calculator'!L51) ->  | AD56: =IF('Hidden - Calculator'!$B$15="Yes","",IF('Hidden - Calculator'!M51=0,"",ROUND('Hidden - Calculator'!M51,2))) -> 
D57: =IF(H57="","",'Hidden - Calculator'!F58) -> 55 | E57: =IF(H57="","",'Hidden - Calculator'!E58) -> 2022-01-01 | F57: =IF(H57="","",ROUND('Hidden - Calculator'!AN58,2)) -> 5407.66 | G57: =IF(H57="","",ROUND('Hidden - Calculator'!AO58,2)) -> 633.59 | H57: =IF('Hidden - Calculator'!AP58=0,"",'Hidden - Calculator'!AP58) -> 6041.25 | J57: =IF(M57="","",'Hidden - Calculator'!P59) ->  | K57: =IF(M57="","",ROUND('Hidden - Calculator'!Q59,2)) ->  | L57: =IF(M57="","",ROUND('Hidden - Calculator'!R59,2)) ->  | M57: =IF('Hidden - Calculator'!S59=0,"",'Hidden - Calculator'!S59) ->  | AC57: =IF(AD57="","",'Hidden - Calculator'!L52) ->  | AD57: =IF('Hidden - Calculator'!$B$15="Yes","",IF('Hidden - Calculator'!M52=0,"",ROUND('Hidden - Calculator'!M52,2))) -> 
D58: =IF(H58="","",'Hidden - Calculator'!F59) -> 56 | E58: =IF(H58="","",'Hidden - Calculator'!E59) -> 2022-02-01 | F58: =IF(H58="","",ROUND('Hidden - Calculator'!AN59,2)) -> 5427.66 | G58: =IF(H58="","",ROUND('Hidden - Calculator'!AO59,2)) -> 613.59 | H58: =IF('Hidden - Calculator'!AP59=0,"",'Hidden - Calculator'!AP59) -> 6041.25 | J58: =IF(M58="","",'Hidden - Calculator'!P60) ->  | K58: =IF(M58="","",ROUND('Hidden - Calculator'!Q60,2)) ->  | L58: =IF(M58="","",ROUND('Hidden - Calculator'!R60,2)) ->  | M58: =IF('Hidden - Calculator'!S60=0,"",'Hidden - Calculator'!S60) ->  | AC58: =IF(AD58="","",'Hidden - Calculator'!L53) ->  | AD58: =IF('Hidden - Calculator'!$B$15="Yes","",IF('Hidden - Calculator'!M53=0,"",ROUND('Hidden - Calculator'!M53,2))) -> 
D59: =IF(H59="","",'Hidden - Calculator'!F60) -> 57 | E59: =IF(H59="","",'Hidden - Calculator'!E60) -> 2022-03-01 | F59: =IF(H59="","",ROUND('Hidden - Calculator'!AN60,2)) -> 5447.75 | G59: =IF(H59="","",ROUND('Hidden - Calculator'!AO60,2)) -> 593.5 | H59: =IF('Hidden - Calculator'!AP60=0,"",'Hidden - Calculator'!AP60) -> 6041.25 | J59: =IF(M59="","",'Hidden - Calculator'!P61) ->  | K59: =IF(M59="","",ROUND('Hidden - Calculator'!Q61,2)) ->  | L59: =IF(M59="","",ROUND('Hidden - Calculator'!R61,2)) ->  | M59: =IF('Hidden - Calculator'!S61=0,"",'Hidden - Calculator'!S61) ->  | AC59: =IF(AD59="","",'Hidden - Calculator'!L54) ->  | AD59: =IF('Hidden - Calculator'!$B$15="Yes","",IF('Hidden - Calculator'!M54=0,"",ROUND('Hidden - Calculator'!M54,2))) -> 
D60: =IF(H60="","",'Hidden - Calculator'!F61) -> 58 | E60: =IF(H60="","",'Hidden - Calculator'!E61) -> 2022-04-01 | F60: =IF(H60="","",ROUND('Hidden - Calculator'!AN61,2)) -> 5467.9 | G60: =IF(H60="","",ROUND('Hidden - Calculator'!AO61,2)) -> 573.35 | H60: =IF('Hidden - Calculator'!AP61=0,"",'Hidden - Calculator'!AP61) -> 6041.25 | J60: =IF(M60="","",'Hidden - Calculator'!P62) ->  | K60: =IF(M60="","",ROUND('Hidden - Calculator'!Q62,2)) ->  | L60: =IF(M60="","",ROUND('Hidden - Calculator'!R62,2)) ->  | M60: =IF('Hidden - Calculator'!S62=0,"",'Hidden - Calculator'!S62) ->  | AC60: =IF(AD60="","",'Hidden - Calculator'!L55) ->  | AD60: =IF('Hidden - Calculator'!$B$15="Yes","",IF('Hidden - Calculator'!M55=0,"",ROUND('Hidden - Calculator'!M55,2))) -> 
D61: =IF(H61="","",'Hidden - Calculator'!F62) -> 59 | E61: =IF(H61="","",'Hidden - Calculator'!E62) -> 2022-05-01 | F61: =IF(H61="","",ROUND('Hidden - Calculator'!AN62,2)) -> 5488.13 | G61: =IF(H61="","",ROUND('Hidden - Calculator'!AO62,2)) -> 553.12 | H61: =IF('Hidden - Calculator'!AP62=0,"",'Hidden - Calculator'!AP62) -> 6041.25 | J61: =IF(M61="","",'Hidden - Calculator'!P63) ->  | K61: =IF(M61="","",ROUND('Hidden - Calculator'!Q63,2)) ->  | L61: =IF(M61="","",ROUND('Hidden - Calculator'!R63,2)) ->  | M61: =IF('Hidden - Calculator'!S63=0,"",'Hidden - Calculator'!S63) ->  | AC61: =IF(AD61="","",'Hidden - Calculator'!L56) ->  | AD61: =IF('Hidden - Calculator'!$B$15="Yes","",IF('Hidden - Calculator'!M56=0,"",ROUND('Hidden - Calculator'!M56,2))) -> 
D62: =IF(H62="","",'Hidden - Calculator'!F63) -> 60 | E62: =IF(H62="","",'Hidden - Calculator'!E63) -> 2022-06-01 | F62: =IF(H62="","",ROUND('Hidden - Calculator'!AN63,2)) -> 5508.44 | G62: =IF(H62="","",ROUND('Hidden - Calculator'!AO63,2)) -> 532.81 | H62: =IF('Hidden - Calculator'!AP63=0,"",'Hidden - Calculator'!AP63) -> 6041.25 | J62: =IF(M62="","",'Hidden - Calculator'!P64) ->  | K62: =IF(M62="","",ROUND('Hidden - Calculator'!Q64,2)) ->  | L62: =IF(M62="","",ROUND('Hidden - Calculator'!R64,2)) ->  | M62: =IF('Hidden - Calculator'!S64=0,"",'Hidden - Calculator'!S64) ->  | AC62: =IF(AD62="","",'Hidden - Calculator'!L57) ->  | AD62: =IF('Hidden - Calculator'!$B$15="Yes","",IF('Hidden - Calculator'!M57=0,"",ROUND('Hidden - Calculator'!M57,2))) -> 
D63: =IF(H63="","",'Hidden - Calculator'!F64) -> 61 | E63: =IF(H63="","",'Hidden - Calculator'!E64) -> 2022-07-01 | F63: =IF(H63="","",ROUND('Hidden - Calculator'!AN64,2)) -> 5528.82 | G63: =IF(H63="","",ROUND('Hidden - Calculator'!AO64,2)) -> 512.43 | H63: =IF('Hidden - Calculator'!AP64=0,"",'Hidden - Calculator'!AP64) -> 6041.25 | J63: =IF(M63="","",'Hidden - Calculator'!P65) ->  | K63: =IF(M63="","",ROUND('Hidden - Calculator'!Q65,2)) ->  | L63: =IF(M63="","",ROUND('Hidden - Calculator'!R65,2)) ->  | M63: =IF('Hidden - Calculator'!S65=0,"",'Hidden - Calculator'!S65) ->  | AC63: =IF(AD63="","",'Hidden - Calculator'!L58) ->  | AD63: =IF('Hidden - Calculator'!$B$15="Yes","",IF('Hidden - Calculator'!M58=0,"",ROUND('Hidden - Calculator'!M58,2))) -> 
D64: =IF(H64="","",'Hidden - Calculator'!F65) -> 62 | E64: =IF(H64="","",'Hidden - Calculator'!E65) -> 2022-08-01 | F64: =IF(H64="","",ROUND('Hidden - Calculator'!AN65,2)) -> 5549.28 | G64: =IF(H64="","",ROUND('Hidden - Calculator'!AO65,2)) -> 491.97 | H64: =IF('Hidden - Calculator'!AP65=0,"",'Hidden - Calculator'!AP65) -> 6041.25 | J64: =IF(M64="","",'Hidden - Calculator'!P66) ->  | K64: =IF(M64="","",ROUND('Hidden - Calculator'!Q66,2)) ->  | L64: =IF(M64="","",ROUND('Hidden - Calculator'!R66,2)) ->  | M64: =IF('Hidden - Calculator'!S66=0,"",'Hidden - Calculator'!S66) ->  | AC64: =IF(AD64="","",'Hidden - Calculator'!L59) ->  | AD64: =IF('Hidden - Calculator'!$B$15="Yes","",IF('Hidden - Calculator'!M59=0,"",ROUND('Hidden - Calculator'!M59,2))) -> 
D65: =IF(H65="","",'Hidden - Calculator'!F66) -> 63 | E65: =IF(H65="","",'Hidden - Calculator'!E66) -> 2022-09-01 | F65: =IF(H65="","",ROUND('Hidden - Calculator'!AN66,2)) -> 5569.81 | G65: =IF(H65="","",ROUND('Hidden - Calculator'!AO66,2)) -> 471.44 | H65: =IF('Hidden - Calculator'!AP66=0,"",'Hidden - Calculator'!AP66) -> 6041.25 | J65: =IF(M65="","",'Hidden - Calculator'!P67) ->  | K65: =IF(M65="","",ROUND('Hidden - Calculator'!Q67,2)) ->  | L65: =IF(M65="","",ROUND('Hidden - Calculator'!R67,2)) ->  | M65: =IF('Hidden - Calculator'!S67=0,"",'Hidden - Calculator'!S67) ->  | AC65: =IF(AD65="","",'Hidden - Calculator'!L60) ->  | AD65: =IF('Hidden - Calculator'!$B$15="Yes","",IF('Hidden - Calculator'!M60=0,"",ROUND('Hidden - Calculator'!M60,2))) -> 
D66: =IF(H66="","",'Hidden - Calculator'!F67) -> 64 | E66: =IF(H66="","",'Hidden - Calculator'!E67) -> 2022-10-01 | F66: =IF(H66="","",ROUND('Hidden - Calculator'!AN67,2)) -> 5590.42 | G66: =IF(H66="","",ROUND('Hidden - Calculator'!AO67,2)) -> 450.83 | H66: =IF('Hidden - Calculator'!AP67=0,"",'Hidden - Calculator'!AP67) -> 6041.25 | J66: =IF(M66="","",'Hidden - Calculator'!P68) ->  | K66: =IF(M66="","",ROUND('Hidden - Calculator'!Q68,2)) ->  | L66: =IF(M66="","",ROUND('Hidden - Calculator'!R68,2)) ->  | M66: =IF('Hidden - Calculator'!S68=0,"",'Hidden - Calculator'!S68) ->  | AC66: =IF(AD66="","",'Hidden - Calculator'!L61) ->  | AD66: =IF('Hidden - Calculator'!$B$15="Yes","",IF('Hidden - Calculator'!M61=0,"",ROUND('Hidden - Calculator'!M61,2))) -> 
D67: =IF(H67="","",'Hidden - Calculator'!F68) -> 65 | E67: =IF(H67="","",'Hidden - Calculator'!E68) -> 2022-11-01 | F67: =IF(H67="","",ROUND('Hidden - Calculator'!AN68,2)) -> 5611.1 | G67: =IF(H67="","",ROUND('Hidden - Calculator'!AO68,2)) -> 430.15 | H67: =IF('Hidden - Calculator'!AP68=0,"",'Hidden - Calculator'!AP68) -> 6041.25 | J67: =IF(M67="","",'Hidden - Calculator'!P69) ->  | K67: =IF(M67="","",ROUND('Hidden - Calculator'!Q69,2)) ->  | L67: =IF(M67="","",ROUND('Hidden - Calculator'!R69,2)) ->  | M67: =IF('Hidden - Calculator'!S69=0,"",'Hidden - Calculator'!S69) ->  | AC67: =IF(AD67="","",'Hidden - Calculator'!L62) ->  | AD67: =IF('Hidden - Calculator'!$B$15="Yes","",IF('Hidden - Calculator'!M62=0,"",ROUND('Hidden - Calculator'!M62,2))) -> 
D68: =IF(H68="","",'Hidden - Calculator'!F69) -> 66 | E68: =IF(H68="","",'Hidden - Calculator'!E69) -> 2022-12-01 | F68: =IF(H68="","",ROUND('Hidden - Calculator'!AN69,2)) -> 5631.87 | G68: =IF(H68="","",ROUND('Hidden - Calculator'!AO69,2)) -> 409.38 | H68: =IF('Hidden - Calculator'!AP69=0,"",'Hidden - Calculator'!AP69) -> 6041.25 | J68: =IF(M68="","",'Hidden - Calculator'!P70) ->  | K68: =IF(M68="","",ROUND('Hidden - Calculator'!Q70,2)) ->  | L68: =IF(M68="","",ROUND('Hidden - Calculator'!R70,2)) ->  | M68: =IF('Hidden - Calculator'!S70=0,"",'Hidden - Calculator'!S70) ->  | AC68: =IF(AD68="","",'Hidden - Calculator'!L63) ->  | AD68: =IF('Hidden - Calculator'!$B$15="Yes","",IF('Hidden - Calculator'!M63=0,"",ROUND('Hidden - Calculator'!M63,2))) -> 
D69: =IF(H69="","",'Hidden - Calculator'!F70) -> 67 | E69: =IF(H69="","",'Hidden - Calculator'!E70) -> 2023-01-01 | F69: =IF(H69="","",ROUND('Hidden - Calculator'!AN70,2)) -> 5652.7 | G69: =IF(H69="","",ROUND('Hidden - Calculator'!AO70,2)) -> 388.55 | H69: =IF('Hidden - Calculator'!AP70=0,"",'Hidden - Calculator'!AP70) -> 6041.25 | J69: =IF(M69="","",'Hidden - Calculator'!P71) ->  | K69: =IF(M69="","",ROUND('Hidden - Calculator'!Q71,2)) ->  | L69: =IF(M69="","",ROUND('Hidden - Calculator'!R71,2)) ->  | M69: =IF('Hidden - Calculator'!S71=0,"",'Hidden - Calculator'!S71) ->  | AC69: =IF(AD69="","",'Hidden - Calculator'!L64) ->  | AD69: =IF('Hidden - Calculator'!$B$15="Yes","",IF('Hidden - Calculator'!M64=0,"",ROUND('Hidden - Calculator'!M64,2))) -> 
D70: =IF(H70="","",'Hidden - Calculator'!F71) -> 68 | E70: =IF(H70="","",'Hidden - Calculator'!E71) -> 2023-02-01 | F70: =IF(H70="","",ROUND('Hidden - Calculator'!AN71,2)) -> 5673.62 | G70: =IF(H70="","",ROUND('Hidden - Calculator'!AO71,2)) -> 367.63 | H70: =IF('Hidden - Calculator'!AP71=0,"",'Hidden - Calculator'!AP71) -> 6041.25 | J70: =IF(M70="","",'Hidden - Calculator'!P72) ->  | K70: =IF(M70="","",ROUND('Hidden - Calculator'!Q72,2)) ->  | L70: =IF(M70="","",ROUND('Hidden - Calculator'!R72,2)) ->  | M70: =IF('Hidden - Calculator'!S72=0,"",'Hidden - Calculator'!S72) ->  | AC70: =IF(AD70="","",'Hidden - Calculator'!L65) ->  | AD70: =IF('Hidden - Calculator'!$B$15="Yes","",IF('Hidden - Calculator'!M65=0,"",ROUND('Hidden - Calculator'!M65,2))) -> 
D71: =IF(H71="","",'Hidden - Calculator'!F72) -> 69 | E71: =IF(H71="","",'Hidden - Calculator'!E72) -> 2023-03-01 | F71: =IF(H71="","",ROUND('Hidden - Calculator'!AN72,2)) -> 5694.61 | G71: =IF(H71="","",ROUND('Hidden - Calculator'!AO72,2)) -> 346.64 | H71: =IF('Hidden - Calculator'!AP72=0,"",'Hidden - Calculator'!AP72) -> 6041.25 | J71: =IF(M71="","",'Hidden - Calculator'!P73) ->  | K71: =IF(M71="","",ROUND('Hidden - Calculator'!Q73,2)) ->  | L71: =IF(M71="","",ROUND('Hidden - Calculator'!R73,2)) ->  | M71: =IF('Hidden - Calculator'!S73=0,"",'Hidden - Calculator'!S73) ->  | AC71: =IF(AD71="","",'Hidden - Calculator'!L66) ->  | AD71: =IF('Hidden - Calculator'!$B$15="Yes","",IF('Hidden - Calculator'!M66=0,"",ROUND('Hidden - Calculator'!M66,2))) -> 
D72: =IF(H72="","",'Hidden - Calculator'!F73) -> 70 | E72: =IF(H72="","",'Hidden - Calculator'!E73) -> 2023-04-01 | F72: =IF(H72="","",ROUND('Hidden - Calculator'!AN73,2)) -> 5715.68 | G72: =IF(H72="","",ROUND('Hidden - Calculator'!AO73,2)) -> 325.57 | H72: =IF('Hidden - Calculator'!AP73=0,"",'Hidden - Calculator'!AP73) -> 6041.25 | J72: =IF(M72="","",'Hidden - Calculator'!P74) ->  | K72: =IF(M72="","",ROUND('Hidden - Calculator'!Q74,2)) ->  | L72: =IF(M72="","",ROUND('Hidden - Calculator'!R74,2)) ->  | M72: =IF('Hidden - Calculator'!S74=0,"",'Hidden - Calculator'!S74) ->  | AC72: =IF(AD72="","",'Hidden - Calculator'!L67) ->  | AD72: =IF('Hidden - Calculator'!$B$15="Yes","",IF('Hidden - Calculator'!M67=0,"",ROUND('Hidden - Calculator'!M67,2))) -> 
D73: =IF(H73="","",'Hidden - Calculator'!F74) -> 71 | E73: =IF(H73="","",'Hidden - Calculator'!E74) -> 2023-05-01 | F73: =IF(H73="","",ROUND('Hidden - Calculator'!AN74,2)) -> 5736.83 | G73: =IF(H73="","",ROUND('Hidden - Calculator'!AO74,2)) -> 304.42 | H73: =IF('Hidden - Calculator'!AP74=0,"",'Hidden - Calculator'!AP74) -> 6041.25 | J73: =IF(M73="","",'Hidden - Calculator'!P75) ->  | K73: =IF(M73="","",ROUND('Hidden - Calculator'!Q75,2)) ->  | L73: =IF(M73="","",ROUND('Hidden - Calculator'!R75,2)) ->  | M73: =IF('Hidden - Calculator'!S75=0,"",'Hidden - Calculator'!S75) ->  | AC73: =IF(AD73="","",'Hidden - Calculator'!L68) ->  | AD73: =IF('Hidden - Calculator'!$B$15="Yes","",IF('Hidden - Calculator'!M68=0,"",ROUND('Hidden - Calculator'!M68,2))) -> 
D74: =IF(H74="","",'Hidden - Calculator'!F75) -> 72 | E74: =IF(H74="","",'Hidden - Calculator'!E75) -> 2023-06-01 | F74: =IF(H74="","",ROUND('Hidden - Calculator'!AN75,2)) -> 5758.05 | G74: =IF(H74="","",ROUND('Hidden - Calculator'!AO75,2)) -> 283.2 | H74: =IF('Hidden - Calculator'!AP75=0,"",'Hidden - Calculator'!AP75) -> 6041.25 | J74: =IF(M74="","",'Hidden - Calculator'!P76) ->  | K74: =IF(M74="","",ROUND('Hidden - Calculator'!Q76,2)) ->  | L74: =IF(M74="","",ROUND('Hidden - Calculator'!R76,2)) ->  | M74: =IF('Hidden - Calculator'!S76=0,"",'Hidden - Calculator'!S76) ->  | AC74: =IF(AD74="","",'Hidden - Calculator'!L69) ->  | AD74: =IF('Hidden - Calculator'!$B$15="Yes","",IF('Hidden - Calculator'!M69=0,"",ROUND('Hidden - Calculator'!M69,2))) -> 
D75: =IF(H75="","",'Hidden - Calculator'!F76) -> 73 | E75: =IF(H75="","",'Hidden - Calculator'!E76) -> 2023-07-01 | F75: =IF(H75="","",ROUND('Hidden - Calculator'!AN76,2)) -> 5779.36 | G75: =IF(H75="","",ROUND('Hidden - Calculator'!AO76,2)) -> 261.89 | H75: =IF('Hidden - Calculator'!AP76=0,"",'Hidden - Calculator'!AP76) -> 6041.25 | J75: =IF(M75="","",'Hidden - Calculator'!P77) ->  | K75: =IF(M75="","",ROUND('Hidden - Calculator'!Q77,2)) ->  | L75: =IF(M75="","",ROUND('Hidden - Calculator'!R77,2)) ->  | M75: =IF('Hidden - Calculator'!S77=0,"",'Hidden - Calculator'!S77) ->  | AC75: =IF(AD75="","",'Hidden - Calculator'!L70) ->  | AD75: =IF('Hidden - Calculator'!$B$15="Yes","",IF('Hidden - Calculator'!M70=0,"",ROUND('Hidden - Calculator'!M70,2))) -> 
D76: =IF(H76="","",'Hidden - Calculator'!F77) -> 74 | E76: =IF(H76="","",'Hidden - Calculator'!E77) -> 2023-08-01 | F76: =IF(H76="","",ROUND('Hidden - Calculator'!AN77,2)) -> 5800.74 | G76: =IF(H76="","",ROUND('Hidden - Calculator'!AO77,2)) -> 240.51 | H76: =IF('Hidden - Calculator'!AP77=0,"",'Hidden - Calculator'!AP77) -> 6041.25 | J76: =IF(M76="","",'Hidden - Calculator'!P78) ->  | K76: =IF(M76="","",ROUND('Hidden - Calculator'!Q78,2)) ->  | L76: =IF(M76="","",ROUND('Hidden - Calculator'!R78,2)) ->  | M76: =IF('Hidden - Calculator'!S78=0,"",'Hidden - Calculator'!S78) ->  | AB76: =IF(AD76="","",AB75+1) ->  | AC76: =IF(AD76="","",'Hidden - Calculator'!L71) ->  | AD76: =IF('Hidden - Calculator'!$B$15="Yes","",IF('Hidden - Calculator'!M71=0,"",ROUND('Hidden - Calculator'!M71,2))) -> 
D77: =IF(H77="","",'Hidden - Calculator'!F78) -> 75 | E77: =IF(H77="","",'Hidden - Calculator'!E78) -> 2023-09-01 | F77: =IF(H77="","",ROUND('Hidden - Calculator'!AN78,2)) -> 5822.21 | G77: =IF(H77="","",ROUND('Hidden - Calculator'!AO78,2)) -> 219.04 | H77: =IF('Hidden - Calculator'!AP78=0,"",'Hidden - Calculator'!AP78) -> 6041.25 | J77: =IF(M77="","",'Hidden - Calculator'!P79) ->  | K77: =IF(M77="","",ROUND('Hidden - Calculator'!Q79,2)) ->  | L77: =IF(M77="","",ROUND('Hidden - Calculator'!R79,2)) ->  | M77: =IF('Hidden - Calculator'!S79=0,"",'Hidden - Calculator'!S79) ->  | AC77: =IF(AD77="","",'Hidden - Calculator'!L72) ->  | AD77: =IF('Hidden - Calculator'!$B$15="Yes","",IF('Hidden - Calculator'!M72=0,"",ROUND('Hidden - Calculator'!M72,2))) -> 
D78: =IF(H78="","",'Hidden - Calculator'!F79) -> 76 | E78: =IF(H78="","",'Hidden - Calculator'!E79) -> 2023-10-01 | F78: =IF(H78="","",ROUND('Hidden - Calculator'!AN79,2)) -> 5843.75 | G78: =IF(H78="","",ROUND('Hidden - Calculator'!AO79,2)) -> 197.5 | H78: =IF('Hidden - Calculator'!AP79=0,"",'Hidden - Calculator'!AP79) -> 6041.25 | J78: =IF(M78="","",'Hidden - Calculator'!P80) ->  | K78: =IF(M78="","",ROUND('Hidden - Calculator'!Q80,2)) ->  | L78: =IF(M78="","",ROUND('Hidden - Calculator'!R80,2)) ->  | M78: =IF('Hidden - Calculator'!S80=0,"",'Hidden - Calculator'!S80) ->  | AC78: =IF(AD78="","",'Hidden - Calculator'!L73) ->  | AD78: =IF('Hidden - Calculator'!$B$15="Yes","",IF('Hidden - Calculator'!M73=0,"",ROUND('Hidden - Calculator'!M73,2))) -> 
D79: =IF(H79="","",'Hidden - Calculator'!F80) -> 77 | E79: =IF(H79="","",'Hidden - Calculator'!E80) -> 2023-11-01 | F79: =IF(H79="","",ROUND('Hidden - Calculator'!AN80,2)) -> 5865.37 | G79: =IF(H79="","",ROUND('Hidden - Calculator'!AO80,2)) -> 175.88 | H79: =IF('Hidden - Calculator'!AP80=0,"",'Hidden - Calculator'!AP80) -> 6041.25 | J79: =IF(M79="","",'Hidden - Calculator'!P81) ->  | K79: =IF(M79="","",ROUND('Hidden - Calculator'!Q81,2)) ->  | L79: =IF(M79="","",ROUND('Hidden - Calculator'!R81,2)) ->  | M79: =IF('Hidden - Calculator'!S81=0,"",'Hidden - Calculator'!S81) ->  | AC79: =IF(AD79="","",'Hidden - Calculator'!L74) ->  | AD79: =IF('Hidden - Calculator'!$B$15="Yes","",IF('Hidden - Calculator'!M74=0,"",ROUND('Hidden - Calculator'!M74,2))) -> 
D80: =IF(H80="","",'Hidden - Calculator'!F81) -> 78 | E80: =IF(H80="","",'Hidden - Calculator'!E81) -> 2023-12-01 | F80: =IF(H80="","",ROUND('Hidden - Calculator'!AN81,2)) -> 5887.07 | G80: =IF(H80="","",ROUND('Hidden - Calculator'!AO81,2)) -> 154.18 | H80: =IF('Hidden - Calculator'!AP81=0,"",'Hidden - Calculator'!AP81) -> 6041.25 | J80: =IF(M80="","",'Hidden - Calculator'!P82) ->  | K80: =IF(M80="","",ROUND('Hidden - Calculator'!Q82,2)) ->  | L80: =IF(M80="","",ROUND('Hidden - Calculator'!R82,2)) ->  | M80: =IF('Hidden - Calculator'!S82=0,"",'Hidden - Calculator'!S82) ->  | AC80: =IF(AD80="","",'Hidden - Calculator'!L75) ->  | AD80: =IF('Hidden - Calculator'!$B$15="Yes","",IF('Hidden - Calculator'!M75=0,"",ROUND('Hidden - Calculator'!M75,2))) -> 
D81: =IF(H81="","",'Hidden - Calculator'!F82) -> 79 | E81: =IF(H81="","",'Hidden - Calculator'!E82) -> 2024-01-01 | F81: =IF(H81="","",ROUND('Hidden - Calculator'!AN82,2)) -> 5908.85 | G81: =IF(H81="","",ROUND('Hidden - Calculator'!AO82,2)) -> 132.4 | H81: =IF('Hidden - Calculator'!AP82=0,"",'Hidden - Calculator'!AP82) -> 6041.25 | J81: =IF(M81="","",'Hidden - Calculator'!P83) ->  | K81: =IF(M81="","",ROUND('Hidden - Calculator'!Q83,2)) ->  | L81: =IF(M81="","",ROUND('Hidden - Calculator'!R83,2)) ->  | M81: =IF('Hidden - Calculator'!S83=0,"",'Hidden - Calculator'!S83) ->  | AC81: =IF(AD81="","",'Hidden - Calculator'!L76) ->  | AD81: =IF('Hidden - Calculator'!$B$15="Yes","",IF('Hidden - Calculator'!M76=0,"",ROUND('Hidden - Calculator'!M76,2))) -> 
D82: =IF(H82="","",'Hidden - Calculator'!F83) -> 80 | E82: =IF(H82="","",'Hidden - Calculator'!E83) -> 2024-02-01 | F82: =IF(H82="","",ROUND('Hidden - Calculator'!AN83,2)) -> 5930.72 | G82: =IF(H82="","",ROUND('Hidden - Calculator'!AO83,2)) -> 110.53 | H82: =IF('Hidden - Calculator'!AP83=0,"",'Hidden - Calculator'!AP83) -> 6041.25 | J82: =IF(M82="","",'Hidden - Calculator'!P84) ->  | K82: =IF(M82="","",ROUND('Hidden - Calculator'!Q84,2)) ->  | L82: =IF(M82="","",ROUND('Hidden - Calculator'!R84,2)) ->  | M82: =IF('Hidden - Calculator'!S84=0,"",'Hidden - Calculator'!S84) ->  | AB82: =IF(AD82="","",AB81+1) ->  | AC82: =IF(AD82="","",'Hidden - Calculator'!L77) ->  | AD82: =IF('Hidden - Calculator'!$B$15="Yes","",IF('Hidden - Calculator'!M77=0,"",ROUND('Hidden - Calculator'!M77,2))) -> 
D83: =IF(H83="","",'Hidden - Calculator'!F84) -> 81 | E83: =IF(H83="","",'Hidden - Calculator'!E84) -> 2024-03-01 | F83: =IF(H83="","",ROUND('Hidden - Calculator'!AN84,2)) -> 5952.66 | G83: =IF(H83="","",ROUND('Hidden - Calculator'!AO84,2)) -> 88.59 | H83: =IF('Hidden - Calculator'!AP84=0,"",'Hidden - Calculator'!AP84) -> 6041.25 | J83: =IF(M83="","",'Hidden - Calculator'!P85) ->  | K83: =IF(M83="","",ROUND('Hidden - Calculator'!Q85,2)) ->  | L83: =IF(M83="","",ROUND('Hidden - Calculator'!R85,2)) ->  | M83: =IF('Hidden - Calculator'!S85=0,"",'Hidden - Calculator'!S85) ->  | AC83: =IF(AD83="","",'Hidden - Calculator'!L78) ->  | AD83: =IF('Hidden - Calculator'!$B$15="Yes","",IF('Hidden - Calculator'!M78=0,"",ROUND('Hidden - Calculator'!M78,2))) -> 
D84: =IF(H84="","",'Hidden - Calculator'!F85) -> 82 | E84: =IF(H84="","",'Hidden - Calculator'!E85) -> 2024-04-01 | F84: =IF(H84="","",ROUND('Hidden - Calculator'!AN85,2)) -> 5974.69 | G84: =IF(H84="","",ROUND('Hidden - Calculator'!AO85,2)) -> 66.56 | H84: =IF('Hidden - Calculator'!AP85=0,"",'Hidden - Calculator'!AP85) -> 6041.25 | J84: =IF(M84="","",'Hidden - Calculator'!P86) ->  | K84: =IF(M84="","",ROUND('Hidden - Calculator'!Q86,2)) ->  | L84: =IF(M84="","",ROUND('Hidden - Calculator'!R86,2)) ->  | M84: =IF('Hidden - Calculator'!S86=0,"",'Hidden - Calculator'!S86) ->  | AC84: =IF(AD84="","",'Hidden - Calculator'!L79) ->  | AD84: =IF('Hidden - Calculator'!$B$15="Yes","",IF('Hidden - Calculator'!M79=0,"",ROUND('Hidden - Calculator'!M79,2))) -> 
D85: =IF(H85="","",'Hidden - Calculator'!F86) -> 83 | E85: =IF(H85="","",'Hidden - Calculator'!E86) -> 2024-05-01 | F85: =IF(H85="","",ROUND('Hidden - Calculator'!AN86,2)) -> 5996.79 | G85: =IF(H85="","",ROUND('Hidden - Calculator'!AO86,2)) -> 44.46 | H85: =IF('Hidden - Calculator'!AP86=0,"",'Hidden - Calculator'!AP86) -> 6041.25 | J85: =IF(M85="","",'Hidden - Calculator'!P87) ->  | K85: =IF(M85="","",ROUND('Hidden - Calculator'!Q87,2)) ->  | L85: =IF(M85="","",ROUND('Hidden - Calculator'!R87,2)) ->  | M85: =IF('Hidden - Calculator'!S87=0,"",'Hidden - Calculator'!S87) ->  | AC85: =IF(AD85="","",'Hidden - Calculator'!L80) ->  | AD85: =IF('Hidden - Calculator'!$B$15="Yes","",IF('Hidden - Calculator'!M80=0,"",ROUND('Hidden - Calculator'!M80,2))) -> 
D86: =IF(H86="","",'Hidden - Calculator'!F87) -> 84 | E86: =IF(H86="","",'Hidden - Calculator'!E87) -> 2024-06-01 | F86: =IF(H86="","",ROUND('Hidden - Calculator'!AN87,2)) -> 6019.01 | G86: =IF(H86="","",ROUND('Hidden - Calculator'!AO87,2)) -> 22.24 | H86: =IF('Hidden - Calculator'!AP87=0,"",'Hidden - Calculator'!AP87) -> 6041.25 | J86: =IF(M86="","",'Hidden - Calculator'!P88) ->  | K86: =IF(M86="","",ROUND('Hidden - Calculator'!Q88,2)) ->  | L86: =IF(M86="","",ROUND('Hidden - Calculator'!R88,2)) ->  | M86: =IF('Hidden - Calculator'!S88=0,"",'Hidden - Calculator'!S88) ->  | AC86: =IF(AD86="","",'Hidden - Calculator'!L81) ->  | AD86: =IF('Hidden - Calculator'!$B$15="Yes","",IF('Hidden - Calculator'!M81=0,"",ROUND('Hidden - Calculator'!M81,2))) -> 
D87: =IF(H87="","",'Hidden - Calculator'!F88) ->  | E87: =IF(H87="","",'Hidden - Calculator'!E88) ->  | F87: =IF(H87="","",ROUND('Hidden - Calculator'!AN88,2)) ->  | G87: =IF(H87="","",ROUND('Hidden - Calculator'!AO88,2)) ->  | H87: =IF('Hidden - Calculator'!AP88=0,"",'Hidden - Calculator'!AP88) ->  | J87: =IF(M87="","",'Hidden - Calculator'!P89) ->  | K87: =IF(M87="","",ROUND('Hidden - Calculator'!Q89,2)) ->  | L87: =IF(M87="","",ROUND('Hidden - Calculator'!R89,2)) ->  | M87: =IF('Hidden - Calculator'!S89=0,"",'Hidden - Calculator'!S89) ->  | AC87: =IF(AD87="","",'Hidden - Calculator'!L82) ->  | AD87: =IF('Hidden - Calculator'!$B$15="Yes","",IF('Hidden - Calculator'!M82=0,"",ROUND('Hidden - Calculator'!M82,2))) -> 
D88: =IF(H88="","",'Hidden - Calculator'!F89) ->  | E88: =IF(H88="","",'Hidden - Calculator'!E89) ->  | F88: =IF(H88="","",ROUND('Hidden - Calculator'!AN89,2)) ->  | G88: =IF(H88="","",ROUND('Hidden - Calculator'!AO89,2)) ->  | H88: =IF('Hidden - Calculator'!AP89=0,"",'Hidden - Calculator'!AP89) ->  | J88: =IF(M88="","",'Hidden - Calculator'!P90) ->  | K88: =IF(M88="","",ROUND('Hidden - Calculator'!Q90,2)) ->  | L88: =IF(M88="","",ROUND('Hidden - Calculator'!R90,2)) ->  | M88: =IF('Hidden - Calculator'!S90=0,"",'Hidden - Calculator'!S90) ->  | AC88: =IF(AD88="","",'Hidden - Calculator'!L83) ->  | AD88: =IF('Hidden - Calculator'!$B$15="Yes","",IF('Hidden - Calculator'!M83=0,"",ROUND('Hidden - Calculator'!M83,2))) -> 
D89: =IF(H89="","",'Hidden - Calculator'!F90) ->  | E89: =IF(H89="","",'Hidden - Calculator'!E90) ->  | F89: =IF(H89="","",ROUND('Hidden - Calculator'!AN90,2)) ->  | G89: =IF(H89="","",ROUND('Hidden - Calculator'!AO90,2)) ->  | H89: =IF('Hidden - Calculator'!AP90=0,"",'Hidden - Calculator'!AP90) ->  | J89: =IF(M89="","",'Hidden - Calculator'!P91) ->  | K89: =IF(M89="","",ROUND('Hidden - Calculator'!Q91,2)) ->  | L89: =IF(M89="","",ROUND('Hidden - Calculator'!R91,2)) ->  | M89: =IF('Hidden - Calculator'!S91=0,"",'Hidden - Calculator'!S91) ->  | AC89: =IF(AD89="","",'Hidden - Calculator'!L84) ->  | AD89: =IF('Hidden - Calculator'!$B$15="Yes","",IF('Hidden - Calculator'!M84=0,"",ROUND('Hidden - Calculator'!M84,2))) -> 
D90: =IF(H90="","",'Hidden - Calculator'!F91) ->  | E90: =IF(H90="","",'Hidden - Calculator'!E91) ->  | F90: =IF(H90="","",ROUND('Hidden - Calculator'!AN91,2)) ->  | G90: =IF(H90="","",ROUND('Hidden - Calculator'!AO91,2)) ->  | H90: =IF('Hidden - Calculator'!AP91=0,"",'Hidden - Calculator'!AP91) ->  | J90: =IF(M90="","",'Hidden - Calculator'!P92) ->  | K90: =IF(M90="","",ROUND('Hidden - Calculator'!Q92,2)) ->  | L90: =IF(M90="","",ROUND('Hidden - Calculator'!R92,2)) ->  | M90: =IF('Hidden - Calculator'!S92=0,"",'Hidden - Calculator'!S92) ->  | AC90: =IF(AD90="","",'Hidden - Calculator'!L85) ->  | AD90: =IF('Hidden - Calculator'!$B$15="Yes","",IF('Hidden - Calculator'!M85=0,"",ROUND('Hidden - Calculator'!M85,2))) -> 
D91: =IF(H91="","",'Hidden - Calculator'!F92) ->  | E91: =IF(H91="","",'Hidden - Calculator'!E92) ->  | F91: =IF(H91="","",ROUND('Hidden - Calculator'!AN92,2)) ->  | G91: =IF(H91="","",ROUND('Hidden - Calculator'!AO92,2)) ->  | H91: =IF('Hidden - Calculator'!AP92=0,"",'Hidden - Calculator'!AP92) ->  | J91: =IF(M91="","",'Hidden - Calculator'!P93) ->  | K91: =IF(M91="","",ROUND('Hidden - Calculator'!Q93,2)) ->  | L91: =IF(M91="","",ROUND('Hidden - Calculator'!R93,2)) ->  | M91: =IF('Hidden - Calculator'!S93=0,"",'Hidden - Calculator'!S93) ->  | AC91: =IF(AD91="","",'Hidden - Calculator'!L86) ->  | AD91: =IF('Hidden - Calculator'!$B$15="Yes","",IF('Hidden - Calculator'!M86=0,"",ROUND('Hidden - Calculator'!M86,2))) -> 
D92: =IF(H92="","",'Hidden - Calculator'!F93) ->  | E92: =IF(H92="","",'Hidden - Calculator'!E93) ->  | F92: =IF(H92="","",ROUND('Hidden - Calculator'!AN93,2)) ->  | G92: =IF(H92="","",ROUND('Hidden - Calculator'!AO93,2)) ->  | H92: =IF('Hidden - Calculator'!AP93=0,"",'Hidden - Calculator'!AP93) ->  | J92: =IF(M92="","",'Hidden - Calculator'!P94) ->  | K92: =IF(M92="","",ROUND('Hidden - Calculator'!Q94,2)) ->  | L92: =IF(M92="","",ROUND('Hidden - Calculator'!R94,2)) ->  | M92: =IF('Hidden - Calculator'!S94=0,"",'Hidden - Calculator'!S94) ->  | AC92: =IF(AD92="","",'Hidden - Calculator'!L87) ->  | AD92: =IF('Hidden - Calculator'!$B$15="Yes","",IF('Hidden - Calculator'!M87=0,"",ROUND('Hidden - Calculator'!M87,2))) -> 
D93: =IF(H93="","",'Hidden - Calculator'!F94) ->  | E93: =IF(H93="","",'Hidden - Calculator'!E94) ->  | F93: =IF(H93="","",ROUND('Hidden - Calculator'!AN94,2)) ->  | G93: =IF(H93="","",ROUND('Hidden - Calculator'!AO94,2)) ->  | H93: =IF('Hidden - Calculator'!AP94=0,"",'Hidden - Calculator'!AP94) ->  | J93: =IF(M93="","",'Hidden - Calculator'!P95) ->  | K93: =IF(M93="","",ROUND('Hidden - Calculator'!Q95,2)) ->  | L93: =IF(M93="","",ROUND('Hidden - Calculator'!R95,2)) ->  | M93: =IF('Hidden - Calculator'!S95=0,"",'Hidden - Calculator'!S95) ->  | AC93: =IF(AD93="","",'Hidden - Calculator'!L88) ->  | AD93: =IF('Hidden - Calculator'!$B$15="Yes","",IF('Hidden - Calculator'!M88=0,"",ROUND('Hidden - Calculator'!M88,2))) -> 
D94: =IF(H94="","",'Hidden - Calculator'!F95) ->  | E94: =IF(H94="","",'Hidden - Calculator'!E95) ->  | F94: =IF(H94="","",ROUND('Hidden - Calculator'!AN95,2)) ->  | G94: =IF(H94="","",ROUND('Hidden - Calculator'!AO95,2)) ->  | H94: =IF('Hidden - Calculator'!AP95=0,"",'Hidden - Calculator'!AP95) ->  | J94: =IF(M94="","",'Hidden - Calculator'!P96) ->  | K94: =IF(M94="","",ROUND('Hidden - Calculator'!Q96,2)) ->  | L94: =IF(M94="","",ROUND('Hidden - Calculator'!R96,2)) ->  | M94: =IF('Hidden - Calculator'!S96=0,"",'Hidden - Calculator'!S96) ->  | AC94: =IF(AD94="","",'Hidden - Calculator'!L89) ->  | AD94: =IF('Hidden - Calculator'!$B$15="Yes","",IF('Hidden - Calculator'!M89=0,"",ROUND('Hidden - Calculator'!M89,2))) -> 
D95: =IF(H95="","",'Hidden - Calculator'!F96) ->  | E95: =IF(H95="","",'Hidden - Calculator'!E96) ->  | F95: =IF(H95="","",ROUND('Hidden - Calculator'!AN96,2)) ->  | G95: =IF(H95="","",ROUND('Hidden - Calculator'!AO96,2)) ->  | H95: =IF('Hidden - Calculator'!AP96=0,"",'Hidden - Calculator'!AP96) ->  | J95: =IF(M95="","",'Hidden - Calculator'!P97) ->  | K95: =IF(M95="","",ROUND('Hidden - Calculator'!Q97,2)) ->  | L95: =IF(M95="","",ROUND('Hidden - Calculator'!R97,2)) ->  | M95: =IF('Hidden - Calculator'!S97=0,"",'Hidden - Calculator'!S97) ->  | AC95: =IF(AD95="","",'Hidden - Calculator'!L90) ->  | AD95: =IF('Hidden - Calculator'!$B$15="Yes","",IF('Hidden - Calculator'!M90=0,"",ROUND('Hidden - Calculator'!M90,2))) -> 
D96: =IF(H96="","",'Hidden - Calculator'!F97) ->  | E96: =IF(H96="","",'Hidden - Calculator'!E97) ->  | F96: =IF(H96="","",ROUND('Hidden - Calculator'!AN97,2)) ->  | G96: =IF(H96="","",ROUND('Hidden - Calculator'!AO97,2)) ->  | H96: =IF('Hidden - Calculator'!AP97=0,"",'Hidden - Calculator'!AP97) ->  | J96: =IF(M96="","",'Hidden - Calculator'!P98) ->  | K96: =IF(M96="","",ROUND('Hidden - Calculator'!Q98,2)) ->  | L96: =IF(M96="","",ROUND('Hidden - Calculator'!R98,2)) ->  | M96: =IF('Hidden - Calculator'!S98=0,"",'Hidden - Calculator'!S98) ->  | AC96: =IF(AD96="","",'Hidden - Calculator'!L91) ->  | AD96: =IF('Hidden - Calculator'!$B$15="Yes","",IF('Hidden - Calculator'!M91=0,"",ROUND('Hidden - Calculator'!M91,2))) -> 
D97: =IF(H97="","",'Hidden - Calculator'!F98) ->  | E97: =IF(H97="","",'Hidden - Calculator'!E98) ->  | F97: =IF(H97="","",ROUND('Hidden - Calculator'!AN98,2)) ->  | G97: =IF(H97="","",ROUND('Hidden - Calculator'!AO98,2)) ->  | H97: =IF('Hidden - Calculator'!AP98=0,"",'Hidden - Calculator'!AP98) ->  | J97: =IF(M97="","",'Hidden - Calculator'!P99) ->  | K97: =IF(M97="","",ROUND('Hidden - Calculator'!Q99,2)) ->  | L97: =IF(M97="","",ROUND('Hidden - Calculator'!R99,2)) ->  | M97: =IF('Hidden - Calculator'!S99=0,"",'Hidden - Calculator'!S99) ->  | AC97: =IF(AD97="","",'Hidden - Calculator'!L92) ->  | AD97: =IF('Hidden - Calculator'!$B$15="Yes","",IF('Hidden - Calculator'!M92=0,"",ROUND('Hidden - Calculator'!M92,2))) -> 
D98: =IF(H98="","",'Hidden - Calculator'!F99) ->  | E98: =IF(H98="","",'Hidden - Calculator'!E99) ->  | F98: =IF(H98="","",ROUND('Hidden - Calculator'!AN99,2)) ->  | G98: =IF(H98="","",ROUND('Hidden - Calculator'!AO99,2)) ->  | H98: =IF('Hidden - Calculator'!AP99=0,"",'Hidden - Calculator'!AP99) ->  | J98: =IF(M98="","",'Hidden - Calculator'!P100) ->  | K98: =IF(M98="","",ROUND('Hidden - Calculator'!Q100,2)) ->  | L98: =IF(M98="","",ROUND('Hidden - Calculator'!R100,2)) ->  | M98: =IF('Hidden - Calculator'!S100=0,"",'Hidden - Calculator'!S100) ->  | AC98: =IF(AD98="","",'Hidden - Calculator'!L93) ->  | AD98: =IF('Hidden - Calculator'!$B$15="Yes","",IF('Hidden - Calculator'!M93=0,"",ROUND('Hidden - Calculator'!M93,2))) -> 
D99: =IF(H99="","",'Hidden - Calculator'!F100) ->  | E99: =IF(H99="","",'Hidden - Calculator'!E100) ->  | F99: =IF(H99="","",ROUND('Hidden - Calculator'!AN100,2)) ->  | G99: =IF(H99="","",ROUND('Hidden - Calculator'!AO100,2)) ->  | H99: =IF('Hidden - Calculator'!AP100=0,"",'Hidden - Calculator'!AP100) ->  | J99: =IF(M99="","",'Hidden - Calculator'!P101) ->  | K99: =IF(M99="","",ROUND('Hidden - Calculator'!Q101,2)) ->  | L99: =IF(M99="","",ROUND('Hidden - Calculator'!R101,2)) ->  | M99: =IF('Hidden - Calculator'!S101=0,"",'Hidden - Calculator'!S101) ->  | AC99: =IF(AD99="","",'Hidden - Calculator'!L94) ->  | AD99: =IF('Hidden - Calculator'!$B$15="Yes","",IF('Hidden - Calculator'!M94=0,"",ROUND('Hidden - Calculator'!M94,2))) -> 
D100: =IF(H100="","",'Hidden - Calculator'!F101) ->  | E100: =IF(H100="","",'Hidden - Calculator'!E101) ->  | F100: =IF(H100="","",ROUND('Hidden - Calculator'!AN101,2)) ->  | G100: =IF(H100="","",ROUND('Hidden - Calculator'!AO101,2)) ->  | H100: =IF('Hidden - Calculator'!AP101=0,"",'Hidden - Calculator'!AP101) ->  | J100: =IF(M100="","",'Hidden - Calculator'!P102) ->  | K100: =IF(M100="","",ROUND('Hidden - Calculator'!Q102,2)) ->  | L100: =IF(M100="","",ROUND('Hidden - Calculator'!R102,2)) ->  | M100: =IF('Hidden - Calculator'!S102=0,"",'Hidden - Calculator'!S102) ->  | AC100: =IF(AD100="","",'Hidden - Calculator'!L95) ->  | AD100: =IF('Hidden - Calculator'!$B$15="Yes","",IF('Hidden - Calculator'!M95=0,"",ROUND('Hidden - Calculator'!M95,2))) -> 
D101: =IF(H101="","",'Hidden - Calculator'!F102) ->  | E101: =IF(H101="","",'Hidden - Calculator'!E102) ->  | F101: =IF(H101="","",ROUND('Hidden - Calculator'!AN102,2)) ->  | G101: =IF(H101="","",ROUND('Hidden - Calculator'!AO102,2)) ->  | H101: =IF('Hidden - Calculator'!AP102=0,"",'Hidden - Calculator'!AP102) ->  | J101: =IF(M101="","",'Hidden - Calculator'!P103) ->  | K101: =IF(M101="","",ROUND('Hidden - Calculator'!Q103,2)) ->  | L101: =IF(M101="","",ROUND('Hidden - Calculator'!R103,2)) ->  | M101: =IF('Hidden - Calculator'!S103=0,"",'Hidden - Calculator'!S103) ->  | AC101: =IF(AD101="","",'Hidden - Calculator'!L96) ->  | AD101: =IF('Hidden - Calculator'!$B$15="Yes","",IF('Hidden - Calculator'!M96=0,"",ROUND('Hidden - Calculator'!M96,2))) -> 
D102: =IF(H102="","",'Hidden - Calculator'!F103) ->  | E102: =IF(H102="","",'Hidden - Calculator'!E103) ->  | F102: =IF(H102="","",ROUND('Hidden - Calculator'!AN103,2)) ->  | G102: =IF(H102="","",ROUND('Hidden - Calculator'!AO103,2)) ->  | H102: =IF('Hidden - Calculator'!AP103=0,"",'Hidden - Calculator'!AP103) ->  | J102: =IF(M102="","",'Hidden - Calculator'!P104) ->  | K102: =IF(M102="","",ROUND('Hidden - Calculator'!Q104,2)) ->  | L102: =IF(M102="","",ROUND('Hidden - Calculator'!R104,2)) ->  | M102: =IF('Hidden - Calculator'!S104=0,"",'Hidden - Calculator'!S104) ->  | AC102: =IF(AD102="","",'Hidden - Calculator'!L97) ->  | AD102: =IF('Hidden - Calculator'!$B$15="Yes","",IF('Hidden - Calculator'!M97=0,"",ROUND('Hidden - Calculator'!M97,2))) -> 
D103: =IF(H103="","",'Hidden - Calculator'!F104) ->  | E103: =IF(H103="","",'Hidden - Calculator'!E104) ->  | F103: =IF(H103="","",ROUND('Hidden - Calculator'!AN104,2)) ->  | G103: =IF(H103="","",ROUND('Hidden - Calculator'!AO104,2)) ->  | H103: =IF('Hidden - Calculator'!AP104=0,"",'Hidden - Calculator'!AP104) ->  | AC103: =IF(AD103="","",'Hidden - Calculator'!L98) ->  | AD103: =IF('Hidden - Calculator'!$B$15="Yes","",IF('Hidden - Calculator'!M98=0,"",ROUND('Hidden - Calculator'!M98,2))) -> 
D104: =IF(H104="","",'Hidden - Calculator'!F105) ->  | E104: =IF(H104="","",'Hidden - Calculator'!E105) ->  | F104: =IF(H104="","",ROUND('Hidden - Calculator'!AN105,2)) ->  | G104: =IF(H104="","",ROUND('Hidden - Calculator'!AO105,2)) ->  | H104: =IF('Hidden - Calculator'!AP105=0,"",'Hidden - Calculator'!AP105) ->  | AC104: =IF(AD104="","",'Hidden - Calculator'!L99) ->  | AD104: =IF('Hidden - Calculator'!$B$15="Yes","",IF('Hidden - Calculator'!M99=0,"",ROUND('Hidden - Calculator'!M99,2))) -> 
D105: =IF(H105="","",'Hidden - Calculator'!F106) ->  | E105: =IF(H105="","",'Hidden - Calculator'!E106) ->  | F105: =IF(H105="","",ROUND('Hidden - Calculator'!AN106,2)) ->  | G105: =IF(H105="","",ROUND('Hidden - Calculator'!AO106,2)) ->  | H105: =IF('Hidden - Calculator'!AP106=0,"",'Hidden - Calculator'!AP106) ->  | AC105: =IF(AD105="","",'Hidden - Calculator'!L100) ->  | AD105: =IF('Hidden - Calculator'!$B$15="Yes","",IF('Hidden - Calculator'!M100=0,"",ROUND('Hidden - Calculator'!M100,2))) -> 
D106: =IF(H106="","",'Hidden - Calculator'!F107) ->  | E106: =IF(H106="","",'Hidden - Calculator'!E107) ->  | F106: =IF(H106="","",ROUND('Hidden - Calculator'!AN107,2)) ->  | G106: =IF(H106="","",ROUND('Hidden - Calculator'!AO107,2)) ->  | H106: =IF('Hidden - Calculator'!AP107=0,"",'Hidden - Calculator'!AP107) ->  | AC106: =IF(AD106="","",'Hidden - Calculator'!L101) ->  | AD106: =IF('Hidden - Calculator'!$B$15="Yes","",IF('Hidden - Calculator'!M101=0,"",ROUND('Hidden - Calculator'!M101,2))) -> 
D107: =IF(H107="","",'Hidden - Calculator'!F108) ->  | E107: =IF(H107="","",'Hidden - Calculator'!E108) ->  | F107: =IF(H107="","",ROUND('Hidden - Calculator'!AN108,2)) ->  | G107: =IF(H107="","",ROUND('Hidden - Calculator'!AO108,2)) ->  | H107: =IF('Hidden - Calculator'!AP108=0,"",'Hidden - Calculator'!AP108) ->  | AC107: =IF(AD107="","",'Hidden - Calculator'!L102) ->  | AD107: =IF('Hidden - Calculator'!$B$15="Yes","",IF('Hidden - Calculator'!M102=0,"",ROUND('Hidden - Calculator'!M102,2))) -> 
D108: =IF(H108="","",'Hidden - Calculator'!F109) ->  | E108: =IF(H108="","",'Hidden - Calculator'!E109) ->  | F108: =IF(H108="","",ROUND('Hidden - Calculator'!AN109,2)) ->  | G108: =IF(H108="","",ROUND('Hidden - Calculator'!AO109,2)) ->  | H108: =IF('Hidden - Calculator'!AP109=0,"",'Hidden - Calculator'!AP109) ->  | AC108: =IF(AD108="","",'Hidden - Calculator'!L103) ->  | AD108: =IF('Hidden - Calculator'!$B$15="Yes","",IF('Hidden - Calculator'!M103=0,"",ROUND('Hidden - Calculator'!M103,2))) -> 
D109: =IF(H109="","",'Hidden - Calculator'!F110) ->  | E109: =IF(H109="","",'Hidden - Calculator'!E110) ->  | F109: =IF(H109="","",ROUND('Hidden - Calculator'!AN110,2)) ->  | G109: =IF(H109="","",ROUND('Hidden - Calculator'!AO110,2)) ->  | H109: =IF('Hidden - Calculator'!AP110=0,"",'Hidden - Calculator'!AP110) ->  | AC109: =IF(AD109="","",'Hidden - Calculator'!L104) ->  | AD109: =IF('Hidden - Calculator'!$B$15="Yes","",IF('Hidden - Calculator'!M104=0,"",ROUND('Hidden - Calculator'!M104,2))) -> 
D110: =IF(H110="","",'Hidden - Calculator'!F111) ->  | E110: =IF(H110="","",'Hidden - Calculator'!E111) ->  | F110: =IF(H110="","",ROUND('Hidden - Calculator'!AN111,2)) ->  | G110: =IF(H110="","",ROUND('Hidden - Calculator'!AO111,2)) ->  | H110: =IF('Hidden - Calculator'!AP111=0,"",'Hidden - Calculator'!AP111) -> 
D111: =IF(H111="","",'Hidden - Calculator'!F112) ->  | E111: =IF(H111="","",'Hidden - Calculator'!E112) ->  | F111: =IF(H111="","",ROUND('Hidden - Calculator'!AN112,2)) ->  | G111: =IF(H111="","",ROUND('Hidden - Calculator'!AO112,2)) ->  | H111: =IF('Hidden - Calculator'!AP112=0,"",'Hidden - Calculator'!AP112) -> 
D112: =IF(H112="","",'Hidden - Calculator'!F113) ->  | E112: =IF(H112="","",'Hidden - Calculator'!E113) ->  | F112: =IF(H112="","",ROUND('Hidden - Calculator'!AN113,2)) ->  | G112: =IF(H112="","",ROUND('Hidden - Calculator'!AO113,2)) ->  | H112: =IF('Hidden - Calculator'!AP113=0,"",'Hidden - Calculator'!AP113) -> 
D113: =IF(H113="","",'Hidden - Calculator'!F114) ->  | E113: =IF(H113="","",'Hidden - Calculator'!E114) ->  | F113: =IF(H113="","",ROUND('Hidden - Calculator'!AN114,2)) ->  | G113: =IF(H113="","",ROUND('Hidden - Calculator'!AO114,2)) ->  | H113: =IF('Hidden - Calculator'!AP114=0,"",'Hidden - Calculator'!AP114) -> 
D114: =IF(H114="","",'Hidden - Calculator'!F115) ->  | E114: =IF(H114="","",'Hidden - Calculator'!E115) ->  | F114: =IF(H114="","",ROUND('Hidden - Calculator'!AN115,2)) ->  | G114: =IF(H114="","",ROUND('Hidden - Calculator'!AO115,2)) ->  | H114: =IF('Hidden - Calculator'!AP115=0,"",'Hidden - Calculator'!AP115) -> 
D115: =IF(H115="","",'Hidden - Calculator'!F116) ->  | E115: =IF(H115="","",'Hidden - Calculator'!E116) ->  | F115: =IF(H115="","",ROUND('Hidden - Calculator'!AN116,2)) ->  | G115: =IF(H115="","",ROUND('Hidden - Calculator'!AO116,2)) ->  | H115: =IF('Hidden - Calculator'!AP116=0,"",'Hidden - Calculator'!AP116) -> 
D116: =IF(H116="","",'Hidden - Calculator'!F117) ->  | E116: =IF(H116="","",'Hidden - Calculator'!E117) ->  | F116: =IF(H116="","",ROUND('Hidden - Calculator'!AN117,2)) ->  | G116: =IF(H116="","",ROUND('Hidden - Calculator'!AO117,2)) ->  | H116: =IF('Hidden - Calculator'!AP117=0,"",'Hidden - Calculator'!AP117) -> 
D117: =IF(H117="","",'Hidden - Calculator'!F118) ->  | E117: =IF(H117="","",'Hidden - Calculator'!E118) ->  | F117: =IF(H117="","",ROUND('Hidden - Calculator'!AN118,2)) ->  | G117: =IF(H117="","",ROUND('Hidden - Calculator'!AO118,2)) ->  | H117: =IF('Hidden - Calculator'!AP118=0,"",'Hidden - Calculator'!AP118) -> 
D118: =IF(H118="","",'Hidden - Calculator'!F119) ->  | E118: =IF(H118="","",'Hidden - Calculator'!E119) ->  | F118: =IF(H118="","",ROUND('Hidden - Calculator'!AN119,2)) ->  | G118: =IF(H118="","",ROUND('Hidden - Calculator'!AO119,2)) ->  | H118: =IF('Hidden - Calculator'!AP119=0,"",'Hidden - Calculator'!AP119) -> 
D119: =IF(H119="","",'Hidden - Calculator'!F120) ->  | E119: =IF(H119="","",'Hidden - Calculator'!E120) ->  | F119: =IF(H119="","",ROUND('Hidden - Calculator'!AN120,2)) ->  | G119: =IF(H119="","",ROUND('Hidden - Calculator'!AO120,2)) ->  | H119: =IF('Hidden - Calculator'!AP120=0,"",'Hidden - Calculator'!AP120) -> 
D120: =IF(H120="","",'Hidden - Calculator'!F121) ->  | E120: =IF(H120="","",'Hidden - Calculator'!E121) ->  | F120: =IF(H120="","",ROUND('Hidden - Calculator'!AN121,2)) ->  | G120: =IF(H120="","",ROUND('Hidden - Calculator'!AO121,2)) ->  | H120: =IF('Hidden - Calculator'!AP121=0,"",'Hidden - Calculator'!AP121) -> 
D121: =IF(H121="","",'Hidden - Calculator'!F122) ->  | E121: =IF(H121="","",'Hidden - Calculator'!E122) ->  | F121: =IF(H121="","",ROUND('Hidden - Calculator'!AN122,2)) ->  | G121: =IF(H121="","",ROUND('Hidden - Calculator'!AO122,2)) ->  | H121: =IF('Hidden - Calculator'!AP122=0,"",'Hidden - Calculator'!AP122) -> 
D122: =IF(H122="","",'Hidden - Calculator'!F123) ->  | E122: =IF(H122="","",'Hidden - Calculator'!E123) ->  | F122: =IF(H122="","",ROUND('Hidden - Calculator'!AN123,2)) ->  | G122: =IF(H122="","",ROUND('Hidden - Calculator'!AO123,2)) ->  | H122: =IF('Hidden - Calculator'!AP123=0,"",'Hidden - Calculator'!AP123) -> 
D123: =IF(H123="","",'Hidden - Calculator'!F124) ->  | E123: =IF(H123="","",'Hidden - Calculator'!E124) ->  | F123: =IF(H123="","",ROUND('Hidden - Calculator'!AN124,2)) ->  | G123: =IF(H123="","",ROUND('Hidden - Calculator'!AO124,2)) ->  | H123: =IF('Hidden - Calculator'!AP124=0,"",'Hidden - Calculator'!AP124) -> 
D124: =IF(H124="","",'Hidden - Calculator'!F125) ->  | E124: =IF(H124="","",'Hidden - Calculator'!E125) ->  | F124: =IF(H124="","",ROUND('Hidden - Calculator'!AN125,2)) ->  | G124: =IF(H124="","",ROUND('Hidden - Calculator'!AO125,2)) ->  | H124: =IF('Hidden - Calculator'!AP125=0,"",'Hidden - Calculator'!AP125) -> 
D125: =IF(H125="","",'Hidden - Calculator'!F126) ->  | E125: =IF(H125="","",'Hidden - Calculator'!E126) ->  | F125: =IF(H125="","",ROUND('Hidden - Calculator'!AN126,2)) ->  | G125: =IF(H125="","",ROUND('Hidden - Calculator'!AO126,2)) ->  | H125: =IF('Hidden - Calculator'!AP126=0,"",'Hidden - Calculator'!AP126) -> 
D126: =IF(H126="","",'Hidden - Calculator'!F127) ->  | E126: =IF(H126="","",'Hidden - Calculator'!E127) ->  | F126: =IF(H126="","",ROUND('Hidden - Calculator'!AN127,2)) ->  | G126: =IF(H126="","",ROUND('Hidden - Calculator'!AO127,2)) ->  | H126: =IF('Hidden - Calculator'!AP127=0,"",'Hidden - Calculator'!AP127) -> 
D127: =IF(H127="","",'Hidden - Calculator'!F128) ->  | E127: =IF(H127="","",'Hidden - Calculator'!E128) ->  | F127: =IF(H127="","",ROUND('Hidden - Calculator'!AN128,2)) ->  | G127: =IF(H127="","",ROUND('Hidden - Calculator'!AO128,2)) ->  | H127: =IF('Hidden - Calculator'!AP128=0,"",'Hidden - Calculator'!AP128) -> 
D128: =IF(H128="","",'Hidden - Calculator'!F129) ->  | E128: =IF(H128="","",'Hidden - Calculator'!E129) ->  | F128: =IF(H128="","",ROUND('Hidden - Calculator'!AN129,2)) ->  | G128: =IF(H128="","",ROUND('Hidden - Calculator'!AO129,2)) ->  | H128: =IF('Hidden - Calculator'!AP129=0,"",'Hidden - Calculator'!AP129) -> 
D129: =IF(H129="","",'Hidden - Calculator'!F130) ->  | E129: =IF(H129="","",'Hidden - Calculator'!E130) ->  | F129: =IF(H129="","",ROUND('Hidden - Calculator'!AN130,2)) ->  | G129: =IF(H129="","",ROUND('Hidden - Calculator'!AO130,2)) ->  | H129: =IF('Hidden - Calculator'!AP130=0,"",'Hidden - Calculator'!AP130) -> 
D130: =IF(H130="","",'Hidden - Calculator'!F131) ->  | E130: =IF(H130="","",'Hidden - Calculator'!E131) ->  | F130: =IF(H130="","",ROUND('Hidden - Calculator'!AN131,2)) ->  | G130: =IF(H130="","",ROUND('Hidden - Calculator'!AO131,2)) ->  | H130: =IF('Hidden - Calculator'!AP131=0,"",'Hidden - Calculator'!AP131) -> 
D131: =IF(H131="","",'Hidden - Calculator'!F132) ->  | E131: =IF(H131="","",'Hidden - Calculator'!E132) ->  | F131: =IF(H131="","",ROUND('Hidden - Calculator'!AN132,2)) ->  | G131: =IF(H131="","",ROUND('Hidden - Calculator'!AO132,2)) ->  | H131: =IF('Hidden - Calculator'!AP132=0,"",'Hidden - Calculator'!AP132) -> 
D132: =IF(H132="","",'Hidden - Calculator'!F133) ->  | E132: =IF(H132="","",'Hidden - Calculator'!E133) ->  | F132: =IF(H132="","",ROUND('Hidden - Calculator'!AN133,2)) ->  | G132: =IF(H132="","",ROUND('Hidden - Calculator'!AO133,2)) ->  | H132: =IF('Hidden - Calculator'!AP133=0,"",'Hidden - Calculator'!AP133) -> 
D133: =IF(H133="","",'Hidden - Calculator'!F134) ->  | E133: =IF(H133="","",'Hidden - Calculator'!E134) ->  | F133: =IF(H133="","",ROUND('Hidden - Calculator'!AN134,2)) ->  | G133: =IF(H133="","",ROUND('Hidden - Calculator'!AO134,2)) ->  | H133: =IF('Hidden - Calculator'!AP134=0,"",'Hidden - Calculator'!AP134) -> 
D134: =IF(H134="","",'Hidden - Calculator'!F135) ->  | E134: =IF(H134="","",'Hidden - Calculator'!E135) ->  | F134: =IF(H134="","",ROUND('Hidden - Calculator'!AN135,2)) ->  | G134: =IF(H134="","",ROUND('Hidden - Calculator'!AO135,2)) ->  | H134: =IF('Hidden - Calculator'!AP135=0,"",'Hidden - Calculator'!AP135) -> 
D135: =IF(H135="","",'Hidden - Calculator'!F136) ->  | E135: =IF(H135="","",'Hidden - Calculator'!E136) ->  | F135: =IF(H135="","",ROUND('Hidden - Calculator'!AN136,2)) ->  | G135: =IF(H135="","",ROUND('Hidden - Calculator'!AO136,2)) ->  | H135: =IF('Hidden - Calculator'!AP136=0,"",'Hidden - Calculator'!AP136) -> 
D136: =IF(H136="","",'Hidden - Calculator'!F137) ->  | E136: =IF(H136="","",'Hidden - Calculator'!E137) ->  | F136: =IF(H136="","",ROUND('Hidden - Calculator'!AN137,2)) ->  | G136: =IF(H136="","",ROUND('Hidden - Calculator'!AO137,2)) ->  | H136: =IF('Hidden - Calculator'!AP137=0,"",'Hidden - Calculator'!AP137) -> 
D137: =IF(H137="","",'Hidden - Calculator'!F138) ->  | E137: =IF(H137="","",'Hidden - Calculator'!E138) ->  | F137: =IF(H137="","",ROUND('Hidden - Calculator'!AN138,2)) ->  | G137: =IF(H137="","",ROUND('Hidden - Calculator'!AO138,2)) ->  | H137: =IF('Hidden - Calculator'!AP138=0,"",'Hidden - Calculator'!AP138) -> 
D138: =IF(H138="","",'Hidden - Calculator'!F139) ->  | E138: =IF(H138="","",'Hidden - Calculator'!E139) ->  | F138: =IF(H138="","",ROUND('Hidden - Calculator'!AN139,2)) ->  | G138: =IF(H138="","",ROUND('Hidden - Calculator'!AO139,2)) ->  | H138: =IF('Hidden - Calculator'!AP139=0,"",'Hidden - Calculator'!AP139) -> 
D139: =IF(H139="","",'Hidden - Calculator'!F140) ->  | E139: =IF(H139="","",'Hidden - Calculator'!E140) ->  | F139: =IF(H139="","",ROUND('Hidden - Calculator'!AN140,2)) ->  | G139: =IF(H139="","",ROUND('Hidden - Calculator'!AO140,2)) ->  | H139: =IF('Hidden - Calculator'!AP140=0,"",'Hidden - Calculator'!AP140) -> 
D140: =IF(H140="","",'Hidden - Calculator'!F141) ->  | E140: =IF(H140="","",'Hidden - Calculator'!E141) ->  | F140: =IF(H140="","",ROUND('Hidden - Calculator'!AN141,2)) ->  | G140: =IF(H140="","",ROUND('Hidden - Calculator'!AO141,2)) ->  | H140: =IF('Hidden - Calculator'!AP141=0,"",'Hidden - Calculator'!AP141) -> 
D141: =IF(H141="","",'Hidden - Calculator'!F142) ->  | E141: =IF(H141="","",'Hidden - Calculator'!E142) ->  | F141: =IF(H141="","",ROUND('Hidden - Calculator'!AN142,2)) ->  | G141: =IF(H141="","",ROUND('Hidden - Calculator'!AO142,2)) ->  | H141: =IF('Hidden - Calculator'!AP142=0,"",'Hidden - Calculator'!AP142) -> 
D142: =IF(H142="","",'Hidden - Calculator'!F143) ->  | E142: =IF(H142="","",'Hidden - Calculator'!E143) ->  | F142: =IF(H142="","",ROUND('Hidden - Calculator'!AN143,2)) ->  | G142: =IF(H142="","",ROUND('Hidden - Calculator'!AO143,2)) ->  | H142: =IF('Hidden - Calculator'!AP143=0,"",'Hidden - Calculator'!AP143) -> 
D143: =IF(H143="","",'Hidden - Calculator'!F144) ->  | E143: =IF(H143="","",'Hidden - Calculator'!E144) ->  | F143: =IF(H143="","",ROUND('Hidden - Calculator'!AN144,2)) ->  | G143: =IF(H143="","",ROUND('Hidden - Calculator'!AO144,2)) ->  | H143: =IF('Hidden - Calculator'!AP144=0,"",'Hidden - Calculator'!AP144) -> 
D144: =IF(H144="","",'Hidden - Calculator'!F145) ->  | E144: =IF(H144="","",'Hidden - Calculator'!E145) ->  | F144: =IF(H144="","",ROUND('Hidden - Calculator'!AN145,2)) ->  | G144: =IF(H144="","",ROUND('Hidden - Calculator'!AO145,2)) ->  | H144: =IF('Hidden - Calculator'!AP145=0,"",'Hidden - Calculator'!AP145) -> 
D145: =IF(H145="","",'Hidden - Calculator'!F146) ->  | E145: =IF(H145="","",'Hidden - Calculator'!E146) ->  | F145: =IF(H145="","",ROUND('Hidden - Calculator'!AN146,2)) ->  | G145: =IF(H145="","",ROUND('Hidden - Calculator'!AO146,2)) ->  | H145: =IF('Hidden - Calculator'!AP146=0,"",'Hidden - Calculator'!AP146) -> 
D146: =IF(H146="","",'Hidden - Calculator'!F147) ->  | E146: =IF(H146="","",'Hidden - Calculator'!E147) ->  | F146: =IF(H146="","",ROUND('Hidden - Calculator'!AN147,2)) ->  | G146: =IF(H146="","",ROUND('Hidden - Calculator'!AO147,2)) ->  | H146: =IF('Hidden - Calculator'!AP147=0,"",'Hidden - Calculator'!AP147) -> 
D147: =IF(H147="","",'Hidden - Calculator'!F148) ->  | E147: =IF(H147="","",'Hidden - Calculator'!E148) ->  | F147: =IF(H147="","",ROUND('Hidden - Calculator'!AN148,2)) ->  | G147: =IF(H147="","",ROUND('Hidden - Calculator'!AO148,2)) ->  | H147: =IF('Hidden - Calculator'!AP148=0,"",'Hidden - Calculator'!AP148) -> 
D148: =IF(H148="","",'Hidden - Calculator'!F149) ->  | E148: =IF(H148="","",'Hidden - Calculator'!E149) ->  | F148: =IF(H148="","",ROUND('Hidden - Calculator'!AN149,2)) ->  | G148: =IF(H148="","",ROUND('Hidden - Calculator'!AO149,2)) ->  | H148: =IF('Hidden - Calculator'!AP149=0,"",'Hidden - Calculator'!AP149) -> 
D149: =IF(H149="","",'Hidden - Calculator'!F150) ->  | E149: =IF(H149="","",'Hidden - Calculator'!E150) ->  | F149: =IF(H149="","",ROUND('Hidden - Calculator'!AN150,2)) ->  | G149: =IF(H149="","",ROUND('Hidden - Calculator'!AO150,2)) ->  | H149: =IF('Hidden - Calculator'!AP150=0,"",'Hidden - Calculator'!AP150) -> 
D150: =IF(H150="","",'Hidden - Calculator'!F151) ->  | E150: =IF(H150="","",'Hidden - Calculator'!E151) ->  | F150: =IF(H150="","",ROUND('Hidden - Calculator'!AN151,2)) ->  | G150: =IF(H150="","",ROUND('Hidden - Calculator'!AO151,2)) ->  | H150: =IF('Hidden - Calculator'!AP151=0,"",'Hidden - Calculator'!AP151) -> 
D151: =IF(H151="","",'Hidden - Calculator'!F152) ->  | E151: =IF(H151="","",'Hidden - Calculator'!E152) ->  | F151: =IF(H151="","",ROUND('Hidden - Calculator'!AN152,2)) ->  | G151: =IF(H151="","",ROUND('Hidden - Calculator'!AO152,2)) ->  | H151: =IF('Hidden - Calculator'!AP152=0,"",'Hidden - Calculator'!AP152) -> 
D152: =IF(H152="","",'Hidden - Calculator'!F153) ->  | E152: =IF(H152="","",'Hidden - Calculator'!E153) ->  | F152: =IF(H152="","",ROUND('Hidden - Calculator'!AN153,2)) ->  | G152: =IF(H152="","",ROUND('Hidden - Calculator'!AO153,2)) ->  | H152: =IF('Hidden - Calculator'!AP153=0,"",'Hidden - Calculator'!AP153) -> 
D153: =IF(H153="","",'Hidden - Calculator'!F154) ->  | E153: =IF(H153="","",'Hidden - Calculator'!E154) ->  | F153: =IF(H153="","",ROUND('Hidden - Calculator'!AN154,2)) ->  | G153: =IF(H153="","",ROUND('Hidden - Calculator'!AO154,2)) ->  | H153: =IF('Hidden - Calculator'!AP154=0,"",'Hidden - Calculator'!AP154) -> 
D154: =IF(H154="","",'Hidden - Calculator'!F155) ->  | E154: =IF(H154="","",'Hidden - Calculator'!E155) ->  | F154: =IF(H154="","",ROUND('Hidden - Calculator'!AN155,2)) ->  | G154: =IF(H154="","",ROUND('Hidden - Calculator'!AO155,2)) ->  | H154: =IF('Hidden - Calculator'!AP155=0,"",'Hidden - Calculator'!AP155) -> 
D155: =IF(H155="","",'Hidden - Calculator'!F156) ->  | E155: =IF(H155="","",'Hidden - Calculator'!E156) ->  | F155: =IF(H155="","",ROUND('Hidden - Calculator'!AN156,2)) ->  | G155: =IF(H155="","",ROUND('Hidden - Calculator'!AO156,2)) ->  | H155: =IF('Hidden - Calculator'!AP156=0,"",'Hidden - Calculator'!AP156) -> 
D156: =IF(H156="","",'Hidden - Calculator'!F157) ->  | E156: =IF(H156="","",'Hidden - Calculator'!E157) ->  | F156: =IF(H156="","",ROUND('Hidden - Calculator'!AN157,2)) ->  | G156: =IF(H156="","",ROUND('Hidden - Calculator'!AO157,2)) ->  | H156: =IF('Hidden - Calculator'!AP157=0,"",'Hidden - Calculator'!AP157) -> 
D157: =IF(H157="","",'Hidden - Calculator'!F158) ->  | E157: =IF(H157="","",'Hidden - Calculator'!E158) ->  | F157: =IF(H157="","",ROUND('Hidden - Calculator'!AN158,2)) ->  | G157: =IF(H157="","",ROUND('Hidden - Calculator'!AO158,2)) ->  | H157: =IF('Hidden - Calculator'!AP158=0,"",'Hidden - Calculator'!AP158) -> 
D158: =IF(H158="","",'Hidden - Calculator'!F159) ->  | E158: =IF(H158="","",'Hidden - Calculator'!E159) ->  | F158: =IF(H158="","",ROUND('Hidden - Calculator'!AN159,2)) ->  | G158: =IF(H158="","",ROUND('Hidden - Calculator'!AO159,2)) ->  | H158: =IF('Hidden - Calculator'!AP159=0,"",'Hidden - Calculator'!AP159) -> 
D159: =IF(H159="","",'Hidden - Calculator'!F160) ->  | E159: =IF(H159="","",'Hidden - Calculator'!E160) ->  | F159: =IF(H159="","",ROUND('Hidden - Calculator'!AN160,2)) ->  | G159: =IF(H159="","",ROUND('Hidden - Calculator'!AO160,2)) ->  | H159: =IF('Hidden - Calculator'!AP160=0,"",'Hidden - Calculator'!AP160) -> 
D160: =IF(H160="","",'Hidden - Calculator'!F161) ->  | E160: =IF(H160="","",'Hidden - Calculator'!E161) ->  | F160: =IF(H160="","",ROUND('Hidden - Calculator'!AN161,2)) ->  | G160: =IF(H160="","",ROUND('Hidden - Calculator'!AO161,2)) ->  | H160: =IF('Hidden - Calculator'!AP161=0,"",'Hidden - Calculator'!AP161) -> 
D161: =IF(H161="","",'Hidden - Calculator'!F162) ->  | E161: =IF(H161="","",'Hidden - Calculator'!E162) ->  | F161: =IF(H161="","",ROUND('Hidden - Calculator'!AN162,2)) ->  | G161: =IF(H161="","",ROUND('Hidden - Calculator'!AO162,2)) ->  | H161: =IF('Hidden - Calculator'!AP162=0,"",'Hidden - Calculator'!AP162) -> 
D162: =IF(H162="","",'Hidden - Calculator'!F163) ->  | E162: =IF(H162="","",'Hidden - Calculator'!E163) ->  | F162: =IF(H162="","",ROUND('Hidden - Calculator'!AN163,2)) ->  | G162: =IF(H162="","",ROUND('Hidden - Calculator'!AO163,2)) ->  | H162: =IF('Hidden - Calculator'!AP163=0,"",'Hidden - Calculator'!AP163) -> 
D163: =IF(H163="","",'Hidden - Calculator'!F164) ->  | E163: =IF(H163="","",'Hidden - Calculator'!E164) ->  | F163: =IF(H163="","",ROUND('Hidden - Calculator'!AN164,2)) ->  | G163: =IF(H163="","",ROUND('Hidden - Calculator'!AO164,2)) ->  | H163: =IF('Hidden - Calculator'!AP164=0,"",'Hidden - Calculator'!AP164) -> 
D164: =IF(H164="","",'Hidden - Calculator'!F165) ->  | E164: =IF(H164="","",'Hidden - Calculator'!E165) ->  | F164: =IF(H164="","",ROUND('Hidden - Calculator'!AN165,2)) ->  | G164: =IF(H164="","",ROUND('Hidden - Calculator'!AO165,2)) ->  | H164: =IF('Hidden - Calculator'!AP165=0,"",'Hidden - Calculator'!AP165) -> 
D165: =IF(H165="","",'Hidden - Calculator'!F166) ->  | E165: =IF(H165="","",'Hidden - Calculator'!E166) ->  | F165: =IF(H165="","",ROUND('Hidden - Calculator'!AN166,2)) ->  | G165: =IF(H165="","",ROUND('Hidden - Calculator'!AO166,2)) ->  | H165: =IF('Hidden - Calculator'!AP166=0,"",'Hidden - Calculator'!AP166) -> 
D166: =IF(H166="","",'Hidden - Calculator'!F167) ->  | E166: =IF(H166="","",'Hidden - Calculator'!E167) ->  | F166: =IF(H166="","",ROUND('Hidden - Calculator'!AN167,2)) ->  | G166: =IF(H166="","",ROUND('Hidden - Calculator'!AO167,2)) ->  | H166: =IF('Hidden - Calculator'!AP167=0,"",'Hidden - Calculator'!AP167) -> 
D167: =IF(H167="","",'Hidden - Calculator'!F168) ->  | E167: =IF(H167="","",'Hidden - Calculator'!E168) ->  | F167: =IF(H167="","",ROUND('Hidden - Calculator'!AN168,2)) ->  | G167: =IF(H167="","",ROUND('Hidden - Calculator'!AO168,2)) ->  | H167: =IF('Hidden - Calculator'!AP168=0,"",'Hidden - Calculator'!AP168) -> 
D168: =IF(H168="","",'Hidden - Calculator'!F169) ->  | E168: =IF(H168="","",'Hidden - Calculator'!E169) ->  | F168: =IF(H168="","",ROUND('Hidden - Calculator'!AN169,2)) ->  | G168: =IF(H168="","",ROUND('Hidden - Calculator'!AO169,2)) ->  | H168: =IF('Hidden - Calculator'!AP169=0,"",'Hidden - Calculator'!AP169) -> 
D169: =IF(H169="","",'Hidden - Calculator'!F170) ->  | E169: =IF(H169="","",'Hidden - Calculator'!E170) ->  | F169: =IF(H169="","",ROUND('Hidden - Calculator'!AN170,2)) ->  | G169: =IF(H169="","",ROUND('Hidden - Calculator'!AO170,2)) ->  | H169: =IF('Hidden - Calculator'!AP170=0,"",'Hidden - Calculator'!AP170) -> 
D170: =IF(H170="","",'Hidden - Calculator'!F171) ->  | E170: =IF(H170="","",'Hidden - Calculator'!E171) ->  | F170: =IF(H170="","",ROUND('Hidden - Calculator'!AN171,2)) ->  | G170: =IF(H170="","",ROUND('Hidden - Calculator'!AO171,2)) ->  | H170: =IF('Hidden - Calculator'!AP171=0,"",'Hidden - Calculator'!AP171) -> 
D171: =IF(H171="","",'Hidden - Calculator'!F172) ->  | E171: =IF(H171="","",'Hidden - Calculator'!E172) ->  | F171: =IF(H171="","",ROUND('Hidden - Calculator'!AN172,2)) ->  | G171: =IF(H171="","",ROUND('Hidden - Calculator'!AO172,2)) ->  | H171: =IF('Hidden - Calculator'!AP172=0,"",'Hidden - Calculator'!AP172) -> 
D172: =IF(H172="","",'Hidden - Calculator'!F173) ->  | E172: =IF(H172="","",'Hidden - Calculator'!E173) ->  | F172: =IF(H172="","",ROUND('Hidden - Calculator'!AN173,2)) ->  | G172: =IF(H172="","",ROUND('Hidden - Calculator'!AO173,2)) ->  | H172: =IF('Hidden - Calculator'!AP173=0,"",'Hidden - Calculator'!AP173) -> 
D173: =IF(H173="","",'Hidden - Calculator'!F174) ->  | E173: =IF(H173="","",'Hidden - Calculator'!E174) ->  | F173: =IF(H173="","",ROUND('Hidden - Calculator'!AN174,2)) ->  | G173: =IF(H173="","",ROUND('Hidden - Calculator'!AO174,2)) ->  | H173: =IF('Hidden - Calculator'!AP174=0,"",'Hidden - Calculator'!AP174) -> 
D174: =IF(H174="","",'Hidden - Calculator'!F175) ->  | E174: =IF(H174="","",'Hidden - Calculator'!E175) ->  | F174: =IF(H174="","",ROUND('Hidden - Calculator'!AN175,2)) ->  | G174: =IF(H174="","",ROUND('Hidden - Calculator'!AO175,2)) ->  | H174: =IF('Hidden - Calculator'!AP175=0,"",'Hidden - Calculator'!AP175) -> 
D175: =IF(H175="","",'Hidden - Calculator'!F176) ->  | E175: =IF(H175="","",'Hidden - Calculator'!E176) ->  | F175: =IF(H175="","",ROUND('Hidden - Calculator'!AN176,2)) ->  | G175: =IF(H175="","",ROUND('Hidden - Calculator'!AO176,2)) ->  | H175: =IF('Hidden - Calculator'!AP176=0,"",'Hidden - Calculator'!AP176) -> 
D176: =IF(H176="","",'Hidden - Calculator'!F177) ->  | E176: =IF(H176="","",'Hidden - Calculator'!E177) ->  | F176: =IF(H176="","",ROUND('Hidden - Calculator'!AN177,2)) ->  | G176: =IF(H176="","",ROUND('Hidden - Calculator'!AO177,2)) ->  | H176: =IF('Hidden - Calculator'!AP177=0,"",'Hidden - Calculator'!AP177) -> 
D177: =IF(H177="","",'Hidden - Calculator'!F178) ->  | E177: =IF(H177="","",'Hidden - Calculator'!E178) ->  | F177: =IF(H177="","",ROUND('Hidden - Calculator'!AN178,2)) ->  | G177: =IF(H177="","",ROUND('Hidden - Calculator'!AO178,2)) ->  | H177: =IF('Hidden - Calculator'!AP178=0,"",'Hidden - Calculator'!AP178) -> 
D178: =IF(H178="","",'Hidden - Calculator'!F179) ->  | E178: =IF(H178="","",'Hidden - Calculator'!E179) ->  | F178: =IF(H178="","",ROUND('Hidden - Calculator'!AN179,2)) ->  | G178: =IF(H178="","",ROUND('Hidden - Calculator'!AO179,2)) ->  | H178: =IF('Hidden - Calculator'!AP179=0,"",'Hidden - Calculator'!AP179) -> 
D179: =IF(H179="","",'Hidden - Calculator'!F180) ->  | E179: =IF(H179="","",'Hidden - Calculator'!E180) ->  | F179: =IF(H179="","",ROUND('Hidden - Calculator'!AN180,2)) ->  | G179: =IF(H179="","",ROUND('Hidden - Calculator'!AO180,2)) ->  | H179: =IF('Hidden - Calculator'!AP180=0,"",'Hidden - Calculator'!AP180) -> 
D180: =IF(H180="","",'Hidden - Calculator'!F181) ->  | E180: =IF(H180="","",'Hidden - Calculator'!E181) ->  | F180: =IF(H180="","",ROUND('Hidden - Calculator'!AN181,2)) ->  | G180: =IF(H180="","",ROUND('Hidden - Calculator'!AO181,2)) ->  | H180: =IF('Hidden - Calculator'!AP181=0,"",'Hidden - Calculator'!AP181) -> 
D181: =IF(H181="","",'Hidden - Calculator'!F182) ->  | E181: =IF(H181="","",'Hidden - Calculator'!E182) ->  | F181: =IF(H181="","",ROUND('Hidden - Calculator'!AN182,2)) ->  | G181: =IF(H181="","",ROUND('Hidden - Calculator'!AO182,2)) ->  | H181: =IF('Hidden - Calculator'!AP182=0,"",'Hidden - Calculator'!AP182) -> 
D182: =IF(H182="","",'Hidden - Calculator'!F183) ->  | E182: =IF(H182="","",'Hidden - Calculator'!E183) ->  | F182: =IF(H182="","",ROUND('Hidden - Calculator'!AN183,2)) ->  | G182: =IF(H182="","",ROUND('Hidden - Calculator'!AO183,2)) ->  | H182: =IF('Hidden - Calculator'!AP183=0,"",'Hidden - Calculator'!AP183) -> 
D183: =IF(H183="","",'Hidden - Calculator'!F184) ->  | E183: =IF(H183="","",'Hidden - Calculator'!E184) ->  | F183: =IF(H183="","",ROUND('Hidden - Calculator'!AN184,2)) ->  | G183: =IF(H183="","",ROUND('Hidden - Calculator'!AO184,2)) ->  | H183: =IF('Hidden - Calculator'!AP184=0,"",'Hidden - Calculator'!AP184) -> 
D184: =IF(H184="","",'Hidden - Calculator'!F185) ->  | E184: =IF(H184="","",'Hidden - Calculator'!E185) ->  | F184: =IF(H184="","",ROUND('Hidden - Calculator'!AN185,2)) ->  | G184: =IF(H184="","",ROUND('Hidden - Calculator'!AO185,2)) ->  | H184: =IF('Hidden - Calculator'!AP185=0,"",'Hidden - Calculator'!AP185) -> 
D185: =IF(H185="","",'Hidden - Calculator'!F186) ->  | E185: =IF(H185="","",'Hidden - Calculator'!E186) ->  | F185: =IF(H185="","",ROUND('Hidden - Calculator'!AN186,2)) ->  | G185: =IF(H185="","",ROUND('Hidden - Calculator'!AO186,2)) ->  | H185: =IF('Hidden - Calculator'!AP186=0,"",'Hidden - Calculator'!AP186) -> 
D186: =IF(H186="","",'Hidden - Calculator'!F187) ->  | E186: =IF(H186="","",'Hidden - Calculator'!E187) ->  | F186: =IF(H186="","",ROUND('Hidden - Calculator'!AN187,2)) ->  | G186: =IF(H186="","",ROUND('Hidden - Calculator'!AO187,2)) ->  | H186: =IF('Hidden - Calculator'!AP187=0,"",'Hidden - Calculator'!AP187) -> 
D187: =IF(H187="","",'Hidden - Calculator'!F188) ->  | E187: =IF(H187="","",'Hidden - Calculator'!E188) ->  | F187: =IF(H187="","",ROUND('Hidden - Calculator'!AN188,2)) ->  | G187: =IF(H187="","",ROUND('Hidden - Calculator'!AO188,2)) ->  | H187: =IF('Hidden - Calculator'!AP188=0,"",'Hidden - Calculator'!AP188) -> 
D188: =IF(H188="","",'Hidden - Calculator'!F189) ->  | E188: =IF(H188="","",'Hidden - Calculator'!E189) ->  | F188: =IF(H188="","",ROUND('Hidden - Calculator'!AN189,2)) ->  | G188: =IF(H188="","",ROUND('Hidden - Calculator'!AO189,2)) ->  | H188: =IF('Hidden - Calculator'!AP189=0,"",'Hidden - Calculator'!AP189) -> 
D189: =IF(H189="","",'Hidden - Calculator'!F190) ->  | E189: =IF(H189="","",'Hidden - Calculator'!E190) ->  | F189: =IF(H189="","",ROUND('Hidden - Calculator'!AN190,2)) ->  | G189: =IF(H189="","",ROUND('Hidden - Calculator'!AO190,2)) ->  | H189: =IF('Hidden - Calculator'!AP190=0,"",'Hidden - Calculator'!AP190) -> 
D190: =IF(H190="","",'Hidden - Calculator'!F191) ->  | E190: =IF(H190="","",'Hidden - Calculator'!E191) ->  | F190: =IF(H190="","",ROUND('Hidden - Calculator'!AN191,2)) ->  | G190: =IF(H190="","",ROUND('Hidden - Calculator'!AO191,2)) ->  | H190: =IF('Hidden - Calculator'!AP191=0,"",'Hidden - Calculator'!AP191) -> 
D191: =IF(H191="","",'Hidden - Calculator'!F192) ->  | E191: =IF(H191="","",'Hidden - Calculator'!E192) ->  | F191: =IF(H191="","",ROUND('Hidden - Calculator'!AN192,2)) ->  | G191: =IF(H191="","",ROUND('Hidden - Calculator'!AO192,2)) ->  | H191: =IF('Hidden - Calculator'!AP192=0,"",'Hidden - Calculator'!AP192) -> 
D192: =IF(H192="","",'Hidden - Calculator'!F193) ->  | E192: =IF(H192="","",'Hidden - Calculator'!E193) ->  | F192: =IF(H192="","",ROUND('Hidden - Calculator'!AN193,2)) ->  | G192: =IF(H192="","",ROUND('Hidden - Calculator'!AO193,2)) ->  | H192: =IF('Hidden - Calculator'!AP193=0,"",'Hidden - Calculator'!AP193) -> 
D193: =IF(H193="","",'Hidden - Calculator'!F194) ->  | E193: =IF(H193="","",'Hidden - Calculator'!E194) ->  | F193: =IF(H193="","",ROUND('Hidden - Calculator'!AN194,2)) ->  | G193: =IF(H193="","",ROUND('Hidden - Calculator'!AO194,2)) ->  | H193: =IF('Hidden - Calculator'!AP194=0,"",'Hidden - Calculator'!AP194) -> 
D194: =IF(H194="","",'Hidden - Calculator'!F195) ->  | E194: =IF(H194="","",'Hidden - Calculator'!E195) ->  | F194: =IF(H194="","",ROUND('Hidden - Calculator'!AN195,2)) ->  | G194: =IF(H194="","",ROUND('Hidden - Calculator'!AO195,2)) ->  | H194: =IF('Hidden - Calculator'!AP195=0,"",'Hidden - Calculator'!AP195) -> 
D195: =IF(H195="","",'Hidden - Calculator'!F196) ->  | E195: =IF(H195="","",'Hidden - Calculator'!E196) ->  | F195: =IF(H195="","",ROUND('Hidden - Calculator'!AN196,2)) ->  | G195: =IF(H195="","",ROUND('Hidden - Calculator'!AO196,2)) ->  | H195: =IF('Hidden - Calculator'!AP196=0,"",'Hidden - Calculator'!AP196) -> 
D196: =IF(H196="","",'Hidden - Calculator'!F197) ->  | E196: =IF(H196="","",'Hidden - Calculator'!E197) ->  | F196: =IF(H196="","",ROUND('Hidden - Calculator'!AN197,2)) ->  | G196: =IF(H196="","",ROUND('Hidden - Calculator'!AO197,2)) ->  | H196: =IF('Hidden - Calculator'!AP197=0,"",'Hidden - Calculator'!AP197) -> 
D197: =IF(H197="","",'Hidden - Calculator'!F198) ->  | E197: =IF(H197="","",'Hidden - Calculator'!E198) ->  | F197: =IF(H197="","",ROUND('Hidden - Calculator'!AN198,2)) ->  | G197: =IF(H197="","",ROUND('Hidden - Calculator'!AO198,2)) ->  | H197: =IF('Hidden - Calculator'!AP198=0,"",'Hidden - Calculator'!AP198) -> 
D198: =IF(H198="","",'Hidden - Calculator'!F199) ->  | E198: =IF(H198="","",'Hidden - Calculator'!E199) ->  | F198: =IF(H198="","",ROUND('Hidden - Calculator'!AN199,2)) ->  | G198: =IF(H198="","",ROUND('Hidden - Calculator'!AO199,2)) ->  | H198: =IF('Hidden - Calculator'!AP199=0,"",'Hidden - Calculator'!AP199) -> 
D199: =IF(H199="","",'Hidden - Calculator'!F200) ->  | E199: =IF(H199="","",'Hidden - Calculator'!E200) ->  | F199: =IF(H199="","",ROUND('Hidden - Calculator'!AN200,2)) ->  | G199: =IF(H199="","",ROUND('Hidden - Calculator'!AO200,2)) ->  | H199: =IF('Hidden - Calculator'!AP200=0,"",'Hidden - Calculator'!AP200) -> 
D200: =IF(H200="","",'Hidden - Calculator'!F201) ->  | E200: =IF(H200="","",'Hidden - Calculator'!E201) ->  | F200: =IF(H200="","",ROUND('Hidden - Calculator'!AN201,2)) ->  | G200: =IF(H200="","",ROUND('Hidden - Calculator'!AO201,2)) ->  | H200: =IF('Hidden - Calculator'!AP201=0,"",'Hidden - Calculator'!AP201) -> 
... 402 more rows

Sheet Lease Summary
B1: General Information | I1: Related Party Disclosures | L1: Lease Payment Information | Q1: Lease Asset | U1: Accrual Basis (Government-wide and Business-Type) | AG1: Modified Accrual Basis (Governmental Funds)
A2: # | B2: Lease Name | C2: Lease Commencement Date | D2: Fund Name | E2: Type of Lease | F2: Lease Description | G2: Description of Additional Commitments | I2: Related Party Lease? | J2: Description of Related Party Disclosures, if applicable | L2: Lease Term (in years) | M2: Payment Frequency (per year) | N2: Annual Interest Rate | O2: Description of Variable Payments, if applicable | Q2: Depreciable or Nondepreciable | R2: Lease Asset Estimated Useful Life (in years) | S2: Annual Lease Asset Amortization | U2: Restatement - Beginning Net Position | V2: Lease Asset | W2: Lease Asset - Accumulated Depreciation | X2: Lease Liability | Y2: Lease Asset - Depreciation Expense | Z2: Accrued Interest Payable | AA2: Lease - Interest Expense | AB2: Decrease in Cash Related to Lease | AC2: Removal of Previously Recorded Capital Lease Asset | AD2: Removal of Previously Recorded Capital Asset Accumulated Depreciation | AE2: Removal of Previously Recorded Capital Lease Liability | AG2: Lease Expenditure | AH2: Expenditure - Downpayment and/or Set-up | AI2: Other Financing Source - Lease | AJ2: Principal Payment - Lease | AK2: Lease - Interest Expense | AL2: Decrease in Cash Related to Lease
S3: Total of All Leases | U3: =SUM(U4:U4) -> -10137.7 | V3: =SUM(V4:V4) -> 421984.5 | W3: =SUM(W4:W4) -> -301250.05 | X3: =SUM(X4:X4) -> -106102.83 | Y3: =SUM(Y4:Y4) -> 60283.5 | Z3: =SUM(Z4:Z4) -> -495.35 | AA3: =SUM(AA4:AA4) -> 8212.93 | AB3: =SUM(AB4:AB4) -> -72495 | AC3: =SUM(AC4:AC4) -> 0 | AD3: =SUM(AD4:AD4) -> 0 | AE3: =SUM(AE4:AE4) -> 0 | AG3: =SUM(AG4:AG4) -> 0 | AH3: =SUM(AH4:AH4) -> 0 | AI3: =SUM(AI4:AI4) -> 0 | AJ3: =SUM(AJ4:AJ4) -> 64777.42 | AK3: =SUM(AK4:AK4) -> 7717.58 | AL3: =SUM(AL4:AL4) -> -72495
A4: 1 | B4: 1-2799 1100 S Main Marion | C4: 2017-07-01 | D4: Sample Agency | E4: Buildings | G4: 1-2799 1100 S Main Marion | I4: No | L4: 7 | M4: Monthly - (12) | N4: 0.0444 | Q4: Depreciable | R4: 7 | S4: 60283.5 | U4: -10137.7 | V4: 421984.5 | W4: -301250.05 | X4: -106102.83 | Y4: 60283.5 | Z4: -495.35 | AA4: 8212.93 | AB4: -72495 | AD4: 0 | AE4: 0 | AJ4: 64777.42 | AK4: 7717.58 | AL4: -72495

Sheet 1-2799 1100 S Main Marion
A1: General Information | D1: Lease Payment Schedule | J1: Lease Payment Schedule - Annual Summary | O1: Lease Payment Schedule - Footnote Disclosure | T1: Full Accrual Summary of Lease Entries as of June 30, 2022 | X1: Modified Accrual Summary of Lease Entries as of June 30, 2022 | AB1: Lease Asset Depreciation
D2: Payment # | E2: Date | F2: Principal | G2: Interest | H2: Total Payment | J2: FY Ending: | K2: Principal | L2: Interest | M2: Total Payment | T2: Restatement - Beginning Net Position | U2: -10137.7 | AC2: Lease Asset Value | AD2: 421984.5
A3: Lease Name | B3: 1-2799 1100 S Main Marion | D3: 1 | E3: 2017-07-01 | F3: 5537.81 | G3: 0 | H3: 5537.81 | J3: 2018-06-30 | K3: 50326.81 | L3: 16126.91 | M3: 66453.72 | O3: Year ended June 30, | P3: Principal | Q3: Interest | R3: Total Payment | T3: Lease Asset | U3: 421984.5 | AC3: Is Asset Nondepreciable? | AD3: No - Depreciable
D4: 2 | E4: 2017-08-01 | F4: 3996.96 | G4: 1540.85 | H4: 5537.81 | J4: 2019-06-30 | K4: 50981.3 | L4: 15472.42 | M4: 66453.72 | O4: 2023 | P4: 67713 | Q4: 4782 | R4: 72495 | T4: Lease Liability | U4: -106102.83 | X4: Principal Payment - Lease | Y4: 64777.42 | AC4: Depreciable Life | AD4: 7 years
A5: Type of Lease | B5: Buildings | D5: 3 | E5: 2017-09-01 | F5: 4011.75 | G5: 1526.06 | H5: 5537.81 | J5: 2020-06-30 | K5: 57401.89 | L5: 13079.27 | M5: 70481.16 | O5: 2024 | P5: 70781 | Q5: 1714 | R5: 72495 | T5: Interest Expense | U5: 8212.93 | X5: Interest Expense | Y5: 7717.58 | AC5: Accumulated Depreciation as of June 30, 2022 | AD5: 301250.05
D6: 4 | E6: 2017-10-01 | F6: 4026.59 | G6: 1511.22 | H6: 5537.81 | J6: 2021-06-30 | K6: 60003.07 | L6: 10478.09 | M6: 70481.16 | T6: Cash | U6: -72495 | X6: Cash | Y6: -72495 | AC6: Monthly Depreciation Amount | AD6: 5023.63
A7: General Description of Lease | D7: 5 | E7: 2017-11-01 | F7: 4041.49 | G7: 1496.32 | H7: 5537.81 | J7: 2022-06-30 | K7: 64777.42 | L7: 7717.58 | M7: 72495 | T7: Accumulated Depreciation | U7: -301250.05 | AC7: Annual Depreciation Amount | AD7: 60283.5
D8: 6 | E8: 2017-12-01 | F8: 4056.44 | G8: 1481.37 | H8: 5537.81 | J8: 2023-06-30 | K8: 67712.79 | L8: 4782.21 | M8: 72495 | T8: Lease Asset Depreciation Expense | U8: 60283.5
D9: 7 | E9: 2018-01-01 | F9: 4071.45 | G9: 1466.36 | H9: 5537.81 | J9: 2024-06-30 | K9: 70781.22 | L9: 1713.78 | M9: 72495 | T9: Accrued Interest Liability | U9: -495.35 | AB9: Year # | AC9: FY Ending: | AD9: Depreciation Amount
D10: 8 | E10: 2018-02-01 | F10: 4086.51 | G10: 1451.3 | H10: 5537.81 | AB10: 1 | AC10: 2018-06-30 | AD10: 60116.05
A11: Lease Commencement Date | B11: 2017-07-01 | D11: 9 | E11: 2018-03-01 | F11: 4101.63 | G11: 1436.18 | H11: 5537.81 | AB11: 2 | AC11: 2019-06-30 | AD11: 60283.5
D12: 10 | E12: 2018-04-01 | F12: 4116.81 | G12: 1421 | H12: 5537.81 | AB12: 3 | AC12: 2020-06-30 | AD12: 60283.5
A13: Fiscal Year Ending | B13: 2022-06-30 | D13: 11 | E13: 2018-05-01 | F13: 4132.04 | G13: 1405.77 | H13: 5537.81 | AB13: 4 | AC13: 2021-06-30 | AD13: 60283.5
D14: 12 | E14: 2018-06-01 | F14: 4147.33 | G14: 1390.48 | H14: 5537.81 | T14: Full Accrual Journal Entries for the Year Ended June 30, 2022 | X14: Modified Accrual Journal Entries for the Year Ended June 30, 2022 | AB14: 5 | AC14: 2022-06-30 | AD14: 60283.5
A15: Name of Fund | B15: Sample Agency | D15: 13 | E15: 2018-07-01 | F15: 4162.68 | G15: 1375.13 | H15: 5537.81 | T15: Initial Recording of the Lease - Restatement | X15: Governmental Fund - Initial Recording | AB15: 6 | AC15: 2023-06-30 | AD15: 60283.5
D16: 14 | E16: 2018-08-01 | F16: 4178.08 | G16: 1359.73 | H16: 5537.81 | T16: Account | U16: Debit | V16: Credit | X16: Account | Y16: Debit | Z16: Credit | AB16: 7 | AC16: 2024-06-30 | AD16: 60283.5
A17: Type of Fund | B17: Governmental Fund | D17: 15 | E17: 2018-09-01 | F17: 4193.54 | G17: 1344.27 | H17: 5537.81 | T17: Lease Asset | U17: 421984.5 | X17: No entry for initial recording of lease prior to | AB17: 8 | AC17: 2025-06-30 | AD17: 167.45
D18: 16 | E18: 2018-10-01 | F18: 4209.05 | G18: 1328.76 | H18: 5537.81 | T18: Lease Liability | V18: 170880.25 | X18: beginning of the current fiscal year in a
A19: Was Lease Previously Capital Lease? | B19: No | D19: 17 | E19: 2018-11-01 | F19: 4224.63 | G19: 1313.18 | H19: 5537.81 | T19: Accumulated Depreciation - Lease Asset | V19: 240966.55 | X19: governmental fund.
A20: Prior Capital Lease Asset Value | B20: N/A | D20: 18 | E20: 2018-12-01 | F20: 4240.26 | G20: 1297.55 | H20: 5537.81 | T20: Beginning Net Position | V20: 10137.7
A21: Prior Capital Lease Accumulated Depreciation | B21: N/A | D21: 19 | E21: 2019-01-01 | F21: 4255.95 | G21: 1281.86 | H21: 5537.81
A22: Prior Capital Lease Liability | B22: N/A | D22: 20 | E22: 2019-02-01 | F22: 4271.69 | G22: 1266.12 | H22: 5537.81
D23: 21 | E23: 2019-03-01 | F23: 4287.5 | G23: 1250.31 | H23: 5537.81
D24: 22 | E24: 2019-04-01 | F24: 4303.36 | G24: 1234.45 | H24: 5537.81
A25: Terms of the Lease | D25: 23 | E25: 2019-05-01 | F25: 4319.29 | G25: 1218.52 | H25: 5537.81 | T25: Recording All Lease Payments for FY2022 | X25: Recording All Lease Payments for FY2022
D26: 24 | E26: 2019-06-01 | F26: 4335.27 | G26: 1202.54 | H26: 5537.81 | T26: Account | U26: Debit | V26: Credit | X26: Account | Y26: Debit | Z26: Credit
A27: Length of Lease | B27: 7 years | D27: 25 | E27: 2019-07-01 | F27: 4686.93 | G27: 1186.5 | H27: 5873.43 | T27: Lease Liability | U27: 64777.42 | X27: Principal - Lease | Y27: 64777.42
A28: Frequency of Lease Payments | B28: Monthly - (12) | D28: 26 | E28: 2019-08-01 | F28: 4704.27 | G28: 1169.16 | H28: 5873.43 | T28: Interest Expense | U28: 7717.58 | X28: Interest Expense | Y28: 7717.58
A29: Annualized Interest Rate | B29: 0.0444 | D29: 27 | E29: 2019-09-01 | F29: 4721.67 | G29: 1151.76 | H29: 5873.43 | T29: Cash | V29: 72495 | X29: Cash | Z29: 72495
A30: Total Present Value of Lease | B30: 421984.5 | D30: 28 | E30: 2019-10-01 | F30: 4739.14 | G30: 1134.29 | H30: 5873.43
D31: 29 | E31: 2019-11-01 | F31: 4756.68 | G31: 1116.75 | H31: 5873.43 | T31: Recording Depreciation for FY2022
D32: 30 | E32: 2019-12-01 | F32: 4774.28 | G32: 1099.15 | H32: 5873.43 | T32: Account | U32: Debit | V32: Credit
A33: Disclosures | D33: 31 | E33: 2020-01-01 | F33: 4791.94 | G33: 1081.49 | H33: 5873.43 | T33: Lease Asset Depreciation Expense | U33: 60283.5
D34: 32 | E34: 2020-02-01 | F34: 4809.67 | G34: 1063.76 | H34: 5873.43 | T34: Accumulated Depreciation | V34: 60283.5
A35: Commitments and Collateral | B35: 1-2799 1100 S Main Marion | D35: 33 | E35: 2020-03-01 | F35: 4827.47 | G35: 1045.96 | H35: 5873.43
D36: 34 | E36: 2020-04-01 | F36: 4845.33 | G36: 1028.1 | H36: 5873.43 | T36: Recording Accrued Interest Payable for FY2022
D37: 35 | E37: 2020-05-01 | F37: 4863.26 | G37: 1010.17 | H37: 5873.43 | T37: Account | U37: Debit | V37: Credit
D38: 36 | E38: 2020-06-01 | F38: 4881.25 | G38: 992.18 | H38: 5873.43 | T38: Interest Expense | U38: 495.35
A39: Related Party Lease? | B39: No | D39: 37 | E39: 2020-07-01 | F39: 4899.31 | G39: 974.12 | H39: 5873.43 | T39: Accrued Interest Payable | V39: 495.35
A40: Structured as if unrelated? | B40: N/A | D40: 38 | E40: 2020-08-01 | F40: 4917.44 | G40: 955.99 | H40: 5873.43
D41: 39 | E41: 2020-09-01 | F41: 4935.64 | G41: 937.79 | H41: 5873.43
A42: Related Party Additional Information | D42: 40 | E42: 2020-10-01 | F42: 4953.9 | G42: 919.53 | H42: 5873.43 | T42: Example Full Accrual Journal Entries for the Next Fiscal Year | X42: Example Modified Accrual Journal Entries for the Next Fiscal Year
D43: 41 | E43: 2020-11-01 | F43: 4972.23 | G43: 901.2 | H43: 5873.43 | T43: Recording First Lease Payment in FY2023 | X43: Recording First Lease Payment in FY2023
D44: 42 | E44: 2020-12-01 | F44: 4990.62 | G44: 882.81 | H44: 5873.43 | T44: Account | U44: Debit | V44: Credit | X44: Account | Y44: Debit | Z44: Credit
D45: 43 | E45: 2021-01-01 | F45: 5009.09 | G45: 864.34 | H45: 5873.43 | T45: Lease Liability | U45: 5528.82 | X45: Principal - Lease | Y45: 5528.82
A46: Variable Payments Based on Performance or Usage? | D46: 44 | E46: 2021-02-01 | F46: 5027.62 | G46: 845.81 | H46: 5873.43 | T46: Interest Expense | U46: 17.08 | X46: Interest Expense | Y46: 512.43
B47: No | D47: 45 | E47: 2021-03-01 | F47: 5046.23 | G47: 827.2 | H47: 5873.43 | T47: Cash | V47: 6041.25 | X47: Cash | Z47: 6041.25
D48: 46 | E48: 2021-04-01 | F48: 5064.9 | G48: 808.53 | H48: 5873.43 | T48: Accrued Interest Payable | U48: 495.35
A49: Description of Variable Payment | D49: 47 | E49: 2021-05-01 | F49: 5083.64 | G49: 789.79 | H49: 5873.43
D50: 48 | E50: 2021-06-01 | F50: 5102.45 | G50: 770.98 | H50: 5873.43 | T50: Recording Depreciation for FY2023
D51: 49 | E51: 2021-07-01 | F51: 5289.15 | G51: 752.1 | H51: 6041.25 | T51: Account | U51: Debit | V51: Credit
D52: 50 | E52: 2021-08-01 | F52: 5308.72 | G52: 732.53 | H52: 6041.25 | T52: Lease Asset Depreciation Expense | U52: 60283.5
D53: 51 | E53: 2021-09-01 | F53: 5328.36 | G53: 712.89 | H53: 6041.25 | T53: Accumulated Depreciation | V53: 60283.5
D54: 52 | E54: 2021-10-01 | F54: 5348.07 | G54: 693.18 | H54: 6041.25
D55: 53 | E55: 2021-11-01 | F55: 5367.86 | G55: 673.39 | H55: 6041.25
D56: 54 | E56: 2021-12-01 | F56: 5387.72 | G56: 653.53 | H56: 6041.25
D57: 55 | E57: 2022-01-01 | F57: 5407.66 | G57: 633.59 | H57: 6041.25
D58: 56 | E58: 2022-02-01 | F58: 5427.66 | G58: 613.59 | H58: 6041.25
D59: 57 | E59: 2022-03-01 | F59: 5447.75 | G59: 593.5 | H59: 6041.25
D60: 58 | E60: 2022-04-01 | F60: 5467.9 | G60: 573.35 | H60: 6041.25
D61: 59 | E61: 2022-05-01 | F61: 5488.13 | G61: 553.12 | H61: 6041.25
D62: 60 | E62: 2022-06-01 | F62: 5508.44 | G62: 532.81 | H62: 6041.25
D63: 61 | E63: 2022-07-01 | F63: 5528.82 | G63: 512.43 | H63: 6041.25
D64: 62 | E64: 2022-08-01 | F64: 5549.28 | G64: 491.97 | H64: 6041.25
D65: 63 | E65: 2022-09-01 | F65: 5569.81 | G65: 471.44 | H65: 6041.25
D66: 64 | E66: 2022-10-01 | F66: 5590.42 | G66: 450.83 | H66: 6041.25
D67: 65 | E67: 2022-11-01 | F67: 5611.1 | G67: 430.15 | H67: 6041.25
D68: 66 | E68: 2022-12-01 | F68: 5631.87 | G68: 409.38 | H68: 6041.25
D69: 67 | E69: 2023-01-01 | F69: 5652.7 | G69: 388.55 | H69: 6041.25
D70: 68 | E70: 2023-02-01 | F70: 5673.62 | G70: 367.63 | H70: 6041.25
D71: 69 | E71: 2023-03-01 | F71: 5694.61 | G71: 346.64 | H71: 6041.25
D72: 70 | E72: 2023-04-01 | F72: 5715.68 | G72: 325.57 | H72: 6041.25
D73: 71 | E73: 2023-05-01 | F73: 5736.83 | G73: 304.42 | H73: 6041.25
D74: 72 | E74: 2023-06-01 | F74: 5758.05 | G74: 283.2 | H74: 6041.25
D75: 73 | E75: 2023-07-01 | F75: 5779.36 | G75: 261.89 | H75: 6041.25
D76: 74 | E76: 2023-08-01 | F76: 5800.74 | G76: 240.51 | H76: 6041.25
D77: 75 | E77: 2023-09-01 | F77: 5822.21 | G77: 219.04 | H77: 6041.25
D78: 76 | E78: 2023-10-01 | F78: 5843.75 | G78: 197.5 | H78: 6041.25
D79: 77 | E79: 2023-11-01 | F79: 5865.37 | G79: 175.88 | H79: 6041.25
D80: 78 | E80: 2023-12-01 | F80: 5887.07 | G80: 154.18 | H80: 6041.25
D81: 79 | E81: 2024-01-01 | F81: 5908.85 | G81: 132.4 | H81: 6041.25
D82: 80 | E82: 2024-02-01 | F82: 5930.72 | G82: 110.53 | H82: 6041.25
D83: 81 | E83: 2024-03-01 | F83: 5952.66 | G83: 88.59 | H83: 6041.25
D84: 82 | E84: 2024-04-01 | F84: 5974.69 | G84: 66.56 | H84: 6041.25
D85: 83 | E85: 2024-05-01 | F85: 5996.79 | G85: 44.46 | H85: 6041.25
D86: 84 | E86: 2024-06-01 | F86: 6019.01 | G86: 22.24 | H86: 6041.25
